Workbook

Sheet Instructions
A1: INSTRUCTIONS for Green Physical Needs Assessment Form
A3: Instructions for Preparation of Green Physical Needs Assessment (GPNA)
A5: Report Submission: Prepare a separate PNA form for each development in the HAs inventory every 5 years aligned with the Energy Audit. Use a separate spreadsheet for each property and submit these forms as part of the PHA Plan as required by 24CFR965. On an as needed basis, submit a revised form where physical needs have significantly changed since the last assessment. When updating forms, change the year of PNA, and let the RUL and 20 year summary adjust to accomodate the update.
A7: Introduction: The introduction sheet introduces the list of items that need to be inspected during the physical needs assessment as well as the possible green, energy-efficient, or water saving feature that an item might have. This summary is not inclusive of all measures that can be utilized on a particular development. Consult your local PNA provider to ensure all measures are taken into account.
A9: SHEET StartInput Instructions:
A10: General Information
A11: HA Name - Enter the HA Name
A12: HA Number - Enter the HA Number
A13: Owner's Street Address - Enter the HA Street Address
A14: Owner City, State - Enter the City and State of the HA
A15: Development Name - Enter the name of the Development
A16: Development Number - Enter an 11-digit alpha numeric code as follows: Enter an 11-digit alpha numeric code as follows: two-digit State code (alpha); two-digit Field
A17: Total Buildings - Enter the total number of buildings (dwelling and non-dwelling) in the Development.
A18: Total Residential Buildings - Enter the number of residential buildings in the property.
A19: Latest PASS REAC Score - Provide the latest issued score, on a 100-point basis, for the development.
A20: First Year Covered by PNA - Enter the first Calendar year that is covered in the PNA. This will be used to project the current needs and 20-year needs.
A21: Length of PNA (in years) - Enter the length of time that the PNA covers. This will be used to project total PNA costs.
A22: Total Off-Street Parking Spaces: Enter the number of off-street parking spaces on the site.
A23: Site Acreage: Enter the total number of acres included in the site.
A24: Parking Area (in square feet): Enter the approximate area of the off-street parking spaces.
A25: Year of Last Substantial Mod - Year of Last Substantial Modernization - Enter the FY when most recent substantial modernization occurred. For purposes of this form, substantial modernization is defined as the replacement/repair of major building systems, which brought the development up to the modernization standards.
A26: Inspection Information
A27: Year Original Building Built - Enter the Date of Full Availability (DOFA) in this format: MM/DD/YYYY.
A28: 1st Year of Pro Forma (after Grant/Loan Closing) - Typically the year after it closes (within 8 months). Also the year of the assessment.
A29: Inspection Company Name - Enter the name of the company for whom the inspector works, or if conducted by a staff person of the PHA, enter the inspector's job title.
A30: Inspector Contact Name - Enter the name of the contact person for the inspection.
A31: Inspector Contact Phone - Enter the phone number for contacting the inspector.
A32: Number of Building Exteriors Inspected - Enter the number of buildings for which the exteriors were inspected. (Reference HUD Handbook 7485.2 for PNA survey requirements).
A33: Units Inspected by Bedroom Size - Enter the number of units for which the interiors were inspected, by bedroom size, into this table. (Reference HUD Handbook 7485.2 for PNA survey requirements).
A34: Property Breakdown
A35: # Section 8 Assisted Units - Enter both the occupied and vacant assisted unit counts.
A36: # of Unassisted - Enter both the occupied and vacant unassisted unit counts.
A37: # of Non-Revenue Units - Enter the occupied and vacant non-revenue unit counts.
A38: 0 Bedroom - Enter occupied and vacant 0 Bedroom unit counts.
A39: 1 Bedroom - Enter occupied and vacant 1 Bedroom unit counts.
A40: 2 Bedroom - Enter occupied and vacant 2 Bedroom unit counts.
A41: 3 Bedroom - Enter occupied and vacant 3 Bedroom unit counts.
A42: 4 Bedroom - Enter occupied and vacant 4 Bedroom unit counts.
A43: 5 Bedroom - Enter occupied and vacant 5 Bedroom unit counts.
A44: 6 Bedroom - Enter occupied and vacant 6 Bedroom unit counts.
A45: 7 Bedroom - Enter occupied and vacant 7 Bedroom unit counts.
A46: Types
A47: Rural or (Sub)Urban? -
A48: Elderly or Family? -
A49: If Urban, MSA or Other? -
A50: Elevator, Garden, Mixed? -
A51: Flood Insurance Requirements
A52: Is the project in a Special Flood Hazard Zone?
A53: If yes, does the subject already carry flood insurance?
A55: SHEET CNI Instructions:
A56: For each PNA item, whether it has a green component or not, enter the following:
A57: EUL - Enter the Expected Useful Life of the item.
A58: Last Mod Year - Year of Last Modernization for the PNA item only. For purposes of this form, modernization is defined as the replacement/repair of PNA item, which brought the development closer to modernization standards.
A59: Condition - Under the pull down, the choices are Poor, Fair, and Good for the condition of the item.
A60: Action - Under the pull down, the choices are Routine Maintenance, Immediate Repair Recommended, Short Term Repair Required, and Replacement Reserve Cost Recommended for the action to take for each item.
A61: Comments - Enter any comments of green, energy-efficient, or water saving measures that impact the incremental cost.
A62: QTY - Enter the existing quantity of the item (to match with the unit of measure).
A63: Unit of Measure - Under the pull down, the choices are LUMP SUM, PERCENTAGE, each, per linear ft., per square ft., per square, per cubic yd., per 1000 SF, per 10000 SF.
A64: Unit Cost - Provide the estimate cost per unit of the existing and the cost per unit of the proposed standard and green replacements.
A65: Usage per year - Enter the annual usage of the item for existing, standard replacement, and green replacement. (This is only for utility savers that are not calculated in the ECM Input TAB)
A67: SHEET ECM INPUT instructions:
A68: Global Input
A69: Heating Degree Day Zone - Enter the heating degree day zone as established by ASHRAE in DDZ.
A70: Cost of Heating Fuel - For each of the four fuel types (Electric, Gas, Oil and Propane), enter the utility rate.
A71: Individual Inputs
A72: (Windows) Total Area of Windows - Enter the total area of windows in the development in square feet.
A73: (Windows) Total Volume of Buildings - Estimate the total volume of indoor space in the development in cubic feet.
A74: (Windows) Fuel Type - Under the pull down, choose the fuel type.
A75: (Windows) Window Frame Material - Under the pull down, the choices are Metal and Wood.
A76: (Windows) Average Window Fit - Under the pull down, the choices are Loose, Average, Tight.
A77: (Doors) Average No. of Residents per Unit - Count the residents in each unit and average per unit.
A78: (Doors) Total No. of Doors - Enter the total number of exterior doors leading into all units.
A79: (Doors) Average Fit of Existing Door - Under the pull down, the choices are Loose, Average, Tight.
A80: (Doors) Are Existing Doors Weatherstripped? - Under the pull down, the choices are yes and no.
A81: (Doors) Fuel Type - Under the pull down, choose the fuel type.
A82: (Doors) Type of Existing Door - Under the pull down, the choices are Steel and Wood.
A83: (Roof) Roof Area - Enter the total square footage of actual roof area.
A84: (Roof) Type of Existing Roof Structure - Under the pull down, choose Concrete, Steel, or Wood.
A85: (Roof) Fuel Type - Under the pull down, choose the fuel type.
A86: (Walls) Wall Area to be Insulated - Enter the total area of exterior walls in square feet. Unless windows cover more than 15% of the walls, there is no need to deduct the square footage of windows.
A87: (Walls) Wall construction and siding type - Under the pull down, the choices are Wood framed with wood siding, Wood framed with aluminum siding, Wood framed with brick veneer, Masonry wall with c.m.u., and Masonry wall all brick.
A88: (Walls) Fuel Type - Under the pull down, choose the fuel type.
A90: SHEET Tab 1 Instructions
A91: HA Name is populated from the StartInput SHEET.
A92: HA Number is populated from the StartInput SHEET.
A93: FY Assessment is populated from the StartInput SHEET.
A94: Original or Revision. Self-Explanatory.
A95: Date Prepared/Revised. Date Prepared is the date the Original Assessment form was completed. Date Revised is the date of the most recent Revision. If this is an Original submission, leave Date Revised blank.
A96: (1.1) Management Office Address is populated from the StartInput SHEET.
A97: (1.2) Project Name is populated from the StartInput SHEET.
A98: (1.3) Development No. is populated from the StartInput SHEET.
A99: (1.4) DOFA Date is populated from the StartInput SHEET.
A100: (1.5) Year of Last Substantial Mod is populated from the StartInput SHEET.
A101: (1.6) Occupancy Rate - This is a calculated field based on the Bedroom Distribution table (1.15).
A102: (1.7) Lastest PASS REAC Score is populated from the StartInput SHEET.
A103: Total Units - This is a calculated field based on the Bedroom Distribution table (1.15).
A104: (1.8) Total Buildings is populated from the StartInput SHEET.
A105: Occupied Units is populated from the StartInput SHEET.
A106: Vacant/Rentable Units is populated from the StartInput SHEET.
A107: (1.9) Occupancy Types - Check all occupancy types that apply.
A108: (1.10) Structure Types - Check all structure types that apply.
A109: (1.11) Construction Types - Check all construction types that apply.
A110: (1.12) Foundation Types - Check all foundation types that apply.
A111: (1.13) Envelope Types - Check all envelope types that apply.
A112: (1.14) Mechanical Systems - Check all mechanical systems that apply.
A113: (1.15) Current Bedroom Distribution - Enter the current number of occupied and vacant units, by bedroom size in 1.15a and 1.15b. This includes Rentable Units Only.
A114: (2.1) PNA Conducted By: (PHA/3rd Party) - Select the applicable check box which best describes who conducted the PNA. Both selections can be chosen if applicable.
A115: (2.2) First Year Covered by PNA is populated from the StartInput SHEET.
A116: (2.3) Length of PNA (in years) is populated from the StartInput SHEET.
A117: (2.4) Unit Interior Inspected (#) is populated from the StartInput SHEET.
A118: Units Inspected as % of Total is populated from the StartInput SHEET.
A119: (2.5) Inspector Contract Name is populated from the StartInput SHEET.
A120: (2.6) Company Name or PHA Title is populated from the StartInput SHEET.
A121: (2.7) Inspector Contact Phone is populated from the StartInput SHEET.
A122: (2.8) Data Source(s) for PNA: Check the applicable box or boxes indicating the sources of data for the preparation of the PNA.
A123: (2.9) Total Residential Buildings is populated form the StartInput SHEET.
A124: (2.10) Number of Building Exteriors Inspected is populated from the StartInput SHEET.
A125: (2.11) Total Off-Street Parking Spaces is populated from the StartInput SHEET.
A126: (2.12) Site Acreage is populated from the StartInput SHEET.
A127: (2.13) Parking Area (in square feet) is populated from the StartInput SHEET.
A128: (2.14) Units Inspected by Bedroom Size is populated from the StartInput SHEET.
A129: (2.15) Physical Improvements Will Result in Structural/System Soundness at a Reasonable Cost: Check "Yes" or "No". For cost reasonableness, the preliminary estimate of hard costs for work proposed at the development should be 90 percent or less of Total Development Cost (TDC).
A130: (2.16) Development Has Long-Term Physical and Social Viability: Check "Yes" or "No" as to whether the HA has determined that the development has long-term physical and social viability. Note: If "No" is checked, attach the viability analysis and an explanation of what actions are proposed regarding the nonviable development.
A136: The following are populated from the CNI input SHEET: Site (4.10), Common Buildings (4.11), Unit Exteriors (4.12), Unit Interiors (4.13), Mechanical Systems (4.14), New Construction (4.15), and Other (4.16). If you have a unique item not accounted for in each sub-section, modify the "Other (Specify)" line or lines provided in the CNI SHEET. Please note that in Section 4.17 (Special Categories) you are asked to estimate the amount of lead-based paint and asbestos removal costs, and accessibility compliance costs (Section 504, the Americans with Disabilities Act, and the Fair Housing Act (if applicable)) that are included in the PNA cost estimates. Note that in order to comply with Section 504, the property must comply with the Uniform Federal Accessibility Standards (UFAS) or the Deeming Notice (79 Fed. Reg. 29,671 (May 23, 2014)); for compliance with the Americans with Disabilities Act, the property must comply with the 2010 ADA Standards; and the property may be required to comply with the Fair Housing Act (see 24 C.F.R. 100.205). These are not additive to the PNA cost estimate.
C141: Section 4.16 should include all New Construction activities being proposed, which, since they are not "modernization" in a strict sense, are segregated from the
C142: rehabilitation costs in Section 4.9 to 4.15.
C144: Estimate Useful Life (in Years). Enter the number of years the component is expected to be serviceable in your geographic area. This is the "life cycle" of the
C145: component adjusted to your conditions.
C147: Useful Life Remaining (in Years). Based on the inspection, estimate the number of years that this component is expected to remain useful before it needs to be
C148: replaced or renovated.
C150: Method. The method for calculating the cost of replacing various items differs. For some items, it is the "cost per square foot" or "cost per linear foot". For others, it
C151: is a "unit cost". Some other items may be "lump sum". In this column, select the method from the pull down menu that is being used for estimating the replacement/repair
C152: cost of the line item.
C154: Total Quantity. Enter the quantity that will be required for each line item, which will then be multiplied by the Cost per Quantity (4.8) and produce the Total Long-
C155: Term Need.
C157: Current Needs Quantity. In this column, enter the quantity of each line item that needs immediate repair or replacement. These are existing or backlog needs, and will
C158: be treated as a "sub-set" of Year One Needs and will be reflected in the "Immediate" column in Section 3.0 of the PNA.
C160: Cost per Quantity. Enter the estimated Cost for each line item, based on the Method selected in Column 4.5. This estimate should exclude any management
C161: improvements, administration, architectural/engineering fees, relocation or other soft costs.
C163: Total Long Term Needs: Long term needs will be automatically calculated based on the projected useful life, estimated useful life remaining, quantity and cost
C164: per quantity fields.
C166: The form has been designed to print in portrait mode on 8.5 x 11 paper and will only include the fields from columns A - J. To print the future cost projections, the print
C167: area command must be used to change the print area.

Sheet Introduction
A1: Introduction
A3: =CNI!A5 -> Asphalt/Concrete
A4: Asphalt that is porous and/or used from recycled material can be considered green. In addition, some types of cold mixed asphalt, otherwise known as emulsions, save significant amounts of energy during the manufacturing process. Combined with the recycling efforts, and the longer expected useful lives, greening asphalt may be a viable option. A research effort under the Asphalt Research Consortium is underway and can be found at http://www.arc.unr.edu/
A5: =CNI!A15 -> Seal Coat
A6: Asphalt Sealcoat Manufacturers Association has been asked to adress "Green" issues involving sealcoat. Although, the website http://www.sealcoatmfg.org/green.html does not provide who is asking for the information, it is a legitimate concern. So far, the response is that many manufacturers are already using reclaimed water, recycled paper fibers, and recycled tires. In addition, the use of sealcoats preserve and/or extend the life of existing pavements, thus preventing the use of natural resources.
A7: =CNI!A25 -> Striping
A8: No green alternative
A9: =CNI!A35 -> Curb and Gutter
A10: No green alternative
A11: =CNI!A45 -> Pedestrian Paving
A12: No green alternative
A13: =CNI!A55 -> Signage
A14: With LEED emphasis strategies for sustainable site development, many sign companies have incorporated green into their business plans. Green practices include using ultra-violet curable inks with zero VOCs, using recycled papers/fabrics for substrates, and using recycled plastics for styren.
A15: =CNI!A65 -> Water Lines/Mains
A16: No green alternative
A17: =CNI!A75 -> Sewer Lines/Mains
A18: No green alternative
A19: =CNI!A85 -> Irrigation
A20: Use of greywater for irrigation using various techniques will fall into the category of green. Since outdoor water use is significant (around 30% of total residential water use), it is beneficial to conserve water. It also accounts for annual savings.
A21: =CNI!A101 -> Lighting
A22: Different types of outdoor lighting are street lights, flood lights, security lights, beacon lights, entry lights, and underwater accent lighting. There are different types of exterior lighting available for each application. There is a balance between choosing the most energy-efficient lighting and the color value and brightness of the bulb. For example, security lighting needs to be extremely bright and positioned so as to deter crime. Utilizing photo sensors in these applications will ensure energy-efficiency while providing security.
A23: =CNI!A117 -> Storm Drainage
A24: Managing stormwater and combined sewer overflow (CSO) pollution is part of green infrastructure development. If storm drainage is in poor condition and in need of repair, providing green solutions are not only environmentally friendly, but can be less expensive than the conventional system. This category combined with permeable pavement, green roofs, and/or downspout disconnection can help to efficiently control stormwater pollution.
A25: =CNI!A127 -> Landscaping
A26: Xeriscaping refers to landscaping in ways that reduce or eliminate the need for supplemental irrigation. Advantages to xeriscaping are lower water consumption and less maintenance needed.
A27: =CNI!A137 -> Fencing
A28: Whether it is wood fencing or aluminum fencing that a PHA is providing on the property, there are environmentally friendly options out there. One major control is to eliminate construction waste. Another is using recycled or reclaimed materials. There are no utility savings, but the reduction in cost of material may be significant.
A29: =CNI!A147 -> Fence Painting
A30: Utilizing low-VOC paint is good for the environment, simply because of the creation of ground-level ozone. Ground-level ozone is formed by a chemical reaction between VOCs and Nitrogen Oxides in the presence of sunlight. Using outdoor paints low in VOCs show no utility savings, but have a positive effect on the environment.
A31: =CNI!A157 -> Dumpsters & Enclosures
A32: No green alternative
A33: =CNI!A167 -> Electrical Distibution
A34: No green alternative
A35: =CNI!A177 -> Playground Areas/Equipment
A36: No green alternative
A37: =CNI!A297 -> Administrative Building
A38: Under rehabilition or renovation, there are many green alternatives, some in the form of utility savings. When repainting, utilize low-VOC paints. When reglazing or replacing windows, consider low-E argon windows. Consider addition of weather stripping on exterior doors and windows. Consider retrofit of energy-efficient lighting and appliances. Consider low-VOC flooring such as wood flooring and/or carpet. Take care not to double count, if these items are included in Unit Interiors.
A39: =CNI!A307 -> Community Building
A40: Under rehabilition or renovation, there are many green alternatives, some in the form of utility savings. When repainting, utilize low-VOC paints. When reglazing or replacing windows, consider low-E argon windows. Consider addition of weather stripping on exterior doors and windows. Consider retrofit of energy-efficient lighting and appliances. Consider low-VOC flooring such as wood flooring and/or carpet. Take care not to double count, if these items are included in Unit Interiors.
A41: =CNI!A317 -> Shop
A42: Under rehabilition or renovation, there are many green alternatives, some in the form of utility savings. When repainting, utilize low-VOC paints. When reglazing or replacing windows, consider low-E argon windows. Consider addition of weather stripping on exterior doors and windows. Consider retrofit of energy-efficient lighting and appliances. Consider low-VOC flooring such as wood flooring and/or carpet. Take care not to double count, if these items are included in Unit Interiors.
A43: =CNI!A327 -> Storage Area
A44: Under rehabilition or renovation, there are many green alternatives, some in the form of utility savings. However, for Storage Areas, there is little room for green alternatives. If the storage area is adjacent to living space and is unconditioned, consider adding insulation in the separating wall.
A45: =CNI!A337 -> Central Boiler
A47: =CNI!A347 -> Central Chiller
A49: =CNI!A357 -> Family Investment Center
A50: Under rehabilition or renovation, there are many green alternatives, some in the form of utility savings. When repainting, utilize low-VOC paints. When reglazing or replacing windows, consider low-E argon windows. Consider addition of weather stripping on exterior doors and windows. Consider retrofit of energy-efficient lighting and appliances. Consider low-VOC flooring such as wood flooring and/or carpet. Take care not to double count, if these items are included in Unit Interiors.
A51: =CNI!A367 -> Day Care Center
A52: Under rehabilition or renovation, there are many green alternatives, some in the form of utility savings. When repainting, utilize low-VOC paints. When reglazing or replacing windows, consider low-E argon windows. Consider addition of weather stripping on exterior doors and windows. Consider retrofit of energy-efficient lighting and appliances. Consider low-VOC flooring such as wood flooring and/or carpet. Take care not to double count, if these items are included in Unit Interiors.
A53: =CNI!A377 -> Laundry Areas
A54: In this category, only count the rehabilitation of the structure only: windows, doors, wall finishes, floor finishes, etc. Appliance rehab is done under Common Area Washers and Common Area Dryers below.
A55: =CNI!A387 -> Common Area Washers
A56: A green alternative to washers are providing energy-efficient washers and providing cold water only to reduce DHW use.
A57: =CNI!A397 -> Common Area Dryers
A58: The major rehabilitation or renovation alternative is to convert electric dryers to gas.
A59: =CNI!A407 -> Common Facilities Kitchen
A60: In this category, only count the rehabilitation of the structure only: windows, doors, wall finishes, floor finishes, etc. Appliance rehab is done under Common Facilities Appliances below.
A61: =CNI!A417 -> Common Facilities Appliances
A62: Use of Energy Star qualified appliances are recommended.
A63: =CNI!A427 -> Common Area Finishes
A64: Common area finishes are low-VOC paints, low-VOC carpeting/flooring, utilizing recycled/reclaimed materials for trim boards, etc. Take care not to double count if items were included in lump sum totals for other common areas listed above.
A65: =CNI!A547 -> Carports/Surface Garage
A66: No green alternative.
A67: =CNI!A557 -> Foundation
A68: To save energy demand on HVAC systems, ensure that insulation is provided between outdoor and indoor environments. Most of the time, this is not doable, since major renovation of the foundation system may need to be done.
A69: =CNI!A567 -> Foundation Waterproofing
A70: No green alternative.
A71: =CNI!A577 -> Building Slab
A72: No green alternative.
A73: =CNI!A587 -> Roofs
A74: To save energy demand on HVAC systems, the addition of insulation would be a green alternative.
A75: =CNI!A603 -> Exterior Walls - Structural
A76: To save energy demand on HVAC systems, the addition of insulation would be a green alternative.
A77: =CNI!A619 -> Exterior Walls - Finishes
A78: Low-VOC paints and recycled/reclaimed material for trim boards are non-utility saving green alternatives.
A79: =CNI!A629 -> Canopies
A80: The use of recycled/reclaimed materials are non-utility saving green alternatives.
A81: =CNI!A639 -> Tuck-Pointing
A82: Other than reducing some infiltration, tuck-pointing does not have a green alternative.
A83: =CNI!A649 -> Exterior Paint & Caulking
A84: Low-VOC paints and recycled/reclaimed material for trim boards are non-utility saving green alternatives.
A85: =CNI!A659 -> Soffits
A87: =CNI!A669 -> Siding
A89: =CNI!A679 -> Exterior Stairwells/Fire Escapes
A91: =CNI!A689 -> Landings & Railings
A93: =CNI!A699 -> Balconies & Railings
A95: =CNI!A709 -> Mail Facilities
A97: =CNI!A719 -> Exterior Doors
A99: =CNI!A735 -> Exterior Door Frames
A101: =CNI!A745 -> Patio Doors
A103: =CNI!A755 -> Windows
A105: =CNI!A771 -> Window Frames
A107: =CNI!A781 -> Gutters/Downspouts
A109: =CNI!A791 -> Columns & Porches
A111: =CNI!A801 -> Decks & Patios
A113: =CNI!A811 -> Patio/Unit Fencing
A115: =CNI!A821 -> Exterior Lighting
A117: =CNI!A947 -> Interior Painting (non-routine)
A119: =CNI!A957 -> Interior Doors
A121: =CNI!A967 -> Interior Door Frames
A123: =CNI!A977 -> Flooring (non-routine)
A125: =CNI!A987 -> Shower/Tub Surrounds
A127: =CNI!A1003 -> Toilets
A129: =CNI!A1019 -> Vanities
A131: =CNI!A1029 -> Faucets
A133: =CNI!A1045 -> Bathroom Flooring (non-cyclical)
A135: =CNI!A1055 -> Bathroom Cabinets
A137: =CNI!A1065 -> Bathroom Exhaust Fans
A139: =CNI!A1075 -> Kitchen Cabinets
A141: =CNI!A1085 -> Ranges
A143: =CNI!A1095 -> Range Hoods
A145: =CNI!A1105 -> Refrigerators
A147: =CNI!A1121 -> Counters and Sinks
A149: =CNI!A1131 -> Dishwasher
A151: =CNI!A1147 -> Garbage Disposal
A153: =CNI!A1157 -> Microwave
A155: =CNI!A1167 -> Lighting
A157: =CNI!A1183 -> Washing Machines
A159: =CNI!A1199 -> Dryers
A161: =CNI!A1209 -> Call-For-Aid Systems
A163: =CNI!A1219 -> Stairs and Handrails
A165: =CNI!A1339 -> Water Distribution
A167: =CNI!A1349 -> Heating Equipment/System
A169: =CNI!A1359 -> Electric Distribution
A171: =CNI!A1369 -> Water Heaters
A173: =CNI!A1379 -> Domestic Water - Boilers
A175: =CNI!A1389 -> Domestic Water-Pumps
A177: =CNI!A1399 -> Unit Sub-Panels
A179: =CNI!A1409 -> Trash Compactor
A181: =CNI!A1419 -> Cooling Equipment/Systems
A183: =CNI!A1429 -> Smoke/Fire Detection
A185: =CNI!A1439 -> Unit Reconfiguration
A187: =CNI!A1449 -> Security/Fire Alarm
A189: =CNI!A1459 -> Fire Supression System
A191: =CNI!A1469 -> Generator
A193: =CNI!A1479 -> Emergency Lighting
A195: =CNI!A1609 -> Dwelling Units
A197: =CNI!A1619 -> Administrative Building
A199: =CNI!A1629 -> Community Building
A201: =CNI!A1639 -> Shop
A203: =CNI!A1649 -> Storage Area
A205: =CNI!A1659 -> Family Investment Center
A207: =CNI!A1669 -> Day Care Center
A209: =CNI!A1679 -> Laundry Areas
A211: =CNI!A1799 -> Site Acquisition
A213: =CNI!A1809 -> Other Fees / Costs
A215: =CNI!A1819 -> Demolition
A217: =CNI!A1829 -> Dwelling Unit Conversion
A219: =CNI!A1839 -> Contingency
A221: =CNI!A1959 -> Lead Paint / Asbestos Compliance
A223: =CNI!A1969 -> Section 504 Compliance

Sheet StartInput
B2: ="Primary Input Page for "&E7 -> Primary Input Page for HA001 | J2: GRP Model Version: | K2: 1.03 | AB2: Hide these columns in production version
E3: Current Model Progress/Stage Date: | F3: =MAX([1]Cover!$E$16:$E$30) -> 1904-01-01 | J3: Revision Date: | K3: 2014-01-22
I4: OMB 2577-0157 form 52828 | K4: exp. 1/31/2014 | P4: Optional Bathroom Component Replacement Summary
B5: General Information: | I5: Complete Both Columns Below | P5: Number of Units | Q5: Unit Type | R5: # Bedrooms / Unit | S5: # of Baths / Unit | T5: # of Sinks & Faucets / Unit | U5: # of Toilets / Unit | V5: # of Shower- heads / Unit | W5: Total Sinks & Faucets | X5: Total Toilets | Y5: Total Showerheads
B6: HA Name: | E6: Sample Housing Authority | AB6: Limited Partnership | AF6: Yes
B7: HA Number: | E7: HA001 | I7: Property Breakdown: | J7: Occupied | K7: Vacant
B8: Owner's Street Address: | E8: 1234 Main Street | I8: # of Units Total (Asst + Unasst): | J8: =SUM(J9:J10) -> 350 | K8: =SUM(K9:K10) -> 40 | P8: 200 | R8: 1 | S8: 1 | T8: 2 | U8: 1 | V8: 1 | W8: =$P8*T8 -> 400 | X8: =$P8*U8 -> 200 | Y8: =$P8*V8 -> 200 | AB8: LLC | AF8: No
B9: Owner City, State: | E9: Hartford, CT | I9: # of Section 8 Assisted | J9: 300 | K9: 20 | W9: =$P9*T9 -> 0 | X9: 0 | Y9: 0 | AB9: Corporation | AF9: N/A
B10: Development Name | E10: Multifamily 1 | I10: # of Unassisted | J10: 50 | K10: 20 | W10: 0 | X10: 0 | Y10: 0 | AB10: Other
B11: Development Number | E11: MU 01-001 | I11: # of Non-Revenue Units: | J11: 0 | K11: 0 | W11: 0 | X11: 0 | Y11: 0
B12: Total Buildings | E12: 5 | I12: Unit Mix: | W12: 0 | X12: 0 | Y12: 0 | AB12: Identity of Interest
B13: Total Residential Buildings | E13: 4 | I13: 0 Bedroom (efficiency) | J13: 0 | K13: 0 | W13: 0 | X13: 0 | Y13: 0 | AB13: Non-Identity of Interest
B14: Latest PASS REAC Score: | E14: 97 | I14: 1 Bedroom | J14: 200 | K14: 10 | W14: 0 | X14: 0 | Y14: 0
B15: First Year Covered by PNA | E15: 1988 | I15: 2 Bedroom | J15: 100 | K15: 10 | W15: 0 | X15: 0 | Y15: 0
B16: Length of PNA in years | E16: 5 | I16: 3 Bedroom | J16: 50 | K16: 20 | W16: 0 | X16: 0 | Y16: 0
B17: Total Off-Street Parking Spaces: | E17: 255 | I17: 4 Bedroom | J17: 0 | K17: 0 | W17: 0 | X17: 0 | Y17: 0
B18: Site Acreage (acres): | E18: 8.7 | I18: 5 Bedroom | J18: 0 | K18: 0 | W18: 0 | X18: 0 | Y18: 0
B19: Parking Lot Area (square feet) | E19: 30000 | I19: 6 Bedroom | J19: 0 | K19: 0 | W19: 0 | X19: 0 | Y19: 0
B20: Year of Last Substantial Mod: | E20: 1998 | I20: 7 Bedroom | J20: 0 | K20: 0 | W20: 0 | X20: 0 | Y20: 0
I21: =IF(OR(SUM(J9:J10)<>J8,SUM(K9:K10)<>K8,SUM(J13:J20)<>J8,SUM(K13:K20)<>K8),"Total unit count and distribution are not matching","") ->  | W21: 0 | X21: 0 | Y21: 0
W22: 0 | X22: 0 | Y22: 0
B23: Inspection Information | I23: Types: | W23: 0 | X23: 0 | Y23: 0
B24: Year Original Building Built: | F24: 1971 | I24: Rural or (Sub)Urban?: | W24: 0 | X24: 0 | Y24: 0
B25: 1st Year of Pro Forma (after Grant/Loan Closing): | F25: 2010 | I25: Elderly or Family?: | W25: 0 | X25: 0 | Y25: 0
B26: Inspection Company Name: | F26: John Doe Co. | I26: If Urban, MSA or Other?: | W26: 0 | X26: 0 | Y26: 0
B27: Inspector Contact Name: | F27: John Doe | I27: Elevator, Garden, or Mixed?: | W27: 0 | X27: 0 | Y27: 0
B28: Inspector Contact Phone: | F28: 5551212 | W28: 0 | X28: 0 | Y28: 0 | AB28: Rural | AD28: Elderly | AF28: CreditVest
B29: Number of Building Exteriors Inspected: | F29: 10 | I29: Flood Insurance Requirements | W29: 0 | X29: 0 | Y29: 0 | AB29: Suburban | AD29: Family | AF29: Ontra, Inc.
B30: Number of 0 BR Units Inspected: | F30: 0 | I30: Is the project is in a Special Flood Hazard Zone? | K30: No | W30: 0 | X30: 0 | Y30: 0 | AB30: Urban | AF30: Signet Partners
B31: Number of 1 BR Units Inspected | F31: 50 | I31: If yes, does the subject already carry flood insurance? | K31: No | W31: 0 | X31: 0 | Y31: 0 | AB31: Urban MSA | AD31: Elevator
B32: Number of 2 BR Units Inspected | F32: 50 | I32: =IF(AND(K30="Yes",K31="No",'[1]Inc & Exp'!L101=0),"Ensure flood insurance is underwritten","") ->  | W32: 0 | X32: 0 | Y32: 0 | AB32: Urban Other | AD32: Garden
B33: Number of 3 BR Units Inspected | F33: 25 | W33: 0 | X33: 0 | Y33: 0 | AB33: Not Urban | AD33: Mixed
B34: Number of 4 BR Units Inspected | F34: 0 | W34: 0 | X34: 0 | Y34: 0
B35: Number of 5 BR Units Inspected | F35: 0 | W35: 0 | X35: 0 | Y35: 0
B36: Number of 6 BR Units Inspected | F36: 0 | W36: 0 | X36: 0 | Y36: 0
B37: Number of 7 BR Units Inspected | F37: 0 | I37: =IF('[1]Program Variables'!H26=0,"",IF('[1]Program Variables'!H26=1,"There is one Program Variables non-standard setting","There are "&'[1]Program Variables'!H26&" Program Variables non-standard settings")) ->  | W37: 0 | X37: 0 | Y37: 0
N38: TOTALS | P38: =SUM(P8:P37) -> 200 | Q38: N/A | R38: N/A | S38: N/A | T38: N/A | U38: N/A | V38: N/A | W38: =SUM(W8:W37) -> 400 | X38: =SUM(X8:X37) -> 200 | Y38: =SUM(Y8:Y37) -> 200
W39: =IF(W38<>W40,"Mismatch","") -> Mismatch | X39: =IF(X38<>X40,"Mismatch","") -> Mismatch | Y39: =IF(Y38<>Y40,"Mismatch","") -> Mismatch
T40: TOTALS FROM CAP NEEDS INPUT | W40: =CNI!$G$1039 -> 200 | X40: =CNI!$G$1013 -> 100 | Y40: =CNI!$G$997 -> 100
T41: Low flow faucets, toilets, and showerheads
B47: =IF(G45>K8,"Management Fee unit count exceeds the underwritten total","") -> 
B49: Comments: | P49: Baseline Energy Usage
P50: Electric Consumption | U50: Water Charges
B51: Comments: | P51: Year | R51: Annual Consumption | U51: Year | W51: Annual Consumption
P52: (Most recent 3 years) | R52: (kWh/year) | U52: (Most recent 3 years) | W52: (kWh/year)
B53: Comments:
B55: Comments:
P56: Average Annual Consumption | T56: kWh/yr | U56: Average Annual Consumption | Y56: kWh/yr
F57: Tenant | G57: Owner
D58: Utility Rate Table | E58: Consumption | F58: (Residential) | G58: (Commercial) | H58: Comments | P58: Natural Gas Consumption | U58: Sewer Charges
D59: Type of Utility | E59: Unit | F59: Tenant Paid | G59: Project Paid | P59: Year | R59: Annual Consumption | U59: Year | W59: Annual Consumption
D60: Dollar | E60: Dollar | F60: 1 | G60: 1 | H60: Comment | P60: (Most recent 3 years) | R60: (Therms/year) | U60: (Most recent 3 years) | W60: (kWh/year)
D61: Electricity | E61: KWH | F61: 0.19 | G61: 0.15 | H61: Comment
D62: Fuel Oil | E62: Gallons | F62: 0 | G62: 0 | H62: Comment
D63: Natural Gas | E63: Therms | F63: 0 | G63: 0 | H63: Comment | AF63: BTUh | AG63: Gallons
D64: Propane | E64: Gallons | F64: 0 | G64: 0 | H64: Comment | P64: Average Annual Consumption | T64: Therms/yr | U64: Average Annual Consumption | Y64: kWh/yr | AF64: Therms | AG64: ccf
D65: Kerosene | E65: Gallons | F65: 0 | G65: 0 | H65: Comment | AF65: ccf
D66: Water | E66: Gallons | F66: 0.0015 | G66: 0.0015 | H66: Comment | P66: Oil Consumption
D67: Sewer | E67: Gallons | F67: 0 | G67: 0 | H67: Comment | P67: Year | R67: Annual Consumption
D68: Other | F68: 0 | G68: 0 | H68: Comment | P68: (Most recent 3 years) | R68: (Gals/year)
D69: =IF(E66<>E67,"Water and Sewer should be the same consumption unit type","") -> 
D70: Utility Usage | E70: Util Source | F70: Paid By | G70: Comments
D71: Cooking | E71: Electricity | F71: Tenant | G71: Comment | AF71: Electricity | AH71: Owner
D72: In Unit: Heat | E72: Electricity | F72: Tenant | G72: Comment | P72: Average Annual Consumption | T72: Gals/yr | AF72: Natural Gas | AH72: Tenant
D73: In Unit: AC | E73: Electricity | F73: Tenant | G73: Comment | AF73: Propane
D74: In Unit: Lighting/Other Elec | E74: Electricity | F74: Owner | G74: Comment | P74: Propane Consumption | AF74: Fuel Oil
D75: In Unit: Cold Water | E75: Water & Sewer | F75: Tenant | G75: Comment | P75: Year | R75: Annual Consumption | AF75: Kerosene
D76: Hot Water (heating) | E76: Natural Gas | F76: Tenant | G76: Comment | P76: (Most recent 3 years) | R76: (Gals/year)
D77: Laundry: Washers | E77: Electricity | F77: Tenant | G77: Comment
D78: Laundry : Dryers | E78: Electricity | F78: Tenant | G78: Comment
D79: Common Area: Heat | E79: Electricity | F79: Owner | G79: Comment
D80: Common Area: AC | E80: Electricity | F80: Owner | G80: Comment | P80: Average Annual Consumption | T80: Gals/yr
D81: Common Area: Hot Water (heat) | E81: Electricity | F81: Owner | G81: Comment
D82: Common Area: Cold Water | E82: Water & Sewer | F82: Owner | G82: Comment
D83: Common Area: Lighting | E83: Electricity | F83: Owner | G83: Comment

Sheet CNI
A1: Capital Needs Input Sheet - PNA | F1: Date of PNA: | I1: 2010-02-10 | K1: Jump to: | L1: Exterior Doors | AL1: Utility Savers Only
AP2: Poor | AQ2: Routine Maintenace | AR2: LUMP SUM | AS2: =A5 -> Asphalt/Concrete | AU2: Owner | AV2: BTUh
A3: Site | AP3: Fair | AQ3: Immediate Repair Recommended | AR3: PERCENTAGE | AS3: =A15 -> Seal Coat | AU3: Tenant | AV3: ccf
A4: Site1 | AP4: Good | AQ4: Short Term Repair Recommended | AR4: each | AS4: =A25 -> Striping | AV4: Gallons
A5: Asphalt/Concrete | AQ5: Replacement Reserve Cost Recommended | AR5: per linear ft. | AS5: =A35 -> Curb and Gutter | AV5: KWH
A6: EUL (years): | B6: 6 | D6: Comments: | AR6: per square ft. | AS6: =A45 -> Pedestrian Paving | AV6: Therms
A7: Repl. Year: | B7: 1990 | AR7: per square | AS7: =A55 -> Signage
A8: RUL (years): | B8: =IF(B6-((YEAR(I1))-B7)>0,(B6-((YEAR(I1))-B7)),0) -> 0 | O8: =A5 -> Asphalt/Concrete | Z8: =A5 -> Asphalt/Concrete | AR8: per cubic yd. | AS8: =A65 -> Water Lines/Mains
A9: ITEM | G9: QTY | H9: Unit of Measure | I9: Unit Cost ($) | J9: Subtotal ($) | K9: Usage per Year | L9: Usage Units | M9: Eval. / Repl. | N9: Rate | O9: Immediate Needs | P9: Year 1 | Q9: Year 2 | R9: Year 3 | S9: Year 4 | T9: Year 5 | U9: Year 6 | V9: Year 7 | W9: Year 8 | X9: Year 9 | Y9: Year 10 | Z9: Year 11 | AA9: Year 12 | AB9: Year 13 | AC9: Year 14 | AD9: Year 15 | AE9: Year 16 | AF9: Year 17 | AG9: Year 18 | AH9: Year 19 | AI9: Year 20 | AJ9: Total Long-Term | AR9: per 1000 SF | AS9: =A75 -> Sewer Lines/Mains
P10: =YEAR($I$1)+1 -> 2011 | Q10: =YEAR($I$1)+2 -> 2012 | R10: =YEAR($I$1)+3 -> 2013 | S10: =YEAR($I$1)+4 -> 2014 | T10: =YEAR($I$1)+5 -> 2015 | U10: =YEAR($I$1)+6 -> 2016 | V10: =YEAR($I$1)+7 -> 2017 | W10: =YEAR($I$1)+8 -> 2018 | X10: =YEAR($I$1)+9 -> 2019 | Y10: =YEAR($I$1)+10 -> 2020 | Z10: =YEAR($I$1)+11 -> 2021 | AA10: =YEAR($I$1)+12 -> 2022 | AB10: =YEAR($I$1)+13 -> 2023 | AC10: =YEAR($I$1)+14 -> 2024 | AD10: =YEAR($I$1)+15 -> 2025 | AE10: =YEAR($I$1)+16 -> 2026 | AF10: =YEAR($I$1)+17 -> 2027 | AG10: =YEAR($I$1)+18 -> 2028 | AH10: =YEAR($I$1)+19 -> 2029 | AI10: =YEAR($I$1)+20 -> 2030 | AR10: per 10000 SF | AS10: =A85 -> Irrigation
A11: ="Existing "&A5 -> Existing Asphalt/Concrete | G11: 10 | H11: per 1000 SF | I11: 764 | J11: =G11*I11 -> 7640 | K11: Non-Utility Saver | M11: =IF(OR(ISERROR(B7+B6*(1-(Controls!$B$28))),(B7+B6*(1-(Controls!$B$28)))=0),"",IF((B7+B6*(1-(Controls!$B$28)))<=StartInput!$F$25,"Replace","Evaluate")) -> Replace | N11: N/A | O11: =IF($B$8=0,J11,0) -> 7640 | P11: =IF(OR(($B$8+YEAR($I$1))=P10,($B$6+$B$8+YEAR($I$1))=P10,($B$6*2+$B$8+YEAR($I$1))=P10,($B$6*3+$B$8+YEAR($I$1))=P10,($B$6*4+$B$8+YEAR($I$1))=P10,($B$6*5+$B$8+YEAR($I$1))=P10),$G$11*$I$11,0) -> 0 | Q11: =IF(OR(($B$8+YEAR($I$1))=Q10,($B$6+$B$8+YEAR($I$1))=Q10,($B$6*2+$B$8+YEAR($I$1))=Q10,($B$6*3+$B$8+YEAR($I$1))=Q10,($B$6*4+$B$8+YEAR($I$1))=Q10,($B$6*5+$B$8+YEAR($I$1))=Q10),$G$11*$I$11,0) -> 0 | R11: 0 | S11: 0 | T11: 0 | U11: 7640 | V11: 0 | W11: 0 | X11: 0 | Y11: 0 | Z11: 0 | AA11: 7640 | AB11: 0 | AC11: 0 | AD11: 0 | AE11: 0 | AF11: 0 | AG11: 7640 | AH11: 0 | AI11: 0 | AJ11: =SUM(P11:AI11) -> 22920 | AR11: Other | AS11: =A101 -> Lighting
A12: ="Standard "&A5 -> Standard Asphalt/Concrete | G12: 10 | H12: =H11 -> per 1000 SF | I12: 764 | J12: =G12*I12 -> 7640 | O12: =IF($B$8=0,J12,0) -> 7640 | P12: =IF(OR(($B$8+YEAR($I$1))=P10,($B$6+$B$8+YEAR($I$1))=P10,($B$6*2+$B$8+YEAR($I$1))=P10,($B$6*3+$B$8+YEAR($I$1))=P10,($B$6*4+$B$8+YEAR($I$1))=P10,($B$6*5+$B$8+YEAR($I$1))=P10),$G$12*$I$12,0) -> 0 | Q12: 0 | R12: 0 | S12: 0 | T12: 0 | U12: 7640 | V12: 0 | W12: 0 | X12: 0 | Y12: 0 | Z12: 0 | AA12: 7640 | AB12: 0 | AC12: 0 | AD12: 0 | AE12: 0 | AF12: 0 | AG12: 7640 | AH12: 0 | AI12: 0 | AJ12: =SUM(P12:AI12) -> 22920 | AK12: Inc. Cost | AS12: =A117 -> Storm Drainage
A13: ="Green Replacement "&A5 -> Green Replacement Asphalt/Concrete | G13: =G11 -> 10 | H13: =H12 -> per 1000 SF | I13: 804 | J13: =G13*I13 -> 8040 | O13: =IF($B$8=0,J13,0) -> 8040 | P13: =IF(OR(($B$8+YEAR($I$1))=P10,($B$6+$B$8+YEAR($I$1))=P10,($B$6*2+$B$8+YEAR($I$1))=P10,($B$6*3+$B$8+YEAR($I$1))=P10,($B$6*4+$B$8+YEAR($I$1))=P10,($B$6*5+$B$8+YEAR($I$1))=P10),$G$13*$I$13,0) -> 0 | Q13: 0 | R13: 0 | S13: 0 | T13: 0 | U13: 8040 | V13: 0 | W13: 0 | X13: 0 | Y13: 0 | Z13: 0 | AA13: 8040 | AB13: 0 | AC13: 0 | AD13: 0 | AE13: 0 | AF13: 0 | AG13: 8040 | AH13: 0 | AI13: 0 | AJ13: =SUM(P13:AI13) -> 24120 | AK13: =IF((AJ13-AJ12)<0,0,(AJ13-AJ12)) -> 1200 | AS13: =A127 -> Landscaping
A14: Site2 | AS14: =A137 -> Fencing
A15: Seal Coat | AS15: =A147 -> Fence Painting
A16: EUL (years): | B16: 9 | D16: Comments: | AS16: =A157 -> Dumpsters & Enclosures
A17: Repl. Year: | B17: 1990 | AS17: =A167 -> Electrical Distibution
A18: RUL (years): | B18: =IF(B16-((YEAR(I1))-B17)>0,(B16-((YEAR(I1))-B17)),0) -> 0 | O18: =A15 -> Seal Coat | Z18: =A15 -> Seal Coat | AS18: =A177 -> Playground Areas/Equipment
A19: ITEM | G19: QTY | H19: Unit of Measure | I19: Unit Cost ($) | J19: Subtotal ($) | K19: Usage per Year | L19: Usage Units | M19: Eval. / Repl. | N19: Rate | O19: Immediate Needs | P19: Year 1 | Q19: Year 2 | R19: Year 3 | S19: Year 4 | T19: Year 5 | U19: Year 6 | V19: Year 7 | W19: Year 8 | X19: Year 9 | Y19: Year 10 | Z19: Year 11 | AA19: Year 12 | AB19: Year 13 | AC19: Year 14 | AD19: Year 15 | AE19: Year 16 | AF19: Year 17 | AG19: Year 18 | AH19: Year 19 | AI19: Year 20 | AJ19: Total Long-Term | AS19: Site-Other 1 (Specify)
P20: =YEAR($I$1)+1 -> 2011 | Q20: =YEAR($I$1)+2 -> 2012 | R20: =YEAR($I$1)+3 -> 2013 | S20: =YEAR($I$1)+4 -> 2014 | T20: =YEAR($I$1)+5 -> 2015 | U20: =YEAR($I$1)+6 -> 2016 | V20: =YEAR($I$1)+7 -> 2017 | W20: =YEAR($I$1)+8 -> 2018 | X20: =YEAR($I$1)+9 -> 2019 | Y20: =YEAR($I$1)+10 -> 2020 | Z20: =YEAR($I$1)+11 -> 2021 | AA20: =YEAR($I$1)+12 -> 2022 | AB20: =YEAR($I$1)+13 -> 2023 | AC20: =YEAR($I$1)+14 -> 2024 | AD20: =YEAR($I$1)+15 -> 2025 | AE20: =YEAR($I$1)+16 -> 2026 | AF20: =YEAR($I$1)+17 -> 2027 | AG20: =YEAR($I$1)+18 -> 2028 | AH20: =YEAR($I$1)+19 -> 2029 | AI20: =YEAR($I$1)+20 -> 2030 | AS20: Site-Other 2 (Specify)
A21: ="Existing "&A15 -> Existing Seal Coat | G21: 2 | H21: per 10000 SF | I21: 3425 | J21: =G21*I21 -> 6850 | K21: Non-Utility Saver | M21: =IF(OR(ISERROR(B17+B16*(1-(Controls!$B$28))),(B17+B16*(1-(Controls!$B$28)))=0),"",IF((B17+B16*(1-(Controls!$B$28)))<=StartInput!$F$25,"Replace","Evaluate")) -> Replace | N21: N/A | O21: =IF($B$18=0,J21,0) -> 6850 | P21: =IF(OR(($B$18+YEAR($I$1))=P20,($B$16+$B$18+YEAR($I$1))=P20,($B$16*2+$B$18+YEAR($I$1))=P20,($B$16*3+$B$18+YEAR($I$1))=P20,($B$16*4+$B$18+YEAR($I$1))=P20,($B$16*5+$B$18+YEAR($I$1))=P20),$G$21*$I$21,0) -> 0 | Q21: 0 | R21: 0 | S21: 0 | T21: 0 | U21: 0 | V21: 0 | W21: 0 | X21: 6850 | Y21: 0 | Z21: 0 | AA21: 0 | AB21: 0 | AC21: 0 | AD21: 0 | AE21: 0 | AF21: 0 | AG21: 6850 | AH21: 0 | AI21: 0 | AJ21: =SUM(P21:AI21) -> 13700 | AS21: Site-Other 3 (Specify)
A22: ="Standard "&A15 -> Standard Seal Coat | G22: 2 | H22: per 10000 SF | I22: 3425 | J22: =G22*I22 -> 6850 | O22: =IF($B$18=0,J22,0) -> 6850 | P22: =IF(OR(($B$18+YEAR($I$1))=P20,($B$16+$B$18+YEAR($I$1))=P20,($B$16*2+$B$18+YEAR($I$1))=P20,($B$16*3+$B$18+YEAR($I$1))=P20,($B$16*4+$B$18+YEAR($I$1))=P20,($B$16*5+$B$18+YEAR($I$1))=P20),$G$22*$I$22,0) -> 0 | Q22: 0 | R22: 0 | S22: 0 | T22: 0 | U22: 0 | V22: 0 | W22: 0 | X22: 6850 | Y22: 0 | Z22: 0 | AA22: 0 | AB22: 0 | AC22: 0 | AD22: 0 | AE22: 0 | AF22: 0 | AG22: 6850 | AH22: 0 | AI22: 0 | AJ22: =SUM(P22:AI22) -> 13700 | AK22: Inc. Cost | AS22: Site-Other 4 (Specify)
A23: ="Green Replacement "&A15 -> Green Replacement Seal Coat | G23: =G21 -> 2 | H23: =H22 -> per 10000 SF | I23: 3800 | J23: =G23*I23 -> 7600 | O23: =IF($B$18=0,J23,0) -> 7600 | P23: =IF(OR(($B$18+YEAR($I$1))=P20,($B$16+$B$18+YEAR($I$1))=P20,($B$16*2+$B$18+YEAR($I$1))=P20,($B$16*3+$B$18+YEAR($I$1))=P20,($B$16*4+$B$18+YEAR($I$1))=P20,($B$16*5+$B$18+YEAR($I$1))=P20),$G$23*$I$23,0) -> 0 | Q23: 0 | R23: 0 | S23: 0 | T23: 0 | U23: 0 | V23: 0 | W23: 0 | X23: 7600 | Y23: 0 | Z23: 0 | AA23: 0 | AB23: 0 | AC23: 0 | AD23: 0 | AE23: 0 | AF23: 0 | AG23: 7600 | AH23: 0 | AI23: 0 | AJ23: =SUM(P23:AI23) -> 15200 | AK23: =IF((AJ23-AJ22)<0,0,(AJ23-AJ22)) -> 1500 | AS23: Site-Other 5 (Specify)
A24: Site3 | AS24: =A237 -> Site-Other 6 (Specify)
A25: Striping | AS25: =A247 -> Site-Other 7 (Specify)
A26: EUL (years): | B26: 20 | D26: Comments: | AS26: =A257 -> Site-Other 8 (Specify)
A27: Repl. Year: | B27: 1990 | AS27: =A267 -> Site-Other 9 (Specify)
A28: RUL (years): | B28: =IF(B26-((YEAR(I1))-B27)>0,(B26-((YEAR(I1))-B27)),0) -> 0 | O28: =A25 -> Striping | Z28: =A25 -> Striping | AS28: =A277 -> Site-Other 10 (Specify)
A29: ITEM | G29: QTY | H29: Unit of Measure | I29: Unit Cost ($) | J29: Subtotal ($) | K29: Usage per Year | L29: Usage Units | M29: Eval. / Repl. | N29: Rate | O29: Immediate Needs | P29: Year 1 | Q29: Year 2 | R29: Year 3 | S29: Year 4 | T29: Year 5 | U29: Year 6 | V29: Year 7 | W29: Year 8 | X29: Year 9 | Y29: Year 10 | Z29: Year 11 | AA29: Year 12 | AB29: Year 13 | AC29: Year 14 | AD29: Year 15 | AE29: Year 16 | AF29: Year 17 | AG29: Year 18 | AH29: Year 19 | AI29: Year 20 | AJ29: Total Long-Term
P30: =YEAR($I$1)+1 -> 2011 | Q30: =YEAR($I$1)+2 -> 2012 | R30: =YEAR($I$1)+3 -> 2013 | S30: =YEAR($I$1)+4 -> 2014 | T30: =YEAR($I$1)+5 -> 2015 | U30: =YEAR($I$1)+6 -> 2016 | V30: =YEAR($I$1)+7 -> 2017 | W30: =YEAR($I$1)+8 -> 2018 | X30: =YEAR($I$1)+9 -> 2019 | Y30: =YEAR($I$1)+10 -> 2020 | Z30: =YEAR($I$1)+11 -> 2021 | AA30: =YEAR($I$1)+12 -> 2022 | AB30: =YEAR($I$1)+13 -> 2023 | AC30: =YEAR($I$1)+14 -> 2024 | AD30: =YEAR($I$1)+15 -> 2025 | AE30: =YEAR($I$1)+16 -> 2026 | AF30: =YEAR($I$1)+17 -> 2027 | AG30: =YEAR($I$1)+18 -> 2028 | AH30: =YEAR($I$1)+19 -> 2029 | AI30: =YEAR($I$1)+20 -> 2030 | AS30: =A297 -> Administrative Building
A31: ="Existing "&A25 -> Existing Striping | G31: 600 | H31: per linear ft. | I31: 25 | J31: =G31*I31 -> 15000 | K31: Non-Utility Saver | M31: =IF(OR(ISERROR(B27+B26*(1-(Controls!$B$28))),(B27+B26*(1-(Controls!$B$28)))=0),"",IF((B27+B26*(1-(Controls!$B$28)))<=StartInput!$F$25,"Replace","Evaluate")) -> Replace | N31: N/A | O31: =IF($B$28=0,J31,0) -> 15000 | P31: =IF(OR(($B$28+YEAR($I$1))=P30,($B$26+$B$28+YEAR($I$1))=P30,($B$26*2+$B$28+YEAR($I$1))=P30,($B$26*3+$B$28+YEAR($I$1))=P30,($B$26*4+$B$28+YEAR($I$1))=P30,($B$26*5+$B$28+YEAR($I$1))=P30),$G$31*$I$31,0) -> 0 | Q31: 0 | R31: 0 | S31: 0 | T31: 0 | U31: 0 | V31: 0 | W31: 0 | X31: 0 | Y31: 0 | Z31: 0 | AA31: 0 | AB31: 0 | AC31: 0 | AD31: 0 | AE31: 0 | AF31: 0 | AG31: 0 | AH31: 0 | AI31: 15000 | AJ31: =SUM(P31:AI31) -> 15000 | AS31: =A307 -> Community Building
A32: ="Standard "&A25 -> Standard Striping | G32: 600 | H32: per linear ft. | I32: 25 | J32: =G32*I32 -> 15000 | O32: =IF($B$28=0,J32,0) -> 15000 | P32: =IF(OR(($B$28+YEAR($I$1))=P30,($B$26+$B$28+YEAR($I$1))=P30,($B$26*2+$B$28+YEAR($I$1))=P30,($B$26*3+$B$28+YEAR($I$1))=P30,($B$26*4+$B$28+YEAR($I$1))=P30,($B$26*5+$B$28+YEAR($I$1))=P30),$G$32*$I$32,0) -> 0 | Q32: 0 | R32: 0 | S32: 0 | T32: 0 | U32: 0 | V32: 0 | W32: 0 | X32: 0 | Y32: 0 | Z32: 0 | AA32: 0 | AB32: 0 | AC32: 0 | AD32: 0 | AE32: 0 | AF32: 0 | AG32: 0 | AH32: 0 | AI32: 15000 | AJ32: =SUM(P32:AI32) -> 15000 | AK32: Inc. Cost | AS32: =A317 -> Shop
A33: ="Green Replacement "&A25 -> Green Replacement Striping | G33: =G31 -> 600 | H33: =H32 -> per linear ft. | I33: 25 | J33: =G33*I33 -> 15000 | O33: =IF($B$28=0,J33,0) -> 15000 | P33: =IF(OR(($B$28+YEAR($I$1))=P30,($B$26+$B$28+YEAR($I$1))=P30,($B$26*2+$B$28+YEAR($I$1))=P30,($B$26*3+$B$28+YEAR($I$1))=P30,($B$26*4+$B$28+YEAR($I$1))=P30,($B$26*5+$B$28+YEAR($I$1))=P30),$G$33*$I$33,0) -> 0 | Q33: 0 | R33: 0 | S33: 0 | T33: 0 | U33: 0 | V33: 0 | W33: 0 | X33: 0 | Y33: 0 | Z33: 0 | AA33: 0 | AB33: 0 | AC33: 0 | AD33: 0 | AE33: 0 | AF33: 0 | AG33: 0 | AH33: 0 | AI33: 15000 | AJ33: =SUM(P33:AI33) -> 15000 | AK33: =IF((AJ33-AJ32)<0,0,(AJ33-AJ32)) -> 0 | AS33: =A327 -> Storage Area
A34: Site4 | AS34: =A337 -> Central Boiler
A35: Curb and Gutter | AS35: =A347 -> Central Chiller
A36: EUL (years): | B36: 19 | D36: Comments: | AS36: =A357 -> Family Investment Center
A37: Repl. Year: | B37: 1991 | AS37: =A367 -> Day Care Center
A38: RUL (years): | B38: =IF(B36-((YEAR(I1))-B37)>0,(B36-((YEAR(I1))-B37)),0) -> 0 | O38: =A35 -> Curb and Gutter | Z38: =A35 -> Curb and Gutter | AS38: =A377 -> Laundry Areas
A39: ITEM | G39: QTY | H39: Unit of Measure | I39: Unit Cost ($) | J39: Subtotal ($) | K39: Usage per Year | L39: Usage Units | M39: Eval. / Repl. | N39: Rate | O39: Immediate Needs | P39: Year 1 | Q39: Year 2 | R39: Year 3 | S39: Year 4 | T39: Year 5 | U39: Year 6 | V39: Year 7 | W39: Year 8 | X39: Year 9 | Y39: Year 10 | Z39: Year 11 | AA39: Year 12 | AB39: Year 13 | AC39: Year 14 | AD39: Year 15 | AE39: Year 16 | AF39: Year 17 | AG39: Year 18 | AH39: Year 19 | AI39: Year 20 | AJ39: Total Long-Term | AS39: =A387 -> Common Area Washers
P40: =YEAR($I$1)+1 -> 2011 | Q40: =YEAR($I$1)+2 -> 2012 | R40: =YEAR($I$1)+3 -> 2013 | S40: =YEAR($I$1)+4 -> 2014 | T40: =YEAR($I$1)+5 -> 2015 | U40: =YEAR($I$1)+6 -> 2016 | V40: =YEAR($I$1)+7 -> 2017 | W40: =YEAR($I$1)+8 -> 2018 | X40: =YEAR($I$1)+9 -> 2019 | Y40: =YEAR($I$1)+10 -> 2020 | Z40: =YEAR($I$1)+11 -> 2021 | AA40: =YEAR($I$1)+12 -> 2022 | AB40: =YEAR($I$1)+13 -> 2023 | AC40: =YEAR($I$1)+14 -> 2024 | AD40: =YEAR($I$1)+15 -> 2025 | AE40: =YEAR($I$1)+16 -> 2026 | AF40: =YEAR($I$1)+17 -> 2027 | AG40: =YEAR($I$1)+18 -> 2028 | AH40: =YEAR($I$1)+19 -> 2029 | AI40: =YEAR($I$1)+20 -> 2030 | AS40: =A397 -> Common Area Dryers
A41: ="Existing "&A35 -> Existing Curb and Gutter | G41: 800 | H41: per linear ft. | I41: 26 | J41: =G41*I41 -> 20800 | K41: Non-Utility Saver | M41: =IF(OR(ISERROR(B37+B36*(1-(Controls!$B$28))),(B37+B36*(1-(Controls!$B$28)))=0),"",IF((B37+B36*(1-(Controls!$B$28)))<=StartInput!$F$25,"Replace","Evaluate")) -> Replace | N41: N/A | O41: =IF($B$38=0,J41,0) -> 20800 | P41: =IF(OR(($B$38+YEAR($I$1))=P40,($B$36+$B$38+YEAR($I$1))=P40,($B$36*2+$B$38+YEAR($I$1))=P40,($B$36*3+$B$38+YEAR($I$1))=P40,($B$36*4+$B$38+YEAR($I$1))=P40,($B$36*5+$B$38+YEAR($I$1))=P40),$G$41*$I$41,0) -> 0 | Q41: 0 | R41: 0 | S41: 0 | T41: 0 | U41: 0 | V41: 0 | W41: 0 | X41: 0 | Y41: 0 | Z41: 0 | AA41: 0 | AB41: 0 | AC41: 0 | AD41: 0 | AE41: 0 | AF41: 0 | AG41: 0 | AH41: 20800 | AI41: 0 | AJ41: =SUM(P41:AI41) -> 20800 | AS41: =A407 -> Common Facilities Kitchen
A42: ="Standard "&A35 -> Standard Curb and Gutter | G42: 800 | H42: per linear ft. | I42: 26 | J42: =G42*I42 -> 20800 | O42: =IF($B$38=0,J42,0) -> 20800 | P42: =IF(OR(($B$38+YEAR($I$1))=P40,($B$36+$B$38+YEAR($I$1))=P40,($B$36*2+$B$38+YEAR($I$1))=P40,($B$36*3+$B$38+YEAR($I$1))=P40,($B$36*4+$B$38+YEAR($I$1))=P40,($B$36*5+$B$38+YEAR($I$1))=P40),$G$42*$I$42,0) -> 0 | Q42: 0 | R42: 0 | S42: 0 | T42: 0 | U42: 0 | V42: 0 | W42: 0 | X42: 0 | Y42: 0 | Z42: 0 | AA42: 0 | AB42: 0 | AC42: 0 | AD42: 0 | AE42: 0 | AF42: 0 | AG42: 0 | AH42: 20800 | AI42: 0 | AJ42: =SUM(P42:AI42) -> 20800 | AK42: Inc. Cost | AS42: =A417 -> Common Facilities Appliances
A43: ="Green Replacement "&A35 -> Green Replacement Curb and Gutter | G43: =G41 -> 800 | H43: =H42 -> per linear ft. | I43: 26 | J43: =G43*I43 -> 20800 | O43: =IF($B$38=0,J43,0) -> 20800 | P43: =IF(OR(($B$38+YEAR($I$1))=P40,($B$36+$B$38+YEAR($I$1))=P40,($B$36*2+$B$38+YEAR($I$1))=P40,($B$36*3+$B$38+YEAR($I$1))=P40,($B$36*4+$B$38+YEAR($I$1))=P40,($B$36*5+$B$38+YEAR($I$1))=P40),$G$43*$I$43,0) -> 0 | Q43: 0 | R43: 0 | S43: 0 | T43: 0 | U43: 0 | V43: 0 | W43: 0 | X43: 0 | Y43: 0 | Z43: 0 | AA43: 0 | AB43: 0 | AC43: 0 | AD43: 0 | AE43: 0 | AF43: 0 | AG43: 0 | AH43: 20800 | AI43: 0 | AJ43: =SUM(P43:AI43) -> 20800 | AK43: =IF((AJ43-AJ42)<0,0,(AJ43-AJ42)) -> 0 | AS43: =A427 -> Common Area Finishes
A44: Site5 | AS44: =A437 -> Common-Other 1 (Specify)
A45: Pedestrian Paving | AS45: =A447 -> Common-Other 2 (Specify)
A46: EUL (years): | B46: 20 | D46: Comments: | AS46: =A457 -> Common-Other 3 (Specify)
A47: Repl. Year: | B47: 1991 | AS47: =A467 -> Common-Other 4 (Specify)
A48: RUL (years): | B48: =IF(B46-((YEAR(I1))-B47)>0,(B46-((YEAR(I1))-B47)),0) -> 1 | O48: =A45 -> Pedestrian Paving | Z48: =A45 -> Pedestrian Paving | AS48: =A477 -> Common-Other 5 (Specify)
A49: ITEM | G49: QTY | H49: Unit of Measure | I49: Unit Cost ($) | J49: Subtotal ($) | K49: Usage per Year | L49: Usage Units | M49: Eval. / Repl. | N49: Rate | O49: Immediate Needs | P49: Year 1 | Q49: Year 2 | R49: Year 3 | S49: Year 4 | T49: Year 5 | U49: Year 6 | V49: Year 7 | W49: Year 8 | X49: Year 9 | Y49: Year 10 | Z49: Year 11 | AA49: Year 12 | AB49: Year 13 | AC49: Year 14 | AD49: Year 15 | AE49: Year 16 | AF49: Year 17 | AG49: Year 18 | AH49: Year 19 | AI49: Year 20 | AJ49: Total Long-Term | AS49: =A487 -> Common-Other 6 (Specify)
P50: =YEAR($I$1)+1 -> 2011 | Q50: =YEAR($I$1)+2 -> 2012 | R50: =YEAR($I$1)+3 -> 2013 | S50: =YEAR($I$1)+4 -> 2014 | T50: =YEAR($I$1)+5 -> 2015 | U50: =YEAR($I$1)+6 -> 2016 | V50: =YEAR($I$1)+7 -> 2017 | W50: =YEAR($I$1)+8 -> 2018 | X50: =YEAR($I$1)+9 -> 2019 | Y50: =YEAR($I$1)+10 -> 2020 | Z50: =YEAR($I$1)+11 -> 2021 | AA50: =YEAR($I$1)+12 -> 2022 | AB50: =YEAR($I$1)+13 -> 2023 | AC50: =YEAR($I$1)+14 -> 2024 | AD50: =YEAR($I$1)+15 -> 2025 | AE50: =YEAR($I$1)+16 -> 2026 | AF50: =YEAR($I$1)+17 -> 2027 | AG50: =YEAR($I$1)+18 -> 2028 | AH50: =YEAR($I$1)+19 -> 2029 | AI50: =YEAR($I$1)+20 -> 2030 | AS50: =A497 -> Common-Other 7 (Specify)
A51: ="Existing "&A45 -> Existing Pedestrian Paving | G51: 19 | H51: per linear ft. | I51: 764 | J51: =G51*I51 -> 14516 | K51: Non-Utility Saver | M51: =IF(OR(ISERROR(B47+B46*(1-(Controls!$B$28))),(B47+B46*(1-(Controls!$B$28)))=0),"",IF((B47+B46*(1-(Controls!$B$28)))<=StartInput!$F$25,"Replace","Evaluate")) -> Replace | N51: N/A | O51: =IF($B$48=0,J51,0) -> 0 | P51: =IF(OR(($B$48+YEAR($I$1))=P50,($B$46+$B$48+YEAR($I$1))=P50,($B$46*2+$B$48+YEAR($I$1))=P50,($B$46*3+$B$48+YEAR($I$1))=P50,($B$46*4+$B$48+YEAR($I$1))=P50,($B$46*5+$B$48+YEAR($I$1))=P50),$G$51*$I$51,0) -> 14516 | Q51: 0 | R51: 0 | S51: 0 | T51: 0 | U51: 0 | V51: 0 | W51: 0 | X51: 0 | Y51: 0 | Z51: 0 | AA51: 0 | AB51: 0 | AC51: 0 | AD51: 0 | AE51: 0 | AF51: 0 | AG51: 0 | AH51: 0 | AI51: 0 | AJ51: =SUM(P51:AI51) -> 14516 | AS51: =A507 -> Common-Other 8 (Specify)
A52: ="Standard "&A45 -> Standard Pedestrian Paving | G52: 19 | H52: per linear ft. | I52: 764 | J52: =G52*I52 -> 14516 | O52: =IF($B$48=0,J52,0) -> 0 | P52: =IF(OR(($B$48+YEAR($I$1))=P50,($B$46+$B$48+YEAR($I$1))=P50,($B$46*2+$B$48+YEAR($I$1))=P50,($B$46*3+$B$48+YEAR($I$1))=P50,($B$46*4+$B$48+YEAR($I$1))=P50,($B$46*5+$B$48+YEAR($I$1))=P50),$G$52*$I$52,0) -> 14516 | Q52: 0 | R52: 0 | S52: 0 | T52: 0 | U52: 0 | V52: 0 | W52: 0 | X52: 0 | Y52: 0 | Z52: 0 | AA52: 0 | AB52: 0 | AC52: 0 | AD52: 0 | AE52: 0 | AF52: 0 | AG52: 0 | AH52: 0 | AI52: 0 | AJ52: =SUM(P52:AI52) -> 14516 | AK52: Inc. Cost | AS52: =A517 -> Common-Other 9 (Specify)
A53: ="Green Replacement "&A45 -> Green Replacement Pedestrian Paving | G53: =G52 -> 19 | H53: =H52 -> per linear ft. | I53: 900 | J53: =G53*I53 -> 17100 | O53: =IF($B$48=0,J53,0) -> 0 | P53: =IF(OR(($B$48+YEAR($I$1))=P50,($B$46+$B$48+YEAR($I$1))=P50,($B$46*2+$B$48+YEAR($I$1))=P50,($B$46*3+$B$48+YEAR($I$1))=P50,($B$46*4+$B$48+YEAR($I$1))=P50,($B$46*5+$B$48+YEAR($I$1))=P50),$G$53*$I$53,0) -> 17100 | Q53: 0 | R53: 0 | S53: 0 | T53: 0 | U53: 0 | V53: 0 | W53: 0 | X53: 0 | Y53: 0 | Z53: 0 | AA53: 0 | AB53: 0 | AC53: 0 | AD53: 0 | AE53: 0 | AF53: 0 | AG53: 0 | AH53: 0 | AI53: 0 | AJ53: =SUM(P53:AI53) -> 17100 | AK53: =IF((AJ53-AJ52)<0,0,(AJ53-AJ52)) -> 2584 | AS53: =A527 -> Common-Other 10 (Specify)
A54: Site6
A55: Signage | AS55: =A547 -> Carports/Surface Garage
A56: EUL (years): | B56: 18 | D56: Comments: | AS56: =A557 -> Foundation
A57: Repl. Year: | B57: 1992 | AS57: =A567 -> Foundation Waterproofing
A58: RUL (years): | B58: =IF(B56-((YEAR(I1))-B57)>0,(B56-((YEAR(I1))-B57)),0) -> 0 | O58: =A55 -> Signage | Z58: =A55 -> Signage | AS58: =A577 -> Building Slab
A59: ITEM | G59: QTY | H59: Unit of Measure | I59: Unit Cost ($) | J59: Subtotal ($) | K59: Usage per Year | L59: Usage Units | M59: Eval. / Repl. | N59: Rate | O59: Immediate Needs | P59: Year 1 | Q59: Year 2 | R59: Year 3 | S59: Year 4 | T59: Year 5 | U59: Year 6 | V59: Year 7 | W59: Year 8 | X59: Year 9 | Y59: Year 10 | Z59: Year 11 | AA59: Year 12 | AB59: Year 13 | AC59: Year 14 | AD59: Year 15 | AE59: Year 16 | AF59: Year 17 | AG59: Year 18 | AH59: Year 19 | AI59: Year 20 | AJ59: Total Long-Term | AS59: =A587 -> Roofs
P60: =YEAR($I$1)+1 -> 2011 | Q60: =YEAR($I$1)+2 -> 2012 | R60: =YEAR($I$1)+3 -> 2013 | S60: =YEAR($I$1)+4 -> 2014 | T60: =YEAR($I$1)+5 -> 2015 | U60: =YEAR($I$1)+6 -> 2016 | V60: =YEAR($I$1)+7 -> 2017 | W60: =YEAR($I$1)+8 -> 2018 | X60: =YEAR($I$1)+9 -> 2019 | Y60: =YEAR($I$1)+10 -> 2020 | Z60: =YEAR($I$1)+11 -> 2021 | AA60: =YEAR($I$1)+12 -> 2022 | AB60: =YEAR($I$1)+13 -> 2023 | AC60: =YEAR($I$1)+14 -> 2024 | AD60: =YEAR($I$1)+15 -> 2025 | AE60: =YEAR($I$1)+16 -> 2026 | AF60: =YEAR($I$1)+17 -> 2027 | AG60: =YEAR($I$1)+18 -> 2028 | AH60: =YEAR($I$1)+19 -> 2029 | AI60: =YEAR($I$1)+20 -> 2030 | AS60: =A603 -> Exterior Walls - Structural
A61: ="Existing "&A55 -> Existing Signage | G61: 100 | H61: each | I61: 35 | J61: =G61*I61 -> 3500 | K61: Non-Utility Saver | M61: =IF(OR(ISERROR(B57+B56*(1-(Controls!$B$28))),(B57+B56*(1-(Controls!$B$28)))=0),"",IF((B57+B56*(1-(Controls!$B$28)))<=StartInput!$F$25,"Replace","Evaluate")) -> Replace | N61: N/A | O61: =IF($B$58=0,J61,0) -> 3500 | P61: =IF(OR(($B$58+YEAR($I$1))=P60,($B$56+$B$58+YEAR($I$1))=P60,($B$56*2+$B$58+YEAR($I$1))=P60,($B$56*3+$B$58+YEAR($I$1))=P60,($B$56*4+$B$58+YEAR($I$1))=P60,($B$56*5+$B$58+YEAR($I$1))=P60),$G$61*$I$61,0) -> 0 | Q61: 0 | R61: 0 | S61: 0 | T61: 0 | U61: 0 | V61: 0 | W61: 0 | X61: 0 | Y61: 0 | Z61: 0 | AA61: 0 | AB61: 0 | AC61: 0 | AD61: 0 | AE61: 0 | AF61: 0 | AG61: 3500 | AH61: 0 | AI61: 0 | AJ61: =SUM(P61:AI61) -> 3500 | AS61: =A619 -> Exterior Walls - Finishes
A62: ="Standard "&A55 -> Standard Signage | G62: =G61 -> 100 | H62: each | I62: 35 | J62: =G62*I62 -> 3500 | O62: =IF($B$58=0,J62,0) -> 3500 | P62: =IF(OR(($B$58+YEAR($I$1))=P60,($B$56+$B$58+YEAR($I$1))=P60,($B$56*2+$B$58+YEAR($I$1))=P60,($B$56*3+$B$58+YEAR($I$1))=P60,($B$56*4+$B$58+YEAR($I$1))=P60,($B$56*5+$B$58+YEAR($I$1))=P60),$G$62*$I$62,0) -> 0 | Q62: 0 | R62: 0 | S62: 0 | T62: 0 | U62: 0 | V62: 0 | W62: 0 | X62: 0 | Y62: 0 | Z62: 0 | AA62: 0 | AB62: 0 | AC62: 0 | AD62: 0 | AE62: 0 | AF62: 0 | AG62: 3500 | AH62: 0 | AI62: 0 | AJ62: =SUM(P62:AI62) -> 3500 | AK62: Inc. Cost | AS62: =A629 -> Canopies
A63: ="Green Replacement "&A55 -> Green Replacement Signage | G63: =G62 -> 100 | H63: =H62 -> each | I63: 37 | J63: =G63*I63 -> 3700 | O63: =IF($B$58=0,J63,0) -> 3700 | P63: =IF(OR(($B$58+YEAR($I$1))=P60,($B$56+$B$58+YEAR($I$1))=P60,($B$56*2+$B$58+YEAR($I$1))=P60,($B$56*3+$B$58+YEAR($I$1))=P60,($B$56*4+$B$58+YEAR($I$1))=P60,($B$56*5+$B$58+YEAR($I$1))=P60),$G$63*$I$63,0) -> 0 | Q63: 0 | R63: 0 | S63: 0 | T63: 0 | U63: 0 | V63: 0 | W63: 0 | X63: 0 | Y63: 0 | Z63: 0 | AA63: 0 | AB63: 0 | AC63: 0 | AD63: 0 | AE63: 0 | AF63: 0 | AG63: 3700 | AH63: 0 | AI63: 0 | AJ63: =SUM(P63:AI63) -> 3700 | AK63: =IF((AJ63-AJ62)<0,0,(AJ63-AJ62)) -> 200 | AS63: =A639 -> Tuck-Pointing
A64: Site7 | AS64: =A649 -> Exterior Paint & Caulking
A65: Water Lines/Mains | AS65: =A659 -> Soffits
A66: EUL (years): | B66: 19 | D66: Comments: | AS66: =A669 -> Siding
A67: Repl. Year: | B67: 1992 | AS67: =A679 -> Exterior Stairwells/Fire Escapes
A68: RUL (years): | B68: =IF(B66-((YEAR(I1))-B67)>0,(B66-((YEAR(I1))-B67)),0) -> 1 | O68: =A65 -> Water Lines/Mains | Z68: =A65 -> Water Lines/Mains | AS68: =A689 -> Landings & Railings
A69: ITEM | G69: QTY | H69: Unit of Measure | I69: Unit Cost ($) | J69: Subtotal ($) | K69: Usage per Year | L69: Usage Units | M69: Eval. / Repl. | N69: Rate | O69: Immediate Needs | P69: Year 1 | Q69: Year 2 | R69: Year 3 | S69: Year 4 | T69: Year 5 | U69: Year 6 | V69: Year 7 | W69: Year 8 | X69: Year 9 | Y69: Year 10 | Z69: Year 11 | AA69: Year 12 | AB69: Year 13 | AC69: Year 14 | AD69: Year 15 | AE69: Year 16 | AF69: Year 17 | AG69: Year 18 | AH69: Year 19 | AI69: Year 20 | AJ69: Total Long-Term | AS69: =A699 -> Balconies & Railings
P70: =YEAR($I$1)+1 -> 2011 | Q70: =YEAR($I$1)+2 -> 2012 | R70: =YEAR($I$1)+3 -> 2013 | S70: =YEAR($I$1)+4 -> 2014 | T70: =YEAR($I$1)+5 -> 2015 | U70: =YEAR($I$1)+6 -> 2016 | V70: =YEAR($I$1)+7 -> 2017 | W70: =YEAR($I$1)+8 -> 2018 | X70: =YEAR($I$1)+9 -> 2019 | Y70: =YEAR($I$1)+10 -> 2020 | Z70: =YEAR($I$1)+11 -> 2021 | AA70: =YEAR($I$1)+12 -> 2022 | AB70: =YEAR($I$1)+13 -> 2023 | AC70: =YEAR($I$1)+14 -> 2024 | AD70: =YEAR($I$1)+15 -> 2025 | AE70: =YEAR($I$1)+16 -> 2026 | AF70: =YEAR($I$1)+17 -> 2027 | AG70: =YEAR($I$1)+18 -> 2028 | AH70: =YEAR($I$1)+19 -> 2029 | AI70: =YEAR($I$1)+20 -> 2030 | AS70: =A709 -> Mail Facilities
A71: ="Existing "&A65 -> Existing Water Lines/Mains | G71: 3000 | H71: per linear ft. | I71: 12 | J71: =G71*I71 -> 36000 | K71: Non-Utility Saver | M71: =IF(OR(ISERROR(B67+B66*(1-(Controls!$B$28))),(B67+B66*(1-(Controls!$B$28)))=0),"",IF((B67+B66*(1-(Controls!$B$28)))<=StartInput!$F$25,"Replace","Evaluate")) -> Replace | N71: N/A | O71: =IF($B$68=0,J71,0) -> 0 | P71: =IF(OR(($B$68+YEAR($I$1))=P70,($B$66+$B$68+YEAR($I$1))=P70,($B$66*2+$B$68+YEAR($I$1))=P70,($B$66*3+$B$68+YEAR($I$1))=P70,($B$66*4+$B$68+YEAR($I$1))=P70,($B$66*5+$B$68+YEAR($I$1))=P70),$G$71*$I$71,0) -> 36000 | Q71: 0 | R71: 0 | S71: 0 | T71: 0 | U71: 0 | V71: 0 | W71: 0 | X71: 0 | Y71: 0 | Z71: 0 | AA71: 0 | AB71: 0 | AC71: 0 | AD71: 0 | AE71: 0 | AF71: 0 | AG71: 0 | AH71: 0 | AI71: 36000 | AJ71: =SUM(P71:AI71) -> 72000 | AS71: =A719 -> Exterior Doors
A72: ="Standard "&A65 -> Standard Water Lines/Mains | G72: 3000 | H72: per linear ft. | I72: 12 | J72: =G72*I72 -> 36000 | O72: =IF($B$68=0,J72,0) -> 0 | P72: =IF(OR(($B$68+YEAR($I$1))=P70,($B$66+$B$68+YEAR($I$1))=P70,($B$66*2+$B$68+YEAR($I$1))=P70,($B$66*3+$B$68+YEAR($I$1))=P70,($B$66*4+$B$68+YEAR($I$1))=P70,($B$66*5+$B$68+YEAR($I$1))=P70),$G$72*$I$72,0) -> 36000 | Q72: 0 | R72: 0 | S72: 0 | T72: 0 | U72: 0 | V72: 0 | W72: 0 | X72: 0 | Y72: 0 | Z72: 0 | AA72: 0 | AB72: 0 | AC72: 0 | AD72: 0 | AE72: 0 | AF72: 0 | AG72: 0 | AH72: 0 | AI72: 36000 | AJ72: =SUM(P72:AI72) -> 72000 | AK72: Inc. Cost | AS72: =A735 -> Exterior Door Frames
A73: ="Green Replacement "&A65 -> Green Replacement Water Lines/Mains | G73: =G72 -> 3000 | H73: =H72 -> per linear ft. | I73: 12 | J73: =G73*I73 -> 36000 | O73: =IF($B$68=0,J73,0) -> 0 | P73: =IF(OR(($B$68+YEAR($I$1))=P70,($B$66+$B$68+YEAR($I$1))=P70,($B$66*2+$B$68+YEAR($I$1))=P70,($B$66*3+$B$68+YEAR($I$1))=P70,($B$66*4+$B$68+YEAR($I$1))=P70,($B$66*5+$B$68+YEAR($I$1))=P70),$G$73*$I$73,0) -> 36000 | Q73: 0 | R73: 0 | S73: 0 | T73: 0 | U73: 0 | V73: 0 | W73: 0 | X73: 0 | Y73: 0 | Z73: 0 | AA73: 0 | AB73: 0 | AC73: 0 | AD73: 0 | AE73: 0 | AF73: 0 | AG73: 0 | AH73: 0 | AI73: 36000 | AJ73: =SUM(P73:AI73) -> 72000 | AK73: =IF((AJ73-AJ72)<0,0,(AJ73-AJ72)) -> 0 | AS73: =A745 -> Patio Doors
A74: Site8 | AS74: =A755 -> Windows
A75: Sewer Lines/Mains | AS75: =A771 -> Window Frames
A76: EUL (years): | B76: 20 | D76: Comments: | AS76: =A781 -> Gutters/Downspouts
A77: Repl. Year: | B77: 1992 | AS77: =A791 -> Columns & Porches
A78: RUL (years): | B78: =IF(B76-((YEAR(I1))-B77)>0,(B76-((YEAR(I1))-B77)),0) -> 2 | O78: =A75 -> Sewer Lines/Mains | Z78: =A75 -> Sewer Lines/Mains | AS78: =A801 -> Decks & Patios
A79: ITEM | G79: QTY | H79: Unit of Measure | I79: Unit Cost ($) | J79: Subtotal ($) | K79: Usage per Year | L79: Usage Units | M79: Eval. / Repl. | N79: Rate | O79: Immediate Needs | P79: Year 1 | Q79: Year 2 | R79: Year 3 | S79: Year 4 | T79: Year 5 | U79: Year 6 | V79: Year 7 | W79: Year 8 | X79: Year 9 | Y79: Year 10 | Z79: Year 11 | AA79: Year 12 | AB79: Year 13 | AC79: Year 14 | AD79: Year 15 | AE79: Year 16 | AF79: Year 17 | AG79: Year 18 | AH79: Year 19 | AI79: Year 20 | AJ79: Total Long-Term | AS79: =A811 -> Patio/Unit Fencing
P80: =YEAR($I$1)+1 -> 2011 | Q80: =YEAR($I$1)+2 -> 2012 | R80: =YEAR($I$1)+3 -> 2013 | S80: =YEAR($I$1)+4 -> 2014 | T80: =YEAR($I$1)+5 -> 2015 | U80: =YEAR($I$1)+6 -> 2016 | V80: =YEAR($I$1)+7 -> 2017 | W80: =YEAR($I$1)+8 -> 2018 | X80: =YEAR($I$1)+9 -> 2019 | Y80: =YEAR($I$1)+10 -> 2020 | Z80: =YEAR($I$1)+11 -> 2021 | AA80: =YEAR($I$1)+12 -> 2022 | AB80: =YEAR($I$1)+13 -> 2023 | AC80: =YEAR($I$1)+14 -> 2024 | AD80: =YEAR($I$1)+15 -> 2025 | AE80: =YEAR($I$1)+16 -> 2026 | AF80: =YEAR($I$1)+17 -> 2027 | AG80: =YEAR($I$1)+18 -> 2028 | AH80: =YEAR($I$1)+19 -> 2029 | AI80: =YEAR($I$1)+20 -> 2030 | AS80: =A821 -> Exterior Lighting
A81: ="Existing "&A75 -> Existing Sewer Lines/Mains | G81: 4000 | H81: per 10000 SF | I81: 8 | J81: =G81*I81 -> 32000 | K81: Non-Utility Saver | M81: =IF(OR(ISERROR(B77+B76*(1-(Controls!$B$28))),(B77+B76*(1-(Controls!$B$28)))=0),"",IF((B77+B76*(1-(Controls!$B$28)))<=StartInput!$F$25,"Replace","Evaluate")) -> Replace | N81: N/A | O81: =IF($B$78=0,J81,0) -> 0 | P81: =IF(OR(($B$78+YEAR($I$1))=P80,($B$76+$B$78+YEAR($I$1))=P80,($B$76*2+$B$78+YEAR($I$1))=P80,($B$76*3+$B$78+YEAR($I$1))=P80,($B$76*4+$B$78+YEAR($I$1))=P80,($B$76*5+$B$78+YEAR($I$1))=P80),$G$81*$I$81,0) -> 0 | Q81: 32000 | R81: 0 | S81: 0 | T81: 0 | U81: 0 | V81: 0 | W81: 0 | X81: 0 | Y81: 0 | Z81: 0 | AA81: 0 | AB81: 0 | AC81: 0 | AD81: 0 | AE81: 0 | AF81: 0 | AG81: 0 | AH81: 0 | AI81: 0 | AJ81: =SUM(P81:AI81) -> 32000 | AS81: =A837 -> Exterior-Other 1 (Specify)
A82: ="Standard "&A75 -> Standard Sewer Lines/Mains | G82: 4000 | H82: per 10000 SF | I82: 8 | J82: =G82*I82 -> 32000 | O82: =IF($B$78=0,J82,0) -> 0 | P82: =IF(OR(($B$78+YEAR($I$1))=P80,($B$76+$B$78+YEAR($I$1))=P80,($B$76*2+$B$78+YEAR($I$1))=P80,($B$76*3+$B$78+YEAR($I$1))=P80,($B$76*4+$B$78+YEAR($I$1))=P80,($B$76*5+$B$78+YEAR($I$1))=P80),$G$82*$I$82,0) -> 0 | Q82: 32000 | R82: 0 | S82: 0 | T82: 0 | U82: 0 | V82: 0 | W82: 0 | X82: 0 | Y82: 0 | Z82: 0 | AA82: 0 | AB82: 0 | AC82: 0 | AD82: 0 | AE82: 0 | AF82: 0 | AG82: 0 | AH82: 0 | AI82: 0 | AJ82: =SUM(P82:AI82) -> 32000 | AK82: Inc. Cost | AS82: =A847 -> Exterior-Other 2 (Specify)
A83: ="Green Replacement "&A75 -> Green Replacement Sewer Lines/Mains | G83: =G82 -> 4000 | H83: =H82 -> per 10000 SF | I83: 8 | J83: =G83*I83 -> 32000 | O83: =IF($B$78=0,J83,0) -> 0 | P83: =IF(OR(($B$78+YEAR($I$1))=P80,($B$76+$B$78+YEAR($I$1))=P80,($B$76*2+$B$78+YEAR($I$1))=P80,($B$76*3+$B$78+YEAR($I$1))=P80,($B$76*4+$B$78+YEAR($I$1))=P80,($B$76*5+$B$78+YEAR($I$1))=P80),$G$83*$I$83,0) -> 0 | Q83: 32000 | R83: 0 | S83: 0 | T83: 0 | U83: 0 | V83: 0 | W83: 0 | X83: 0 | Y83: 0 | Z83: 0 | AA83: 0 | AB83: 0 | AC83: 0 | AD83: 0 | AE83: 0 | AF83: 0 | AG83: 0 | AH83: 0 | AI83: 0 | AJ83: =SUM(P83:AI83) -> 32000 | AK83: =IF((AJ83-AJ82)<0,0,(AJ83-AJ82)) -> 0 | AS83: =A857 -> Exterior-Other 3 (Specify)
A84: Site9 | AS84: =A867 -> Exterior-Other 4 (Specify)
A85: Irrigation | AS85: =A877 -> Exterior-Other 5 (Specify)
A86: EUL (years): | B86: 17 | D86: Comments: | F86: Show cost of replacement for standard irrigation system: Sprinklers, Controls, etc. | AS86: =A887 -> Exterior-Other 6 (Specify)
A87: Repl. Year 1 | B87: 2007 | F87: Green replacement is the cost of a greywater system used to irrigate vegetation only.
A88: Repl. Year 2 | B88: 2005 | AS88: =A897 -> Exterior-Other 7 (Specify)
A89: Repl. Year 3 | B89: 1993
A90: RUL 1 (years) | B90: =IF(B87-((YEAR($I$1))-B86)>0,(B87-((YEAR($I$1))-B86)),0) -> 14
A91: RUL 2 (years) | B91: =IF(B88-((YEAR($I$1))-B86)>0,(B88-((YEAR($I$1))-B86)),0) -> 12
A92: RUL 3 (years) | B92: =IF(B89-((YEAR($I$1))-B86)>0,(B89-((YEAR($I$1))-B86)),0) -> 0 | O92: =A85 -> Irrigation | Z92: =A85 -> Irrigation | AS92: =A907 -> Exterior-Other 8 (Specify)
A93: ITEM | G93: QTY | H93: Unit of Measure | I93: Unit Cost ($) | J93: Subtotal ($) | K93: Usage per Year | L93: Usage Units | M93: Eval. / Repl. | N93: Rate | O93: Immediate Needs | P93: Year 1 | Q93: Year 2 | R93: Year 3 | S93: Year 4 | T93: Year 5 | U93: Year 6 | V93: Year 7 | W93: Year 8 | X93: Year 9 | Y93: Year 10 | Z93: Year 11 | AA93: Year 12 | AB93: Year 13 | AC93: Year 14 | AD93: Year 15 | AE93: Year 16 | AF93: Year 17 | AG93: Year 18 | AH93: Year 19 | AI93: Year 20 | AJ93: Total Long-Term | AS93: =A917 -> Exterior-Other 9 (Specify)
P94: =YEAR($I$1)+1 -> 2011 | Q94: =YEAR($I$1)+2 -> 2012 | R94: =YEAR($I$1)+3 -> 2013 | S94: =YEAR($I$1)+4 -> 2014 | T94: =YEAR($I$1)+5 -> 2015 | U94: =YEAR($I$1)+6 -> 2016 | V94: =YEAR($I$1)+7 -> 2017 | W94: =YEAR($I$1)+8 -> 2018 | X94: =YEAR($I$1)+9 -> 2019 | Y94: =YEAR($I$1)+10 -> 2020 | Z94: =YEAR($I$1)+11 -> 2021 | AA94: =YEAR($I$1)+12 -> 2022 | AB94: =YEAR($I$1)+13 -> 2023 | AC94: =YEAR($I$1)+14 -> 2024 | AD94: =YEAR($I$1)+15 -> 2025 | AE94: =YEAR($I$1)+16 -> 2026 | AF94: =YEAR($I$1)+17 -> 2027 | AG94: =YEAR($I$1)+18 -> 2028 | AH94: =YEAR($I$1)+19 -> 2029 | AI94: =YEAR($I$1)+20 -> 2030 | AS94: =A927 -> Exterior-Other 10 (Specify)
A95: ="Existing 1 "&A85 -> Existing 1 Irrigation | G95: 1 | H95: LUMP SUM | I95: 500 | J95: =G95*I95 -> 500 | K95: 5000000 | L95: Gallons | M95: =IF(OR(ISERROR(B87+B86*(1-(Controls!$B$28))),(B87+B86*(1-(Controls!$B$28)))=0),"",IF((B87+B86*(1-(Controls!$B$28)))<=StartInput!$F$25,"Replace","Evaluate")) -> Evaluate | N95: =IF(StartInput!$F$75="Tenant",StartInput!$F$66,StartInput!$G$66) -> 0.0015 | O95: =IF($B$90=0,J95,0) -> 0 | P95: =IF(OR(($B$90+YEAR($I$1))=P94,($B$86+$B$90+YEAR($I$1))=P94,($B$86*2+$B$90+YEAR($I$1))=P94,($B$86*3+$B$90+YEAR($I$1))=P94,($B$86*4+$B$90+YEAR($I$1))=P94,($B$86*5+$B$90+YEAR($I$1))=P94),$G$95*$I$95,0) -> 0 | Q95: =IF(OR(($B$90+YEAR($I$1))=Q94,($B$86+$B$90+YEAR($I$1))=Q94,($B$86*2+$B$90+YEAR($I$1))=Q94,($B$86*3+$B$90+YEAR($I$1))=Q94,($B$86*4+$B$90+YEAR($I$1))=Q94,($B$86*5+$B$90+YEAR($I$1))=Q94),$G$95*$I$95,0) -> 0 | R95: 0 | S95: 0 | T95: 0 | U95: 0 | V95: 0 | W95: 0 | X95: 0 | Y95: 0 | Z95: 0 | AA95: 0 | AB95: 0 | AC95: 500 | AD95: 0 | AE95: 0 | AF95: 0 | AG95: 0 | AH95: 0 | AI95: 0 | AJ95: =SUM(P95:AI95) -> 500
A96: ="Existing 1 "&A85 -> Existing 1 Irrigation | G96: 1 | H96: =H95 -> LUMP SUM | I96: 500 | J96: =G96*I96 -> 500 | K96: 5000000 | L96: =L95 -> Gallons | M96: =IF(OR(ISERROR(B88+B86*(1-(Controls!$B$28))),(B88+B86*(1-(Controls!$B$28)))=0),"",IF((B88+B86*(1-(Controls!$B$28)))<=StartInput!$F$25,"Replace","Evaluate")) -> Evaluate | N96: =N95 -> 0.0015 | O96: =IF($B$91=0,J96,0) -> 0 | P96: =IF(OR(($B$91+YEAR($I$1))=P94,($B$86+$B$91+YEAR($I$1))=P94,($B$86*2+$B$91+YEAR($I$1))=P94,($B$86*3+$B$91+YEAR($I$1))=P94,($B$86*4+$B$91+YEAR($I$1))=P94,($B$86*5+$B$91+YEAR($I$1))=P94),$G$96*$I$96,0) -> 0 | Q96: =IF(OR(($B$91+YEAR($I$1))=Q94,($B$86+$B$91+YEAR($I$1))=Q94,($B$86*2+$B$91+YEAR($I$1))=Q94,($B$86*3+$B$91+YEAR($I$1))=Q94,($B$86*4+$B$91+YEAR($I$1))=Q94,($B$86*5+$B$91+YEAR($I$1))=Q94),$G$95*$I$95,0) -> 0 | R96: 0 | S96: 0 | T96: 0 | U96: 0 | V96: 0 | W96: 0 | X96: 0 | Y96: 0 | Z96: 0 | AA96: 500 | AB96: 0 | AC96: 0 | AD96: 0 | AE96: 0 | AF96: 0 | AG96: 0 | AH96: 0 | AI96: 0 | AJ96: =SUM(P96:AI96) -> 500
A97: ="Existing 1 "&A85 -> Existing 1 Irrigation | G97: 1 | H97: =H95 -> LUMP SUM | I97: 500 | J97: =G97*I97 -> 500 | K97: 5000000 | L97: =L95 -> Gallons | M97: =IF(OR(ISERROR(B89+B86*(1-(Controls!$B$28))),(B89+B86*(1-(Controls!$B$28)))=0),"",IF((B89+B86*(1-(Controls!$B$28)))<=StartInput!$F$25,"Replace","Evaluate")) -> Replace | N97: =N95 -> 0.0015 | O97: =IF($B$92=0,J97,0) -> 500 | P97: =IF(OR(($B$92+YEAR($I$1))=P94,($B$86+$B$92+YEAR($I$1))=P94,($B$86*2+$B$92+YEAR($I$1))=P94,($B$86*3+$B$92+YEAR($I$1))=P94,($B$86*4+$B$92+YEAR($I$1))=P94,($B$86*5+$B$92+YEAR($I$1))=P94),$G$97*$I$97,0) -> 0 | Q97: =IF(OR(($B$92+YEAR($I$1))=Q94,($B$86+$B$92+YEAR($I$1))=Q94,($B$86*2+$B$92+YEAR($I$1))=Q94,($B$86*3+$B$92+YEAR($I$1))=Q94,($B$86*4+$B$92+YEAR($I$1))=Q94,($B$86*5+$B$92+YEAR($I$1))=Q94),$G$95*$I$95,0) -> 0 | R97: 0 | S97: 0 | T97: 0 | U97: 0 | V97: 0 | W97: 0 | X97: 0 | Y97: 0 | Z97: 0 | AA97: 0 | AB97: 0 | AC97: 0 | AD97: 0 | AE97: 0 | AF97: 500 | AG97: 0 | AH97: 0 | AI97: 0 | AJ97: =SUM(P97:AI97) -> 500 | AL97: Annual | AM97: Simple
A98: ="Standard "&A85 -> Standard Irrigation | G98: =SUM(G95:G97) -> 3 | H98: LUMP SUM | I98: 15000 | J98: =G98*I98 -> 45000 | K98: 8760000 | L98: =L95 -> Gallons | N98: =N95 -> 0.0015 | O98: =IF($B$92=0,J98,0) -> 45000 | P98: =IF(OR(($B$92+YEAR($I$1))=P94,($B$86+$B$92+YEAR($I$1))=P94,($B$86*2+$B$92+YEAR($I$1))=P94,($B$86*3+$B$92+YEAR($I$1))=P94,($B$86*4+$B$92+YEAR($I$1))=P94,($B$86*5+$B$92+YEAR($I$1))=P94),$G$98*$I$98,0) -> 0 | Q98: 0 | R98: 0 | S98: 0 | T98: 0 | U98: 0 | V98: 0 | W98: 0 | X98: 0 | Y98: 0 | Z98: 0 | AA98: 0 | AB98: 0 | AC98: 0 | AD98: 0 | AE98: 0 | AF98: 45000 | AG98: 0 | AH98: 0 | AI98: 0 | AJ98: =SUM(P98:AI98) -> 45000 | AK98: Inc. Cost | AL98: Savings ($) | AM98: Payback | AN98: Units | AS98: =A947 -> Interior Painting (non-routine)
A99: ="Green Replacement "&A85 -> Green Replacement Irrigation | G99: =SUM(G95:G97) -> 3 | H99: LUMP SUM | I99: 32000 | J99: =G99*I99 -> 96000 | K99: 0 | L99: =L95 -> Gallons | N99: =N95 -> 0.0015 | O99: =IF($B$92=0,J99,0) -> 96000 | P99: =IF(OR(($B$92+YEAR($I$1))=P94,($B$86+$B$92+YEAR($I$1))=P94,($B$86*2+$B$92+YEAR($I$1))=P94,($B$86*3+$B$92+YEAR($I$1))=P94,($B$86*4+$B$92+YEAR($I$1))=P94,($B$86*5+$B$92+YEAR($I$1))=P94),$G$99*$I$99,0) -> 0 | Q99: 0 | R99: 0 | S99: 0 | T99: 0 | U99: 0 | V99: 0 | W99: 0 | X99: 0 | Y99: 0 | Z99: 0 | AA99: 0 | AB99: 0 | AC99: 0 | AD99: 0 | AE99: 0 | AF99: 96000 | AG99: 0 | AH99: 0 | AI99: 0 | AJ99: =SUM(P99:AI99) -> 96000 | AK99: =IF((AJ99-AJ98)<0,0,(AJ99-AJ98)) -> 51000 | AL99: =(K95*N95+K96*N96+K97*N97)-(K99*N99) -> 22500 | AM99: =AK99/AL99 -> 2.266666667 | AN99: =L95 -> Gallons | AS99: =A957 -> Interior Doors
A100: Site10 | AS100: =A967 -> Interior Door Frames
A101: Lighting | AS101: =A977 -> Flooring (non-routine)
A102: EUL (years): | B102: 15 | D102: Comments: | F102: Show cost of replacement for standard lighting (in-place kind). | AS102: =A987 -> Shower/Tub Surrounds
A103: Repl. Year 1 | B103: 2007 | F103: Green replacement is the cost of higer efficiency lamps and/or controls. | AS103: =A1003 -> Toilets
A104: Repl. Year 2 | B104: 2006
A105: Repl. Year 3 | B105: 1993
A106: RUL 1 (years) | B106: =IF(B103-((YEAR($I$1))-B102)>0,(B103-((YEAR($I$1))-B102)),0) -> 12
A107: RUL 2 (years) | B107: =IF(B104-((YEAR($I$1))-B102)>0,(B104-((YEAR($I$1))-B102)),0) -> 11
A108: RUL 3 (years) | B108: =IF(B105-((YEAR($I$1))-B102)>0,(B105-((YEAR($I$1))-B102)),0) -> 0 | O108: =A101 -> Lighting | Z108: =A101 -> Lighting | AS108: =A1019 -> Vanities
A109: ITEM | G109: QTY | H109: Unit of Measure | I109: Unit Cost ($) | J109: Subtotal ($) | K109: Usage per Year | L109: Usage Units | M109: Eval. / Repl. | N109: Rate | O109: Immediate Needs | P109: Year 1 | Q109: Year 2 | R109: Year 3 | S109: Year 4 | T109: Year 5 | U109: Year 6 | V109: Year 7 | W109: Year 8 | X109: Year 9 | Y109: Year 10 | Z109: Year 11 | AA109: Year 12 | AB109: Year 13 | AC109: Year 14 | AD109: Year 15 | AE109: Year 16 | AF109: Year 17 | AG109: Year 18 | AH109: Year 19 | AI109: Year 20 | AJ109: Total Long-Term | AS109: =A1029 -> Faucets
P110: =YEAR($I$1)+1 -> 2011 | Q110: =YEAR($I$1)+2 -> 2012 | R110: =YEAR($I$1)+3 -> 2013 | S110: =YEAR($I$1)+4 -> 2014 | T110: =YEAR($I$1)+5 -> 2015 | U110: =YEAR($I$1)+6 -> 2016 | V110: =YEAR($I$1)+7 -> 2017 | W110: =YEAR($I$1)+8 -> 2018 | X110: =YEAR($I$1)+9 -> 2019 | Y110: =YEAR($I$1)+10 -> 2020 | Z110: =YEAR($I$1)+11 -> 2021 | AA110: =YEAR($I$1)+12 -> 2022 | AB110: =YEAR($I$1)+13 -> 2023 | AC110: =YEAR($I$1)+14 -> 2024 | AD110: =YEAR($I$1)+15 -> 2025 | AE110: =YEAR($I$1)+16 -> 2026 | AF110: =YEAR($I$1)+17 -> 2027 | AG110: =YEAR($I$1)+18 -> 2028 | AH110: =YEAR($I$1)+19 -> 2029 | AI110: =YEAR($I$1)+20 -> 2030 | AS110: =A1045 -> Bathroom Flooring (non-cyclical)
A111: ="Existing 1 "&A101 -> Existing 1 Lighting | G111: 1500 | H111: each | I111: 18 | J111: =G111*I111 -> 27000 | K111: 35000 | L111: KWH | M111: =IF(OR(ISERROR(B103+B102*(1-(Controls!$B$28))),(B103+B102*(1-(Controls!$B$28)))=0),"",IF((B103+B102*(1-(Controls!$B$28)))<=StartInput!$F$25,"Replace","Evaluate")) -> Evaluate | N111: =IF(StartInput!$F$74="Tenant",StartInput!$F$61,StartInput!$G$61) -> 0.15 | O111: =IF($B$106=0,J111,0) -> 0 | P111: =IF(OR(($B$106+YEAR($I$1))=P110,($B$102+$B$106+YEAR($I$1))=P110,($B$102*2+$B$106+YEAR($I$1))=P110,($B$102*3+$B$106+YEAR($I$1))=P110,($B$102*4+$B$106+YEAR($I$1))=P110,($B$102*5+$B$106+YEAR($I$1))=P110),$G$111*$I$111,0) -> 0 | Q111: =IF(OR(($B$106+YEAR($I$1))=Q110,($B$102+$B$106+YEAR($I$1))=Q110,($B$102*2+$B$106+YEAR($I$1))=Q110,($B$102*3+$B$106+YEAR($I$1))=Q110,($B$102*4+$B$106+YEAR($I$1))=Q110,($B$102*5+$B$106+YEAR($I$1))=Q110),$G$111*$I$111,0) -> 0 | R111: 0 | S111: 0 | T111: 0 | U111: 0 | V111: 0 | W111: 0 | X111: 0 | Y111: 0 | Z111: 0 | AA111: 27000 | AB111: 0 | AC111: 0 | AD111: 0 | AE111: 0 | AF111: 0 | AG111: 0 | AH111: 0 | AI111: 0 | AJ111: =SUM(P111:AI111) -> 27000 | AS111: =A1055 -> Bathroom Cabinets
A112: ="Existing 2 "&A101 -> Existing 2 Lighting | G112: 1000 | H112: =H111 -> each | I112: 18 | J112: =G112*I112 -> 18000 | K112: 25000 | L112: =L111 -> KWH | M112: =IF(OR(ISERROR(B104+B102*(1-(Controls!$B$28))),(B104+B102*(1-(Controls!$B$28)))=0),"",IF((B104+B102*(1-(Controls!$B$28)))<=StartInput!$F$25,"Replace","Evaluate")) -> Evaluate | N112: =N111 -> 0.15 | O112: =IF($B$107=0,J112,0) -> 0 | P112: =IF(OR(($B$107+YEAR($I$1))=P110,($B$102+$B$107+YEAR($I$1))=P110,($B$102*2+$B$107+YEAR($I$1))=P110,($B$102*3+$B$107+YEAR($I$1))=P110,($B$102*4+$B$107+YEAR($I$1))=P110,($B$102*5+$B$107+YEAR($I$1))=P110),$G$112*$I$112,0) -> 0 | Q112: =IF(OR(($B$107+YEAR($I$1))=Q110,($B$102+$B$107+YEAR($I$1))=Q110,($B$102*2+$B$107+YEAR($I$1))=Q110,($B$102*3+$B$107+YEAR($I$1))=Q110,($B$102*4+$B$107+YEAR($I$1))=Q110,($B$102*5+$B$107+YEAR($I$1))=Q110),$G$111*$I$111,0) -> 0 | R112: 0 | S112: 0 | T112: 0 | U112: 0 | V112: 0 | W112: 0 | X112: 0 | Y112: 0 | Z112: 27000 | AA112: 0 | AB112: 0 | AC112: 0 | AD112: 0 | AE112: 0 | AF112: 0 | AG112: 0 | AH112: 0 | AI112: 0 | AJ112: =SUM(P112:AI112) -> 27000
A113: ="Existing 3 "&A101 -> Existing 3 Lighting | G113: 500 | H113: =H111 -> each | I113: 18 | J113: =G113*I113 -> 9000 | K113: 5700 | L113: =L111 -> KWH | M113: =IF(OR(ISERROR(B105+B102*(1-(Controls!$B$28))),(B105+B102*(1-(Controls!$B$28)))=0),"",IF((B105+B102*(1-(Controls!$B$28)))<=StartInput!$F$25,"Replace","Evaluate")) -> Replace | N113: =N111 -> 0.15 | O113: =IF($B$108=0,J113,0) -> 9000 | P113: =IF(OR(($B$108+YEAR($I$1))=P110,($B$102+$B$108+YEAR($I$1))=P110,($B$102*2+$B$108+YEAR($I$1))=P110,($B$102*3+$B$108+YEAR($I$1))=P110,($B$102*4+$B$108+YEAR($I$1))=P110,($B$102*5+$B$108+YEAR($I$1))=P110),$G$113*$I$113,0) -> 0 | Q113: =IF(OR(($B$108+YEAR($I$1))=Q110,($B$102+$B$108+YEAR($I$1))=Q110,($B$102*2+$B$108+YEAR($I$1))=Q110,($B$102*3+$B$108+YEAR($I$1))=Q110,($B$102*4+$B$108+YEAR($I$1))=Q110,($B$102*5+$B$108+YEAR($I$1))=Q110),$G$111*$I$111,0) -> 0 | R113: 0 | S113: 0 | T113: 0 | U113: 0 | V113: 0 | W113: 0 | X113: 0 | Y113: 0 | Z113: 0 | AA113: 0 | AB113: 0 | AC113: 0 | AD113: 27000 | AE113: 0 | AF113: 0 | AG113: 0 | AH113: 0 | AI113: 0 | AJ113: =SUM(P113:AI113) -> 27000 | AL113: Annual | AM113: Simple
A114: ="Standard "&A101 -> Standard Lighting | G114: =SUM(G111:G113) -> 3000 | H114: =H111 -> each | I114: 20 | J114: =G114*I114 -> 60000 | K114: 65700 | L114: =L111 -> KWH | N114: =N111 -> 0.15 | O114: =IF($B$108=0,J114,0) -> 60000 | P114: =IF(OR(($B$108+YEAR($I$1))=P110,($B$102+$B$108+YEAR($I$1))=P110,($B$102*2+$B$108+YEAR($I$1))=P110,($B$102*3+$B$108+YEAR($I$1))=P110,($B$102*4+$B$108+YEAR($I$1))=P110,($B$102*5+$B$108+YEAR($I$1))=P110),$G$114*$I$114,0) -> 0 | Q114: 0 | R114: 0 | S114: 0 | T114: 0 | U114: 0 | V114: 0 | W114: 0 | X114: 0 | Y114: 0 | Z114: 0 | AA114: 0 | AB114: 0 | AC114: 0 | AD114: 60000 | AE114: 0 | AF114: 0 | AG114: 0 | AH114: 0 | AI114: 0 | AJ114: =SUM(P114:AI114) -> 60000 | AK114: Inc. Cost | AL114: Savings ($) | AM114: Payback | AN114: Units | AS114: =A1065 -> Bathroom Exhaust Fans
A115: ="Green Replacement "&A101 -> Green Replacement Lighting | G115: =SUM(G111:G113) -> 3000 | H115: =H111 -> each | I115: 34 | J115: =G115*I115 -> 102000 | K115: 17520 | L115: =L111 -> KWH | N115: =N111 -> 0.15 | O115: =IF($B$108=0,J115,0) -> 102000 | P115: =IF(OR(($B$108+YEAR($I$1))=P110,($B$102+$B$108+YEAR($I$1))=P110,($B$102*2+$B$108+YEAR($I$1))=P110,($B$102*3+$B$108+YEAR($I$1))=P110,($B$102*4+$B$108+YEAR($I$1))=P110,($B$102*5+$B$108+YEAR($I$1))=P110),$G$115*$I$115,0) -> 0 | Q115: 0 | R115: 0 | S115: 0 | T115: 0 | U115: 0 | V115: 0 | W115: 0 | X115: 0 | Y115: 0 | Z115: 0 | AA115: 0 | AB115: 0 | AC115: 0 | AD115: 102000 | AE115: 0 | AF115: 0 | AG115: 0 | AH115: 0 | AI115: 0 | AJ115: =SUM(P115:AI115) -> 102000 | AK115: =IF((AJ115-AJ114)<0,0,(AJ115-AJ114)) -> 42000 | AL115: =(K111*N111+K112*N112+K113*N113)-(K115*N115) -> 7227 | AM115: =AK115/AL115 -> 5.811540058 | AN115: =L111 -> KWH | AS115: =A1075 -> Kitchen Cabinets
A116: Site11 | AS116: =A1085 -> Ranges
A117: Storm Drainage | AS117: =A1095 -> Range Hoods
A118: EUL (years): | B118: 19 | D118: Comments: | AS118: =A1105 -> Refrigerators
A119: Repl. Year: | B119: 1993 | AS119: =A1121 -> Counters and Sinks
A120: RUL (years): | B120: =IF(B118-((YEAR(I1))-B119)>0,(B118-((YEAR(I1))-B119)),0) -> 2 | O120: =A117 -> Storm Drainage | Z120: =A117 -> Storm Drainage | AS120: =A1131 -> Dishwasher
A121: ITEM | G121: QTY | H121: Unit of Measure | I121: Unit Cost ($) | J121: Subtotal ($) | K121: Usage per Year | L121: Usage Units | M121: Eval. / Repl. | N121: Rate | O121: Immediate Needs | P121: Year 1 | Q121: Year 2 | R121: Year 3 | S121: Year 4 | T121: Year 5 | U121: Year 6 | V121: Year 7 | W121: Year 8 | X121: Year 9 | Y121: Year 10 | Z121: Year 11 | AA121: Year 12 | AB121: Year 13 | AC121: Year 14 | AD121: Year 15 | AE121: Year 16 | AF121: Year 17 | AG121: Year 18 | AH121: Year 19 | AI121: Year 20 | AJ121: Total Long-Term | AS121: =A1147 -> Garbage Disposal
P122: =YEAR($I$1)+1 -> 2011 | Q122: =YEAR($I$1)+2 -> 2012 | R122: =YEAR($I$1)+3 -> 2013 | S122: =YEAR($I$1)+4 -> 2014 | T122: =YEAR($I$1)+5 -> 2015 | U122: =YEAR($I$1)+6 -> 2016 | V122: =YEAR($I$1)+7 -> 2017 | W122: =YEAR($I$1)+8 -> 2018 | X122: =YEAR($I$1)+9 -> 2019 | Y122: =YEAR($I$1)+10 -> 2020 | Z122: =YEAR($I$1)+11 -> 2021 | AA122: =YEAR($I$1)+12 -> 2022 | AB122: =YEAR($I$1)+13 -> 2023 | AC122: =YEAR($I$1)+14 -> 2024 | AD122: =YEAR($I$1)+15 -> 2025 | AE122: =YEAR($I$1)+16 -> 2026 | AF122: =YEAR($I$1)+17 -> 2027 | AG122: =YEAR($I$1)+18 -> 2028 | AH122: =YEAR($I$1)+19 -> 2029 | AI122: =YEAR($I$1)+20 -> 2030 | AS122: =A1157 -> Microwave
A123: ="Existing "&A117 -> Existing Storm Drainage | G123: 300 | H123: per linear ft. | I123: 300 | J123: =G123*I123 -> 90000 | K123: Non-Utility Saver | M123: =IF(OR(ISERROR(B119+B118*(1-(Controls!$B$28))),(B119+B118*(1-(Controls!$B$28)))=0),"",IF((B119+B118*(1-(Controls!$B$28)))<=StartInput!$F$25,"Replace","Evaluate")) -> Replace | N123: N/A | O123: =IF($B$120=0,J123,0) -> 0 | P123: =IF(OR(($B$120+YEAR($I$1))=P122,($B$118+$B$120+YEAR($I$1))=P122,($B$118*2+$B$120+YEAR($I$1))=P122,($B$118*3+$B$120+YEAR($I$1))=P122,($B$118*4+$B$120+YEAR($I$1))=P122,($B$118*5+$B$120+YEAR($I$1))=P122),$G$123*$I$123,0) -> 0 | Q123: 90000 | R123: 0 | S123: 0 | T123: 0 | U123: 0 | V123: 0 | W123: 0 | X123: 0 | Y123: 0 | Z123: 0 | AA123: 0 | AB123: 0 | AC123: 0 | AD123: 0 | AE123: 0 | AF123: 0 | AG123: 0 | AH123: 0 | AI123: 0 | AJ123: =SUM(P123:AI123) -> 90000 | AS123: =A1167 -> Lighting
A124: ="Standard "&A117 -> Standard Storm Drainage | G124: 300 | H124: per linear ft. | I124: 300 | J124: =G124*I124 -> 90000 | O124: =IF($B$120=0,J124,0) -> 0 | P124: =IF(OR(($B$120+YEAR($I$1))=P122,($B$118+$B$120+YEAR($I$1))=P122,($B$118*2+$B$120+YEAR($I$1))=P122,($B$118*3+$B$120+YEAR($I$1))=P122,($B$118*4+$B$120+YEAR($I$1))=P122,($B$118*5+$B$120+YEAR($I$1))=P122),$G$124*$I$124,0) -> 0 | Q124: 90000 | R124: 0 | S124: 0 | T124: 0 | U124: 0 | V124: 0 | W124: 0 | X124: 0 | Y124: 0 | Z124: 0 | AA124: 0 | AB124: 0 | AC124: 0 | AD124: 0 | AE124: 0 | AF124: 0 | AG124: 0 | AH124: 0 | AI124: 0 | AJ124: =SUM(P124:AI124) -> 90000 | AK124: Inc. Cost | AS124: =A1183 -> Washing Machines
A125: ="Green Replacement "&A117 -> Green Replacement Storm Drainage | G125: =G124 -> 300 | H125: =H124 -> per linear ft. | I125: 325 | J125: =G125*I125 -> 97500 | O125: =IF($B$120=0,J125,0) -> 0 | P125: =IF(OR(($B$120+YEAR($I$1))=P122,($B$118+$B$120+YEAR($I$1))=P122,($B$118*2+$B$120+YEAR($I$1))=P122,($B$118*3+$B$120+YEAR($I$1))=P122,($B$118*4+$B$120+YEAR($I$1))=P122,($B$118*5+$B$120+YEAR($I$1))=P122),$G$125*$I$125,0) -> 0 | Q125: 97500 | R125: 0 | S125: 0 | T125: 0 | U125: 0 | V125: 0 | W125: 0 | X125: 0 | Y125: 0 | Z125: 0 | AA125: 0 | AB125: 0 | AC125: 0 | AD125: 0 | AE125: 0 | AF125: 0 | AG125: 0 | AH125: 0 | AI125: 0 | AJ125: =SUM(P125:AI125) -> 97500 | AK125: =IF((AJ125-AJ124)<0,0,(AJ125-AJ124)) -> 7500 | AS125: =A1199 -> Dryers
A126: Site12 | AS126: =A1209 -> Call-For-Aid Systems
A127: Landscaping | AS127: =A1219 -> Stairs and Handrails
A128: EUL (years): | B128: 20 | D128: Comments: | AS128: =A1229 -> Interior-Other 1 (Specify)
A129: Repl. Year: | B129: 1993 | AS129: =A1239 -> Interior-Other 2 (Specify)
A130: RUL (years): | B130: =IF(B128-((YEAR(I1))-B129)>0,(B128-((YEAR(I1))-B129)),0) -> 3 | O130: =A127 -> Landscaping | Z130: =A127 -> Landscaping | AS130: =A1249 -> Interior-Other 3 (Specify)
A131: ITEM | G131: QTY | H131: Unit of Measure | I131: Unit Cost ($) | J131: Subtotal ($) | K131: Usage per Year | L131: Usage Units | M131: Eval. / Repl. | N131: Rate | O131: Immediate Needs | P131: Year 1 | Q131: Year 2 | R131: Year 3 | S131: Year 4 | T131: Year 5 | U131: Year 6 | V131: Year 7 | W131: Year 8 | X131: Year 9 | Y131: Year 10 | Z131: Year 11 | AA131: Year 12 | AB131: Year 13 | AC131: Year 14 | AD131: Year 15 | AE131: Year 16 | AF131: Year 17 | AG131: Year 18 | AH131: Year 19 | AI131: Year 20 | AJ131: Total Long-Term | AS131: =A1259 -> Interior-Other 4 (Specify)
P132: =YEAR($I$1)+1 -> 2011 | Q132: =YEAR($I$1)+2 -> 2012 | R132: =YEAR($I$1)+3 -> 2013 | S132: =YEAR($I$1)+4 -> 2014 | T132: =YEAR($I$1)+5 -> 2015 | U132: =YEAR($I$1)+6 -> 2016 | V132: =YEAR($I$1)+7 -> 2017 | W132: =YEAR($I$1)+8 -> 2018 | X132: =YEAR($I$1)+9 -> 2019 | Y132: =YEAR($I$1)+10 -> 2020 | Z132: =YEAR($I$1)+11 -> 2021 | AA132: =YEAR($I$1)+12 -> 2022 | AB132: =YEAR($I$1)+13 -> 2023 | AC132: =YEAR($I$1)+14 -> 2024 | AD132: =YEAR($I$1)+15 -> 2025 | AE132: =YEAR($I$1)+16 -> 2026 | AF132: =YEAR($I$1)+17 -> 2027 | AG132: =YEAR($I$1)+18 -> 2028 | AH132: =YEAR($I$1)+19 -> 2029 | AI132: =YEAR($I$1)+20 -> 2030 | AS132: =A1269 -> Interior-Other 5 (Specify)
A133: ="Existing "&A127 -> Existing Landscaping | G133: 1 | H133: LUMP SUM | I133: 35000 | J133: =G133*I133 -> 35000 | K133: Non-Utility Saver | M133: =IF(OR(ISERROR(B129+B128*(1-(Controls!$B$28))),(B129+B128*(1-(Controls!$B$28)))=0),"",IF((B129+B128*(1-(Controls!$B$28)))<=StartInput!$F$25,"Replace","Evaluate")) -> Replace | N133: N/A | O133: =IF($B$130=0,J133,0) -> 0 | P133: =IF(OR(($B$130+YEAR($I$1))=P132,($B$128+$B$130+YEAR($I$1))=P132,($B$128*2+$B$130+YEAR($I$1))=P132,($B$128*3+$B$130+YEAR($I$1))=P132,($B$128*4+$B$130+YEAR($I$1))=P132,($B$128*5+$B$130+YEAR($I$1))=P132),$G$133*$I$133,0) -> 0 | Q133: 0 | R133: 35000 | S133: 0 | T133: 0 | U133: 0 | V133: 0 | W133: 0 | X133: 0 | Y133: 0 | Z133: 0 | AA133: 0 | AB133: 0 | AC133: 0 | AD133: 0 | AE133: 0 | AF133: 0 | AG133: 0 | AH133: 0 | AI133: 0 | AJ133: =SUM(P133:AI133) -> 35000 | AS133: =A1279 -> Interior-Other 6 (Specify)
A134: ="Standard "&A127 -> Standard Landscaping | G134: 1 | H134: LUMP SUM | I134: 35000 | J134: =G134*I134 -> 35000 | O134: =IF($B$130=0,J134,0) -> 0 | P134: =IF(OR(($B$130+YEAR($I$1))=P132,($B$128+$B$130+YEAR($I$1))=P132,($B$128*2+$B$130+YEAR($I$1))=P132,($B$128*3+$B$130+YEAR($I$1))=P132,($B$128*4+$B$130+YEAR($I$1))=P132,($B$128*5+$B$130+YEAR($I$1))=P132),$G$134*$I$134,0) -> 0 | Q134: 0 | R134: 35000 | S134: 0 | T134: 0 | U134: 0 | V134: 0 | W134: 0 | X134: 0 | Y134: 0 | Z134: 0 | AA134: 0 | AB134: 0 | AC134: 0 | AD134: 0 | AE134: 0 | AF134: 0 | AG134: 0 | AH134: 0 | AI134: 0 | AJ134: =SUM(P134:AI134) -> 35000 | AK134: Inc. Cost | AS134: =A1289 -> Interior-Other 7 (Specify)
A135: ="Green Replacement "&A127 -> Green Replacement Landscaping | G135: =G134 -> 1 | H135: =H134 -> LUMP SUM | I135: 36000 | J135: =G135*I135 -> 36000 | O135: =IF($B$130=0,J135,0) -> 0 | P135: =IF(OR(($B$130+YEAR($I$1))=P132,($B$128+$B$130+YEAR($I$1))=P132,($B$128*2+$B$130+YEAR($I$1))=P132,($B$128*3+$B$130+YEAR($I$1))=P132,($B$128*4+$B$130+YEAR($I$1))=P132,($B$128*5+$B$130+YEAR($I$1))=P132),$G$135*$I$135,0) -> 0 | Q135: 0 | R135: 36000 | S135: 0 | T135: 0 | U135: 0 | V135: 0 | W135: 0 | X135: 0 | Y135: 0 | Z135: 0 | AA135: 0 | AB135: 0 | AC135: 0 | AD135: 0 | AE135: 0 | AF135: 0 | AG135: 0 | AH135: 0 | AI135: 0 | AJ135: =SUM(P135:AI135) -> 36000 | AK135: =IF((AJ135-AJ134)<0,0,(AJ135-AJ134)) -> 1000 | AS135: =A1299 -> Interior-Other 8 (Specify)
A136: Site13 | AS136: =A1309 -> Interior-Other 9 (Specify)
A137: Fencing | AS137: =A1319 -> Interior-Other 10 (Specify)
A138: EUL (years): | B138: 16 | D138: Comments:
A139: Repl. Year: | B139: 1994 | AS139: =A1339 -> Water Distribution
A140: RUL (years): | B140: =IF(B138-((YEAR(I1))-B139)>0,(B138-((YEAR(I1))-B139)),0) -> 0 | O140: =A137 -> Fencing | Z140: =A137 -> Fencing | AS140: =A1349 -> Heating Equipment/System
A141: ITEM | G141: QTY | H141: Unit of Measure | I141: Unit Cost ($) | J141: Subtotal ($) | K141: Usage per Year | L141: Usage Units | M141: Eval. / Repl. | N141: Rate | O141: Immediate Needs | P141: Year 1 | Q141: Year 2 | R141: Year 3 | S141: Year 4 | T141: Year 5 | U141: Year 6 | V141: Year 7 | W141: Year 8 | X141: Year 9 | Y141: Year 10 | Z141: Year 11 | AA141: Year 12 | AB141: Year 13 | AC141: Year 14 | AD141: Year 15 | AE141: Year 16 | AF141: Year 17 | AG141: Year 18 | AH141: Year 19 | AI141: Year 20 | AJ141: Total Long-Term | AS141: =A1359 -> Electric Distribution
P142: =YEAR($I$1)+1 -> 2011 | Q142: =YEAR($I$1)+2 -> 2012 | R142: =YEAR($I$1)+3 -> 2013 | S142: =YEAR($I$1)+4 -> 2014 | T142: =YEAR($I$1)+5 -> 2015 | U142: =YEAR($I$1)+6 -> 2016 | V142: =YEAR($I$1)+7 -> 2017 | W142: =YEAR($I$1)+8 -> 2018 | X142: =YEAR($I$1)+9 -> 2019 | Y142: =YEAR($I$1)+10 -> 2020 | Z142: =YEAR($I$1)+11 -> 2021 | AA142: =YEAR($I$1)+12 -> 2022 | AB142: =YEAR($I$1)+13 -> 2023 | AC142: =YEAR($I$1)+14 -> 2024 | AD142: =YEAR($I$1)+15 -> 2025 | AE142: =YEAR($I$1)+16 -> 2026 | AF142: =YEAR($I$1)+17 -> 2027 | AG142: =YEAR($I$1)+18 -> 2028 | AH142: =YEAR($I$1)+19 -> 2029 | AI142: =YEAR($I$1)+20 -> 2030 | AS142: =A1369 -> Water Heaters
A143: ="Existing "&A137 -> Existing Fencing | G143: 500 | H143: per linear ft. | I143: 8 | J143: =G143*I143 -> 4000 | K143: Non-Utility Saver | M143: =IF(OR(ISERROR(B139+B138*(1-(Controls!$B$28))),(B139+B138*(1-(Controls!$B$28)))=0),"",IF((B139+B138*(1-(Controls!$B$28)))<=StartInput!$F$25,"Replace","Evaluate")) -> Replace | N143: N/A | O143: =IF($B$140=0,J143,0) -> 4000 | P143: =IF(OR(($B$140+YEAR($I$1))=P142,($B$138+$B$140+YEAR($I$1))=P142,($B$138*2+$B$140+YEAR($I$1))=P142,($B$138*3+$B$140+YEAR($I$1))=P142,($B$138*4+$B$140+YEAR($I$1))=P142,($B$138*5+$B$140+YEAR($I$1))=P142),$G$143*$I$143,0) -> 0 | Q143: 0 | R143: 0 | S143: 0 | T143: 0 | U143: 0 | V143: 0 | W143: 0 | X143: 0 | Y143: 0 | Z143: 0 | AA143: 0 | AB143: 0 | AC143: 0 | AD143: 0 | AE143: 4000 | AF143: 0 | AG143: 0 | AH143: 0 | AI143: 0 | AJ143: =SUM(P143:AI143) -> 4000 | AS143: =A1379 -> Domestic Water - Boilers
A144: ="Standard "&A137 -> Standard Fencing | G144: 500 | H144: per linear ft. | I144: 8 | J144: =G144*I144 -> 4000 | O144: =IF($B$140=0,J144,0) -> 4000 | P144: =IF(OR(($B$140+YEAR($I$1))=P142,($B$138+$B$140+YEAR($I$1))=P142,($B$138*2+$B$140+YEAR($I$1))=P142,($B$138*3+$B$140+YEAR($I$1))=P142,($B$138*4+$B$140+YEAR($I$1))=P142,($B$138*5+$B$140+YEAR($I$1))=P142),$G$144*$I$144,0) -> 0 | Q144: 0 | R144: 0 | S144: 0 | T144: 0 | U144: 0 | V144: 0 | W144: 0 | X144: 0 | Y144: 0 | Z144: 0 | AA144: 0 | AB144: 0 | AC144: 0 | AD144: 0 | AE144: 4000 | AF144: 0 | AG144: 0 | AH144: 0 | AI144: 0 | AJ144: =SUM(P144:AI144) -> 4000 | AK144: Inc. Cost | AS144: =A1389 -> Domestic Water-Pumps
A145: ="Green Replacement "&A137 -> Green Replacement Fencing | G145: =G144 -> 500 | H145: =H144 -> per linear ft. | I145: 8 | J145: =G145*I145 -> 4000 | O145: =IF($B$140=0,J145,0) -> 4000 | P145: =IF(OR(($B$140+YEAR($I$1))=P142,($B$138+$B$140+YEAR($I$1))=P142,($B$138*2+$B$140+YEAR($I$1))=P142,($B$138*3+$B$140+YEAR($I$1))=P142,($B$138*4+$B$140+YEAR($I$1))=P142,($B$138*5+$B$140+YEAR($I$1))=P142),$G$145*$I$145,0) -> 0 | Q145: 0 | R145: 0 | S145: 0 | T145: 0 | U145: 0 | V145: 0 | W145: 0 | X145: 0 | Y145: 0 | Z145: 0 | AA145: 0 | AB145: 0 | AC145: 0 | AD145: 0 | AE145: 4000 | AF145: 0 | AG145: 0 | AH145: 0 | AI145: 0 | AJ145: =SUM(P145:AI145) -> 4000 | AK145: =IF((AJ145-AJ144)<0,0,(AJ145-AJ144)) -> 0 | AS145: =A1399 -> Unit Sub-Panels
A146: Site14 | AS146: =A1409 -> Trash Compactor
A147: Fence Painting | AS147: =A1419 -> Cooling Equipment/Systems
A148: EUL (years): | B148: 17 | D148: Comments: | AS148: =A1429 -> Smoke/Fire Detection
A149: Repl. Year: | B149: 1994 | AS149: =A1439 -> Unit Reconfiguration
A150: RUL (years): | B150: =IF(B148-((YEAR(I1))-B149)>0,(B148-((YEAR(I1))-B149)),0) -> 1 | O150: =A147 -> Fence Painting | Z150: =A147 -> Fence Painting | AS150: =A1449 -> Security/Fire Alarm
A151: ITEM | G151: QTY | H151: Unit of Measure | I151: Unit Cost ($) | J151: Subtotal ($) | K151: Usage per Year | L151: Usage Units | M151: Eval. / Repl. | N151: Rate | O151: Immediate Needs | P151: Year 1 | Q151: Year 2 | R151: Year 3 | S151: Year 4 | T151: Year 5 | U151: Year 6 | V151: Year 7 | W151: Year 8 | X151: Year 9 | Y151: Year 10 | Z151: Year 11 | AA151: Year 12 | AB151: Year 13 | AC151: Year 14 | AD151: Year 15 | AE151: Year 16 | AF151: Year 17 | AG151: Year 18 | AH151: Year 19 | AI151: Year 20 | AJ151: Total Long-Term | AS151: =A1459 -> Fire Supression System
P152: =YEAR($I$1)+1 -> 2011 | Q152: =YEAR($I$1)+2 -> 2012 | R152: =YEAR($I$1)+3 -> 2013 | S152: =YEAR($I$1)+4 -> 2014 | T152: =YEAR($I$1)+5 -> 2015 | U152: =YEAR($I$1)+6 -> 2016 | V152: =YEAR($I$1)+7 -> 2017 | W152: =YEAR($I$1)+8 -> 2018 | X152: =YEAR($I$1)+9 -> 2019 | Y152: =YEAR($I$1)+10 -> 2020 | Z152: =YEAR($I$1)+11 -> 2021 | AA152: =YEAR($I$1)+12 -> 2022 | AB152: =YEAR($I$1)+13 -> 2023 | AC152: =YEAR($I$1)+14 -> 2024 | AD152: =YEAR($I$1)+15 -> 2025 | AE152: =YEAR($I$1)+16 -> 2026 | AF152: =YEAR($I$1)+17 -> 2027 | AG152: =YEAR($I$1)+18 -> 2028 | AH152: =YEAR($I$1)+19 -> 2029 | AI152: =YEAR($I$1)+20 -> 2030 | AS152: =A1469 -> Generator
A153: ="Existing "&A147 -> Existing Fence Painting | G153: 2000 | H153: per square ft. | I153: 2 | J153: =G153*I153 -> 4000 | K153: Non-Utility Saver | M153: =IF(OR(ISERROR(B149+B148*(1-(Controls!$B$28))),(B149+B148*(1-(Controls!$B$28)))=0),"",IF((B149+B148*(1-(Controls!$B$28)))<=StartInput!$F$25,"Replace","Evaluate")) -> Replace | N153: N/A | O153: =IF($B$150=0,J153,0) -> 0 | P153: =IF(OR(($B$150+YEAR($I$1))=P152,($B$148+$B$150+YEAR($I$1))=P152,($B$148*2+$B$150+YEAR($I$1))=P152,($B$148*3+$B$150+YEAR($I$1))=P152,($B$148*4+$B$150+YEAR($I$1))=P152,($B$148*5+$B$150+YEAR($I$1))=P152),$G$153*$I$153,0) -> 4000 | Q153: 0 | R153: 0 | S153: 0 | T153: 0 | U153: 0 | V153: 0 | W153: 0 | X153: 0 | Y153: 0 | Z153: 0 | AA153: 0 | AB153: 0 | AC153: 0 | AD153: 0 | AE153: 0 | AF153: 0 | AG153: 4000 | AH153: 0 | AI153: 0 | AJ153: =SUM(P153:AI153) -> 8000 | AS153: =A1479 -> Emergency Lighting
A154: ="Standard "&A147 -> Standard Fence Painting | G154: 2000 | H154: per square ft. | I154: 2 | J154: =G154*I154 -> 4000 | O154: =IF($B$150=0,J154,0) -> 0 | P154: =IF(OR(($B$150+YEAR($I$1))=P152,($B$148+$B$150+YEAR($I$1))=P152,($B$148*2+$B$150+YEAR($I$1))=P152,($B$148*3+$B$150+YEAR($I$1))=P152,($B$148*4+$B$150+YEAR($I$1))=P152,($B$148*5+$B$150+YEAR($I$1))=P152),$G$154*$I$154,0) -> 4000 | Q154: 0 | R154: 0 | S154: 0 | T154: 0 | U154: 0 | V154: 0 | W154: 0 | X154: 0 | Y154: 0 | Z154: 0 | AA154: 0 | AB154: 0 | AC154: 0 | AD154: 0 | AE154: 0 | AF154: 0 | AG154: 4000 | AH154: 0 | AI154: 0 | AJ154: =SUM(P154:AI154) -> 8000 | AK154: Inc. Cost | AS154: =A1489 -> Elevator
A155: ="Green Replacement "&A147 -> Green Replacement Fence Painting | G155: =G154 -> 2000 | H155: =H154 -> per square ft. | I155: 4 | J155: =G155*I155 -> 8000 | O155: =IF($B$150=0,J155,0) -> 0 | P155: =IF(OR(($B$150+YEAR($I$1))=P152,($B$148+$B$150+YEAR($I$1))=P152,($B$148*2+$B$150+YEAR($I$1))=P152,($B$148*3+$B$150+YEAR($I$1))=P152,($B$148*4+$B$150+YEAR($I$1))=P152,($B$148*5+$B$150+YEAR($I$1))=P152),$G$155*$I$155,0) -> 8000 | Q155: 0 | R155: 0 | S155: 0 | T155: 0 | U155: 0 | V155: 0 | W155: 0 | X155: 0 | Y155: 0 | Z155: 0 | AA155: 0 | AB155: 0 | AC155: 0 | AD155: 0 | AE155: 0 | AF155: 0 | AG155: 8000 | AH155: 0 | AI155: 0 | AJ155: =SUM(P155:AI155) -> 16000 | AK155: =IF((AJ155-AJ154)<0,0,(AJ155-AJ154)) -> 8000 | AS155: =A1499 -> Mechanical-Other 1 (Specify)
A156: Site15 | AS156: =A1509 -> Mechanical-Other 2 (Specify)
A157: Dumpsters & Enclosures | AS157: =A1519 -> Mechanical-Other 3 (Specify)
A158: EUL (years): | B158: 18 | D158: Comments: | AS158: =A1529 -> Mechanical-Other 4(Specify)
A159: Repl. Year: | B159: 1994 | AS159: =A1539 -> Mechanical-Other 5 (Specify)
A160: RUL (years): | B160: =IF(B158-((YEAR(I1))-B159)>0,(B158-((YEAR(I1))-B159)),0) -> 2 | O160: =A157 -> Dumpsters & Enclosures | Z160: =A157 -> Dumpsters & Enclosures | AS160: =A1549 -> Mechanical-Other 6 (Specify)
A161: ITEM | G161: QTY | H161: Unit of Measure | I161: Unit Cost ($) | J161: Subtotal ($) | K161: Usage per Year | L161: Usage Units | M161: Eval. / Repl. | N161: Rate | O161: Immediate Needs | P161: Year 1 | Q161: Year 2 | R161: Year 3 | S161: Year 4 | T161: Year 5 | U161: Year 6 | V161: Year 7 | W161: Year 8 | X161: Year 9 | Y161: Year 10 | Z161: Year 11 | AA161: Year 12 | AB161: Year 13 | AC161: Year 14 | AD161: Year 15 | AE161: Year 16 | AF161: Year 17 | AG161: Year 18 | AH161: Year 19 | AI161: Year 20 | AJ161: Total Long-Term | AS161: =A1559 -> Mechanical-Other 7 (Specify)
P162: =YEAR($I$1)+1 -> 2011 | Q162: =YEAR($I$1)+2 -> 2012 | R162: =YEAR($I$1)+3 -> 2013 | S162: =YEAR($I$1)+4 -> 2014 | T162: =YEAR($I$1)+5 -> 2015 | U162: =YEAR($I$1)+6 -> 2016 | V162: =YEAR($I$1)+7 -> 2017 | W162: =YEAR($I$1)+8 -> 2018 | X162: =YEAR($I$1)+9 -> 2019 | Y162: =YEAR($I$1)+10 -> 2020 | Z162: =YEAR($I$1)+11 -> 2021 | AA162: =YEAR($I$1)+12 -> 2022 | AB162: =YEAR($I$1)+13 -> 2023 | AC162: =YEAR($I$1)+14 -> 2024 | AD162: =YEAR($I$1)+15 -> 2025 | AE162: =YEAR($I$1)+16 -> 2026 | AF162: =YEAR($I$1)+17 -> 2027 | AG162: =YEAR($I$1)+18 -> 2028 | AH162: =YEAR($I$1)+19 -> 2029 | AI162: =YEAR($I$1)+20 -> 2030 | AS162: =A1569 -> Mechanical-Other 8 (Specify)
A163: ="Existing "&A157 -> Existing Dumpsters & Enclosures | G163: 1 | H163: LUMP SUM | I163: 5000 | J163: =G163*I163 -> 5000 | K163: Non-Utility Saver | M163: =IF(OR(ISERROR(B159+B158*(1-(Controls!$B$28))),(B159+B158*(1-(Controls!$B$28)))=0),"",IF((B159+B158*(1-(Controls!$B$28)))<=StartInput!$F$25,"Replace","Evaluate")) -> Replace | N163: N/A | O163: =IF($B$160=0,J163,0) -> 0 | P163: =IF(OR(($B$160+YEAR($I$1))=P162,($B$158+$B$160+YEAR($I$1))=P162,($B$158*2+$B$160+YEAR($I$1))=P162,($B$158*3+$B$160+YEAR($I$1))=P162,($B$158*4+$B$160+YEAR($I$1))=P162,($B$158*5+$B$160+YEAR($I$1))=P162),$G$163*$I$163,0) -> 0 | Q163: 5000 | R163: 0 | S163: 0 | T163: 0 | U163: 0 | V163: 0 | W163: 0 | X163: 0 | Y163: 0 | Z163: 0 | AA163: 0 | AB163: 0 | AC163: 0 | AD163: 0 | AE163: 0 | AF163: 0 | AG163: 0 | AH163: 0 | AI163: 5000 | AJ163: =SUM(P163:AI163) -> 10000 | AS163: =A1579 -> Mechanical-Other 9 (Specify)
A164: ="Standard "&A157 -> Standard Dumpsters & Enclosures | G164: 1 | H164: LUMP SUM | I164: 5000 | J164: =G164*I164 -> 5000 | O164: =IF($B$160=0,J164,0) -> 0 | P164: =IF(OR(($B$160+YEAR($I$1))=P162,($B$158+$B$160+YEAR($I$1))=P162,($B$158*2+$B$160+YEAR($I$1))=P162,($B$158*3+$B$160+YEAR($I$1))=P162,($B$158*4+$B$160+YEAR($I$1))=P162,($B$158*5+$B$160+YEAR($I$1))=P162),$G$164*$I$164,0) -> 0 | Q164: 5000 | R164: 0 | S164: 0 | T164: 0 | U164: 0 | V164: 0 | W164: 0 | X164: 0 | Y164: 0 | Z164: 0 | AA164: 0 | AB164: 0 | AC164: 0 | AD164: 0 | AE164: 0 | AF164: 0 | AG164: 0 | AH164: 0 | AI164: 5000 | AJ164: =SUM(P164:AI164) -> 10000 | AK164: Inc. Cost | AS164: =A1589 -> Mechanical-Other 10 (Specify)
A165: ="Green Replacement "&A157 -> Green Replacement Dumpsters & Enclosures | G165: =G164 -> 1 | H165: =H164 -> LUMP SUM | I165: 5000 | J165: =G165*I165 -> 5000 | O165: =IF($B$160=0,J165,0) -> 0 | P165: =IF(OR(($B$160+YEAR($I$1))=P162,($B$158+$B$160+YEAR($I$1))=P162,($B$158*2+$B$160+YEAR($I$1))=P162,($B$158*3+$B$160+YEAR($I$1))=P162,($B$158*4+$B$160+YEAR($I$1))=P162,($B$158*5+$B$160+YEAR($I$1))=P162),$G$165*$I$165,0) -> 0 | Q165: 5000 | R165: 0 | S165: 0 | T165: 0 | U165: 0 | V165: 0 | W165: 0 | X165: 0 | Y165: 0 | Z165: 0 | AA165: 0 | AB165: 0 | AC165: 0 | AD165: 0 | AE165: 0 | AF165: 0 | AG165: 0 | AH165: 0 | AI165: 5000 | AJ165: =SUM(P165:AI165) -> 10000 | AK165: =IF((AJ165-AJ164)<0,0,(AJ165-AJ164)) -> 0
A166: Site16 | AS166: =A1609 -> Dwelling Units
A167: Electrical Distibution | AS167: =A1619 -> Administrative Building
A168: EUL (years): | B168: 19 | D168: Comments: | AS168: =A1629 -> Community Building
A169: Repl. Year: | B169: 1994 | AS169: =A1639 -> Shop
A170: RUL (years): | B170: =IF(B168-((YEAR(I1))-B169)>0,(B168-((YEAR(I1))-B169)),0) -> 3 | O170: =A167 -> Electrical Distibution | Z170: =A167 -> Electrical Distibution | AS170: =A1649 -> Storage Area
A171: ITEM | G171: QTY | H171: Unit of Measure | I171: Unit Cost ($) | J171: Subtotal ($) | K171: Usage per Year | L171: Usage Units | M171: Eval. / Repl. | N171: Rate | O171: Immediate Needs | P171: Year 1 | Q171: Year 2 | R171: Year 3 | S171: Year 4 | T171: Year 5 | U171: Year 6 | V171: Year 7 | W171: Year 8 | X171: Year 9 | Y171: Year 10 | Z171: Year 11 | AA171: Year 12 | AB171: Year 13 | AC171: Year 14 | AD171: Year 15 | AE171: Year 16 | AF171: Year 17 | AG171: Year 18 | AH171: Year 19 | AI171: Year 20 | AJ171: Total Long-Term | AS171: =A1659 -> Family Investment Center
P172: =YEAR($I$1)+1 -> 2011 | Q172: =YEAR($I$1)+2 -> 2012 | R172: =YEAR($I$1)+3 -> 2013 | S172: =YEAR($I$1)+4 -> 2014 | T172: =YEAR($I$1)+5 -> 2015 | U172: =YEAR($I$1)+6 -> 2016 | V172: =YEAR($I$1)+7 -> 2017 | W172: =YEAR($I$1)+8 -> 2018 | X172: =YEAR($I$1)+9 -> 2019 | Y172: =YEAR($I$1)+10 -> 2020 | Z172: =YEAR($I$1)+11 -> 2021 | AA172: =YEAR($I$1)+12 -> 2022 | AB172: =YEAR($I$1)+13 -> 2023 | AC172: =YEAR($I$1)+14 -> 2024 | AD172: =YEAR($I$1)+15 -> 2025 | AE172: =YEAR($I$1)+16 -> 2026 | AF172: =YEAR($I$1)+17 -> 2027 | AG172: =YEAR($I$1)+18 -> 2028 | AH172: =YEAR($I$1)+19 -> 2029 | AI172: =YEAR($I$1)+20 -> 2030 | AS172: =A1669 -> Day Care Center
A173: ="Existing "&A167 -> Existing Electrical Distibution | G173: 1 | H173: LUMP SUM | I173: 34000 | J173: =G173*I173 -> 34000 | K173: Non-Utility Saver | M173: =IF(OR(ISERROR(B169+B168*(1-(Controls!$B$28))),(B169+B168*(1-(Controls!$B$28)))=0),"",IF((B169+B168*(1-(Controls!$B$28)))<=StartInput!$F$25,"Replace","Evaluate")) -> Evaluate | N173: N/A | O173: =IF($B$170=0,J173,0) -> 0 | P173: =IF(OR(($B$170+YEAR($I$1))=P172,($B$168+$B$170+YEAR($I$1))=P172,($B$168*2+$B$170+YEAR($I$1))=P172,($B$168*3+$B$170+YEAR($I$1))=P172,($B$168*4+$B$170+YEAR($I$1))=P172,($B$168*5+$B$170+YEAR($I$1))=P172),$G$173*$I$173,0) -> 0 | Q173: 0 | R173: 34000 | S173: 0 | T173: 0 | U173: 0 | V173: 0 | W173: 0 | X173: 0 | Y173: 0 | Z173: 0 | AA173: 0 | AB173: 0 | AC173: 0 | AD173: 0 | AE173: 0 | AF173: 0 | AG173: 0 | AH173: 0 | AI173: 0 | AJ173: =SUM(P173:AI173) -> 34000 | AS173: =A1679 -> Laundry Areas
A174: ="Standard "&A167 -> Standard Electrical Distibution | G174: 1 | H174: LUMP SUM | I174: 34000 | J174: =G174*I174 -> 34000 | O174: =IF($B$170=0,J174,0) -> 0 | P174: =IF(OR(($B$170+YEAR($I$1))=P172,($B$168+$B$170+YEAR($I$1))=P172,($B$168*2+$B$170+YEAR($I$1))=P172,($B$168*3+$B$170+YEAR($I$1))=P172,($B$168*4+$B$170+YEAR($I$1))=P172,($B$168*5+$B$170+YEAR($I$1))=P172),$G$174*$I$174,0) -> 0 | Q174: 0 | R174: 34000 | S174: 0 | T174: 0 | U174: 0 | V174: 0 | W174: 0 | X174: 0 | Y174: 0 | Z174: 0 | AA174: 0 | AB174: 0 | AC174: 0 | AD174: 0 | AE174: 0 | AF174: 0 | AG174: 0 | AH174: 0 | AI174: 0 | AJ174: =SUM(P174:AI174) -> 34000 | AK174: Inc. Cost | AS174: =A1689 -> NC-Other 1 (Specify)
A175: ="Green Replacement "&A167 -> Green Replacement Electrical Distibution | G175: =G174 -> 1 | H175: =H174 -> LUMP SUM | I175: 34000 | J175: =G175*I175 -> 34000 | O175: =IF($B$170=0,J175,0) -> 0 | P175: =IF(OR(($B$170+YEAR($I$1))=P172,($B$168+$B$170+YEAR($I$1))=P172,($B$168*2+$B$170+YEAR($I$1))=P172,($B$168*3+$B$170+YEAR($I$1))=P172,($B$168*4+$B$170+YEAR($I$1))=P172,($B$168*5+$B$170+YEAR($I$1))=P172),$G$175*$I$175,0) -> 0 | Q175: 0 | R175: 34000 | S175: 0 | T175: 0 | U175: 0 | V175: 0 | W175: 0 | X175: 0 | Y175: 0 | Z175: 0 | AA175: 0 | AB175: 0 | AC175: 0 | AD175: 0 | AE175: 0 | AF175: 0 | AG175: 0 | AH175: 0 | AI175: 0 | AJ175: =SUM(P175:AI175) -> 34000 | AK175: =IF((AJ175-AJ174)<0,0,(AJ175-AJ174)) -> 0 | AS175: =A1699 -> NC-Other 2 (Specify)
A176: Site17 | AS176: =A1709 -> NC-Other 3 (Specify)
A177: Playground Areas/Equipment | AS177: =A1719 -> NC-Other 4 (Specify)
A178: EUL (years): | B178: 20 | D178: Comments: | AS178: =A1729 -> NC-Other 5(Specify)
A179: Repl. Year: | B179: 1994 | AS179: =A1739 -> NC-Other 6 (Specify)
A180: RUL (years): | B180: =IF(B178-((YEAR(I1))-B179)>0,(B178-((YEAR(I1))-B179)),0) -> 4 | O180: =A177 -> Playground Areas/Equipment | Z180: =A177 -> Playground Areas/Equipment | AS180: =A1749 -> NC-Other 7 (Specify)
A181: ITEM | G181: QTY | H181: Unit of Measure | I181: Unit Cost ($) | J181: Subtotal ($) | K181: Usage per Year | L181: Usage Units | M181: Eval. / Repl. | N181: Rate | O181: Immediate Needs | P181: Year 1 | Q181: Year 2 | R181: Year 3 | S181: Year 4 | T181: Year 5 | U181: Year 6 | V181: Year 7 | W181: Year 8 | X181: Year 9 | Y181: Year 10 | Z181: Year 11 | AA181: Year 12 | AB181: Year 13 | AC181: Year 14 | AD181: Year 15 | AE181: Year 16 | AF181: Year 17 | AG181: Year 18 | AH181: Year 19 | AI181: Year 20 | AJ181: Total Long-Term | AS181: =A1759 -> NC-Other 8 (Specify)
P182: =YEAR($I$1)+1 -> 2011 | Q182: =YEAR($I$1)+2 -> 2012 | R182: =YEAR($I$1)+3 -> 2013 | S182: =YEAR($I$1)+4 -> 2014 | T182: =YEAR($I$1)+5 -> 2015 | U182: =YEAR($I$1)+6 -> 2016 | V182: =YEAR($I$1)+7 -> 2017 | W182: =YEAR($I$1)+8 -> 2018 | X182: =YEAR($I$1)+9 -> 2019 | Y182: =YEAR($I$1)+10 -> 2020 | Z182: =YEAR($I$1)+11 -> 2021 | AA182: =YEAR($I$1)+12 -> 2022 | AB182: =YEAR($I$1)+13 -> 2023 | AC182: =YEAR($I$1)+14 -> 2024 | AD182: =YEAR($I$1)+15 -> 2025 | AE182: =YEAR($I$1)+16 -> 2026 | AF182: =YEAR($I$1)+17 -> 2027 | AG182: =YEAR($I$1)+18 -> 2028 | AH182: =YEAR($I$1)+19 -> 2029 | AI182: =YEAR($I$1)+20 -> 2030 | AS182: =A1769 -> NC-Other 9 (Specify)
A183: ="Existing "&A177 -> Existing Playground Areas/Equipment | G183: 1 | H183: LUMP SUM | I183: 5600 | J183: =G183*I183 -> 5600 | K183: Non-Utility Saver | M183: =IF(OR(ISERROR(B179+B178*(1-(Controls!$B$28))),(B179+B178*(1-(Controls!$B$28)))=0),"",IF((B179+B178*(1-(Controls!$B$28)))<=StartInput!$F$25,"Replace","Evaluate")) -> Evaluate | N183: N/A | O183: =IF($B$180=0,J183,0) -> 0 | P183: =IF(OR(($B$180+YEAR($I$1))=P182,($B$178+$B$180+YEAR($I$1))=P182,($B$178*2+$B$180+YEAR($I$1))=P182,($B$178*3+$B$180+YEAR($I$1))=P182,($B$178*4+$B$180+YEAR($I$1))=P182,($B$178*5+$B$180+YEAR($I$1))=P182),$G$183*$I$183,0) -> 0 | Q183: 0 | R183: 0 | S183: 5600 | T183: 0 | U183: 0 | V183: 0 | W183: 0 | X183: 0 | Y183: 0 | Z183: 0 | AA183: 0 | AB183: 0 | AC183: 0 | AD183: 0 | AE183: 0 | AF183: 0 | AG183: 0 | AH183: 0 | AI183: 0 | AJ183: =SUM(P183:AI183) -> 5600 | AS183: =A1779 -> NC-Other 10 (Specify)
A184: ="Standard "&A177 -> Standard Playground Areas/Equipment | G184: 1 | H184: LUMP SUM | I184: 5600 | J184: =G184*I184 -> 5600 | O184: =IF($B$180=0,J184,0) -> 0 | P184: =IF(OR(($B$180+YEAR($I$1))=P182,($B$178+$B$180+YEAR($I$1))=P182,($B$178*2+$B$180+YEAR($I$1))=P182,($B$178*3+$B$180+YEAR($I$1))=P182,($B$178*4+$B$180+YEAR($I$1))=P182,($B$178*5+$B$180+YEAR($I$1))=P182),$G$184*$I$184,0) -> 0 | Q184: 0 | R184: 0 | S184: 5600 | T184: 0 | U184: 0 | V184: 0 | W184: 0 | X184: 0 | Y184: 0 | Z184: 0 | AA184: 0 | AB184: 0 | AC184: 0 | AD184: 0 | AE184: 0 | AF184: 0 | AG184: 0 | AH184: 0 | AI184: 0 | AJ184: =SUM(P184:AI184) -> 5600 | AK184: Inc. Cost
A185: ="Green Replacement "&A177 -> Green Replacement Playground Areas/Equipment | G185: =G184 -> 1 | H185: =H184 -> LUMP SUM | I185: 6600 | J185: =G185*I185 -> 6600 | O185: =IF($B$180=0,J185,0) -> 0 | P185: =IF(OR(($B$180+YEAR($I$1))=P182,($B$178+$B$180+YEAR($I$1))=P182,($B$178*2+$B$180+YEAR($I$1))=P182,($B$178*3+$B$180+YEAR($I$1))=P182,($B$178*4+$B$180+YEAR($I$1))=P182,($B$178*5+$B$180+YEAR($I$1))=P182),$G$185*$I$185,0) -> 0 | Q185: 0 | R185: 0 | S185: 6600 | T185: 0 | U185: 0 | V185: 0 | W185: 0 | X185: 0 | Y185: 0 | Z185: 0 | AA185: 0 | AB185: 0 | AC185: 0 | AD185: 0 | AE185: 0 | AF185: 0 | AG185: 0 | AH185: 0 | AI185: 0 | AJ185: =SUM(P185:AI185) -> 6600 | AK185: =IF((AJ185-AJ184)<0,0,(AJ185-AJ184)) -> 1000 | AS185: =A1799 -> Site Acquisition
A186: Site18 | AS186: =A1809 -> Other Fees / Costs
A187: Site-Other 1 (Specify) | AS187: =A1819 -> Demolition
A188: EUL (years): | B188: 15 | D188: Comments: | AS188: =A1829 -> Dwelling Unit Conversion
A189: Repl. Year: | B189: 1995 | AS189: =A1839 -> Contingency
A190: RUL (years): | B190: =IF(B188-((YEAR(I1))-B189)>0,(B188-((YEAR(I1))-B189)),0) -> 0 | O190: =A187 -> Site-Other 1 (Specify) | Z190: =A187 -> Site-Other 1 (Specify) | AS190: =A1849 -> Other-Other 1 (Specify)
A191: ITEM | G191: QTY | H191: Unit of Measure | I191: Unit Cost ($) | J191: Subtotal ($) | K191: Usage per Year | L191: Usage Units | M191: Eval. / Repl. | N191: Rate | O191: Immediate Needs | P191: Year 1 | Q191: Year 2 | R191: Year 3 | S191: Year 4 | T191: Year 5 | U191: Year 6 | V191: Year 7 | W191: Year 8 | X191: Year 9 | Y191: Year 10 | Z191: Year 11 | AA191: Year 12 | AB191: Year 13 | AC191: Year 14 | AD191: Year 15 | AE191: Year 16 | AF191: Year 17 | AG191: Year 18 | AH191: Year 19 | AI191: Year 20 | AJ191: Total Long-Term | AS191: =A1859 -> Other-Other 2 (Specify)
P192: =YEAR($I$1)+1 -> 2011 | Q192: =YEAR($I$1)+2 -> 2012 | R192: =YEAR($I$1)+3 -> 2013 | S192: =YEAR($I$1)+4 -> 2014 | T192: =YEAR($I$1)+5 -> 2015 | U192: =YEAR($I$1)+6 -> 2016 | V192: =YEAR($I$1)+7 -> 2017 | W192: =YEAR($I$1)+8 -> 2018 | X192: =YEAR($I$1)+9 -> 2019 | Y192: =YEAR($I$1)+10 -> 2020 | Z192: =YEAR($I$1)+11 -> 2021 | AA192: =YEAR($I$1)+12 -> 2022 | AB192: =YEAR($I$1)+13 -> 2023 | AC192: =YEAR($I$1)+14 -> 2024 | AD192: =YEAR($I$1)+15 -> 2025 | AE192: =YEAR($I$1)+16 -> 2026 | AF192: =YEAR($I$1)+17 -> 2027 | AG192: =YEAR($I$1)+18 -> 2028 | AH192: =YEAR($I$1)+19 -> 2029 | AI192: =YEAR($I$1)+20 -> 2030 | AS192: =A1869 -> Other-Other 3 (Specify)
A193: ="Existing "&A187 -> Existing Site-Other 1 (Specify) | I193: 0 | J193: =G193*I193 -> 0 | K193: Non-Utility Saver | M193: =IF(OR(ISERROR(B189+B188*(1-(Controls!$B$28))),(B189+B188*(1-(Controls!$B$28)))=0),"",IF((B189+B188*(1-(Controls!$B$28)))<=StartInput!$F$25,"Replace","Evaluate")) -> Replace | N193: N/A | O193: =IF($B$190=0,J193,0) -> 0 | P193: =IF(OR(($B$190+YEAR($I$1))=P192,($B$188+$B$190+YEAR($I$1))=P192,($B$188*2+$B$190+YEAR($I$1))=P192,($B$188*3+$B$190+YEAR($I$1))=P192,($B$188*4+$B$190+YEAR($I$1))=P192,($B$188*5+$B$190+YEAR($I$1))=P192),$G$193*$I$193,0) -> 0 | Q193: 0 | R193: 0 | S193: 0 | T193: 0 | U193: 0 | V193: 0 | W193: 0 | X193: 0 | Y193: 0 | Z193: 0 | AA193: 0 | AB193: 0 | AC193: 0 | AD193: 0 | AE193: 0 | AF193: 0 | AG193: 0 | AH193: 0 | AI193: 0 | AJ193: =SUM(P193:AI193) -> 0 | AS193: =A1879 -> Other-Other 4 (Specify)
A194: ="Standard "&A187 -> Standard Site-Other 1 (Specify) | G194: 0 | I194: 0 | J194: =G194*I194 -> 0 | O194: =IF($B$190=0,J194,0) -> 0 | P194: =IF(OR(($B$190+YEAR($I$1))=P192,($B$188+$B$190+YEAR($I$1))=P192,($B$188*2+$B$190+YEAR($I$1))=P192,($B$188*3+$B$190+YEAR($I$1))=P192,($B$188*4+$B$190+YEAR($I$1))=P192,($B$188*5+$B$190+YEAR($I$1))=P192),$G$194*$I$194,0) -> 0 | Q194: 0 | R194: 0 | S194: 0 | T194: 0 | U194: 0 | V194: 0 | W194: 0 | X194: 0 | Y194: 0 | Z194: 0 | AA194: 0 | AB194: 0 | AC194: 0 | AD194: 0 | AE194: 0 | AF194: 0 | AG194: 0 | AH194: 0 | AI194: 0 | AJ194: =SUM(P194:AI194) -> 0 | AK194: Inc. Cost | AS194: =A1889 -> Other-Other 5 (Specify)
A195: ="Green Replacement "&A187 -> Green Replacement Site-Other 1 (Specify) | G195: =G194 -> 0 | H195: =H194 -> 0 | I195: 0 | J195: =G195*I195 -> 0 | O195: =IF($B$190=0,J195,0) -> 0 | P195: =IF(OR(($B$190+YEAR($I$1))=P192,($B$188+$B$190+YEAR($I$1))=P192,($B$188*2+$B$190+YEAR($I$1))=P192,($B$188*3+$B$190+YEAR($I$1))=P192,($B$188*4+$B$190+YEAR($I$1))=P192,($B$188*5+$B$190+YEAR($I$1))=P192),$G$195*$I$195,0) -> 0 | Q195: 0 | R195: 0 | S195: 0 | T195: 0 | U195: 0 | V195: 0 | W195: 0 | X195: 0 | Y195: 0 | Z195: 0 | AA195: 0 | AB195: 0 | AC195: 0 | AD195: 0 | AE195: 0 | AF195: 0 | AG195: 0 | AH195: 0 | AI195: 0 | AJ195: =SUM(P195:AI195) -> 0 | AK195: =IF((AJ195-AJ194)<0,0,(AJ195-AJ194)) -> 0 | AS195: =A1899 -> Other-Other 6 (Specify)
A196: Site19 | AS196: =A1909 -> Other-Other 7 (Specify)
A197: Site-Other 2 (Specify) | AS197: =A1919 -> Other-Other 8 (Specify)
A198: EUL (years): | B198: 16 | D198: Comments: | AS198: =A1929 -> Other-Other 9 (Specify)
A199: Repl. Year: | B199: 1995 | AS199: =A1939 -> Other-Other 10 (Specify)
A200: RUL (years): | B200: =IF(B198-((YEAR(I1))-B199)>0,(B198-((YEAR(I1))-B199)),0) -> 1 | O200: =A197 -> Site-Other 2 (Specify) | Z200: =A197 -> Site-Other 2 (Specify)
... 1521 more rows

Sheet PNA Summary
A1: Green Physical Needs Assessment | F1: U.S. Department of Housing | K1: OMB Approval No. 2577-0157 form 52828
F2: and Urban Development | K2: exp. 1/31/2014
F3: Office of Public and Indian Housing
A6: HA Name | C6: HA Number | G6: FY of Assessment | I6: Original | J6: Date Prepared:
A7: =StartInput!E6 -> Sample Housing Authority | C7: =StartInput!E7 -> HA001 | G7: =StartInput!$F$25 -> 2010 | I7: Revision | J7: Date Revised:
A8: Physical Needs Assessment Executive Summary
A10: (1.0) Project Data
A12: (1.1) Management Office Address | B12: =StartInput!E8 -> 1234 Main Street | F12: Family | I12: (1.10) | J12: S-F Detached
B13: =StartInput!E9 -> Hartford, CT | E13: (1.9) | F13: Elderly | I13: Structure | J13: Semi-Detached
E14: Occupancy | F14: Family & Disabled | I14: Type(s) | J14: Row or Townhome
A15: (1.2) Project Name | B15: =StartInput!E10 -> Multifamily 1 | E15: Type(s) | F15: Elderly & Disabled | I15: (Check | J15: M-F/Walkup
E16: (Check) | F16: Not Applicable | I16: all that | J16: Elevator
A17: (1.3) Development No. | B17: =StartInput!E11 -> MU 01-001 | E17: all that apply) | F17: Official Designation: Elderly | I17: apply) | J17: Non-Dwelling
F18: Official Designation: Disabled
A19: (1.4) DOFA Date | B19: =StartInput!E16 -> 5 | F19: Official Designation: Mixed
A21: (1.5) Year of Last Substantial Mod | B21: =StartInput!E20 -> 1998 | F21: Wood Frame
A22: (1.6) Occupancy Rate | B22: =B27/(+B25) -> 0.8974358974 | F22: Metal Frame | I22: (1.12) | J22: Slab-on-grade
A23: (Rentable Units Only) | F23: Structural Steel | I23: Foundation | J23: Crawlspace
A24: (1.7) Latest PASS REAC Score | B24: =StartInput!E14 -> 97 | E24: (1.11) | F24: Masonry | I24: Type(s) | J24: Piles
A25: Total Units | B25: =+B27+B28 -> 390 | E25: Construction | F25: Reinforced Concrete | I25: (Check | J25: Concrete Pier
A26: (1.8) Total Buildings | B26: =StartInput!E12 -> 5 | E26: Type(s) | F26: Flat Roof | I26: all that | J26: Underground Parking
A27: Occupied Units | B27: =SUM(F44:K44) -> 350 | E27: (Check) | F27: Pitched Roof | I27: apply) | J27: Other _________
A28: Vacant/Rentable Units | B28: =SUM(F45:K45) -> 40 | E28: all that apply) | F28: Flat Roof w/ Mansards
F29: Fire-Treated Plywood
F30: Other_______
F32: Stucco | J32: Central Boiler Steam Heat
F33: Wood Siding; Type:___________ | J33: Hydronic System
F34: Vinyl Siding | J34: Gas FAU, Central
E35: (1.13) | F35: Brick Veneer | I35: (1.14) | J35: Electric FAU, Central
E36: Envelope | F36: Metal Doors | I36: Mechanical | J36: Wall-Mounted A/C Unit
E37: Type(s) | F37: Wood Doors | I37: System(s) | J37: A/C Condenser Units
E38: (Check) | F38: Wood Sash Windows | I38: (Check) | J38: Evaporative Cooler Unit
E39: all that apply) | F39: Aluminum Windows | I39: all that apply) | J39: Other (Heat)_________
F40: Other ___________ | J40: Other (A/C)__________
E42: (1.15) Bedroom Distribution
F43: Eff | G43: 1BR | H43: 2BR | I43: 3BR | J43: 4BR | K43: 5BR+
E44: (1.15a) Occupied | F44: =StartInput!J13 -> 0 | G44: =StartInput!J14 -> 200 | H44: =StartInput!J15 -> 100 | I44: =StartInput!J16 -> 50 | J44: =StartInput!J17 -> 0 | K44: =StartInput!J18+StartInput!J19+StartInput!J20 -> 0
E45: (1.15b) Vacant | F45: =StartInput!K13 -> 0 | G45: =StartInput!K14 -> 10 | H45: =StartInput!K15 -> 10 | I45: =StartInput!K16 -> 20 | J45: =StartInput!K17 -> 0 | K45: =StartInput!K18+StartInput!K19+StartInput!K20 -> 0
E46: Total Units | F46: =SUM(F44:F45) -> 0 | G46: 210 | H46: 110 | I46: 70 | J46: 0 | K46: 0
E47: Avg Bedrooms per Unit | G47: =(+F44*1+G44*1+H44*2+I44*3+J44*4+K44*5)/SUM(F44:K44) -> 1.571428571
A50: (2.0) Physical Needs Assessment Summary Data
A52: (2.1) PNA Conducted By: (PHA/ 3rd Party) | C52: PHA Internally | G52: (2.5) Inspector Contact Name: | J52: =StartInput!F27 -> John Doe
C53: 3rd Pary Independent | G53: (2.6) Company Name or PHA Title: | J53: =StartInput!F26 -> John Doe Co.
A54: (2.2) First Year Covered by PNA | C54: =StartInput!E15 -> 1988 | G54: (2.7) Inspector Contact Phone: | J54: =StartInput!F28 -> 5551212
A55: (2.3) Length of PNA (in years) | C55: =StartInput!E16 -> 5
A56: (2.4) Unit Interiors Inspected (#) | C56: =SUM(F62:K62) -> 125 | H56: (2.8) Data Source(s) for PNA | J56: Annual Inspections
A57: Units Inspected as % of Total | C57: =C56/B25 -> 0.3205128205 | J57: Contractor
A58: (2.9) Total Residential Buildings | C58: =StartInput!E13 -> 4 | J58: REAC Inspections
A59: (2.10) Number of Building Exteriors Inspected | C59: =StartInput!F29 -> 10
A60: (2.11) Total Off-Street Parking Spaces | C60: =StartInput!E17 -> 255 | F60: (2.14) Units Inspected by Bedroom Size
A61: (2.12) Site Acreage | C61: =StartInput!E18 -> 8.7 | E61: acres | F61: Eff | G61: 1BR | H61: 2BR | I61: 3BR | J61: 4BR | K61: 5BR+
A62: (2.13) Parking Area (in square feet) | C62: =StartInput!E19 -> 30000 | E62: SF | F62: =StartInput!F30 -> 0 | G62: =StartInput!F31 -> 50 | H62: =StartInput!F32 -> 50 | I62: =StartInput!F33 -> 25 | J62: =StartInput!F34 -> 0 | K62: =StartInput!F35+StartInput!F36+StartInput!F37 -> 0
A64: (2.15) Physical Improvements Will Result in Structural/System Soundness at a Reasonable Cost | H64: Yes | I64: No
A65: (2.16) Development Has Long-Term Physical and Social Viability | H65: Yes | I65: No
A68: Public reporting burden for this collection of information is estimated to average 15.4 hours. This includes the time for collecting, reviewing, and reporting the data. The information requested is required to obtain a benefit. HUD requires this form to ensure that PHAs entering into Capital Fund Finance Program (CFFP) transactions are properly planning for capital improvements for the full term of the financing There are no assurances of confidentiality. HUD may not conduct or sponsor, and an applicant is not required to respond to a collection of information unless it displays a currently valid OMB control number.”
A77: (3.0) Total Physical Needs Summary
A79: (3.1) Major Category | C79: (3.2) Immediate | E79: (3.3) Years 1-5 | F79: (3.4) Years 6-10 | G79: (3.5) Years 11-15 | H79: (3.6) Years 16-20 | I79: (3.7) Total Needs | J79: (3.8) Immed. Need Per Unit | K79: (3.8) Years 1-20 Per Unit
A80: Site - Standard | C80: =$J$138 -> 162900 | E80: =$P$110 -> 256116 | F80: =$U$110 -> 14490 | G80: =$Z$110 -> 67640 | H80: =$AE$110 -> 147790 | I80: =SUM(C80:H80) -> 648936 | J80: =C80/$B$25 -> 417.6923077 | K80: =SUM(E80:H80)/$B$25 -> 1246.246154
A81: Site - Green | C81: =$J$386 -> 257200 | E81: =$P$358 -> 272200 | F81: =$U$358 -> 15640 | G81: =$Z$358 -> 110040 | H81: =$AE$358 -> 204140 | I81: 859220 | J81: 659.4871795 | K81: =SUM(E81:H81)/$B$25 -> 1543.641026
A82: Common Buildings - Standard | C82: =$J$168 -> 5900 | E82: =$P$143 -> 78180 | F82: =$U$143 -> 18600 | G82: =$Z$143 -> 6550 | H82: =$AE$143 -> 9050 | I82: 118280 | J82: 15.12820513 | K82: 288.1538462
A83: Common Buildings - Green | C83: =$J$415 -> 6200 | E83: =$P$391 -> 91330 | F83: =$U$391 -> 20100 | G83: =$Z$391 -> 7050 | H83: =$AE$391 -> 13750 | I83: 138430 | J83: 15.8974359 | K83: 339.0512821
A84: Unit Exteriors - Standard | C84: =$J$210 -> 351000 | E84: =$P$173 -> 56160 | F84: =$U$173 -> 27210 | G84: =$Z$173 -> 354760 | H84: =$AE$173 -> 52365 | I84: 841495 | J84: 900 | K84: 1257.679487
A85: Unit Exteriors - Green | C85: =$J$457 -> 447200 | E85: =$P$420 -> 81940 | F85: =$U$420 -> 32221 | G85: =$Z$420 -> 447120 | H85: =$AE$420 -> 81935 | I85: =SUM(C85:H85) -> 1090416 | J85: 1146.666667 | K85: 1649.271795
A86: Unit Interiors - Standard | C86: =$J$250 -> 268400 | E86: =$P$215 -> 250500 | F86: =$U$215 -> 327400 | G86: =$Z$215 -> 650200 | H86: =$AE$215 -> 168700 | I86: 1665200 | J86: 688.2051282 | K86: 3581.538462
A87: Unit Interiors - Green | C87: =$J$497 -> 385200 | E87: =$P$462 -> 264400 | F87: =$U$462 -> 356460 | G87: =$Z$462 -> 779700 | H87: =$AE$462 -> 174700 | I87: 1960460 | J87: 987.6923077 | K87: 4039.128205
A88: Mechanical -Standard | C88: =$J$282 -> 112000 | E88: =$P$255 -> 135180 | F88: =$U$255 -> 135180 | G88: =$Z$255 -> 121080 | H88: =$AE$255 -> 135180 | I88: 638620 | J88: 287.1794872 | K88: 1350.307692
A89: Mechanical - Green | C89: =$J$529 -> 156000 | E89: =$P$502 -> 187890 | F89: =$U$502 -> 187890 | G89: =$Z$502 -> 167390 | H89: =$AE$502 -> 187890 | I89: =SUM(C89:H89) -> 887060 | J89: 400 | K89: 1874.512821
A90: Total -Standard | C90: =C80+C82+C84+C86+C88 -> 900200 | E90: =E80+E82+E84+E86+E88 -> 776136 | F90: 522880 | G90: 1200230 | H90: 513085 | I90: 3912531 | J90: 2308.205128 | K90: 7723.925641
A91: Total - Green | C91: =C81+C83+C85+C87+C89 -> 1251800 | E91: 897760 | F91: 612311 | G91: 1511300 | H91: 662415 | I91: 4935586 | J91: 3209.74359 | K91: 9445.605128
A92: Other | C92: =$J$325 -> 23000 | I92: =C92 -> 23000 | J92: 58.97435897
A93: Amount of PNA relating to Lead Paint/Asbestos | C93: =$J$329 -> 15000 | I93: =C93 -> 15000 | J93: 38.46153846
A94: Amount of PNA relating to Section 504 Compliance | C94: =$J$330 -> 10000 | I94: =C94 -> 10000 | J94: 25.64102564
A95: New Construction - Standard | C95: =$J$306 -> 150000 | I95: =C95 -> 150000 | J95: 384.6153846
A96: New Construction - Green | C96: =$J$553 -> 165000 | I96: =C96 -> 165000 | J96: 423.0769231
A98: (3.9) TOTAL PHYSICAL NEEDS - Standard | E98: =I90 -> 3912531 | G98: Electric Savings: | I98: =SUMIF(CNI!AN:AN,"KWH",CNI!AL:AL) -> 124427.15
A99: (3.10) TOTAL PHYSICAL NEEDS - Green | E99: =I91 -> 4935586 | G99: Natural Gas Savings: | I99: =SUMIF(CNI!AN:AN,"Therms",CNI!AL:AL) -> 0
A100: (3.11) TOTAL INCREMENTAL COSTS of Green | E100: =SUM(CNI!AK13:AK1597) -> 673455 | G100: Oil Savings: | I100: =SUMIF(CNI!AN:AN,"Gallons oil",CNI!AL:AL) -> 0
A101: (3.12) INCREMENTAL COSTS of Utility Savers Only | E101: =SUMIF(CNI!AL13:AL1597,">0",CNI!AK13:AK525) -> 296850 | G101: Water Savings: | I101: =SUMIF(CNI!AN:AN,"Gallons",CNI!AL:AL) -> 30384.3
A102: (3.13) ANNUAL SAVINGS of Utility Savers Only | E102: =SUMIF(CNI!AL14:AL1598,">0",CNI!AL14:AL526) -> 154811.45
A103: (3.14) SIMPLE PAYBACK of Utility Savers Only | E103: =E101/E102 -> 1.917493829 | F103: years
A107: (4.0) Standard Physical Needs Cost Estimate
A109: (4.1) Category | C109: (4.2) Estimated Useful Life | E109: (4.3) Useful Life Remaining | F109: (4.4) Method | G109: (4.5) Total Quantity | H109: (4.6) Current Needs Quantity | I109: (4.7) Cost per Quantity | J109: (4.8) Immediate Repairs Needed | K109: (4.9) Total Long Term Needs | L109: =+$G$7+1 -> 2011 | M109: =1+L109 -> 2012 | N109: =1+M109 -> 2013 | O109: =1+N109 -> 2014 | P109: =1+O109 -> 2015 | Q109: =1+P109 -> 2016 | R109: 2017 | S109: 2018 | T109: 2019 | U109: 2020 | V109: 2021 | W109: 2022 | X109: 2023 | Y109: 2024 | Z109: 2025 | AA109: 2026 | AB109: 2027 | AC109: 2028 | AD109: 2029 | AE109: 2030
A110: (4.10) Site - STANDARD | C110: years | E110: years | I110: $ | J110: $ | K110: $ | O110: Years 1-5 | P110: =SUM(L138:P138) -> 256116 | T110: Years 6-10 | U110: =SUM(Q138:U138) -> 14490 | Y110: Years 11-15 | Z110: =SUM(V138:Z138) -> 67640 | AD110: Years 16-20 | AE110: =SUM(AA138:AE138) -> 147790
A111: =CNI!$A$5 -> Asphalt/Concrete | C111: =CNI!B6 -> 6 | E111: =CNI!B8 -> 0 | F111: =CNI!H12 -> per 1000 SF | G111: =CNI!G12 -> 10 | H111: =IF(CNI!O12=0,0,CNI!G12) -> 10 | I111: =CNI!I12 -> 764 | J111: =ROUNDUP(+H111*I111,-2) -> 7700 | K111: =SUM(L111:AE111) -> 22920 | L111: =CNI!P12 -> 0 | M111: =CNI!Q12 -> 0 | N111: =CNI!R12 -> 0 | O111: =CNI!S12 -> 0 | P111: =CNI!T12 -> 0 | Q111: =CNI!U12 -> 7640 | R111: =CNI!V12 -> 0 | S111: =CNI!W12 -> 0 | T111: =CNI!X12 -> 0 | U111: =CNI!Y12 -> 0 | V111: =CNI!Z12 -> 0 | W111: =CNI!AA12 -> 7640 | X111: =CNI!AB12 -> 0 | Y111: =CNI!AC12 -> 0 | Z111: =CNI!AD12 -> 0 | AA111: =CNI!AE12 -> 0 | AB111: =CNI!AF12 -> 0 | AC111: =CNI!AG12 -> 7640 | AD111: =CNI!AH12 -> 0 | AE111: =CNI!AI12 -> 0 | AF111: =SUM(L111:AE111)-K111 -> 0
A112: =CNI!$A$15 -> Seal Coat | C112: =CNI!B16 -> 9 | E112: =CNI!B18 -> 0 | F112: =CNI!H22 -> per 10000 SF | G112: =CNI!G22 -> 2 | H112: =IF(CNI!O22=0,0,CNI!G22) -> 2 | I112: =CNI!I22 -> 3425 | J112: =ROUNDUP(+H112*I112,-2) -> 6900 | K112: 13700 | L112: =CNI!P22 -> 0 | M112: =CNI!Q22 -> 0 | N112: =CNI!R22 -> 0 | O112: =CNI!S22 -> 0 | P112: =CNI!T22 -> 0 | Q112: =CNI!U22 -> 0 | R112: =CNI!V22 -> 0 | S112: =CNI!W22 -> 0 | T112: =CNI!X22 -> 6850 | U112: =CNI!Y22 -> 0 | V112: =CNI!Z22 -> 0 | W112: =CNI!AA22 -> 0 | X112: =CNI!AB22 -> 0 | Y112: =CNI!AC22 -> 0 | Z112: =CNI!AD22 -> 0 | AA112: =CNI!AE22 -> 0 | AB112: =CNI!AF22 -> 0 | AC112: =CNI!AG22 -> 6850 | AD112: =CNI!AH22 -> 0 | AE112: =CNI!AI22 -> 0 | AF112: 0
A113: =CNI!$A$25 -> Striping | C113: =CNI!B26 -> 20 | E113: =CNI!B28 -> 0 | F113: =CNI!H32 -> per linear ft. | G113: =CNI!G32 -> 600 | H113: =IF(CNI!O32=0,0,CNI!G32) -> 600 | I113: =CNI!I32 -> 25 | J113: =ROUNDUP(+H113*I113,-2) -> 15000 | K113: 15000 | L113: =CNI!P32 -> 0 | M113: =CNI!Q32 -> 0 | N113: =CNI!R32 -> 0 | O113: =CNI!S32 -> 0 | P113: =CNI!T32 -> 0 | Q113: =CNI!U32 -> 0 | R113: =CNI!V32 -> 0 | S113: =CNI!W32 -> 0 | T113: =CNI!X32 -> 0 | U113: =CNI!Y32 -> 0 | V113: =CNI!Z32 -> 0 | W113: =CNI!AA32 -> 0 | X113: =CNI!AB32 -> 0 | Y113: =CNI!AC32 -> 0 | Z113: =CNI!AD32 -> 0 | AA113: =CNI!AE32 -> 0 | AB113: =CNI!AF32 -> 0 | AC113: =CNI!AG32 -> 0 | AD113: =CNI!AH32 -> 0 | AE113: =CNI!AI32 -> 15000 | AF113: 0
A114: =CNI!$A$35 -> Curb and Gutter | C114: =CNI!B36 -> 19 | E114: =CNI!B38 -> 0 | F114: =CNI!H42 -> per linear ft. | G114: =CNI!G42 -> 800 | H114: =IF(CNI!O42=0,0,CNI!G42) -> 800 | I114: =CNI!I42 -> 26 | J114: =ROUNDUP(+H114*I114,-2) -> 20800 | K114: 20800 | L114: =CNI!P42 -> 0 | M114: =CNI!Q42 -> 0 | N114: =CNI!R42 -> 0 | O114: =CNI!S42 -> 0 | P114: =CNI!T42 -> 0 | Q114: =CNI!U42 -> 0 | R114: =CNI!V42 -> 0 | S114: =CNI!W42 -> 0 | T114: =CNI!X42 -> 0 | U114: =CNI!Y42 -> 0 | V114: =CNI!Z42 -> 0 | W114: =CNI!AA42 -> 0 | X114: =CNI!AB42 -> 0 | Y114: =CNI!AC42 -> 0 | Z114: =CNI!AD42 -> 0 | AA114: =CNI!AE42 -> 0 | AB114: =CNI!AF42 -> 0 | AC114: =CNI!AG42 -> 0 | AD114: =CNI!AH42 -> 20800 | AE114: =CNI!AI42 -> 0 | AF114: 0
A115: =CNI!$A$45 -> Pedestrian Paving | C115: =CNI!B46 -> 20 | E115: =CNI!B48 -> 1 | F115: =CNI!H52 -> per linear ft. | G115: =CNI!G52 -> 19 | H115: =IF(CNI!O52=0,0,CNI!G52) -> 0 | I115: =CNI!I52 -> 764 | J115: =ROUNDUP(+H115*I115,-2) -> 0 | K115: 14516 | L115: =CNI!P52 -> 14516 | M115: =CNI!Q52 -> 0 | N115: =CNI!R52 -> 0 | O115: =CNI!S52 -> 0 | P115: =CNI!T52 -> 0 | Q115: =CNI!U52 -> 0 | R115: =CNI!V52 -> 0 | S115: =CNI!W52 -> 0 | T115: =CNI!X52 -> 0 | U115: =CNI!Y52 -> 0 | V115: =CNI!Z52 -> 0 | W115: =CNI!AA52 -> 0 | X115: =CNI!AB52 -> 0 | Y115: =CNI!AC52 -> 0 | Z115: =CNI!AD52 -> 0 | AA115: =CNI!AE52 -> 0 | AB115: =CNI!AF52 -> 0 | AC115: =CNI!AG52 -> 0 | AD115: =CNI!AH52 -> 0 | AE115: =CNI!AI52 -> 0 | AF115: 0
A116: =CNI!$A$55 -> Signage | C116: =CNI!B56 -> 18 | E116: =CNI!B58 -> 0 | F116: =CNI!H62 -> each | G116: =CNI!G62 -> 100 | H116: =IF(CNI!O62=0,0,CNI!G62) -> 100 | I116: =CNI!I62 -> 35 | J116: 3500 | K116: 3500 | L116: =CNI!P62 -> 0 | M116: =CNI!Q62 -> 0 | N116: =CNI!R62 -> 0 | O116: =CNI!S62 -> 0 | P116: =CNI!T62 -> 0 | Q116: =CNI!U62 -> 0 | R116: =CNI!V62 -> 0 | S116: =CNI!W62 -> 0 | T116: =CNI!X62 -> 0 | U116: =CNI!Y62 -> 0 | V116: =CNI!Z62 -> 0 | W116: =CNI!AA62 -> 0 | X116: =CNI!AB62 -> 0 | Y116: =CNI!AC62 -> 0 | Z116: =CNI!AD62 -> 0 | AA116: =CNI!AE62 -> 0 | AB116: =CNI!AF62 -> 0 | AC116: =CNI!AG62 -> 3500 | AD116: =CNI!AH62 -> 0 | AE116: =CNI!AI62 -> 0 | AF116: 0
A117: =CNI!$A$65 -> Water Lines/Mains | C117: =CNI!B66 -> 19 | E117: =CNI!B68 -> 1 | F117: =CNI!H72 -> per linear ft. | G117: =CNI!G72 -> 3000 | H117: =IF(CNI!O72=0,0,CNI!G72) -> 0 | I117: =CNI!I72 -> 12 | J117: 0 | K117: 72000 | L117: =CNI!P72 -> 36000 | M117: =CNI!Q72 -> 0 | N117: =CNI!R72 -> 0 | O117: =CNI!S72 -> 0 | P117: =CNI!T72 -> 0 | Q117: =CNI!U72 -> 0 | R117: =CNI!V72 -> 0 | S117: =CNI!W72 -> 0 | T117: =CNI!X72 -> 0 | U117: =CNI!Y72 -> 0 | V117: =CNI!Z72 -> 0 | W117: =CNI!AA72 -> 0 | X117: =CNI!AB72 -> 0 | Y117: =CNI!AC72 -> 0 | Z117: =CNI!AD72 -> 0 | AA117: =CNI!AE72 -> 0 | AB117: =CNI!AF72 -> 0 | AC117: =CNI!AG72 -> 0 | AD117: =CNI!AH72 -> 0 | AE117: =CNI!AI72 -> 36000 | AF117: 0
A118: =CNI!$A$75 -> Sewer Lines/Mains | C118: =CNI!B76 -> 20 | E118: =CNI!B78 -> 2 | F118: =CNI!H82 -> per 10000 SF | G118: =CNI!G82 -> 4000 | H118: =IF(CNI!O82=0,0,CNI!G82) -> 0 | I118: =CNI!I82 -> 8 | J118: 0 | K118: 32000 | L118: =CNI!P82 -> 0 | M118: =CNI!Q82 -> 32000 | N118: =CNI!R82 -> 0 | O118: =CNI!S82 -> 0 | P118: =CNI!T82 -> 0 | Q118: =CNI!U82 -> 0 | R118: =CNI!V82 -> 0 | S118: =CNI!W82 -> 0 | T118: =CNI!X82 -> 0 | U118: =CNI!Y82 -> 0 | V118: =CNI!Z82 -> 0 | W118: =CNI!AA82 -> 0 | X118: =CNI!AB82 -> 0 | Y118: =CNI!AC82 -> 0 | Z118: =CNI!AD82 -> 0 | AA118: =CNI!AE82 -> 0 | AB118: =CNI!AF82 -> 0 | AC118: =CNI!AG82 -> 0 | AD118: =CNI!AH82 -> 0 | AE118: =CNI!AI82 -> 0 | AF118: 0
A119: =CNI!$A$85 -> Irrigation | C119: =CNI!B86 -> 17 | E119: =CNI!B92 -> 0 | F119: =CNI!H98 -> LUMP SUM | G119: =CNI!G98 -> 3 | H119: =IF(CNI!O98=0,0,CNI!G98) -> 3 | I119: =CNI!I98 -> 15000 | J119: =ROUNDUP(+H119*I119,-2) -> 45000 | K119: 45000 | L119: =CNI!P98 -> 0 | M119: =CNI!Q98 -> 0 | N119: =CNI!R98 -> 0 | O119: =CNI!S98 -> 0 | P119: =CNI!T98 -> 0 | Q119: =CNI!U98 -> 0 | R119: =CNI!V98 -> 0 | S119: =CNI!W98 -> 0 | T119: =CNI!X98 -> 0 | U119: =CNI!Y98 -> 0 | V119: =CNI!Z98 -> 0 | W119: =CNI!AA98 -> 0 | X119: =CNI!AB98 -> 0 | Y119: =CNI!AC98 -> 0 | Z119: =CNI!AD98 -> 0 | AA119: =CNI!AE98 -> 0 | AB119: =CNI!AF98 -> 45000 | AC119: =CNI!AG98 -> 0 | AD119: =CNI!AH98 -> 0 | AE119: =CNI!AI98 -> 0 | AF119: 0
A120: =CNI!$A$101 -> Lighting | C120: =CNI!B102 -> 15 | E120: =CNI!B108 -> 0 | F120: =CNI!H114 -> each | G120: =CNI!G114 -> 3000 | H120: =IF(CNI!O114=0,0,CNI!G114) -> 3000 | I120: =CNI!I114 -> 20 | J120: 60000 | K120: 60000 | L120: =CNI!P114 -> 0 | M120: =CNI!Q114 -> 0 | N120: =CNI!R114 -> 0 | O120: =CNI!S114 -> 0 | P120: =CNI!T114 -> 0 | Q120: =CNI!U114 -> 0 | R120: =CNI!V114 -> 0 | S120: =CNI!W114 -> 0 | T120: =CNI!X114 -> 0 | U120: =CNI!Y114 -> 0 | V120: =CNI!Z114 -> 0 | W120: =CNI!AA114 -> 0 | X120: =CNI!AB114 -> 0 | Y120: =CNI!AC114 -> 0 | Z120: =CNI!AD114 -> 60000 | AA120: =CNI!AE114 -> 0 | AB120: =CNI!AF114 -> 0 | AC120: =CNI!AG114 -> 0 | AD120: =CNI!AH114 -> 0 | AE120: =CNI!AI114 -> 0 | AF120: 0
A121: =CNI!$A$117 -> Storm Drainage | C121: =CNI!B118 -> 19 | E121: =CNI!B120 -> 2 | F121: =CNI!H124 -> per linear ft. | G121: =CNI!G124 -> 300 | H121: =IF(CNI!O124=0,0,CNI!G124) -> 0 | I121: =CNI!I124 -> 300 | J121: 0 | K121: 90000 | L121: =CNI!P124 -> 0 | M121: =CNI!Q124 -> 90000 | N121: =CNI!R124 -> 0 | O121: =CNI!S124 -> 0 | P121: =CNI!T124 -> 0 | Q121: =CNI!U124 -> 0 | R121: =CNI!V124 -> 0 | S121: =CNI!W124 -> 0 | T121: =CNI!X124 -> 0 | U121: =CNI!Y124 -> 0 | V121: =CNI!Z124 -> 0 | W121: =CNI!AA124 -> 0 | X121: =CNI!AB124 -> 0 | Y121: =CNI!AC124 -> 0 | Z121: =CNI!AD124 -> 0 | AA121: =CNI!AE124 -> 0 | AB121: =CNI!AF124 -> 0 | AC121: =CNI!AG124 -> 0 | AD121: =CNI!AH124 -> 0 | AE121: =CNI!AI124 -> 0 | AF121: 0
A122: =CNI!$A$127 -> Landscaping | C122: =CNI!B128 -> 20 | E122: =CNI!B130 -> 3 | F122: =CNI!H134 -> LUMP SUM | G122: =CNI!G134 -> 1 | H122: =IF(CNI!O134=0,0,CNI!G134) -> 0 | I122: =CNI!I134 -> 35000 | J122: 0 | K122: 35000 | L122: =CNI!P134 -> 0 | M122: =CNI!Q134 -> 0 | N122: =CNI!R134 -> 35000 | O122: =CNI!S134 -> 0 | P122: =CNI!T134 -> 0 | Q122: =CNI!U134 -> 0 | R122: =CNI!V134 -> 0 | S122: =CNI!W134 -> 0 | T122: =CNI!X134 -> 0 | U122: =CNI!Y134 -> 0 | V122: =CNI!Z134 -> 0 | W122: =CNI!AA134 -> 0 | X122: =CNI!AB134 -> 0 | Y122: =CNI!AC134 -> 0 | Z122: =CNI!AD134 -> 0 | AA122: =CNI!AE134 -> 0 | AB122: =CNI!AF134 -> 0 | AC122: =CNI!AG134 -> 0 | AD122: =CNI!AH134 -> 0 | AE122: =CNI!AI134 -> 0 | AF122: 0
A123: =CNI!$A$137 -> Fencing | C123: =CNI!B138 -> 16 | E123: =CNI!B140 -> 0 | F123: =CNI!H144 -> per linear ft. | G123: =CNI!G144 -> 500 | H123: =IF(CNI!O144=0,0,CNI!G144) -> 500 | I123: =CNI!I144 -> 8 | J123: 4000 | K123: 4000 | L123: =CNI!P144 -> 0 | M123: =CNI!Q144 -> 0 | N123: =CNI!R144 -> 0 | O123: =CNI!S144 -> 0 | P123: =CNI!T144 -> 0 | Q123: =CNI!U144 -> 0 | R123: =CNI!V144 -> 0 | S123: =CNI!W144 -> 0 | T123: =CNI!X144 -> 0 | U123: =CNI!Y144 -> 0 | V123: =CNI!Z144 -> 0 | W123: =CNI!AA144 -> 0 | X123: =CNI!AB144 -> 0 | Y123: =CNI!AC144 -> 0 | Z123: =CNI!AD144 -> 0 | AA123: =CNI!AE144 -> 4000 | AB123: =CNI!AF144 -> 0 | AC123: =CNI!AG144 -> 0 | AD123: =CNI!AH144 -> 0 | AE123: =CNI!AI144 -> 0 | AF123: 0
A124: =CNI!$A$147 -> Fence Painting | C124: =CNI!B148 -> 17 | E124: =CNI!B150 -> 1 | F124: =CNI!H154 -> per square ft. | G124: =CNI!G154 -> 2000 | H124: =IF(CNI!O154=0,0,CNI!G154) -> 0 | I124: =CNI!I154 -> 2 | J124: 0 | K124: 8000 | L124: =CNI!P154 -> 4000 | M124: =CNI!Q154 -> 0 | N124: =CNI!R154 -> 0 | O124: =CNI!S154 -> 0 | P124: =CNI!T154 -> 0 | Q124: =CNI!U154 -> 0 | R124: =CNI!V154 -> 0 | S124: =CNI!W154 -> 0 | T124: =CNI!X154 -> 0 | U124: =CNI!Y154 -> 0 | V124: =CNI!Z154 -> 0 | W124: =CNI!AA154 -> 0 | X124: =CNI!AB154 -> 0 | Y124: =CNI!AC154 -> 0 | Z124: =CNI!AD154 -> 0 | AA124: =CNI!AE154 -> 0 | AB124: =CNI!AF154 -> 0 | AC124: =CNI!AG154 -> 4000 | AD124: =CNI!AH154 -> 0 | AE124: =CNI!AI154 -> 0 | AF124: 0
A125: =CNI!$A$157 -> Dumpsters & Enclosures | C125: =CNI!B158 -> 18 | E125: =CNI!B160 -> 2 | F125: =CNI!H164 -> LUMP SUM | G125: =CNI!G164 -> 1 | H125: =IF(CNI!O164=0,0,CNI!G164) -> 0 | I125: =CNI!I164 -> 5000 | J125: 0 | K125: 10000 | L125: =CNI!P164 -> 0 | M125: =CNI!Q164 -> 5000 | N125: =CNI!R164 -> 0 | O125: =CNI!S164 -> 0 | P125: =CNI!T164 -> 0 | Q125: =CNI!U164 -> 0 | R125: =CNI!V164 -> 0 | S125: =CNI!W164 -> 0 | T125: =CNI!X164 -> 0 | U125: =CNI!Y164 -> 0 | V125: =CNI!Z164 -> 0 | W125: =CNI!AA164 -> 0 | X125: =CNI!AB164 -> 0 | Y125: =CNI!AC164 -> 0 | Z125: =CNI!AD164 -> 0 | AA125: =CNI!AE164 -> 0 | AB125: =CNI!AF164 -> 0 | AC125: =CNI!AG164 -> 0 | AD125: =CNI!AH164 -> 0 | AE125: =CNI!AI164 -> 5000 | AF125: 0
A126: =CNI!$A$167 -> Electrical Distibution | C126: =CNI!B168 -> 19 | E126: =CNI!B170 -> 3 | F126: =CNI!H174 -> LUMP SUM | G126: =CNI!G174 -> 1 | H126: =IF(CNI!O174=0,0,CNI!G174) -> 0 | I126: =CNI!I174 -> 34000 | J126: 0 | K126: 34000 | L126: =CNI!P174 -> 0 | M126: =CNI!Q174 -> 0 | N126: =CNI!R174 -> 34000 | O126: =CNI!S174 -> 0 | P126: =CNI!T174 -> 0 | Q126: =CNI!U174 -> 0 | R126: =CNI!V174 -> 0 | S126: =CNI!W174 -> 0 | T126: =CNI!X174 -> 0 | U126: =CNI!Y174 -> 0 | V126: =CNI!Z174 -> 0 | W126: =CNI!AA174 -> 0 | X126: =CNI!AB174 -> 0 | Y126: =CNI!AC174 -> 0 | Z126: =CNI!AD174 -> 0 | AA126: =CNI!AE174 -> 0 | AB126: =CNI!AF174 -> 0 | AC126: =CNI!AG174 -> 0 | AD126: =CNI!AH174 -> 0 | AE126: =CNI!AI174 -> 0 | AF126: 0
A127: =CNI!$A$177 -> Playground Areas/Equipment | C127: =CNI!B178 -> 20 | E127: =CNI!B180 -> 4 | F127: =CNI!H184 -> LUMP SUM | G127: =CNI!G184 -> 1 | H127: =IF(CNI!O184=0,0,CNI!G184) -> 0 | I127: =CNI!I184 -> 5600 | J127: 0 | K127: 5600 | L127: =CNI!P184 -> 0 | M127: =CNI!Q184 -> 0 | N127: =CNI!R184 -> 0 | O127: =CNI!S184 -> 5600 | P127: =CNI!T184 -> 0 | Q127: =CNI!U184 -> 0 | R127: =CNI!V184 -> 0 | S127: =CNI!W184 -> 0 | T127: =CNI!X184 -> 0 | U127: =CNI!Y184 -> 0 | V127: =CNI!Z184 -> 0 | W127: =CNI!AA184 -> 0 | X127: =CNI!AB184 -> 0 | Y127: =CNI!AC184 -> 0 | Z127: =CNI!AD184 -> 0 | AA127: =CNI!AE184 -> 0 | AB127: =CNI!AF184 -> 0 | AC127: =CNI!AG184 -> 0 | AD127: =CNI!AH184 -> 0 | AE127: =CNI!AI184 -> 0 | AF127: 0
A128: =CNI!$A$187 -> Site-Other 1 (Specify) | C128: =CNI!B188 -> 15 | E128: =CNI!B190 -> 0 | F128: =CNI!H194 -> 0 | G128: =CNI!G194 -> 0 | H128: =IF(CNI!O194=0,0,CNI!G194) -> 0 | I128: =CNI!I194 -> 0 | J128: 0 | K128: 0 | L128: =CNI!P194 -> 0 | M128: =CNI!Q194 -> 0 | N128: =CNI!R194 -> 0 | O128: =CNI!S194 -> 0 | P128: =CNI!T194 -> 0 | Q128: =CNI!U194 -> 0 | R128: =CNI!V194 -> 0 | S128: =CNI!W194 -> 0 | T128: =CNI!X194 -> 0 | U128: =CNI!Y194 -> 0 | V128: =CNI!Z194 -> 0 | W128: =CNI!AA194 -> 0 | X128: =CNI!AB194 -> 0 | Y128: =CNI!AC194 -> 0 | Z128: =CNI!AD194 -> 0 | AA128: =CNI!AE194 -> 0 | AB128: =CNI!AF194 -> 0 | AC128: =CNI!AG194 -> 0 | AD128: =CNI!AH194 -> 0 | AE128: =CNI!AI194 -> 0 | AF128: 0
A129: =CNI!$A$197 -> Site-Other 2 (Specify) | C129: =CNI!B198 -> 16 | E129: =CNI!B200 -> 1 | F129: =CNI!H204 -> 0 | G129: =CNI!G204 -> 0 | H129: =IF(CNI!O204=0,0,CNI!G204) -> 0 | I129: =CNI!I204 -> 0 | J129: 0 | K129: 0 | L129: =CNI!P204 -> 0 | M129: =CNI!Q204 -> 0 | N129: =CNI!R204 -> 0 | O129: =CNI!S204 -> 0 | P129: =CNI!T204 -> 0 | Q129: =CNI!U204 -> 0 | R129: =CNI!V204 -> 0 | S129: =CNI!W204 -> 0 | T129: =CNI!X204 -> 0 | U129: =CNI!Y204 -> 0 | V129: =CNI!Z204 -> 0 | W129: =CNI!AA204 -> 0 | X129: =CNI!AB204 -> 0 | Y129: =CNI!AC204 -> 0 | Z129: =CNI!AD204 -> 0 | AA129: =CNI!AE204 -> 0 | AB129: =CNI!AF204 -> 0 | AC129: =CNI!AG204 -> 0 | AD129: =CNI!AH204 -> 0 | AE129: =CNI!AI204 -> 0 | AF129: 0
A130: =CNI!$A$207 -> Site-Other 3 (Specify) | C130: =CNI!B208 -> 17 | E130: =CNI!B210 -> 2 | F130: =CNI!H214 -> 0 | G130: =CNI!G214 -> 0 | H130: =IF(CNI!O214=0,0,CNI!G214) -> 0 | I130: =CNI!I214 -> 0 | J130: 0 | K130: 0 | L130: =CNI!P214 -> 0 | M130: =CNI!Q214 -> 0 | N130: =CNI!R214 -> 0 | O130: =CNI!S214 -> 0 | P130: =CNI!T214 -> 0 | Q130: =CNI!U214 -> 0 | R130: =CNI!V214 -> 0 | S130: =CNI!W214 -> 0 | T130: =CNI!X214 -> 0 | U130: =CNI!Y214 -> 0 | V130: =CNI!Z214 -> 0 | W130: =CNI!AA214 -> 0 | X130: =CNI!AB214 -> 0 | Y130: =CNI!AC214 -> 0 | Z130: =CNI!AD214 -> 0 | AA130: =CNI!AE214 -> 0 | AB130: =CNI!AF214 -> 0 | AC130: =CNI!AG214 -> 0 | AD130: =CNI!AH214 -> 0 | AE130: =CNI!AI214 -> 0 | AF130: 0
A131: =CNI!$A$217 -> Site-Other 4 (Specify) | C131: =CNI!B218 -> 18 | E131: =CNI!B220 -> 3 | F131: =CNI!H224 -> 0 | G131: =CNI!G224 -> 0 | H131: =IF(CNI!O224=0,0,CNI!G224) -> 0 | I131: =CNI!I224 -> 0 | J131: 0 | K131: 0 | L131: =CNI!P224 -> 0 | M131: =CNI!Q224 -> 0 | N131: =CNI!R224 -> 0 | O131: =CNI!S224 -> 0 | P131: =CNI!T224 -> 0 | Q131: =CNI!U224 -> 0 | R131: =CNI!V224 -> 0 | S131: =CNI!W224 -> 0 | T131: =CNI!X224 -> 0 | U131: =CNI!Y224 -> 0 | V131: =CNI!Z224 -> 0 | W131: =CNI!AA224 -> 0 | X131: =CNI!AB224 -> 0 | Y131: =CNI!AC224 -> 0 | Z131: =CNI!AD224 -> 0 | AA131: =CNI!AE224 -> 0 | AB131: =CNI!AF224 -> 0 | AC131: =CNI!AG224 -> 0 | AD131: =CNI!AH224 -> 0 | AE131: =CNI!AI224 -> 0 | AF131: 0
A132: =CNI!$A$227 -> Site-Other 5 (Specify) | C132: =CNI!B228 -> 19 | E132: =CNI!B230 -> 4 | F132: =CNI!H234 -> 0 | G132: =CNI!G234 -> 0 | H132: =IF(CNI!O234=0,0,CNI!G234) -> 0 | I132: =CNI!I234 -> 0 | J132: 0 | K132: 0 | L132: =CNI!P234 -> 0 | M132: =CNI!Q234 -> 0 | N132: =CNI!R234 -> 0 | O132: =CNI!S234 -> 0 | P132: =CNI!T234 -> 0 | Q132: =CNI!U234 -> 0 | R132: =CNI!V234 -> 0 | S132: =CNI!W234 -> 0 | T132: =CNI!X234 -> 0 | U132: =CNI!Y234 -> 0 | V132: =CNI!Z234 -> 0 | W132: =CNI!AA234 -> 0 | X132: =CNI!AB234 -> 0 | Y132: =CNI!AC234 -> 0 | Z132: =CNI!AD234 -> 0 | AA132: =CNI!AE234 -> 0 | AB132: =CNI!AF234 -> 0 | AC132: =CNI!AG234 -> 0 | AD132: =CNI!AH234 -> 0 | AE132: =CNI!AI234 -> 0 | AF132: 0
A133: =CNI!$A$237 -> Site-Other 6 (Specify) | C133: =CNI!B238 -> 20 | E133: =CNI!B240 -> 5 | F133: =CNI!H244 -> 0 | G133: =CNI!G244 -> 0 | H133: =IF(CNI!O244=0,0,CNI!G244) -> 0 | I133: =CNI!I244 -> 0 | J133: 0 | K133: 0 | L133: =CNI!P244 -> 0 | M133: =CNI!Q244 -> 0 | N133: =CNI!R244 -> 0 | O133: =CNI!S244 -> 0 | P133: =CNI!T244 -> 0 | Q133: =CNI!U244 -> 0 | R133: =CNI!V244 -> 0 | S133: =CNI!W244 -> 0 | T133: =CNI!X244 -> 0 | U133: =CNI!Y244 -> 0 | V133: =CNI!Z244 -> 0 | W133: =CNI!AA244 -> 0 | X133: =CNI!AB244 -> 0 | Y133: =CNI!AC244 -> 0 | Z133: =CNI!AD244 -> 0 | AA133: =CNI!AE244 -> 0 | AB133: =CNI!AF244 -> 0 | AC133: =CNI!AG244 -> 0 | AD133: =CNI!AH244 -> 0 | AE133: =CNI!AI244 -> 0 | AF133: 0
A134: =CNI!$A$247 -> Site-Other 7 (Specify) | C134: =CNI!B248 -> 14 | E134: =CNI!B250 -> 0 | F134: =CNI!H254 -> 0 | G134: =CNI!G254 -> 0 | H134: =IF(CNI!O254=0,0,CNI!G254) -> 0 | I134: =CNI!I254 -> 0 | J134: 0 | K134: 0 | L134: =CNI!P254 -> 0 | M134: =CNI!Q254 -> 0 | N134: =CNI!R254 -> 0 | O134: =CNI!S254 -> 0 | P134: =CNI!T254 -> 0 | Q134: =CNI!U254 -> 0 | R134: =CNI!V254 -> 0 | S134: =CNI!W254 -> 0 | T134: =CNI!X254 -> 0 | U134: =CNI!Y254 -> 0 | V134: =CNI!Z254 -> 0 | W134: =CNI!AA254 -> 0 | X134: =CNI!AB254 -> 0 | Y134: =CNI!AC254 -> 0 | Z134: =CNI!AD254 -> 0 | AA134: =CNI!AE254 -> 0 | AB134: =CNI!AF254 -> 0 | AC134: =CNI!AG254 -> 0 | AD134: =CNI!AH254 -> 0 | AE134: =CNI!AI254 -> 0 | AF134: 0
A135: =CNI!$A$257 -> Site-Other 8 (Specify) | C135: =CNI!B258 -> 15 | E135: =CNI!B260 -> 1 | F135: =CNI!H264 -> 0 | G135: =CNI!G264 -> 0 | H135: =IF(CNI!O264=0,0,CNI!G264) -> 0 | I135: =CNI!I264 -> 0 | J135: 0 | K135: 0 | L135: =CNI!P264 -> 0 | M135: =CNI!Q264 -> 0 | N135: =CNI!R264 -> 0 | O135: =CNI!S264 -> 0 | P135: =CNI!T264 -> 0 | Q135: =CNI!U264 -> 0 | R135: =CNI!V264 -> 0 | S135: =CNI!W264 -> 0 | T135: =CNI!X264 -> 0 | U135: =CNI!Y264 -> 0 | V135: =CNI!Z264 -> 0 | W135: =CNI!AA264 -> 0 | X135: =CNI!AB264 -> 0 | Y135: =CNI!AC264 -> 0 | Z135: =CNI!AD264 -> 0 | AA135: =CNI!AE264 -> 0 | AB135: =CNI!AF264 -> 0 | AC135: =CNI!AG264 -> 0 | AD135: =CNI!AH264 -> 0 | AE135: =CNI!AI264 -> 0 | AF135: 0
A136: =CNI!$A$267 -> Site-Other 9 (Specify) | C136: =CNI!B268 -> 16 | E136: =CNI!B270 -> 2 | F136: =CNI!H274 -> 0 | G136: =CNI!G274 -> 0 | H136: =IF(CNI!O274=0,0,CNI!G274) -> 0 | I136: =CNI!I274 -> 0 | J136: 0 | K136: 0 | L136: =CNI!P274 -> 0 | M136: =CNI!Q274 -> 0 | N136: =CNI!R274 -> 0 | O136: =CNI!S274 -> 0 | P136: =CNI!T274 -> 0 | Q136: =CNI!U274 -> 0 | R136: =CNI!V274 -> 0 | S136: =CNI!W274 -> 0 | T136: =CNI!X274 -> 0 | U136: =CNI!Y274 -> 0 | V136: =CNI!Z274 -> 0 | W136: =CNI!AA274 -> 0 | X136: =CNI!AB274 -> 0 | Y136: =CNI!AC274 -> 0 | Z136: =CNI!AD274 -> 0 | AA136: =CNI!AE274 -> 0 | AB136: =CNI!AF274 -> 0 | AC136: =CNI!AG274 -> 0 | AD136: =CNI!AH274 -> 0 | AE136: =CNI!AI274 -> 0 | AF136: 0
A137: =CNI!$A$277 -> Site-Other 10 (Specify) | C137: =CNI!B278 -> 17 | E137: =CNI!B280 -> 3 | F137: =CNI!H284 -> 0 | G137: =CNI!G284 -> 0 | H137: =IF(CNI!O284=0,0,CNI!G284) -> 0 | I137: =CNI!I284 -> 0 | J137: 0 | K137: 0 | L137: =CNI!P284 -> 0 | M137: =CNI!Q284 -> 0 | N137: =CNI!R284 -> 0 | O137: =CNI!S284 -> 0 | P137: =CNI!T284 -> 0 | Q137: =CNI!U284 -> 0 | R137: =CNI!V284 -> 0 | S137: =CNI!W284 -> 0 | T137: =CNI!X284 -> 0 | U137: =CNI!Y284 -> 0 | V137: =CNI!Z284 -> 0 | W137: =CNI!AA284 -> 0 | X137: =CNI!AB284 -> 0 | Y137: =CNI!AC284 -> 0 | Z137: =CNI!AD284 -> 0 | AA137: =CNI!AE284 -> 0 | AB137: =CNI!AF284 -> 0 | AC137: =CNI!AG284 -> 0 | AD137: =CNI!AH284 -> 0 | AE137: =CNI!AI284 -> 0 | AF137: 0
A138: Site - STANDARD Subtotals | J138: =SUM(J111:J137) -> 162900 | K138: 486036 | L138: =SUM(L111:L137) -> 54516 | M138: 127000 | N138: 69000 | O138: 5600 | P138: 0 | Q138: 7640 | R138: 0 | S138: 0 | T138: 6850 | U138: 0 | V138: 0 | W138: 7640 | X138: 0 | Y138: 0 | Z138: 60000 | AA138: 4000 | AB138: 45000 | AC138: 21990 | AD138: 20800 | AE138: 56000 | AF138: =SUM(L138:AE138)-K138 -> 0
A140: (4.0) Standard Physical Needs Cost Estimate (Cont'd)
A142: (4.1) Category | C142: (4.2) Estimated Useful Life | E142: (4.3) Useful Life Remaining | F142: (4.4) Method | G142: (4.5) Total Quantity | H142: (4.6) Current Needs Quantity | I142: (4.7) Cost per Quantity | J142: (4.8) Immediate Repairs Needed | K142: (4.9) Total Long Term Needs | L142: =+$G$7+1 -> 2011 | M142: =1+L142 -> 2012 | N142: 2013 | O142: 2014 | P142: 2015 | Q142: 2016 | R142: 2017 | S142: 2018 | T142: 2019 | U142: 2020 | V142: 2021 | W142: 2022 | X142: 2023 | Y142: 2024 | Z142: 2025 | AA142: 2026 | AB142: 2027 | AC142: 2028 | AD142: 2029 | AE142: 2030
A143: (4.11) Common Bldg-Rehab STANDARD | C143: years | E143: years | I143: $ | J143: $ | K143: $ | O143: Years 1-5 | P143: =SUM(L168:P168) -> 78180 | T143: Years 6-10 | U143: =SUM(Q168:U168) -> 18600 | Y143: Years 11-15 | Z143: =SUM(U168:Y168) -> 6550 | AD143: Years 16-20 | AE143: =SUM(Z168:AD168) -> 9050
A144: =CNI!$A$297 -> Administrative Building | C144: =CNI!B298 -> 18 | E144: =CNI!B300 -> 4 | F144: =CNI!H304 -> LUMP SUM | G144: =CNI!G304 -> 1 | H144: =IF(CNI!O304=0,0,CNI!G304) -> 0 | I144: =CNI!I304 -> 12000 | J144: =ROUNDUP(+H144*I144,-2) -> 0 | K144: =SUM(L144:AE144) -> 12000 | L144: =CNI!P304 -> 0 | M144: =CNI!Q304 -> 0 | N144: =CNI!R304 -> 0 | O144: =CNI!S304 -> 12000 | P144: =CNI!T304 -> 0 | Q144: =CNI!U304 -> 0 | R144: =CNI!V304 -> 0 | S144: =CNI!W304 -> 0 | T144: =CNI!X304 -> 0 | U144: =CNI!Y304 -> 0 | V144: =CNI!Z304 -> 0 | W144: =CNI!AA304 -> 0 | X144: =CNI!AB304 -> 0 | Y144: =CNI!AC304 -> 0 | Z144: =CNI!AD304 -> 0 | AA144: =CNI!AE304 -> 0 | AB144: =CNI!AF304 -> 0 | AC144: =CNI!AG304 -> 0 | AD144: =CNI!AH304 -> 0 | AE144: =CNI!AI304 -> 0 | AF144: =SUM(L144:AE144)-K144 -> 0
A145: =CNI!$A$307 -> Community Building | C145: =CNI!B308 -> 19 | E145: =CNI!B310 -> 5 | F145: =CNI!H314 -> LUMP SUM | G145: =CNI!G314 -> 1 | H145: =IF(CNI!O314=0,0,CNI!G314) -> 0 | I145: =CNI!I314 -> 50000 | J145: 0 | K145: =SUM(L145:AE145) -> 50000 | L145: =CNI!P314 -> 0 | M145: =CNI!Q314 -> 0 | N145: =CNI!R314 -> 0 | O145: =CNI!S314 -> 0 | P145: =CNI!T314 -> 50000 | Q145: =CNI!U314 -> 0 | R145: =CNI!V314 -> 0 | S145: =CNI!W314 -> 0 | T145: =CNI!X314 -> 0 | U145: =CNI!Y314 -> 0 | V145: =CNI!Z314 -> 0 | W145: =CNI!AA314 -> 0 | X145: =CNI!AB314 -> 0 | Y145: =CNI!AC314 -> 0 | Z145: =CNI!AD314 -> 0 | AA145: =CNI!AE314 -> 0 | AB145: =CNI!AF314 -> 0 | AC145: =CNI!AG314 -> 0 | AD145: =CNI!AH314 -> 0 | AE145: =CNI!AI314 -> 0 | AF145: =SUM(L145:AE145)-K145 -> 0
A146: =CNI!$A$317 -> Shop | C146: =CNI!B318 -> 20 | E146: =CNI!B320 -> 6 | F146: =CNI!H324 -> LUMP SUM | G146: =CNI!G324 -> 1 | H146: =IF(CNI!O324=0,0,CNI!G324) -> 0 | I146: =CNI!I324 -> 1600 | J146: 0 | K146: 1600 | L146: =CNI!P324 -> 0 | M146: =CNI!Q324 -> 0 | N146: =CNI!R324 -> 0 | O146: =CNI!S324 -> 0 | P146: =CNI!T324 -> 0 | Q146: =CNI!U324 -> 1600 | R146: =CNI!V324 -> 0 | S146: =CNI!W324 -> 0 | T146: =CNI!X324 -> 0 | U146: =CNI!Y324 -> 0 | V146: =CNI!Z324 -> 0 | W146: =CNI!AA324 -> 0 | X146: =CNI!AB324 -> 0 | Y146: =CNI!AC324 -> 0 | Z146: =CNI!AD324 -> 0 | AA146: =CNI!AE324 -> 0 | AB146: =CNI!AF324 -> 0 | AC146: =CNI!AG324 -> 0 | AD146: =CNI!AH324 -> 0 | AE146: =CNI!AI324 -> 0 | AF146: 0
A147: =CNI!$A$327 -> Storage Area | C147: =CNI!B328 -> 13 | E147: =CNI!B330 -> 0 | F147: =CNI!H334 -> LUMP SUM | G147: =CNI!G334 -> 1 | H147: =IF(CNI!O334=0,0,CNI!G334) -> 1 | I147: =CNI!I334 -> 450 | J147: 500 | K147: 450 | L147: =CNI!P334 -> 0 | M147: =CNI!Q334 -> 0 | N147: =CNI!R334 -> 0 | O147: =CNI!S334 -> 0 | P147: =CNI!T334 -> 0 | Q147: =CNI!U334 -> 0 | R147: =CNI!V334 -> 0 | S147: =CNI!W334 -> 0 | T147: =CNI!X334 -> 0 | U147: =CNI!Y334 -> 0 | V147: =CNI!Z334 -> 0 | W147: =CNI!AA334 -> 0 | X147: =CNI!AB334 -> 450 | Y147: =CNI!AC334 -> 0 | Z147: =CNI!AD334 -> 0 | AA147: =CNI!AE334 -> 0 | AB147: =CNI!AF334 -> 0 | AC147: =CNI!AG334 -> 0 | AD147: =CNI!AH334 -> 0 | AE147: =CNI!AI334 -> 0 | AF147: 0
A148: =CNI!$A$337 -> Central Boiler | C148: =CNI!B338 -> 14 | E148: =CNI!B340 -> 1 | F148: =CNI!H344 -> LUMP SUM | G148: =CNI!G344 -> 1 | H148: =IF(CNI!O344=0,0,CNI!G344) -> 0 | I148: =CNI!I344 -> 2400 | J148: 0 | K148: 4800 | L148: =CNI!P344 -> 2400 | M148: =CNI!Q344 -> 0 | N148: =CNI!R344 -> 0 | O148: =CNI!S344 -> 0 | P148: =CNI!T344 -> 0 | Q148: =CNI!U344 -> 0 | R148: =CNI!V344 -> 0 | S148: =CNI!W344 -> 0 | T148: =CNI!X344 -> 0 | U148: =CNI!Y344 -> 0 | V148: =CNI!Z344 -> 0 | W148: =CNI!AA344 -> 0 | X148: =CNI!AB344 -> 0 | Y148: =CNI!AC344 -> 0 | Z148: =CNI!AD344 -> 2400 | AA148: =CNI!AE344 -> 0 | AB148: =CNI!AF344 -> 0 | AC148: =CNI!AG344 -> 0 | AD148: =CNI!AH344 -> 0 | AE148: =CNI!AI344 -> 0 | AF148: 0
A149: =CNI!$A$347 -> Central Chiller | C149: =CNI!B348 -> 15 | E149: =CNI!B350 -> 2 | F149: =CNI!H354 -> LUMP SUM | G149: =CNI!G354 -> 1 | H149: =IF(CNI!O354=0,0,CNI!G354) -> 0 | I149: =CNI!I354 -> 2500 | J149: 0 | K149: 5000 | L149: =CNI!P354 -> 0 | M149: =CNI!Q354 -> 2500 | N149: =CNI!R354 -> 0 | O149: =CNI!S354 -> 0 | P149: =CNI!T354 -> 0 | Q149: =CNI!U354 -> 0 | R149: =CNI!V354 -> 0 | S149: =CNI!W354 -> 0 | T149: =CNI!X354 -> 0 | U149: =CNI!Y354 -> 0 | V149: =CNI!Z354 -> 0 | W149: =CNI!AA354 -> 0 | X149: =CNI!AB354 -> 0 | Y149: =CNI!AC354 -> 0 | Z149: =CNI!AD354 -> 0 | AA149: =CNI!AE354 -> 0 | AB149: =CNI!AF354 -> 2500 | AC149: =CNI!AG354 -> 0 | AD149: =CNI!AH354 -> 0 | AE149: =CNI!AI354 -> 0 | AF149: 0
A150: =CNI!$A$357 -> Family Investment Center | C150: =CNI!B358 -> 16 | E150: =CNI!B360 -> 3 | F150: =CNI!H364 -> LUMP SUM | G150: =CNI!G364 -> 1 | H150: =IF(CNI!O364=0,0,CNI!G364) -> 0 | I150: =CNI!I364 -> 650 | J150: 0 | K150: 1300 | L150: =CNI!P364 -> 0 | M150: =CNI!Q364 -> 0 | N150: =CNI!R364 -> 650 | O150: =CNI!S364 -> 0 | P150: =CNI!T364 -> 0 | Q150: =CNI!U364 -> 0 | R150: =CNI!V364 -> 0 | S150: =CNI!W364 -> 0 | T150: =CNI!X364 -> 0 | U150: =CNI!Y364 -> 0 | V150: =CNI!Z364 -> 0 | W150: =CNI!AA364 -> 0 | X150: =CNI!AB364 -> 0 | Y150: =CNI!AC364 -> 0 | Z150: =CNI!AD364 -> 0 | AA150: =CNI!AE364 -> 0 | AB150: =CNI!AF364 -> 0 | AC150: =CNI!AG364 -> 0 | AD150: =CNI!AH364 -> 650 | AE150: =CNI!AI364 -> 0 | AF150: 0
A151: =CNI!$A$367 -> Day Care Center | C151: =CNI!B368 -> 17 | E151: =CNI!B370 -> 4 | F151: =CNI!H374 -> LUMP SUM | G151: =CNI!G374 -> 1 | H151: =IF(CNI!O374=0,0,CNI!G374) -> 0 | I151: =CNI!I374 -> 1750 | J151: 0 | K151: 1750 | L151: =CNI!P374 -> 0 | M151: =CNI!Q374 -> 0 | N151: =CNI!R374 -> 0 | O151: =CNI!S374 -> 1750 | P151: =CNI!T374 -> 0 | Q151: =CNI!U374 -> 0 | R151: =CNI!V374 -> 0 | S151: =CNI!W374 -> 0 | T151: =CNI!X374 -> 0 | U151: =CNI!Y374 -> 0 | V151: =CNI!Z374 -> 0 | W151: =CNI!AA374 -> 0 | X151: =CNI!AB374 -> 0 | Y151: =CNI!AC374 -> 0 | Z151: =CNI!AD374 -> 0 | AA151: =CNI!AE374 -> 0 | AB151: =CNI!AF374 -> 0 | AC151: =CNI!AG374 -> 0 | AD151: =CNI!AH374 -> 0 | AE151: =CNI!AI374 -> 0 | AF151: 0
A152: =CNI!$A$377 -> Laundry Areas | C152: =CNI!B378 -> 18 | E152: =CNI!B380 -> 5 | F152: =CNI!H384 -> LUMP SUM | G152: =CNI!G384 -> 1 | H152: =IF(CNI!O384=0,0,CNI!G384) -> 0 | I152: =CNI!I384 -> 4680 | J152: 0 | K152: 4680 | L152: =CNI!P384 -> 0 | M152: =CNI!Q384 -> 0 | N152: =CNI!R384 -> 0 | O152: =CNI!S384 -> 0 | P152: =CNI!T384 -> 4680 | Q152: =CNI!U384 -> 0 | R152: =CNI!V384 -> 0 | S152: =CNI!W384 -> 0 | T152: =CNI!X384 -> 0 | U152: =CNI!Y384 -> 0 | V152: =CNI!Z384 -> 0 | W152: =CNI!AA384 -> 0 | X152: =CNI!AB384 -> 0 | Y152: =CNI!AC384 -> 0 | Z152: =CNI!AD384 -> 0 | AA152: =CNI!AE384 -> 0 | AB152: =CNI!AF384 -> 0 | AC152: =CNI!AG384 -> 0 | AD152: =CNI!AH384 -> 0 | AE152: =CNI!AI384 -> 0 | AF152: 0
A153: =CNI!$A$387 -> Common Area Washers | C153: =CNI!B388 -> 19 | E153: =CNI!B390 -> 6 | F153: =CNI!H394 -> each | G153: =CNI!G394 -> 20 | H153: =IF(CNI!O394=0,0,CNI!G394) -> 0 | I153: =CNI!I394 -> 350 | J153: 0 | K153: 7000 | L153: =CNI!P394 -> 0 | M153: =CNI!Q394 -> 0 | N153: =CNI!R394 -> 0 | O153: =CNI!S394 -> 0 | P153: =CNI!T394 -> 0 | Q153: =CNI!U394 -> 7000 | R153: =CNI!V394 -> 0 | S153: =CNI!W394 -> 0 | T153: =CNI!X394 -> 0 | U153: =CNI!Y394 -> 0 | V153: =CNI!Z394 -> 0 | W153: =CNI!AA394 -> 0 | X153: =CNI!AB394 -> 0 | Y153: =CNI!AC394 -> 0 | Z153: =CNI!AD394 -> 0 | AA153: =CNI!AE394 -> 0 | AB153: =CNI!AF394 -> 0 | AC153: =CNI!AG394 -> 0 | AD153: =CNI!AH394 -> 0 | AE153: =CNI!AI394 -> 0 | AF153: 0
A154: =CNI!$A$397 -> Common Area Dryers | C154: =CNI!B398 -> 20 | E154: =CNI!B400 -> 7 | F154: =CNI!H404 -> each | G154: =CNI!G404 -> 20 | H154: =IF(CNI!O404=0,0,CNI!G404) -> 0 | I154: =CNI!I404 -> 500 | J154: 0 | K154: 10000 | L154: =CNI!P404 -> 0 | M154: =CNI!Q404 -> 0 | N154: =CNI!R404 -> 0 | O154: =CNI!S404 -> 0 | P154: =CNI!T404 -> 0 | Q154: =CNI!U404 -> 0 | R154: =CNI!V404 -> 10000 | S154: =CNI!W404 -> 0 | T154: =CNI!X404 -> 0 | U154: =CNI!Y404 -> 0 | V154: =CNI!Z404 -> 0 | W154: =CNI!AA404 -> 0 | X154: =CNI!AB404 -> 0 | Y154: =CNI!AC404 -> 0 | Z154: =CNI!AD404 -> 0 | AA154: =CNI!AE404 -> 0 | AB154: =CNI!AF404 -> 0 | AC154: =CNI!AG404 -> 0 | AD154: =CNI!AH404 -> 0 | AE154: =CNI!AI404 -> 0 | AF154: 0
A155: =CNI!$A$407 -> Common Facilities Kitchen | C155: =CNI!B408 -> 12 | E155: =CNI!B410 -> 0 | F155: =CNI!H414 -> LUMP SUM | G155: =CNI!G414 -> 1 | H155: =IF(CNI!O414=0,0,CNI!G414) -> 1 | I155: =CNI!I414 -> 5400 | J155: 5400 | K155: 5400 | L155: =CNI!P414 -> 0 | M155: =CNI!Q414 -> 0 | N155: =CNI!R414 -> 0 | O155: =CNI!S414 -> 0 | P155: =CNI!T414 -> 0 | Q155: =CNI!U414 -> 0 | R155: =CNI!V414 -> 0 | S155: =CNI!W414 -> 0 | T155: =CNI!X414 -> 0 | U155: =CNI!Y414 -> 0 | V155: =CNI!Z414 -> 0 | W155: =CNI!AA414 -> 5400 | X155: =CNI!AB414 -> 0 | Y155: =CNI!AC414 -> 0 | Z155: =CNI!AD414 -> 0 | AA155: =CNI!AE414 -> 0 | AB155: =CNI!AF414 -> 0 | AC155: =CNI!AG414 -> 0 | AD155: =CNI!AH414 -> 0 | AE155: =CNI!AI414 -> 0 | AF155: 0
A156: =CNI!$A$417 -> Common Facilities Appliances | C156: =CNI!B418 -> 13 | E156: =CNI!B420 -> 1 | F156: =CNI!H424 -> each | G156: =CNI!G424 -> 2 | H156: =IF(CNI!O424=0,0,CNI!G424) -> 0 | I156: =CNI!I424 -> 350 | J156: 0 | K156: 1400 | L156: =CNI!P424 -> 700 | M156: =CNI!Q424 -> 0 | N156: =CNI!R424 -> 0 | O156: =CNI!S424 -> 0 | P156: =CNI!T424 -> 0 | Q156: =CNI!U424 -> 0 | R156: =CNI!V424 -> 0 | S156: =CNI!W424 -> 0 | T156: =CNI!X424 -> 0 | U156: =CNI!Y424 -> 0 | V156: =CNI!Z424 -> 0 | W156: =CNI!AA424 -> 0 | X156: =CNI!AB424 -> 0 | Y156: =CNI!AC424 -> 700 | Z156: =CNI!AD424 -> 0 | AA156: =CNI!AE424 -> 0 | AB156: =CNI!AF424 -> 0 | AC156: =CNI!AG424 -> 0 | AD156: =CNI!AH424 -> 0 | AE156: =CNI!AI424 -> 0 | AF156: 0
A157: =CNI!$A$427 -> Common Area Finishes | C157: =CNI!B428 -> 14 | E157: =CNI!B430 -> 2 | F157: =CNI!H434 -> LUMP SUM | G157: =CNI!G434 -> 1 | H157: =IF(CNI!O434=0,0,CNI!G434) -> 0 | I157: =CNI!I434 -> 3500 | J157: 0 | K157: 7000 | L157: =CNI!P434 -> 0 | M157: =CNI!Q434 -> 3500 | N157: =CNI!R434 -> 0 | O157: =CNI!S434 -> 0 | P157: =CNI!T434 -> 0 | Q157: =CNI!U434 -> 0 | R157: =CNI!V434 -> 0 | S157: =CNI!W434 -> 0 | T157: =CNI!X434 -> 0 | U157: =CNI!Y434 -> 0 | V157: =CNI!Z434 -> 0 | W157: =CNI!AA434 -> 0 | X157: =CNI!AB434 -> 0 | Y157: =CNI!AC434 -> 0 | Z157: =CNI!AD434 -> 0 | AA157: =CNI!AE434 -> 3500 | AB157: =CNI!AF434 -> 0 | AC157: =CNI!AG434 -> 0 | AD157: =CNI!AH434 -> 0 | AE157: =CNI!AI434 -> 0 | AF157: 0
A158: =CNI!$A$437 -> Common-Other 1 (Specify) | C158: =CNI!B438 -> 15 | E158: =CNI!B440 -> 3 | F158: =CNI!H444 -> 0 | G158: =CNI!G444 -> 0 | H158: =IF(CNI!O444=0,0,CNI!G444) -> 0 | I158: =CNI!I444 -> 0 | J158: 0 | K158: 0 | L158: =CNI!P444 -> 0 | M158: =CNI!Q444 -> 0 | N158: =CNI!R444 -> 0 | O158: =CNI!S444 -> 0 | P158: =CNI!T444 -> 0 | Q158: =CNI!U444 -> 0 | R158: =CNI!V444 -> 0 | S158: =CNI!W444 -> 0 | T158: =CNI!X444 -> 0 | U158: =CNI!Y444 -> 0 | V158: =CNI!Z444 -> 0 | W158: =CNI!AA444 -> 0 | X158: =CNI!AB444 -> 0 | Y158: =CNI!AC444 -> 0 | Z158: =CNI!AD444 -> 0 | AA158: =CNI!AE444 -> 0 | AB158: =CNI!AF444 -> 0 | AC158: =CNI!AG444 -> 0 | AD158: =CNI!AH444 -> 0 | AE158: =CNI!AI444 -> 0 | AF158: 0
A159: =CNI!$A$447 -> Common-Other 2 (Specify) | C159: =CNI!B448 -> 16 | E159: =CNI!B450 -> 4 | F159: =CNI!H454 -> 0 | G159: =CNI!G454 -> 0 | H159: =IF(CNI!O454=0,0,CNI!G454) -> 0 | I159: =CNI!I454 -> 0 | J159: 0 | K159: 0 | L159: =CNI!P454 -> 0 | M159: =CNI!Q454 -> 0 | N159: =CNI!R454 -> 0 | O159: =CNI!S454 -> 0 | P159: =CNI!T454 -> 0 | Q159: =CNI!U454 -> 0 | R159: =CNI!V454 -> 0 | S159: =CNI!W454 -> 0 | T159: =CNI!X454 -> 0 | U159: =CNI!Y454 -> 0 | V159: =CNI!Z454 -> 0 | W159: =CNI!AA454 -> 0 | X159: =CNI!AB454 -> 0 | Y159: =CNI!AC454 -> 0 | Z159: =CNI!AD454 -> 0 | AA159: =CNI!AE454 -> 0 | AB159: =CNI!AF454 -> 0 | AC159: =CNI!AG454 -> 0 | AD159: =CNI!AH454 -> 0 | AE159: =CNI!AI454 -> 0 | AF159: 0
A160: =CNI!$A$457 -> Common-Other 3 (Specify) | C160: =CNI!B458 -> 17 | E160: =CNI!B460 -> 5 | F160: =CNI!H464 -> 0 | G160: =CNI!G464 -> 0 | H160: =IF(CNI!O464=0,0,CNI!G464) -> 0 | I160: =CNI!I464 -> 0 | J160: 0 | K160: 0 | L160: =CNI!P464 -> 0 | M160: =CNI!Q464 -> 0 | N160: =CNI!R464 -> 0 | O160: =CNI!S464 -> 0 | P160: =CNI!T464 -> 0 | Q160: =CNI!U464 -> 0 | R160: =CNI!V464 -> 0 | S160: =CNI!W464 -> 0 | T160: =CNI!X464 -> 0 | U160: =CNI!Y464 -> 0 | V160: =CNI!Z464 -> 0 | W160: =CNI!AA464 -> 0 | X160: =CNI!AB464 -> 0 | Y160: =CNI!AC464 -> 0 | Z160: =CNI!AD464 -> 0 | AA160: =CNI!AE464 -> 0 | AB160: =CNI!AF464 -> 0 | AC160: =CNI!AG464 -> 0 | AD160: =CNI!AH464 -> 0 | AE160: =CNI!AI464 -> 0 | AF160: 0
A161: =CNI!$A$467 -> Common-Other 4 (Specify) | C161: =CNI!B468 -> 18 | E161: =CNI!B470 -> 6 | F161: =CNI!H474 -> 0 | G161: =CNI!G474 -> 0 | H161: =IF(CNI!O474=0,0,CNI!G474) -> 0 | I161: =CNI!I474 -> 0 | J161: 0 | K161: 0 | L161: =CNI!P474 -> 0 | M161: =CNI!Q474 -> 0 | N161: =CNI!R474 -> 0 | O161: =CNI!S474 -> 0 | P161: =CNI!T474 -> 0 | Q161: =CNI!U474 -> 0 | R161: =CNI!V474 -> 0 | S161: =CNI!W474 -> 0 | T161: =CNI!X474 -> 0 | U161: =CNI!Y474 -> 0 | V161: =CNI!Z474 -> 0 | W161: =CNI!AA474 -> 0 | X161: =CNI!AB474 -> 0 | Y161: =CNI!AC474 -> 0 | Z161: =CNI!AD474 -> 0 | AA161: =CNI!AE474 -> 0 | AB161: =CNI!AF474 -> 0 | AC161: =CNI!AG474 -> 0 | AD161: =CNI!AH474 -> 0 | AE161: =CNI!AI474 -> 0 | AF161: 0
A162: =CNI!$A$477 -> Common-Other 5 (Specify) | C162: =CNI!B478 -> 19 | E162: =CNI!B480 -> 7 | F162: =CNI!H484 -> 0 | G162: =CNI!G484 -> 0 | H162: =IF(CNI!O484=0,0,CNI!G484) -> 0 | I162: =CNI!I484 -> 0 | J162: 0 | K162: 0 | L162: =CNI!P484 -> 0 | M162: =CNI!Q484 -> 0 | N162: =CNI!R484 -> 0 | O162: =CNI!S484 -> 0 | P162: =CNI!T484 -> 0 | Q162: =CNI!U484 -> 0 | R162: =CNI!V484 -> 0 | S162: =CNI!W484 -> 0 | T162: =CNI!X484 -> 0 | U162: =CNI!Y484 -> 0 | V162: =CNI!Z484 -> 0 | W162: =CNI!AA484 -> 0 | X162: =CNI!AB484 -> 0 | Y162: =CNI!AC484 -> 0 | Z162: =CNI!AD484 -> 0 | AA162: =CNI!AE484 -> 0 | AB162: =CNI!AF484 -> 0 | AC162: =CNI!AG484 -> 0 | AD162: =CNI!AH484 -> 0 | AE162: =CNI!AI484 -> 0 | AF162: 0
A163: =CNI!$A$487 -> Common-Other 6 (Specify) | C163: =CNI!B488 -> 20 | E163: =CNI!B490 -> 8 | F163: =CNI!H494 -> 0 | G163: =CNI!G494 -> 0 | H163: =IF(CNI!O494=0,0,CNI!G494) -> 0 | I163: =CNI!I494 -> 0 | J163: 0 | K163: 0 | L163: =CNI!P494 -> 0 | M163: =CNI!Q494 -> 0 | N163: =CNI!R494 -> 0 | O163: =CNI!S494 -> 0 | P163: =CNI!T494 -> 0 | Q163: =CNI!U494 -> 0 | R163: =CNI!V494 -> 0 | S163: =CNI!W494 -> 0 | T163: =CNI!X494 -> 0 | U163: =CNI!Y494 -> 0 | V163: =CNI!Z494 -> 0 | W163: =CNI!AA494 -> 0 | X163: =CNI!AB494 -> 0 | Y163: =CNI!AC494 -> 0 | Z163: =CNI!AD494 -> 0 | AA163: =CNI!AE494 -> 0 | AB163: =CNI!AF494 -> 0 | AC163: =CNI!AG494 -> 0 | AD163: =CNI!AH494 -> 0 | AE163: =CNI!AI494 -> 0 | AF163: 0
A164: =CNI!$A$497 -> Common-Other 7 (Specify) | C164: =CNI!B498 -> 11 | E164: =CNI!B500 -> 0 | F164: =CNI!H504 -> 0 | G164: =CNI!G504 -> 0 | H164: =IF(CNI!O504=0,0,CNI!G504) -> 0 | I164: =CNI!I504 -> 0 | J164: 0 | K164: 0 | L164: =CNI!P504 -> 0 | M164: =CNI!Q504 -> 0 | N164: =CNI!R504 -> 0 | O164: =CNI!S504 -> 0 | P164: =CNI!T504 -> 0 | Q164: =CNI!U504 -> 0 | R164: =CNI!V504 -> 0 | S164: =CNI!W504 -> 0 | T164: =CNI!X504 -> 0 | U164: =CNI!Y504 -> 0 | V164: =CNI!Z504 -> 0 | W164: =CNI!AA504 -> 0 | X164: =CNI!AB504 -> 0 | Y164: =CNI!AC504 -> 0 | Z164: =CNI!AD504 -> 0 | AA164: =CNI!AE504 -> 0 | AB164: =CNI!AF504 -> 0 | AC164: =CNI!AG504 -> 0 | AD164: =CNI!AH504 -> 0 | AE164: =CNI!AI504 -> 0 | AF164: 0
A165: =CNI!$A$507 -> Common-Other 8 (Specify) | C165: =CNI!B508 -> 12 | E165: =CNI!B510 -> 1 | F165: =CNI!H514 -> 0 | G165: =CNI!G514 -> 0 | H165: =IF(CNI!O514=0,0,CNI!G514) -> 0 | I165: =CNI!I514 -> 0 | J165: 0 | K165: 0 | L165: =CNI!P514 -> 0 | M165: =CNI!Q514 -> 0 | N165: =CNI!R514 -> 0 | O165: =CNI!S514 -> 0 | P165: =CNI!T514 -> 0 | Q165: =CNI!U514 -> 0 | R165: =CNI!V514 -> 0 | S165: =CNI!W514 -> 0 | T165: =CNI!X514 -> 0 | U165: =CNI!Y514 -> 0 | V165: =CNI!Z514 -> 0 | W165: =CNI!AA514 -> 0 | X165: =CNI!AB514 -> 0 | Y165: =CNI!AC514 -> 0 | Z165: =CNI!AD514 -> 0 | AA165: =CNI!AE514 -> 0 | AB165: =CNI!AF514 -> 0 | AC165: =CNI!AG514 -> 0 | AD165: =CNI!AH514 -> 0 | AE165: =CNI!AI514 -> 0 | AF165: 0
A166: =CNI!$A$517 -> Common-Other 9 (Specify) | C166: =CNI!B518 -> 13 | E166: =CNI!B520 -> 2 | F166: =CNI!H524 -> 0 | G166: =CNI!G524 -> 0 | H166: =IF(CNI!O524=0,0,CNI!G524) -> 0 | I166: =CNI!I524 -> 0 | J166: 0 | K166: 0 | L166: =CNI!P524 -> 0 | M166: =CNI!Q524 -> 0 | N166: =CNI!R524 -> 0 | O166: =CNI!S524 -> 0 | P166: =CNI!T524 -> 0 | Q166: =CNI!U524 -> 0 | R166: =CNI!V524 -> 0 | S166: =CNI!W524 -> 0 | T166: =CNI!X524 -> 0 | U166: =CNI!Y524 -> 0 | V166: =CNI!Z524 -> 0 | W166: =CNI!AA524 -> 0 | X166: =CNI!AB524 -> 0 | Y166: =CNI!AC524 -> 0 | Z166: =CNI!AD524 -> 0 | AA166: =CNI!AE524 -> 0 | AB166: =CNI!AF524 -> 0 | AC166: =CNI!AG524 -> 0 | AD166: =CNI!AH524 -> 0 | AE166: =CNI!AI524 -> 0 | AF166: 0
A167: =CNI!$A$527 -> Common-Other 10 (Specify) | C167: =CNI!B528 -> 14 | E167: =CNI!B530 -> 3 | F167: =CNI!H534 -> 0 | G167: =CNI!G534 -> 0 | H167: =IF(CNI!O534=0,0,CNI!G534) -> 0 | I167: =CNI!I534 -> 0 | J167: 0 | K167: 0 | L167: =CNI!P534 -> 0 | M167: =CNI!Q534 -> 0 | N167: =CNI!R534 -> 0 | O167: =CNI!S534 -> 0 | P167: =CNI!T534 -> 0 | Q167: =CNI!U534 -> 0 | R167: =CNI!V534 -> 0 | S167: =CNI!W534 -> 0 | T167: =CNI!X534 -> 0 | U167: =CNI!Y534 -> 0 | V167: =CNI!Z534 -> 0 | W167: =CNI!AA534 -> 0 | X167: =CNI!AB534 -> 0 | Y167: =CNI!AC534 -> 0 | Z167: =CNI!AD534 -> 0 | AA167: =CNI!AE534 -> 0 | AB167: =CNI!AF534 -> 0 | AC167: =CNI!AG534 -> 0 | AD167: =CNI!AH534 -> 0 | AE167: =CNI!AI534 -> 0 | AF167: 0
A168: Common Bldg STANDARD Subtotals | J168: =SUM(J144:J167) -> 5900 | K168: =SUM(K144:K167) -> 112380 | L168: 3100 | M168: 6000 | N168: 650 | O168: 13750 | P168: 54680 | Q168: =SUM(Q144:Q167) -> 8600 | R168: 10000 | S168: 0 | T168: 0 | U168: 0 | V168: 0 | W168: 5400 | X168: 450 | Y168: 700 | Z168: 2400 | AA168: 3500 | AB168: 2500 | AC168: 0 | AD168: 650 | AE168: 0 | AF168: =SUM(L168:AE168)-K168 -> 0
A172: (4.1) Category | C172: (4.2) Estimated Useful Life | E172: (4.3) Useful Life Remaining | F172: (4.4) Method | G172: (4.5) Total Quantity | H172: (4.6) Current Needs Quantity | I172: (4.7) Cost per Quantity | J172: (4.8) Immediate Repairs Needed | K172: (4.9) Total Long Term Needs | L172: =+$G$7+1 -> 2011 | M172: =1+L172 -> 2012 | N172: 2013 | O172: 2014 | P172: 2015 | Q172: 2016 | R172: 2017 | S172: 2018 | T172: 2019 | U172: 2020 | V172: 2021 | W172: 2022 | X172: 2023 | Y172: 2024 | Z172: 2025 | AA172: 2026 | AB172: 2027 | AC172: 2028 | AD172: 2029 | AE172: 2030
A173: (4.12) Unit Exteriors STANDARD | C173: years | E173: years | I173: $ | J173: $ | K173: $ | O173: Years 1-5 | P173: =SUM(L210:P210) -> 56160 | T173: Years 6-10 | U173: =SUM(Q210:U210) -> 27210 | Y173: Years 11-15 | Z173: =SUM(V210:Z210) -> 354760 | AD173: Years 16-20 | AE173: =SUM(AA210:AE210) -> 52365
A174: =CNI!$A$547 -> Carports/Surface Garage | C174: =CNI!B548 -> 15 | E174: =CNI!B550 -> 4 | F174: =CNI!H554 -> LUMP SUM | G174: =CNI!G554 -> 1 | H174: =IF(CNI!O554=0,0,CNI!G554) -> 0 | I174: =CNI!I554 -> 5000 | J174: =ROUNDUP(+H174*I174,-2) -> 0 | K174: =SUM(L174:AE174) -> 10000 | L174: =CNI!P554 -> 0 | M174: =CNI!Q554 -> 0 | N174: =CNI!R554 -> 0 | O174: =CNI!S554 -> 5000 | P174: =CNI!T554 -> 0 | Q174: =CNI!U554 -> 0 | R174: =CNI!V554 -> 0 | S174: =CNI!W554 -> 0 | T174: =CNI!X554 -> 0 | U174: =CNI!Y554 -> 0 | V174: =CNI!Z554 -> 0 | W174: =CNI!AA554 -> 0 | X174: =CNI!AB554 -> 0 | Y174: =CNI!AC554 -> 0 | Z174: =CNI!AD554 -> 0 | AA174: =CNI!AE554 -> 0 | AB174: =CNI!AF554 -> 0 | AC174: =CNI!AG554 -> 0 | AD174: =CNI!AH554 -> 5000 | AE174: =CNI!AI554 -> 0 | AF174: =SUM(L174:AE174)-K174 -> 0
A175: =CNI!$A$557 -> Foundation | C175: =CNI!B558 -> 16 | E175: =CNI!B560 -> 5 | F175: =CNI!H564 -> 0 | G175: =CNI!G564 -> 0 | H175: =IF(CNI!O564=0,0,CNI!G564) -> 0 | I175: =CNI!I564 -> 0 | J175: 0 | K175: =SUM(L175:AE175) -> 0 | L175: =CNI!P564 -> 0 | M175: =CNI!Q564 -> 0 | N175: =CNI!R564 -> 0 | O175: =CNI!S564 -> 0 | P175: =CNI!T564 -> 0 | Q175: =CNI!U564 -> 0 | R175: =CNI!V564 -> 0 | S175: =CNI!W564 -> 0 | T175: =CNI!X564 -> 0 | U175: =CNI!Y564 -> 0 | V175: =CNI!Z564 -> 0 | W175: =CNI!AA564 -> 0 | X175: =CNI!AB564 -> 0 | Y175: =CNI!AC564 -> 0 | Z175: =CNI!AD564 -> 0 | AA175: =CNI!AE564 -> 0 | AB175: =CNI!AF564 -> 0 | AC175: =CNI!AG564 -> 0 | AD175: =CNI!AH564 -> 0 | AE175: =CNI!AI564 -> 0 | AF175: 0
A176: =CNI!$A$567 -> Foundation Waterproofing | C176: =CNI!B568 -> 17 | E176: =CNI!B570 -> 6 | F176: =CNI!H574 -> 0 | G176: =CNI!G574 -> 0 | H176: =IF(CNI!O574=0,0,CNI!G574) -> 0 | I176: =CNI!I574 -> 0 | J176: 0 | K176: 0 | L176: =CNI!P574 -> 0 | M176: =CNI!Q574 -> 0 | N176: =CNI!R574 -> 0 | O176: =CNI!S574 -> 0 | P176: =CNI!T574 -> 0 | Q176: =CNI!U574 -> 0 | R176: =CNI!V574 -> 0 | S176: =CNI!W574 -> 0 | T176: =CNI!X574 -> 0 | U176: =CNI!Y574 -> 0 | V176: =CNI!Z574 -> 0 | W176: =CNI!AA574 -> 0 | X176: =CNI!AB574 -> 0 | Y176: =CNI!AC574 -> 0 | Z176: =CNI!AD574 -> 0 | AA176: =CNI!AE574 -> 0 | AB176: =CNI!AF574 -> 0 | AC176: =CNI!AG574 -> 0 | AD176: =CNI!AH574 -> 0 | AE176: =CNI!AI574 -> 0 | AF176: 0
A177: =CNI!$A$577 -> Building Slab | C177: =CNI!B578 -> 18 | E177: =CNI!B580 -> 7 | F177: =CNI!H584 -> 0 | G177: =CNI!G584 -> 0 | H177: =IF(CNI!O584=0,0,CNI!G584) -> 0 | I177: =CNI!I584 -> 0 | J177: 0 | K177: 0 | L177: =CNI!P584 -> 0 | M177: =CNI!Q584 -> 0 | N177: =CNI!R584 -> 0 | O177: =CNI!S584 -> 0 | P177: =CNI!T584 -> 0 | Q177: =CNI!U584 -> 0 | R177: =CNI!V584 -> 0 | S177: =CNI!W584 -> 0 | T177: =CNI!X584 -> 0 | U177: =CNI!Y584 -> 0 | V177: =CNI!Z584 -> 0 | W177: =CNI!AA584 -> 0 | X177: =CNI!AB584 -> 0 | Y177: =CNI!AC584 -> 0 | Z177: =CNI!AD584 -> 0 | AA177: =CNI!AE584 -> 0 | AB177: =CNI!AF584 -> 0 | AC177: =CNI!AG584 -> 0 | AD177: =CNI!AH584 -> 0 | AE177: =CNI!AI584 -> 0 | AF177: 0
A178: =CNI!$A$587 -> Roofs | C178: =CNI!B588 -> 15 | E178: =CNI!B594 -> 0 | F178: =CNI!H600 -> LUMP SUM | G178: =CNI!G600 -> 3 | H178: =IF(CNI!O600=0,0,CNI!G600) -> 3 | I178: =CNI!I600 -> 25400 | J178: 76200 | K178: 76200 | L178: =CNI!P600 -> 0 | M178: =CNI!Q600 -> 0 | N178: =CNI!R600 -> 0 | O178: =CNI!S600 -> 0 | P178: =CNI!T600 -> 0 | Q178: =CNI!U600 -> 0 | R178: =CNI!V600 -> 0 | S178: =CNI!W600 -> 0 | T178: =CNI!X600 -> 0 | U178: =CNI!Y600 -> 0 | V178: =CNI!Z600 -> 0 | W178: =CNI!AA600 -> 0 | X178: =CNI!AB600 -> 0 | Y178: =CNI!AC600 -> 0 | Z178: =CNI!AD600 -> 76200 | AA178: =CNI!AE600 -> 0 | AB178: =CNI!AF600 -> 0 | AC178: =CNI!AG600 -> 0 | AD178: =CNI!AH600 -> 0 | AE178: =CNI!AI600 -> 0 | AF178: 0
A179: =CNI!$A$603 -> Exterior Walls - Structural | C179: =CNI!B604 -> 15 | E179: =CNI!B610 -> 0 | F179: =CNI!H616 -> LUMP SUM | G179: =CNI!G616 -> 3 | H179: =IF(CNI!O616=0,0,CNI!G616) -> 3 | I179: =CNI!I616 -> 17600 | J179: 52800 | K179: 52800 | L179: =CNI!P616 -> 0 | M179: =CNI!Q616 -> 0 | N179: =CNI!R616 -> 0 | O179: =CNI!S616 -> 0 | P179: =CNI!T616 -> 0 | Q179: =CNI!U616 -> 0 | R179: =CNI!V616 -> 0 | S179: =CNI!W616 -> 0 | T179: =CNI!X616 -> 0 | U179: =CNI!Y616 -> 0 | V179: =CNI!Z616 -> 0 | W179: =CNI!AA616 -> 0 | X179: =CNI!AB616 -> 0 | Y179: =CNI!AC616 -> 0 | Z179: =CNI!AD616 -> 52800 | AA179: =CNI!AE616 -> 0 | AB179: =CNI!AF616 -> 0 | AC179: =CNI!AG616 -> 0 | AD179: =CNI!AH616 -> 0 | AE179: =CNI!AI616 -> 0 | AF179: 0
A180: =CNI!$A$619 -> Exterior Walls - Finishes | C180: =CNI!B620 -> 10 | E180: =CNI!B622 -> 0 | F180: =CNI!H626 -> LUMP SUM | G180: =CNI!G626 -> 1 | H180: =IF(CNI!O626=0,0,CNI!G626) -> 1 | I180: =CNI!I626 -> 12500 | J180: 12500 | K180: 25000 | L180: =CNI!P626 -> 0 | M180: =CNI!Q626 -> 0 | N180: =CNI!R626 -> 0 | O180: =CNI!S626 -> 0 | P180: =CNI!T626 -> 0 | Q180: =CNI!U626 -> 0 | R180: =CNI!V626 -> 0 | S180: =CNI!W626 -> 0 | T180: =CNI!X626 -> 0 | U180: =CNI!Y626 -> 12500 | V180: =CNI!Z626 -> 0 | W180: =CNI!AA626 -> 0 | X180: =CNI!AB626 -> 0 | Y180: =CNI!AC626 -> 0 | Z180: =CNI!AD626 -> 0 | AA180: =CNI!AE626 -> 0 | AB180: =CNI!AF626 -> 0 | AC180: =CNI!AG626 -> 0 | AD180: =CNI!AH626 -> 0 | AE180: =CNI!AI626 -> 12500 | AF180: 0
A181: =CNI!$A$629 -> Canopies | C181: =CNI!B630 -> 11 | E181: =CNI!B632 -> 1 | F181: =CNI!H636 -> 0 | G181: =CNI!G636 -> 0 | H181: =IF(CNI!O636=0,0,CNI!G636) -> 0 | I181: =CNI!I636 -> 0 | J181: 0 | K181: 0 | L181: =CNI!P636 -> 0 | M181: =CNI!Q636 -> 0 | N181: =CNI!R636 -> 0 | O181: =CNI!S636 -> 0 | P181: =CNI!T636 -> 0 | Q181: =CNI!U636 -> 0 | R181: =CNI!V636 -> 0 | S181: =CNI!W636 -> 0 | T181: =CNI!X636 -> 0 | U181: =CNI!Y636 -> 0 | V181: =CNI!Z636 -> 0 | W181: =CNI!AA636 -> 0 | X181: =CNI!AB636 -> 0 | Y181: =CNI!AC636 -> 0 | Z181: =CNI!AD636 -> 0 | AA181: =CNI!AE636 -> 0 | AB181: =CNI!AF636 -> 0 | AC181: =CNI!AG636 -> 0 | AD181: =CNI!AH636 -> 0 | AE181: =CNI!AI636 -> 0 | AF181: 0
A182: =CNI!$A$639 -> Tuck-Pointing | C182: =CNI!B640 -> 12 | E182: =CNI!B642 -> 2 | F182: =CNI!H646 -> 0 | G182: =CNI!G646 -> 0 | H182: =IF(CNI!O646=0,0,CNI!G686) -> 0 | I182: =CNI!I646 -> 0 | J182: 0 | K182: 0 | L182: =CNI!P646 -> 0 | M182: =CNI!Q646 -> 0 | N182: =CNI!R646 -> 0 | O182: =CNI!S646 -> 0 | P182: =CNI!T646 -> 0 | Q182: =CNI!U646 -> 0 | R182: =CNI!V646 -> 0 | S182: =CNI!W646 -> 0 | T182: =CNI!X646 -> 0 | U182: =CNI!Y646 -> 0 | V182: =CNI!Z646 -> 0 | W182: =CNI!AA646 -> 0 | X182: =CNI!AB646 -> 0 | Y182: =CNI!AC646 -> 0 | Z182: =CNI!AD646 -> 0 | AA182: =CNI!AE646 -> 0 | AB182: =CNI!AF646 -> 0 | AC182: =CNI!AG646 -> 0 | AD182: =CNI!AH646 -> 0 | AE182: =CNI!AI646 -> 0 | AF182: 0
A183: =CNI!$A$649 -> Exterior Paint & Caulking | C183: =CNI!B650 -> 13 | E183: =CNI!B652 -> 3 | F183: =CNI!H656 -> LUMP SUM | G183: =CNI!G656 -> 1 | H183: =IF(CNI!O656=0,0,CNI!G656) -> 0 | I183: =CNI!I656 -> 23600 | J183: 0 | K183: 47200 | L183: =CNI!P656 -> 0 | M183: =CNI!Q656 -> 0 | N183: =CNI!R656 -> 23600 | O183: =CNI!S656 -> 0 | P183: =CNI!T656 -> 0 | Q183: =CNI!U656 -> 0 | R183: =CNI!V656 -> 0 | S183: =CNI!W656 -> 0 | T183: =CNI!X656 -> 0 | U183: =CNI!Y656 -> 0 | V183: =CNI!Z656 -> 0 | W183: =CNI!AA656 -> 0 | X183: =CNI!AB656 -> 0 | Y183: =CNI!AC656 -> 0 | Z183: =CNI!AD656 -> 0 | AA183: =CNI!AE656 -> 23600 | AB183: =CNI!AF656 -> 0 | AC183: =CNI!AG656 -> 0 | AD183: =CNI!AH656 -> 0 | AE183: =CNI!AI656 -> 0 | AF183: 0
A184: =CNI!$A$659 -> Soffits | C184: =CNI!B660 -> 14 | E184: =CNI!B662 -> 4 | F184: =CNI!H666 -> LUMP SUM | G184: =CNI!G666 -> 1 | H184: =IF(CNI!O666=0,0,CNI!G666) -> 0 | I184: =CNI!I666 -> 1500 | J184: 0 | K184: 3000 | L184: =CNI!P666 -> 0 | M184: =CNI!Q666 -> 0 | N184: =CNI!R666 -> 0 | O184: =CNI!S666 -> 1500 | P184: =CNI!T666 -> 0 | Q184: =CNI!U666 -> 0 | R184: =CNI!V666 -> 0 | S184: =CNI!W666 -> 0 | T184: =CNI!X666 -> 0 | U184: =CNI!Y666 -> 0 | V184: =CNI!Z666 -> 0 | W184: =CNI!AA666 -> 0 | X184: =CNI!AB666 -> 0 | Y184: =CNI!AC666 -> 0 | Z184: =CNI!AD666 -> 0 | AA184: =CNI!AE666 -> 0 | AB184: =CNI!AF666 -> 0 | AC184: =CNI!AG666 -> 1500 | AD184: =CNI!AH666 -> 0 | AE184: =CNI!AI666 -> 0 | AF184: 0
A185: =CNI!$A$669 -> Siding | C185: =CNI!B670 -> 15 | E185: =CNI!B672 -> 5 | F185: =CNI!H676 -> LUMP SUM | G185: =CNI!G676 -> 1 | H185: =IF(CNI!O676=0,0,CNI!G676) -> 0 | I185: =CNI!I676 -> 2500 | J185: 0 | K185: 5000 | L185: =CNI!P676 -> 0 | M185: =CNI!Q676 -> 0 | N185: =CNI!R676 -> 0 | O185: =CNI!S676 -> 0 | P185: =CNI!T676 -> 2500 | Q185: =CNI!U676 -> 0 | R185: =CNI!V676 -> 0 | S185: =CNI!W676 -> 0 | T185: =CNI!X676 -> 0 | U185: =CNI!Y676 -> 0 | V185: =CNI!Z676 -> 0 | W185: =CNI!AA676 -> 0 | X185: =CNI!AB676 -> 0 | Y185: =CNI!AC676 -> 0 | Z185: =CNI!AD676 -> 0 | AA185: =CNI!AE676 -> 0 | AB185: =CNI!AF676 -> 0 | AC185: =CNI!AG676 -> 0 | AD185: =CNI!AH676 -> 0 | AE185: =CNI!AI676 -> 2500 | AF185: 0
A186: =CNI!$A$679 -> Exterior Stairwells/Fire Escapes | C186: =CNI!B680 -> 16 | E186: =CNI!B682 -> 6 | F186: =CNI!H686 -> 0 | G186: =CNI!G686 -> 0 | H186: =IF(CNI!O686=0,0,CNI!G686) -> 0 | I186: =CNI!I686 -> 0 | J186: 0 | K186: 0 | L186: =CNI!P686 -> 0 | M186: =CNI!Q686 -> 0 | N186: =CNI!R686 -> 0 | O186: =CNI!S686 -> 0 | P186: =CNI!T686 -> 0 | Q186: =CNI!U686 -> 0 | R186: =CNI!V686 -> 0 | S186: =CNI!W686 -> 0 | T186: =CNI!X686 -> 0 | U186: =CNI!Y686 -> 0 | V186: =CNI!Z686 -> 0 | W186: =CNI!AA686 -> 0 | X186: =CNI!AB686 -> 0 | Y186: =CNI!AC686 -> 0 | Z186: =CNI!AD686 -> 0 | AA186: =CNI!AE686 -> 0 | AB186: =CNI!AF686 -> 0 | AC186: =CNI!AG686 -> 0 | AD186: =CNI!AH686 -> 0 | AE186: =CNI!AI686 -> 0 | AF186: 0
A187: =CNI!$A$689 -> Landings & Railings | C187: =CNI!B690 -> 17 | E187: =CNI!B692 -> 7 | F187: =CNI!H696 -> 0 | G187: =CNI!G696 -> 0 | H187: =IF(CNI!O696=0,0,CNI!G696) -> 0 | I187: =CNI!I696 -> 0 | J187: 0 | K187: 0 | L187: =CNI!P696 -> 0 | M187: =CNI!Q696 -> 0 | N187: =CNI!R696 -> 0 | O187: =CNI!S696 -> 0 | P187: =CNI!T696 -> 0 | Q187: =CNI!U696 -> 0 | R187: =CNI!V696 -> 0 | S187: =CNI!W696 -> 0 | T187: =CNI!X696 -> 0 | U187: =CNI!Y696 -> 0 | V187: =CNI!Z696 -> 0 | W187: =CNI!AA696 -> 0 | X187: =CNI!AB696 -> 0 | Y187: =CNI!AC696 -> 0 | Z187: =CNI!AD696 -> 0 | AA187: =CNI!AE696 -> 0 | AB187: =CNI!AF696 -> 0 | AC187: =CNI!AG696 -> 0 | AD187: =CNI!AH696 -> 0 | AE187: =CNI!AI696 -> 0 | AF187: 0
A188: =CNI!$A$699 -> Balconies & Railings | C188: =CNI!B700 -> 18 | E188: =CNI!B702 -> 8 | F188: =CNI!H706 -> 0 | G188: =CNI!G706 -> 0 | H188: =IF(CNI!O706=0,0,CNI!G706) -> 0 | I188: =CNI!I706 -> 0 | J188: 0 | K188: 0 | L188: =CNI!P706 -> 0 | M188: =CNI!Q706 -> 0 | N188: =CNI!R706 -> 0 | O188: =CNI!S706 -> 0 | P188: =CNI!T706 -> 0 | Q188: =CNI!U706 -> 0 | R188: =CNI!V706 -> 0 | S188: =CNI!W706 -> 0 | T188: =CNI!X706 -> 0 | U188: =CNI!Y706 -> 0 | V188: =CNI!Z706 -> 0 | W188: =CNI!AA706 -> 0 | X188: =CNI!AB706 -> 0 | Y188: =CNI!AC706 -> 0 | Z188: =CNI!AD706 -> 0 | AA188: =CNI!AE706 -> 0 | AB188: =CNI!AF706 -> 0 | AC188: =CNI!AG706 -> 0 | AD188: =CNI!AH706 -> 0 | AE188: =CNI!AI706 -> 0 | AF188: 0
A189: =CNI!$A$709 -> Mail Facilities | C189: =CNI!B710 -> 19 | E189: =CNI!B712 -> 9 | F189: =CNI!H716 -> 0 | G189: =CNI!G834 -> 3 | H189: =IF(CNI!O716=0,0,CNI!G716) -> 0 | I189: =CNI!I716 -> 0 | J189: 0 | K189: 0 | L189: =CNI!P716 -> 0 | M189: =CNI!Q716 -> 0 | N189: =CNI!R716 -> 0 | O189: =CNI!S716 -> 0 | P189: =CNI!T716 -> 0 | Q189: =CNI!U716 -> 0 | R189: =CNI!V716 -> 0 | S189: =CNI!W716 -> 0 | T189: =CNI!X716 -> 0 | U189: =CNI!Y716 -> 0 | V189: =CNI!Z716 -> 0 | W189: =CNI!AA716 -> 0 | X189: =CNI!AB716 -> 0 | Y189: =CNI!AC716 -> 0 | Z189: =CNI!AD716 -> 0 | AA189: =CNI!AE716 -> 0 | AB189: =CNI!AF716 -> 0 | AC189: =CNI!AG716 -> 0 | AD189: =CNI!AH716 -> 0 | AE189: =CNI!AI716 -> 0 | AF189: 0
A190: =CNI!$A$719 -> Exterior Doors | C190: =CNI!B720 -> 15 | E190: =CNI!B726 -> 0 | F190: =CNI!H732 -> LUMP SUM | G190: =CNI!G732 -> 3 | H190: =IF(CNI!O732=0,0,CNI!G732) -> 3 | I190: =CNI!I732 -> 2400 | J190: 7200 | K190: 7200 | L190: =CNI!P732 -> 0 | M190: =CNI!Q732 -> 0 | N190: =CNI!R732 -> 0 | O190: =CNI!S732 -> 0 | P190: =CNI!T732 -> 0 | Q190: =CNI!U732 -> 0 | R190: =CNI!V732 -> 0 | S190: =CNI!W732 -> 0 | T190: =CNI!X732 -> 0 | U190: =CNI!Y732 -> 0 | V190: =CNI!Z732 -> 0 | W190: =CNI!AA732 -> 0 | X190: =CNI!AB732 -> 0 | Y190: =CNI!AC732 -> 0 | Z190: =CNI!AD732 -> 7200 | AA190: =CNI!AE732 -> 0 | AB190: =CNI!AF732 -> 0 | AC190: =CNI!AG732 -> 0 | AD190: =CNI!AH732 -> 0 | AE190: =CNI!AI732 -> 0 | AF190: 0
A191: =CNI!$A$735 -> Exterior Door Frames | C191: =CNI!B736 -> 9 | E191: =CNI!B738 -> 0 | F191: =CNI!H742 -> LUMP SUM | G191: =CNI!G742 -> 1 | H191: =IF(CNI!O742=0,0,CNI!G742) -> 1 | I191: =CNI!I742 -> 1265 | J191: =ROUNDUP(+H191*I191,-2) -> 1300 | K191: 2530 | L191: =CNI!P742 -> 0 | M191: =CNI!Q742 -> 0 | N191: =CNI!R742 -> 0 | O191: =CNI!S742 -> 0 | P191: =CNI!T742 -> 0 | Q191: =CNI!U742 -> 0 | R191: =CNI!V742 -> 0 | S191: =CNI!W742 -> 0 | T191: =CNI!X742 -> 1265 | U191: =CNI!Y742 -> 0 | V191: =CNI!Z742 -> 0 | W191: =CNI!AA742 -> 0 | X191: =CNI!AB742 -> 0 | Y191: =CNI!AC742 -> 0 | Z191: =CNI!AD742 -> 0 | AA191: =CNI!AE742 -> 0 | AB191: =CNI!AF742 -> 0 | AC191: =CNI!AG742 -> 1265 | AD191: =CNI!AH742 -> 0 | AE191: =CNI!AI742 -> 0 | AF191: 0
A192: =CNI!$A$745 -> Patio Doors | C192: =CNI!B746 -> 10 | E192: =CNI!B748 -> 1 | F192: =CNI!H752 -> LUMP SUM | G192: =CNI!G752 -> 1 | H192: =IF(CNI!O752=0,0,CNI!G752) -> 0 | I192: =CNI!I752 -> 3560 | J192: =ROUNDUP(+H192*I192,-2) -> 0 | K192: 7120 | L192: =CNI!P752 -> 3560 | M192: =CNI!Q752 -> 0 | N192: =CNI!R752 -> 0 | O192: =CNI!S752 -> 0 | P192: =CNI!T752 -> 0 | Q192: =CNI!U752 -> 0 | R192: =CNI!V752 -> 0 | S192: =CNI!W752 -> 0 | T192: =CNI!X752 -> 0 | U192: =CNI!Y752 -> 0 | V192: =CNI!Z752 -> 3560 | W192: =CNI!AA752 -> 0 | X192: =CNI!AB752 -> 0 | Y192: =CNI!AC752 -> 0 | Z192: =CNI!AD752 -> 0 | AA192: =CNI!AE752 -> 0 | AB192: =CNI!AF752 -> 0 | AC192: =CNI!AG752 -> 0 | AD192: =CNI!AH752 -> 0 | AE192: =CNI!AI752 -> 0 | AF192: 0
A193: =CNI!$A$755 -> Windows | C193: =CNI!B756 -> 15 | E193: =CNI!B762 -> 0 | F193: =CNI!H768 -> LUMP SUM | G193: =CNI!G768 -> 3 | H193: =IF(CNI!O768=0,0,CNI!G768) -> 3 | I193: =CNI!I768 -> 32000 | J193: 96000 | K193: 96000 | L193: =CNI!P768 -> 0 | M193: =CNI!Q768 -> 0 | N193: =CNI!R768 -> 0 | O193: =CNI!S768 -> 0 | P193: =CNI!T768 -> 0 | Q193: =CNI!U768 -> 0 | R193: =CNI!V768 -> 0 | S193: =CNI!W768 -> 0 | T193: =CNI!X768 -> 0 | U193: =CNI!Y768 -> 0 | V193: =CNI!Z768 -> 0 | W193: =CNI!AA768 -> 0 | X193: =CNI!AB768 -> 0 | Y193: =CNI!AC768 -> 0 | Z193: =CNI!AD768 -> 96000 | AA193: =CNI!AE768 -> 0 | AB193: =CNI!AF768 -> 0 | AC193: =CNI!AG768 -> 0 | AD193: =CNI!AH768 -> 0 | AE193: =CNI!AI768 -> 0 | AF193: 0
A194: =CNI!$A$771 -> Window Frames | C194: =CNI!B772 -> 12 | E194: =CNI!B774 -> 3 | F194: =CNI!H778 -> LUMP SUM | G194: =CNI!G778 -> 1 | H194: =IF(CNI!O778=0,0,CNI!G778) -> 0 | I194: =CNI!I778 -> 14000 | J194: =ROUNDUP(+H194*I194,-2) -> 0 | K194: 28000 | L194: =CNI!P778 -> 0 | M194: =CNI!Q778 -> 0 | N194: =CNI!R778 -> 14000 | O194: =CNI!S778 -> 0 | P194: =CNI!T778 -> 0 | Q194: =CNI!U778 -> 0 | R194: =CNI!V778 -> 0 | S194: =CNI!W778 -> 0 | T194: =CNI!X778 -> 0 | U194: =CNI!Y778 -> 0 | V194: =CNI!Z778 -> 0 | W194: =CNI!AA778 -> 0 | X194: =CNI!AB778 -> 0 | Y194: =CNI!AC778 -> 0 | Z194: =CNI!AD778 -> 14000 | AA194: =CNI!AE778 -> 0 | AB194: =CNI!AF778 -> 0 | AC194: =CNI!AG778 -> 0 | AD194: =CNI!AH778 -> 0 | AE194: =CNI!AI778 -> 0 | AF194: 0
A195: =CNI!$A$781 -> Gutters/Downspouts | C195: =CNI!B782 -> 13 | E195: =CNI!B784 -> 4 | F195: =CNI!H788 -> LUMP SUM | G195: =CNI!G788 -> 1 | H195: =IF(CNI!O788=0,0,CNI!G788) -> 0 | I195: =CNI!I788 -> 3500 | J195: 0 | K195: 7000 | L195: =CNI!P788 -> 0 | M195: =CNI!Q788 -> 0 | N195: =CNI!R788 -> 0 | O195: =CNI!S788 -> 3500 | P195: =CNI!T788 -> 0 | Q195: =CNI!U788 -> 0 | R195: =CNI!V788 -> 0 | S195: =CNI!W788 -> 0 | T195: =CNI!X788 -> 0 | U195: =CNI!Y788 -> 0 | V195: =CNI!Z788 -> 0 | W195: =CNI!AA788 -> 0 | X195: =CNI!AB788 -> 0 | Y195: =CNI!AC788 -> 0 | Z195: =CNI!AD788 -> 0 | AA195: =CNI!AE788 -> 0 | AB195: =CNI!AF788 -> 3500 | AC195: =CNI!AG788 -> 0 | AD195: =CNI!AH788 -> 0 | AE195: =CNI!AI788 -> 0 | AF195: 0
A196: =CNI!$A$791 -> Columns & Porches | C196: =CNI!B792 -> 14 | E196: =CNI!B794 -> 5 | F196: =CNI!H798 -> LUMP SUM | G196: =CNI!G798 -> 1 | H196: =IF(CNI!O798=0,0,CNI!G798) -> 0 | I196: =CNI!I798 -> 2500 | J196: 0 | K196: 5000 | L196: =CNI!P798 -> 0 | M196: =CNI!Q798 -> 0 | N196: =CNI!R798 -> 0 | O196: =CNI!S798 -> 0 | P196: =CNI!T798 -> 2500 | Q196: =CNI!U798 -> 0 | R196: =CNI!V798 -> 0 | S196: =CNI!W798 -> 0 | T196: =CNI!X798 -> 0 | U196: =CNI!Y798 -> 0 | V196: =CNI!Z798 -> 0 | W196: =CNI!AA798 -> 0 | X196: =CNI!AB798 -> 0 | Y196: =CNI!AC798 -> 0 | Z196: =CNI!AD798 -> 0 | AA196: =CNI!AE798 -> 0 | AB196: =CNI!AF798 -> 0 | AC196: =CNI!AG798 -> 0 | AD196: =CNI!AH798 -> 2500 | AE196: =CNI!AI798 -> 0 | AF196: 0
A197: =CNI!$A$801 -> Decks & Patios | C197: =CNI!B802 -> 15 | E197: =CNI!B804 -> 6 | F197: =CNI!H808 -> LUMP SUM | G197: =CNI!G808 -> 1 | H197: =IF(CNI!O808=0,0,CNI!G808) -> 0 | I197: =CNI!I808 -> 1445 | J197: 0 | K197: 1445 | L197: =CNI!P808 -> 0 | M197: =CNI!Q808 -> 0 | N197: =CNI!R808 -> 0 | O197: =CNI!S808 -> 0 | P197: =CNI!T808 -> 0 | Q197: =CNI!U808 -> 1445 | R197: =CNI!V808 -> 0 | S197: =CNI!W808 -> 0 | T197: =CNI!X808 -> 0 | U197: =CNI!Y808 -> 0 | V197: =CNI!Z808 -> 0 | W197: =CNI!AA808 -> 0 | X197: =CNI!AB808 -> 0 | Y197: =CNI!AC808 -> 0 | Z197: =CNI!AD808 -> 0 | AA197: =CNI!AE808 -> 0 | AB197: =CNI!AF808 -> 0 | AC197: =CNI!AG808 -> 0 | AD197: =CNI!AH808 -> 0 | AE197: =CNI!AI808 -> 0 | AF197: 0
A198: =CNI!$A$811 -> Patio/Unit Fencing | C198: =CNI!B812 -> 16 | E198: =CNI!B814 -> 7 | F198: =CNI!H818 -> per linear ft. | G198: =CNI!G818 -> 5000 | H198: =IF(CNI!O818=0,0,CNI!G818) -> 0 | I198: =CNI!I818 -> 2.4 | J198: =ROUNDUP(+H198*I198,-2) -> 0 | K198: 12000 | L198: =CNI!P818 -> 0 | M198: =CNI!Q818 -> 0 | N198: =CNI!R818 -> 0 | O198: =CNI!S818 -> 0 | P198: =CNI!T818 -> 0 | Q198: =CNI!U818 -> 0 | R198: =CNI!V818 -> 12000 | S198: =CNI!W818 -> 0 | T198: =CNI!X818 -> 0 | U198: =CNI!Y818 -> 0 | V198: =CNI!Z818 -> 0 | W198: =CNI!AA818 -> 0 | X198: =CNI!AB818 -> 0 | Y198: =CNI!AC818 -> 0 | Z198: =CNI!AD818 -> 0 | AA198: =CNI!AE818 -> 0 | AB198: =CNI!AF818 -> 0 | AC198: =CNI!AG818 -> 0 | AD198: =CNI!AH818 -> 0 | AE198: =CNI!AI818 -> 0 | AF198: 0
A199: =CNI!$A$821 -> Exterior Lighting | C199: =CNI!B822 -> 15 | E199: =CNI!B828 -> 0 | F199: =CNI!H834 -> LUMP SUM | G199: =CNI!G834 -> 3 | H199: =IF(CNI!O834=0,0,CNI!G834) -> 3 | I199: =CNI!I834 -> 35000 | J199: =ROUNDUP(+H199*I199,-2) -> 105000 | K199: 105000 | L199: =CNI!P834 -> 0 | M199: =CNI!Q834 -> 0 | N199: =CNI!R834 -> 0 | O199: =CNI!S834 -> 0 | P199: =CNI!T834 -> 0 | Q199: =CNI!U834 -> 0 | R199: =CNI!V834 -> 0 | S199: =CNI!W834 -> 0 | T199: =CNI!X834 -> 0 | U199: =CNI!Y834 -> 0 | V199: =CNI!Z834 -> 0 | W199: =CNI!AA834 -> 0 | X199: =CNI!AB834 -> 0 | Y199: =CNI!AC834 -> 0 | Z199: =CNI!AD834 -> 105000 | AA199: =CNI!AE834 -> 0 | AB199: =CNI!AF834 -> 0 | AC199: =CNI!AG834 -> 0 | AD199: =CNI!AH834 -> 0 | AE199: =CNI!AI834 -> 0 | AF199: 0
A200: =CNI!$A$837 -> Exterior-Other 1 (Specify) | C200: =CNI!B838 -> 18 | E200: =CNI!B840 -> 9 | F200: =CNI!H844 -> 0 | G200: =CNI!G844 -> 0 | H200: =IF(CNI!O844=0,0,CNI!G844) -> 0 | I200: =CNI!I844 -> 0 | J200: =ROUNDUP(+H200*I200,-2) -> 0 | K200: 0 | L200: =CNI!P844 -> 0 | M200: =CNI!Q844 -> 0 | N200: =CNI!R844 -> 0 | O200: =CNI!S844 -> 0 | P200: =CNI!T844 -> 0 | Q200: =CNI!U844 -> 0 | R200: =CNI!V844 -> 0 | S200: =CNI!W844 -> 0 | T200: =CNI!X844 -> 0 | U200: =CNI!Y844 -> 0 | V200: =CNI!Z844 -> 0 | W200: =CNI!AA844 -> 0 | X200: =CNI!AB844 -> 0 | Y200: =CNI!AC844 -> 0 | Z200: =CNI!AD844 -> 0 | AA200: =CNI!AE844 -> 0 | AB200: =CNI!AF844 -> 0 | AC200: =CNI!AG844 -> 0 | AD200: =CNI!AH844 -> 0 | AE200: =CNI!AI844 -> 0 | AF200: 0
A201: =CNI!$A$847 -> Exterior-Other 2 (Specify) | C201: =CNI!B848 -> 19 | E201: =CNI!B850 -> 10 | F201: =CNI!H854 -> 0 | G201: =CNI!G854 -> 0 | H201: =IF(CNI!O854=0,0,CNI!G854) -> 0 | I201: =CNI!I854 -> 0 | J201: =ROUNDUP(+H201*I201,-2) -> 0 | K201: 0 | L201: =CNI!P854 -> 0 | M201: =CNI!Q854 -> 0 | N201: =CNI!R854 -> 0 | O201: =CNI!S854 -> 0 | P201: =CNI!T854 -> 0 | Q201: =CNI!U854 -> 0 | R201: =CNI!V854 -> 0 | S201: =CNI!W854 -> 0 | T201: =CNI!X854 -> 0 | U201: =CNI!Y854 -> 0 | V201: =CNI!Z854 -> 0 | W201: =CNI!AA854 -> 0 | X201: =CNI!AB854 -> 0 | Y201: =CNI!AC854 -> 0 | Z201: =CNI!AD854 -> 0 | AA201: =CNI!AE854 -> 0 | AB201: =CNI!AF854 -> 0 | AC201: =CNI!AG854 -> 0 | AD201: =CNI!AH854 -> 0 | AE201: =CNI!AI854 -> 0 | AF201: 0
A202: =CNI!$A$857 -> Exterior-Other 3 (Specify) | C202: =CNI!B858 -> 20 | E202: =CNI!B860 -> 11 | F202: =CNI!H864 -> 0 | G202: =CNI!G864 -> 0 | H202: =IF(CNI!O864=0,0,CNI!G864) -> 0 | I202: =CNI!I864 -> 0 | J202: 0 | K202: 0 | L202: =CNI!P864 -> 0 | M202: =CNI!Q864 -> 0 | N202: =CNI!R864 -> 0 | O202: =CNI!S864 -> 0 | P202: =CNI!T864 -> 0 | Q202: =CNI!U864 -> 0 | R202: =CNI!V864 -> 0 | S202: =CNI!W864 -> 0 | T202: =CNI!X864 -> 0 | U202: =CNI!Y864 -> 0 | V202: =CNI!Z864 -> 0 | W202: =CNI!AA864 -> 0 | X202: =CNI!AB864 -> 0 | Y202: =CNI!AC864 -> 0 | Z202: =CNI!AD864 -> 0 | AA202: =CNI!AE864 -> 0 | AB202: =CNI!AF864 -> 0 | AC202: =CNI!AG864 -> 0 | AD202: =CNI!AH864 -> 0 | AE202: =CNI!AI864 -> 0 | AF202: 0
A203: =CNI!$A$867 -> Exterior-Other 4 (Specify) | C203: =CNI!B868 -> 8 | E203: =CNI!B870 -> 0 | F203: =CNI!H874 -> 0 | G203: =CNI!G874 -> 0 | H203: =IF(CNI!O874=0,0,CNI!G874) -> 0 | I203: =CNI!I874 -> 0 | J203: 0 | K203: 0 | L203: =CNI!P874 -> 0 | M203: =CNI!Q874 -> 0 | N203: =CNI!R874 -> 0 | O203: =CNI!S874 -> 0 | P203: =CNI!T874 -> 0 | Q203: =CNI!U874 -> 0 | R203: =CNI!V874 -> 0 | S203: =CNI!W874 -> 0 | T203: =CNI!X874 -> 0 | U203: =CNI!Y874 -> 0 | V203: =CNI!Z874 -> 0 | W203: =CNI!AA874 -> 0 | X203: =CNI!AB874 -> 0 | Y203: =CNI!AC874 -> 0 | Z203: =CNI!AD874 -> 0 | AA203: =CNI!AE874 -> 0 | AB203: =CNI!AF874 -> 0 | AC203: =CNI!AG874 -> 0 | AD203: =CNI!AH874 -> 0 | AE203: =CNI!AI874 -> 0 | AF203: 0
A204: =CNI!$A$877 -> Exterior-Other 5 (Specify) | C204: =CNI!B878 -> 9 | E204: =CNI!B880 -> 1 | F204: =CNI!H884 -> 0 | G204: =CNI!G884 -> 0 | H204: =IF(CNI!O884=0,0,CNI!G884) -> 0 | I204: =CNI!I884 -> 0 | J204: 0 | K204: 0 | L204: =CNI!P884 -> 0 | M204: =CNI!Q884 -> 0 | N204: =CNI!R884 -> 0 | O204: =CNI!S884 -> 0 | P204: =CNI!T884 -> 0 | Q204: =CNI!U884 -> 0 | R204: =CNI!V884 -> 0 | S204: =CNI!W884 -> 0 | T204: =CNI!X884 -> 0 | U204: =CNI!Y884 -> 0 | V204: =CNI!Z884 -> 0 | W204: =CNI!AA884 -> 0 | X204: =CNI!AB884 -> 0 | Y204: =CNI!AC884 -> 0 | Z204: =CNI!AD884 -> 0 | AA204: =CNI!AE884 -> 0 | AB204: =CNI!AF884 -> 0 | AC204: =CNI!AG884 -> 0 | AD204: =CNI!AH884 -> 0 | AE204: =CNI!AI884 -> 0 | AF204: 0
A205: =CNI!$A$887 -> Exterior-Other 6 (Specify) | C205: =CNI!B888 -> 10 | E205: =CNI!B890 -> 2 | F205: =CNI!H894 -> 0 | G205: =CNI!G894 -> 0 | H205: =IF(CNI!O894=0,0,CNI!G894) -> 0 | I205: =CNI!I894 -> 0 | J205: 0 | K205: 0 | L205: =CNI!P894 -> 0 | M205: =CNI!Q894 -> 0 | N205: =CNI!R894 -> 0 | O205: =CNI!S894 -> 0 | P205: =CNI!T894 -> 0 | Q205: =CNI!U894 -> 0 | R205: =CNI!V894 -> 0 | S205: =CNI!W894 -> 0 | T205: =CNI!X894 -> 0 | U205: =CNI!Y894 -> 0 | V205: =CNI!Z894 -> 0 | W205: =CNI!AA894 -> 0 | X205: =CNI!AB894 -> 0 | Y205: =CNI!AC894 -> 0 | Z205: =CNI!AD894 -> 0 | AA205: =CNI!AE894 -> 0 | AB205: =CNI!AF894 -> 0 | AC205: =CNI!AG894 -> 0 | AD205: =CNI!AH894 -> 0 | AE205: =CNI!AI894 -> 0 | AF205: 0
A206: =CNI!$A$897 -> Exterior-Other 7 (Specify) | C206: =CNI!B898 -> 11 | E206: =CNI!B900 -> 3 | F206: =CNI!H904 -> 0 | G206: =CNI!G904 -> 0 | H206: =IF(CNI!O904=0,0,CNI!G904) -> 0 | I206: =CNI!I904 -> 0 | J206: 0 | K206: 0 | L206: =CNI!P904 -> 0 | M206: =CNI!Q904 -> 0 | N206: =CNI!R904 -> 0 | O206: =CNI!S904 -> 0 | P206: =CNI!T904 -> 0 | Q206: =CNI!U904 -> 0 | R206: =CNI!V904 -> 0 | S206: =CNI!W904 -> 0 | T206: =CNI!X904 -> 0 | U206: =CNI!Y904 -> 0 | V206: =CNI!Z904 -> 0 | W206: =CNI!AA904 -> 0 | X206: =CNI!AB904 -> 0 | Y206: =CNI!AC904 -> 0 | Z206: =CNI!AD904 -> 0 | AA206: =CNI!AE904 -> 0 | AB206: =CNI!AF904 -> 0 | AC206: =CNI!AG904 -> 0 | AD206: =CNI!AH904 -> 0 | AE206: =CNI!AI904 -> 0 | AF206: 0
A207: =CNI!$A$907 -> Exterior-Other 8 (Specify) | C207: =CNI!B908 -> 12 | E207: =CNI!B910 -> 4 | F207: =CNI!H914 -> 0 | G207: =CNI!G914 -> 0 | H207: =IF(CNI!O914=0,0,CNI!G914) -> 0 | I207: =CNI!I914 -> 0 | J207: 0 | K207: 0 | L207: =CNI!P914 -> 0 | M207: =CNI!Q914 -> 0 | N207: =CNI!R914 -> 0 | O207: =CNI!S914 -> 0 | P207: =CNI!T914 -> 0 | Q207: =CNI!U914 -> 0 | R207: =CNI!V914 -> 0 | S207: =CNI!W914 -> 0 | T207: =CNI!X914 -> 0 | U207: =CNI!Y914 -> 0 | V207: =CNI!Z914 -> 0 | W207: =CNI!AA914 -> 0 | X207: =CNI!AB914 -> 0 | Y207: =CNI!AC914 -> 0 | Z207: =CNI!AD914 -> 0 | AA207: =CNI!AE914 -> 0 | AB207: =CNI!AF914 -> 0 | AC207: =CNI!AG914 -> 0 | AD207: =CNI!AH914 -> 0 | AE207: =CNI!AI914 -> 0 | AF207: 0
A208: =CNI!$A$917 -> Exterior-Other 9 (Specify) | C208: =CNI!B918 -> 13 | E208: =CNI!B920 -> 5 | F208: =CNI!H924 -> 0 | G208: =CNI!G924 -> 0 | H208: =IF(CNI!O924=0,0,CNI!G924) -> 0 | I208: =CNI!I924 -> 0 | J208: 0 | K208: 0 | L208: =CNI!P924 -> 0 | M208: =CNI!Q924 -> 0 | N208: =CNI!R924 -> 0 | O208: =CNI!S924 -> 0 | P208: =CNI!T924 -> 0 | Q208: =CNI!U924 -> 0 | R208: =CNI!V924 -> 0 | S208: =CNI!W924 -> 0 | T208: =CNI!X924 -> 0 | U208: =CNI!Y924 -> 0 | V208: =CNI!Z924 -> 0 | W208: =CNI!AA924 -> 0 | X208: =CNI!AB924 -> 0 | Y208: =CNI!AC924 -> 0 | Z208: =CNI!AD924 -> 0 | AA208: =CNI!AE924 -> 0 | AB208: =CNI!AF924 -> 0 | AC208: =CNI!AG924 -> 0 | AD208: =CNI!AH924 -> 0 | AE208: =CNI!AI924 -> 0 | AF208: 0
A209: =CNI!$A$927 -> Exterior-Other 10 (Specify) | C209: =CNI!B928 -> 14 | E209: =CNI!B930 -> 6 | F209: =CNI!H934 -> 0 | G209: =CNI!G934 -> 0 | H209: =IF(CNI!O934=0,0,CNI!G934) -> 0 | I209: =CNI!I934 -> 0 | J209: =ROUNDUP(+H209*I209,-2) -> 0 | K209: 0 | L209: =CNI!P934 -> 0 | M209: =CNI!Q934 -> 0 | N209: =CNI!R934 -> 0 | O209: =CNI!S934 -> 0 | P209: =CNI!T934 -> 0 | Q209: =CNI!U934 -> 0 | R209: =CNI!V934 -> 0 | S209: =CNI!W934 -> 0 | T209: =CNI!X934 -> 0 | U209: =CNI!Y934 -> 0 | V209: =CNI!Z934 -> 0 | W209: =CNI!AA934 -> 0 | X209: =CNI!AB934 -> 0 | Y209: =CNI!AC934 -> 0 | Z209: =CNI!AD934 -> 0 | AA209: =CNI!AE934 -> 0 | AB209: =CNI!AF934 -> 0 | AC209: =CNI!AG934 -> 0 | AD209: =CNI!AH934 -> 0 | AE209: =CNI!AI934 -> 0 | AF209: 0
A210: Unit Exteriors-STANDARD Subtotals | J210: =SUM(J174:J209) -> 351000 | K210: 490495 | L210: =SUM(L174:L209) -> 3560 | M210: =SUM(M174:M209) -> 0 | N210: 37600 | O210: 10000 | P210: 5000 | Q210: 1445 | R210: 12000 | S210: 0 | T210: 1265 | U210: 12500 | V210: 3560 | W210: 0 | X210: 0 | Y210: 0 | Z210: 351200 | AA210: 23600 | AB210: 3500 | AC210: 2765 | AD210: 7500 | AE210: 15000 | AF210: 0
A212: (4.0) Standard Physical Needs Cost Estimate (Cont'd)
A214: (4.1) Category | C214: (4.2) Estimated Useful Life | E214: (4.3) Useful Life Remaining | F214: (4.4) Method | G214: (4.5) Total Quantity | H214: (4.6) Current Needs Quantity | I214: (4.7) Cost per Quantity | J214: (4.8) Immediate Repairs Needed | K214: (4.9) Total Long Term Needs | L214: =+$G$7+1 -> 2011 | M214: =1+L214 -> 2012 | N214: 2013 | O214: 2014 | P214: 2015 | Q214: 2016 | R214: 2017 | S214: 2018 | T214: 2019 | U214: 2020 | V214: 2021 | W214: 2022 | X214: 2023 | Y214: 2024 | Z214: 2025 | AA214: 2026 | AB214: 2027 | AC214: 2028 | AD214: 2029 | AE214: 2030
A215: (4.13) Unit Interiors-STANDARD | C215: years | E215: years | I215: $ | J215: $ | K215: $ | O215: Years 1-5 | P215: =SUM(L250:P250) -> 250500 | T215: Years 6-10 | U215: =SUM(Q250:U250) -> 327400 | Y215: Years 11-15 | Z215: =SUM(V250:Z250) -> 650200 | AD215: Years 16-20 | AE215: =SUM(AA250:AE250) -> 168700
A216: =CNI!$A$947 -> Interior Painting (non-routine) | C216: =CNI!B948 -> 15 | E216: =CNI!B950 -> 7 | F216: =CNI!H954 -> LUMP SUM | G216: =CNI!G954 -> 1 | H216: =IF(CNI!O954=0,0,CNI!G954) -> 0 | I216: =CNI!I954 -> 3500 | J216: =ROUNDUP(+H216*I216,-2) -> 0 | K216: =SUM(L216:AE216) -> 3500 | L216: =CNI!P954 -> 0 | M216: =CNI!Q954 -> 0 | N216: =CNI!R954 -> 0 | O216: =CNI!S954 -> 0 | P216: =CNI!T954 -> 0 | Q216: =CNI!U954 -> 0 | R216: =CNI!V954 -> 3500 | S216: =CNI!W954 -> 0 | T216: =CNI!X954 -> 0 | U216: =CNI!Y954 -> 0 | V216: =CNI!Z954 -> 0 | W216: =CNI!AA954 -> 0 | X216: =CNI!AB954 -> 0 | Y216: =CNI!AC954 -> 0 | Z216: =CNI!AD954 -> 0 | AA216: =CNI!AE954 -> 0 | AB216: =CNI!AF954 -> 0 | AC216: =CNI!AG954 -> 0 | AD216: =CNI!AH954 -> 0 | AE216: =CNI!AI954 -> 0 | AF216: =SUM(L216:AE216)-K216 -> 0
A217: =CNI!$A$957 -> Interior Doors | C217: =CNI!B958 -> 16 | E217: =CNI!B960 -> 8 | F217: =CNI!H964 -> LUMP SUM | G217: =CNI!G964 -> 1 | H217: =IF(CNI!O964=0,0,CNI!G964) -> 0 | I217: =CNI!I964 -> 4500 | J217: 0 | K217: 4500 | L217: =CNI!P964 -> 0 | M217: =CNI!Q964 -> 0 | N217: =CNI!R964 -> 0 | O217: =CNI!S964 -> 0 | P217: =CNI!T964 -> 0 | Q217: =CNI!U964 -> 0 | R217: =CNI!V964 -> 0 | S217: =CNI!W964 -> 4500 | T217: =CNI!X964 -> 0 | U217: =CNI!Y964 -> 0 | V217: =CNI!Z964 -> 0 | W217: =CNI!AA964 -> 0 | X217: =CNI!AB964 -> 0 | Y217: =CNI!AC964 -> 0 | Z217: =CNI!AD964 -> 0 | AA217: =CNI!AE964 -> 0 | AB217: =CNI!AF964 -> 0 | AC217: =CNI!AG964 -> 0 | AD217: =CNI!AH964 -> 0 | AE217: =CNI!AI964 -> 0 | AF217: 0
A218: =CNI!$A$967 -> Interior Door Frames | C218: =CNI!B968 -> 17 | E218: =CNI!B970 -> 9 | F218: =CNI!H974 -> LUMP SUM | G218: =CNI!G974 -> 1 | H218: =IF(CNI!O974=0,0,CNI!G974) -> 0 | I218: =CNI!I974 -> 1200 | J218: 0 | K218: 1200 | L218: =CNI!P974 -> 0 | M218: =CNI!Q974 -> 0 | N218: =CNI!R974 -> 0 | O218: =CNI!S974 -> 0 | P218: =CNI!T974 -> 0 | Q218: =CNI!U974 -> 0 | R218: =CNI!V974 -> 0 | S218: =CNI!W974 -> 0 | T218: =CNI!X974 -> 1200 | U218: =CNI!Y974 -> 0 | V218: =CNI!Z974 -> 0 | W218: =CNI!AA974 -> 0 | X218: =CNI!AB974 -> 0 | Y218: =CNI!AC974 -> 0 | Z218: =CNI!AD974 -> 0 | AA218: =CNI!AE974 -> 0 | AB218: =CNI!AF974 -> 0 | AC218: =CNI!AG974 -> 0 | AD218: =CNI!AH974 -> 0 | AE218: =CNI!AI974 -> 0 | AF218: 0
A219: =CNI!$A$977 -> Flooring (non-routine) | C219: =CNI!B978 -> 18 | E219: =CNI!B980 -> 10 | F219: =CNI!H984 -> per 1000 SF | G219: =CNI!G984 -> 24 | H219: =IF(CNI!O984=0,0,CNI!G984) -> 0 | I219: =CNI!I984 -> 3000 | J219: 0 | K219: 72000 | L219: =CNI!P984 -> 0 | M219: =CNI!Q984 -> 0 | N219: =CNI!R984 -> 0 | O219: =CNI!S984 -> 0 | P219: =CNI!T984 -> 0 | Q219: =CNI!U984 -> 0 | R219: =CNI!V984 -> 0 | S219: =CNI!W984 -> 0 | T219: =CNI!X984 -> 0 | U219: =CNI!Y984 -> 72000 | V219: =CNI!Z984 -> 0 | W219: =CNI!AA984 -> 0 | X219: =CNI!AB984 -> 0 | Y219: =CNI!AC984 -> 0 | Z219: =CNI!AD984 -> 0 | AA219: =CNI!AE984 -> 0 | AB219: =CNI!AF984 -> 0 | AC219: =CNI!AG984 -> 0 | AD219: =CNI!AH984 -> 0 | AE219: =CNI!AI984 -> 0 | AF219: 0
A220: =CNI!$A$987 -> Shower/Tub Surrounds | C220: =CNI!B988 -> 15 | E220: =CNI!B994 -> 0 | F220: =CNI!H1000 -> each | G220: =CNI!G1000 -> 200 | H220: =IF(CNI!O1000=0,0,CNI!G1000) -> 200 | I220: =CNI!I1000 -> 24 | J220: 4800 | K220: 4800 | L220: =CNI!P1000 -> 0 | M220: =CNI!Q1000 -> 0 | N220: =CNI!R1000 -> 0 | O220: =CNI!S1000 -> 0 | P220: =CNI!T1000 -> 0 | Q220: =CNI!U1000 -> 0 | R220: =CNI!V1000 -> 0 | S220: =CNI!W1000 -> 0 | T220: =CNI!X1000 -> 0 | U220: =CNI!Y1000 -> 0 | V220: =CNI!Z1000 -> 0 | W220: =CNI!AA1000 -> 0 | X220: =CNI!AB1000 -> 0 | Y220: =CNI!AC1000 -> 0 | Z220: =CNI!AD1000 -> 4800 | AA220: =CNI!AE1000 -> 0 | AB220: =CNI!AF1000 -> 0 | AC220: =CNI!AG1000 -> 0 | AD220: =CNI!AH1000 -> 0 | AE220: =CNI!AI1000 -> 0 | AF220: 0
A221: =CNI!$A$1003 -> Toilets | C221: =CNI!B1004 -> 15 | E221: =CNI!B1010 -> 0 | F221: =CNI!H1016 -> each | G221: =CNI!G1016 -> 200 | H221: =IF(CNI!O1016=0,0,CNI!G1016) -> 200 | I221: =CNI!I1016 -> 300 | J221: 60000 | K221: 60000 | L221: =CNI!P1016 -> 0 | M221: =CNI!Q1016 -> 0 | N221: =CNI!R1016 -> 0 | O221: =CNI!S1016 -> 0 | P221: =CNI!T1016 -> 0 | Q221: =CNI!U1016 -> 0 | R221: =CNI!V1016 -> 0 | S221: =CNI!W1016 -> 0 | T221: =CNI!X1016 -> 0 | U221: =CNI!Y1016 -> 0 | V221: =CNI!Z1016 -> 0 | W221: =CNI!AA1016 -> 0 | X221: =CNI!AB1016 -> 0 | Y221: =CNI!AC1016 -> 0 | Z221: =CNI!AD1016 -> 60000 | AA221: =CNI!AE1016 -> 0 | AB221: =CNI!AF1016 -> 0 | AC221: =CNI!AG1016 -> 0 | AD221: =CNI!AH1016 -> 0 | AE221: =CNI!AI1016 -> 0 | AF221: 0
A222: =CNI!$A$1019 -> Vanities | C222: =CNI!B1020 -> 7 | E222: =CNI!B1022 -> 0 | F222: =CNI!H1026 -> LUMP SUM | G222: =CNI!G1026 -> 1 | H222: =IF(CNI!O1026=0,0,CNI!G1026) -> 1 | I222: =CNI!I1026 -> 13400 | J222: 13400 | K222: 26800 | L222: =CNI!P1026 -> 0 | M222: =CNI!Q1026 -> 0 | N222: =CNI!R1026 -> 0 | O222: =CNI!S1026 -> 0 | P222: =CNI!T1026 -> 0 | Q222: =CNI!U1026 -> 0 | R222: =CNI!V1026 -> 13400 | S222: =CNI!W1026 -> 0 | T222: =CNI!X1026 -> 0 | U222: =CNI!Y1026 -> 0 | V222: =CNI!Z1026 -> 0 | W222: =CNI!AA1026 -> 0 | X222: =CNI!AB1026 -> 0 | Y222: =CNI!AC1026 -> 13400 | Z222: =CNI!AD1026 -> 0 | AA222: =CNI!AE1026 -> 0 | AB222: =CNI!AF1026 -> 0 | AC222: =CNI!AG1026 -> 0 | AD222: =CNI!AH1026 -> 0 | AE222: =CNI!AI1026 -> 0 | AF222: 0
A223: =CNI!$A$1029 -> Faucets | C223: =CNI!B1030 -> 15 | E223: =CNI!B1036 -> 0 | F223: =CNI!H1042 -> each | G223: =CNI!G1042 -> 400 | H223: =IF(CNI!O1042=0,0,CNI!G1042) -> 400 | I223: =CNI!I1042 -> 3 | J223: 1200 | K223: 1200 | L223: =CNI!P1042 -> 0 | M223: =CNI!Q1042 -> 0 | N223: =CNI!R1042 -> 0 | O223: =CNI!S1042 -> 0 | P223: =CNI!T1042 -> 0 | Q223: =CNI!U1042 -> 0 | R223: =CNI!V1042 -> 0 | S223: =CNI!W1042 -> 0 | T223: =CNI!X1042 -> 0 | U223: =CNI!Y1042 -> 0 | V223: =CNI!Z1042 -> 0 | W223: =CNI!AA1042 -> 0 | X223: =CNI!AB1042 -> 0 | Y223: =CNI!AC1042 -> 0 | Z223: =CNI!AD1042 -> 1200 | AA223: =CNI!AE1042 -> 0 | AB223: =CNI!AF1042 -> 0 | AC223: =CNI!AG1042 -> 0 | AD223: =CNI!AH1042 -> 0 | AE223: =CNI!AI1042 -> 0 | AF223: 0
A224: =CNI!$A$1045 -> Bathroom Flooring (non-cyclical) | C224: =CNI!B1046 -> 9 | E224: =CNI!B1048 -> 2 | F224: =CNI!H1052 -> per 1000 SF | G224: =CNI!G1052 -> 24 | H224: =IF(CNI!O1052=0,0,CNI!G1052) -> 0 | I224: =CNI!I1052 -> 2500 | J224: 0 | K224: 180000 | L224: =CNI!P1052 -> 0 | M224: =CNI!Q1052 -> 60000 | N224: =CNI!R1052 -> 0 | O224: =CNI!S1052 -> 0 | P224: =CNI!T1052 -> 0 | Q224: =CNI!U1052 -> 0 | R224: =CNI!V1052 -> 0 | S224: =CNI!W1052 -> 0 | T224: =CNI!X1052 -> 0 | U224: =CNI!Y1052 -> 0 | V224: =CNI!Z1052 -> 60000 | W224: =CNI!AA1052 -> 0 | X224: =CNI!AB1052 -> 0 | Y224: =CNI!AC1052 -> 0 | Z224: =CNI!AD1052 -> 0 | AA224: =CNI!AE1052 -> 0 | AB224: =CNI!AF1052 -> 0 | AC224: =CNI!AG1052 -> 0 | AD224: =CNI!AH1052 -> 0 | AE224: =CNI!AI1052 -> 60000 | AF224: 0
A225: =CNI!$A$1055 -> Bathroom Cabinets | C225: =CNI!B1056 -> 10 | E225: =CNI!B1058 -> 3 | F225: =CNI!H1062 -> LUMP SUM | G225: =CNI!G1062 -> 1 | H225: =IF(CNI!O1062=0,0,CNI!G1062) -> 0 | I225: =CNI!I1062 -> 5800 | J225: 0 | K225: 11600 | L225: =CNI!P1062 -> 0 | M225: =CNI!Q1062 -> 0 | N225: =CNI!R1062 -> 5800 | O225: =CNI!S1062 -> 0 | P225: =CNI!T1062 -> 0 | Q225: =CNI!U1062 -> 0 | R225: =CNI!V1062 -> 0 | S225: =CNI!W1062 -> 0 | T225: =CNI!X1062 -> 0 | U225: =CNI!Y1062 -> 0 | V225: =CNI!Z1062 -> 0 | W225: =CNI!AA1062 -> 0 | X225: =CNI!AB1062 -> 5800 | Y225: =CNI!AC1062 -> 0 | Z225: =CNI!AD1062 -> 0 | AA225: =CNI!AE1062 -> 0 | AB225: =CNI!AF1062 -> 0 | AC225: =CNI!AG1062 -> 0 | AD225: =CNI!AH1062 -> 0 | AE225: =CNI!AI1062 -> 0 | AF225: 0
A226: =CNI!$A$1065 -> Bathroom Exhaust Fans | C226: =CNI!B1066 -> 11 | E226: =CNI!B1068 -> 4 | F226: =CNI!H1072 -> each | G226: =CNI!G1072 -> 200 | H226: =IF(CNI!O1072=0,0,CNI!G1072) -> 0 | I226: =CNI!I1072 -> 230 | J226: 0 | K226: 92000 | L226: =CNI!P1072 -> 0 | M226: =CNI!Q1072 -> 0 | N226: =CNI!R1072 -> 0 | O226: =CNI!S1072 -> 46000 | P226: =CNI!T1072 -> 0 | Q226: =CNI!U1072 -> 0 | R226: =CNI!V1072 -> 0 | S226: =CNI!W1072 -> 0 | T226: =CNI!X1072 -> 0 | U226: =CNI!Y1072 -> 0 | V226: =CNI!Z1072 -> 0 | W226: =CNI!AA1072 -> 0 | X226: =CNI!AB1072 -> 0 | Y226: =CNI!AC1072 -> 0 | Z226: =CNI!AD1072 -> 46000 | AA226: =CNI!AE1072 -> 0 | AB226: =CNI!AF1072 -> 0 | AC226: =CNI!AG1072 -> 0 | AD226: =CNI!AH1072 -> 0 | AE226: =CNI!AI1072 -> 0 | AF226: 0
A227: =CNI!$A$1075 -> Kitchen Cabinets | C227: =CNI!B1076 -> 12 | E227: =CNI!B1078 -> 5 | F227: =CNI!H1082 -> LUMP SUM | G227: =CNI!G1082 -> 1 | H227: =IF(CNI!O1082=0,0,CNI!G1082) -> 0 | I227: =CNI!I1082 -> 18700 | J227: 0 | K227: 37400 | L227: =CNI!P1082 -> 0 | M227: =CNI!Q1082 -> 0 | N227: =CNI!R1082 -> 0 | O227: =CNI!S1082 -> 0 | P227: =CNI!T1082 -> 18700 | Q227: =CNI!U1082 -> 0 | R227: =CNI!V1082 -> 0 | S227: =CNI!W1082 -> 0 | T227: =CNI!X1082 -> 0 | U227: =CNI!Y1082 -> 0 | V227: =CNI!Z1082 -> 0 | W227: =CNI!AA1082 -> 0 | X227: =CNI!AB1082 -> 0 | Y227: =CNI!AC1082 -> 0 | Z227: =CNI!AD1082 -> 0 | AA227: =CNI!AE1082 -> 0 | AB227: =CNI!AF1082 -> 18700 | AC227: =CNI!AG1082 -> 0 | AD227: =CNI!AH1082 -> 0 | AE227: =CNI!AI1082 -> 0 | AF227: 0
A228: =CNI!$A$1085 -> Ranges | C228: =CNI!B1086 -> 13 | E228: =CNI!B1088 -> 6 | F228: =CNI!H1092 -> LUMP SUM | G228: =CNI!G1092 -> 200 | H228: =IF(CNI!O1092=0,0,CNI!G1092) -> 0 | I228: =CNI!I1092 -> 450 | J228: 0 | K228: 180000 | L228: =CNI!P1092 -> 0 | M228: =CNI!Q1092 -> 0 | N228: =CNI!R1092 -> 0 | O228: =CNI!S1092 -> 0 | P228: =CNI!T1092 -> 0 | Q228: =CNI!U1092 -> 90000 | R228: =CNI!V1092 -> 0 | S228: =CNI!W1092 -> 0 | T228: =CNI!X1092 -> 0 | U228: =CNI!Y1092 -> 0 | V228: =CNI!Z1092 -> 0 | W228: =CNI!AA1092 -> 0 | X228: =CNI!AB1092 -> 0 | Y228: =CNI!AC1092 -> 0 | Z228: =CNI!AD1092 -> 0 | AA228: =CNI!AE1092 -> 0 | AB228: =CNI!AF1092 -> 0 | AC228: =CNI!AG1092 -> 0 | AD228: =CNI!AH1092 -> 90000 | AE228: =CNI!AI1092 -> 0 | AF228: 0
A229: =CNI!$A$1095 -> Range Hoods | C229: =CNI!B1096 -> 14 | E229: =CNI!B1098 -> 7 | F229: =CNI!H1102 -> each | G229: =CNI!G1102 -> 200 | H229: =IF(CNI!O1102=0,0,CNI!G1102) -> 0 | I229: =CNI!I1102 -> 86 | J229: 0 | K229: 17200 | L229: =CNI!P1102 -> 0 | M229: =CNI!Q1102 -> 0 | N229: =CNI!R1102 -> 0 | O229: =CNI!S1102 -> 0 | P229: =CNI!T1102 -> 0 | Q229: =CNI!U1102 -> 0 | R229: =CNI!V1102 -> 17200 | S229: =CNI!W1102 -> 0 | T229: =CNI!X1102 -> 0 | U229: =CNI!Y1102 -> 0 | V229: =CNI!Z1102 -> 0 | W229: =CNI!AA1102 -> 0 | X229: =CNI!AB1102 -> 0 | Y229: =CNI!AC1102 -> 0 | Z229: =CNI!AD1102 -> 0 | AA229: =CNI!AE1102 -> 0 | AB229: =CNI!AF1102 -> 0 | AC229: =CNI!AG1102 -> 0 | AD229: =CNI!AH1102 -> 0 | AE229: =CNI!AI1102 -> 0 | AF229: 0
A230: =CNI!$A$1105 -> Refrigerators | C230: =CNI!B1106 -> 15 | E230: =CNI!B1112 -> 0 | F230: =CNI!H1118 -> each | G230: =CNI!G1118 -> 200 | H230: =IF(CNI!O1118=0,0,CNI!G1118) -> 200 | I230: =CNI!I1118 -> 350 | J230: 70000 | K230: 70000 | L230: =CNI!P1118 -> 0 | M230: =CNI!Q1118 -> 0 | N230: =CNI!R1118 -> 0 | O230: =CNI!S1118 -> 0 | P230: =CNI!T1118 -> 0 | Q230: =CNI!U1118 -> 0 | R230: =CNI!V1118 -> 0 | S230: =CNI!W1118 -> 0 | T230: =CNI!X1118 -> 0 | U230: =CNI!Y1118 -> 0 | V230: =CNI!Z1118 -> 0 | W230: =CNI!AA1118 -> 0 | X230: =CNI!AB1118 -> 0 | Y230: =CNI!AC1118 -> 0 | Z230: =CNI!AD1118 -> 70000 | AA230: =CNI!AE1118 -> 0 | AB230: =CNI!AF1118 -> 0 | AC230: =CNI!AG1118 -> 0 | AD230: =CNI!AH1118 -> 0 | AE230: =CNI!AI1118 -> 0 | AF230: 0
A231: =CNI!$A$1121 -> Counters and Sinks | C231: =CNI!B1122 -> 16 | E231: =CNI!B1124 -> 9 | F231: =CNI!H1128 -> LUMP SUM | G231: =CNI!G1128 -> 1 | H231: =IF(CNI!O1128=0,0,CNI!G1128) -> 0 | I231: =CNI!I1128 -> 5600 | J231: 0 | K231: 5600 | L231: =CNI!P1128 -> 0 | M231: =CNI!Q1128 -> 0 | N231: =CNI!R1128 -> 0 | O231: =CNI!S1128 -> 0 | P231: =CNI!T1128 -> 0 | Q231: =CNI!U1128 -> 0 | R231: =CNI!V1128 -> 0 | S231: =CNI!W1128 -> 0 | T231: =CNI!X1128 -> 5600 | U231: =CNI!Y1128 -> 0 | V231: =CNI!Z1128 -> 0 | W231: =CNI!AA1128 -> 0 | X231: =CNI!AB1128 -> 0 | Y231: =CNI!AC1128 -> 0 | Z231: =CNI!AD1128 -> 0 | AA231: =CNI!AE1128 -> 0 | AB231: =CNI!AF1128 -> 0 | AC231: =CNI!AG1128 -> 0 | AD231: =CNI!AH1128 -> 0 | AE231: =CNI!AI1128 -> 0 | AF231: 0
A232: =CNI!$A$1131 -> Dishwasher | C232: =CNI!B1132 -> 15 | E232: =CNI!B1138 -> 0 | F232: =CNI!H1144 -> each | G232: =CNI!G1144 -> 100 | H232: =IF(CNI!O1144=0,0,CNI!G1144) -> 100 | I232: =CNI!I1144 -> 450 | J232: 45000 | K232: 45000 | L232: =CNI!P1144 -> 0 | M232: =CNI!Q1144 -> 0 | N232: =CNI!R1144 -> 0 | O232: =CNI!S1144 -> 0 | P232: =CNI!T1144 -> 0 | Q232: =CNI!U1144 -> 0 | R232: =CNI!V1144 -> 0 | S232: =CNI!W1144 -> 0 | T232: =CNI!X1144 -> 0 | U232: =CNI!Y1144 -> 0 | V232: =CNI!Z1144 -> 0 | W232: =CNI!AA1144 -> 0 | X232: =CNI!AB1144 -> 0 | Y232: =CNI!AC1144 -> 0 | Z232: =CNI!AD1144 -> 45000 | AA232: =CNI!AE1144 -> 0 | AB232: =CNI!AF1144 -> 0 | AC232: =CNI!AG1144 -> 0 | AD232: =CNI!AH1144 -> 0 | AE232: =CNI!AI1144 -> 0 | AF232: 0
A233: =CNI!$A$1147 -> Garbage Disposal | C233: =CNI!B1148 -> 18 | E233: =CNI!B1150 -> 11 | F233: =CNI!H1154 -> each | G233: =CNI!G1154 -> 200 | H233: =IF(CNI!O1154=0,0,CNI!G1154) -> 0 | I233: =CNI!I1154 -> 300 | J233: 0 | K233: 60000 | L233: =CNI!P1154 -> 0 | M233: =CNI!Q1154 -> 0 | N233: =CNI!R1154 -> 0 | O233: =CNI!S1154 -> 0 | P233: =CNI!T1154 -> 0 | Q233: =CNI!U1154 -> 0 | R233: =CNI!V1154 -> 0 | S233: =CNI!W1154 -> 0 | T233: =CNI!X1154 -> 0 | U233: =CNI!Y1154 -> 0 | V233: =CNI!Z1154 -> 60000 | W233: =CNI!AA1154 -> 0 | X233: =CNI!AB1154 -> 0 | Y233: =CNI!AC1154 -> 0 | Z233: =CNI!AD1154 -> 0 | AA233: =CNI!AE1154 -> 0 | AB233: =CNI!AF1154 -> 0 | AC233: =CNI!AG1154 -> 0 | AD233: =CNI!AH1154 -> 0 | AE233: =CNI!AI1154 -> 0 | AF233: 0
A234: =CNI!$A$1157 -> Microwave | C234: =CNI!B1158 -> 19 | E234: =CNI!B1160 -> 12 | F234: =CNI!H1164 -> each | G234: =CNI!G1164 -> 200 | H234: =IF(CNI!O1164=0,0,CNI!G1164) -> 0 | I234: =CNI!I1164 -> 450 | J234: 0 | K234: 90000 | L234: =CNI!P1164 -> 0 | M234: =CNI!Q1164 -> 0 | N234: =CNI!R1164 -> 0 | O234: =CNI!S1164 -> 0 | P234: =CNI!T1164 -> 0 | Q234: =CNI!U1164 -> 0 | R234: =CNI!V1164 -> 0 | S234: =CNI!W1164 -> 0 | T234: =CNI!X1164 -> 0 | U234: =CNI!Y1164 -> 0 | V234: =CNI!Z1164 -> 0 | W234: =CNI!AA1164 -> 90000 | X234: =CNI!AB1164 -> 0 | Y234: =CNI!AC1164 -> 0 | Z234: =CNI!AD1164 -> 0 | AA234: =CNI!AE1164 -> 0 | AB234: =CNI!AF1164 -> 0 | AC234: =CNI!AG1164 -> 0 | AD234: =CNI!AH1164 -> 0 | AE234: =CNI!AI1164 -> 0 | AF234: 0
... 277 more rows

Sheet 20 year
O8: Asphalt/Concrete | Z8: Asphalt/Concrete
O9: Immediate Needs | P9: Year 1 | Q9: Year 2 | R9: Year 3 | S9: Year 4 | T9: Year 5 | U9: Year 6 | V9: Year 7 | W9: Year 8 | X9: Year 9 | Y9: Year 10 | Z9: Year 11 | AA9: Year 12 | AB9: Year 13 | AC9: Year 14 | AD9: Year 15 | AE9: Year 16 | AF9: Year 17 | AG9: Year 18 | AH9: Year 19 | AI9: Year 20 | AJ9: Total Long-Term
P10: 2011 | Q10: 2012 | R10: 2013 | S10: 2014 | T10: 2015 | U10: 2016 | V10: 2017 | W10: 2018 | X10: 2019 | Y10: 2020 | Z10: 2021 | AA10: 2022 | AB10: 2023 | AC10: 2024 | AD10: 2025 | AE10: 2026 | AF10: 2027 | AG10: 2028 | AH10: 2029 | AI10: 2030
C11: Existing | O11: 7640 | P11: 0 | Q11: 0 | R11: 0 | S11: 0 | T11: 0 | U11: 7640 | V11: 0 | W11: 0 | X11: 0 | Y11: 0 | Z11: 0 | AA11: 7640 | AB11: 0 | AC11: 0 | AD11: 0 | AE11: 0 | AF11: 0 | AG11: 7640 | AH11: 0 | AI11: 0 | AJ11: 22920
C12: Standard | O12: 7640 | P12: 0 | Q12: 0 | R12: 0 | S12: 0 | T12: 0 | U12: 7640 | V12: 0 | W12: 0 | X12: 0 | Y12: 0 | Z12: 0 | AA12: 7640 | AB12: 0 | AC12: 0 | AD12: 0 | AE12: 0 | AF12: 0 | AG12: 7640 | AH12: 0 | AI12: 0 | AJ12: 22920
C13: Green | O13: 8040 | P13: 0 | Q13: 0 | R13: 0 | S13: 0 | T13: 0 | U13: 8040 | V13: 0 | W13: 0 | X13: 0 | Y13: 0 | Z13: 0 | AA13: 8040 | AB13: 0 | AC13: 0 | AD13: 0 | AE13: 0 | AF13: 0 | AG13: 8040 | AH13: 0 | AI13: 0 | AJ13: 24120
O18: Seal Coat | Z18: Seal Coat
O19: Immediate Needs | P19: Year 1 | Q19: Year 2 | R19: Year 3 | S19: Year 4 | T19: Year 5 | U19: Year 6 | V19: Year 7 | W19: Year 8 | X19: Year 9 | Y19: Year 10 | Z19: Year 11 | AA19: Year 12 | AB19: Year 13 | AC19: Year 14 | AD19: Year 15 | AE19: Year 16 | AF19: Year 17 | AG19: Year 18 | AH19: Year 19 | AI19: Year 20 | AJ19: Total Long-Term
P20: 2011 | Q20: 2012 | R20: 2013 | S20: 2014 | T20: 2015 | U20: 2016 | V20: 2017 | W20: 2018 | X20: 2019 | Y20: 2020 | Z20: 2021 | AA20: 2022 | AB20: 2023 | AC20: 2024 | AD20: 2025 | AE20: 2026 | AF20: 2027 | AG20: 2028 | AH20: 2029 | AI20: 2030
C21: Existing | O21: 6850 | P21: 0 | Q21: 0 | R21: 0 | S21: 0 | T21: 0 | U21: 0 | V21: 0 | W21: 0 | X21: 6850 | Y21: 0 | Z21: 0 | AA21: 0 | AB21: 0 | AC21: 0 | AD21: 0 | AE21: 0 | AF21: 0 | AG21: 6850 | AH21: 0 | AI21: 0 | AJ21: 13700
C22: Standard | O22: 6850 | P22: 0 | Q22: 0 | R22: 0 | S22: 0 | T22: 0 | U22: 0 | V22: 0 | W22: 0 | X22: 6850 | Y22: 0 | Z22: 0 | AA22: 0 | AB22: 0 | AC22: 0 | AD22: 0 | AE22: 0 | AF22: 0 | AG22: 6850 | AH22: 0 | AI22: 0 | AJ22: 13700
C23: Green | O23: 7600 | P23: 0 | Q23: 0 | R23: 0 | S23: 0 | T23: 0 | U23: 0 | V23: 0 | W23: 0 | X23: 7600 | Y23: 0 | Z23: 0 | AA23: 0 | AB23: 0 | AC23: 0 | AD23: 0 | AE23: 0 | AF23: 0 | AG23: 7600 | AH23: 0 | AI23: 0 | AJ23: 15200
O28: Striping | Z28: Striping
O29: Immediate Needs | P29: Year 1 | Q29: Year 2 | R29: Year 3 | S29: Year 4 | T29: Year 5 | U29: Year 6 | V29: Year 7 | W29: Year 8 | X29: Year 9 | Y29: Year 10 | Z29: Year 11 | AA29: Year 12 | AB29: Year 13 | AC29: Year 14 | AD29: Year 15 | AE29: Year 16 | AF29: Year 17 | AG29: Year 18 | AH29: Year 19 | AI29: Year 20 | AJ29: Total Long-Term
P30: 2011 | Q30: 2012 | R30: 2013 | S30: 2014 | T30: 2015 | U30: 2016 | V30: 2017 | W30: 2018 | X30: 2019 | Y30: 2020 | Z30: 2021 | AA30: 2022 | AB30: 2023 | AC30: 2024 | AD30: 2025 | AE30: 2026 | AF30: 2027 | AG30: 2028 | AH30: 2029 | AI30: 2030
C31: Existing | O31: 15000 | P31: 0 | Q31: 0 | R31: 0 | S31: 0 | T31: 0 | U31: 0 | V31: 0 | W31: 0 | X31: 0 | Y31: 0 | Z31: 0 | AA31: 0 | AB31: 0 | AC31: 0 | AD31: 0 | AE31: 0 | AF31: 0 | AG31: 0 | AH31: 0 | AI31: 15000 | AJ31: 15000
C32: Standard | O32: 15000 | P32: 0 | Q32: 0 | R32: 0 | S32: 0 | T32: 0 | U32: 0 | V32: 0 | W32: 0 | X32: 0 | Y32: 0 | Z32: 0 | AA32: 0 | AB32: 0 | AC32: 0 | AD32: 0 | AE32: 0 | AF32: 0 | AG32: 0 | AH32: 0 | AI32: 15000 | AJ32: 15000
C33: Green | O33: 15000 | P33: 0 | Q33: 0 | R33: 0 | S33: 0 | T33: 0 | U33: 0 | V33: 0 | W33: 0 | X33: 0 | Y33: 0 | Z33: 0 | AA33: 0 | AB33: 0 | AC33: 0 | AD33: 0 | AE33: 0 | AF33: 0 | AG33: 0 | AH33: 0 | AI33: 15000 | AJ33: 15000
O38: Curb and Gutter | Z38: Curb and Gutter
O39: Immediate Needs | P39: Year 1 | Q39: Year 2 | R39: Year 3 | S39: Year 4 | T39: Year 5 | U39: Year 6 | V39: Year 7 | W39: Year 8 | X39: Year 9 | Y39: Year 10 | Z39: Year 11 | AA39: Year 12 | AB39: Year 13 | AC39: Year 14 | AD39: Year 15 | AE39: Year 16 | AF39: Year 17 | AG39: Year 18 | AH39: Year 19 | AI39: Year 20 | AJ39: Total Long-Term
P40: 2011 | Q40: 2012 | R40: 2013 | S40: 2014 | T40: 2015 | U40: 2016 | V40: 2017 | W40: 2018 | X40: 2019 | Y40: 2020 | Z40: 2021 | AA40: 2022 | AB40: 2023 | AC40: 2024 | AD40: 2025 | AE40: 2026 | AF40: 2027 | AG40: 2028 | AH40: 2029 | AI40: 2030
C41: Existing | O41: 20800 | P41: 0 | Q41: 0 | R41: 0 | S41: 0 | T41: 0 | U41: 0 | V41: 0 | W41: 0 | X41: 0 | Y41: 0 | Z41: 0 | AA41: 0 | AB41: 0 | AC41: 0 | AD41: 0 | AE41: 0 | AF41: 0 | AG41: 0 | AH41: 20800 | AI41: 0 | AJ41: 20800
C42: Standard | O42: 20800 | P42: 0 | Q42: 0 | R42: 0 | S42: 0 | T42: 0 | U42: 0 | V42: 0 | W42: 0 | X42: 0 | Y42: 0 | Z42: 0 | AA42: 0 | AB42: 0 | AC42: 0 | AD42: 0 | AE42: 0 | AF42: 0 | AG42: 0 | AH42: 20800 | AI42: 0 | AJ42: 20800
C43: Green | O43: 20800 | P43: 0 | Q43: 0 | R43: 0 | S43: 0 | T43: 0 | U43: 0 | V43: 0 | W43: 0 | X43: 0 | Y43: 0 | Z43: 0 | AA43: 0 | AB43: 0 | AC43: 0 | AD43: 0 | AE43: 0 | AF43: 0 | AG43: 0 | AH43: 20800 | AI43: 0 | AJ43: 20800
O48: Pedestrian Paving | Z48: Pedestrian Paving
O49: Immediate Needs | P49: Year 1 | Q49: Year 2 | R49: Year 3 | S49: Year 4 | T49: Year 5 | U49: Year 6 | V49: Year 7 | W49: Year 8 | X49: Year 9 | Y49: Year 10 | Z49: Year 11 | AA49: Year 12 | AB49: Year 13 | AC49: Year 14 | AD49: Year 15 | AE49: Year 16 | AF49: Year 17 | AG49: Year 18 | AH49: Year 19 | AI49: Year 20 | AJ49: Total Long-Term
P50: 2011 | Q50: 2012 | R50: 2013 | S50: 2014 | T50: 2015 | U50: 2016 | V50: 2017 | W50: 2018 | X50: 2019 | Y50: 2020 | Z50: 2021 | AA50: 2022 | AB50: 2023 | AC50: 2024 | AD50: 2025 | AE50: 2026 | AF50: 2027 | AG50: 2028 | AH50: 2029 | AI50: 2030
C51: Existing | O51: 0 | P51: 14516 | Q51: 0 | R51: 0 | S51: 0 | T51: 0 | U51: 0 | V51: 0 | W51: 0 | X51: 0 | Y51: 0 | Z51: 0 | AA51: 0 | AB51: 0 | AC51: 0 | AD51: 0 | AE51: 0 | AF51: 0 | AG51: 0 | AH51: 0 | AI51: 0 | AJ51: 14516
C52: Standard | O52: 0 | P52: 14516 | Q52: 0 | R52: 0 | S52: 0 | T52: 0 | U52: 0 | V52: 0 | W52: 0 | X52: 0 | Y52: 0 | Z52: 0 | AA52: 0 | AB52: 0 | AC52: 0 | AD52: 0 | AE52: 0 | AF52: 0 | AG52: 0 | AH52: 0 | AI52: 0 | AJ52: 14516
C53: Green | O53: 0 | P53: 17100 | Q53: 0 | R53: 0 | S53: 0 | T53: 0 | U53: 0 | V53: 0 | W53: 0 | X53: 0 | Y53: 0 | Z53: 0 | AA53: 0 | AB53: 0 | AC53: 0 | AD53: 0 | AE53: 0 | AF53: 0 | AG53: 0 | AH53: 0 | AI53: 0 | AJ53: 17100
O58: Signage | Z58: Signage
O59: Immediate Needs | P59: Year 1 | Q59: Year 2 | R59: Year 3 | S59: Year 4 | T59: Year 5 | U59: Year 6 | V59: Year 7 | W59: Year 8 | X59: Year 9 | Y59: Year 10 | Z59: Year 11 | AA59: Year 12 | AB59: Year 13 | AC59: Year 14 | AD59: Year 15 | AE59: Year 16 | AF59: Year 17 | AG59: Year 18 | AH59: Year 19 | AI59: Year 20 | AJ59: Total Long-Term
P60: 2011 | Q60: 2012 | R60: 2013 | S60: 2014 | T60: 2015 | U60: 2016 | V60: 2017 | W60: 2018 | X60: 2019 | Y60: 2020 | Z60: 2021 | AA60: 2022 | AB60: 2023 | AC60: 2024 | AD60: 2025 | AE60: 2026 | AF60: 2027 | AG60: 2028 | AH60: 2029 | AI60: 2030
C61: Existing | O61: 3500 | P61: 0 | Q61: 0 | R61: 0 | S61: 0 | T61: 0 | U61: 0 | V61: 0 | W61: 0 | X61: 0 | Y61: 0 | Z61: 0 | AA61: 0 | AB61: 0 | AC61: 0 | AD61: 0 | AE61: 0 | AF61: 0 | AG61: 3500 | AH61: 0 | AI61: 0 | AJ61: 3500
C62: Standard | O62: 3500 | P62: 0 | Q62: 0 | R62: 0 | S62: 0 | T62: 0 | U62: 0 | V62: 0 | W62: 0 | X62: 0 | Y62: 0 | Z62: 0 | AA62: 0 | AB62: 0 | AC62: 0 | AD62: 0 | AE62: 0 | AF62: 0 | AG62: 3500 | AH62: 0 | AI62: 0 | AJ62: 3500
C63: Green | O63: 3700 | P63: 0 | Q63: 0 | R63: 0 | S63: 0 | T63: 0 | U63: 0 | V63: 0 | W63: 0 | X63: 0 | Y63: 0 | Z63: 0 | AA63: 0 | AB63: 0 | AC63: 0 | AD63: 0 | AE63: 0 | AF63: 0 | AG63: 3700 | AH63: 0 | AI63: 0 | AJ63: 3700
O68: Water Lines/Mains | Z68: Water Lines/Mains
O69: Immediate Needs | P69: Year 1 | Q69: Year 2 | R69: Year 3 | S69: Year 4 | T69: Year 5 | U69: Year 6 | V69: Year 7 | W69: Year 8 | X69: Year 9 | Y69: Year 10 | Z69: Year 11 | AA69: Year 12 | AB69: Year 13 | AC69: Year 14 | AD69: Year 15 | AE69: Year 16 | AF69: Year 17 | AG69: Year 18 | AH69: Year 19 | AI69: Year 20 | AJ69: Total Long-Term
P70: 2011 | Q70: 2012 | R70: 2013 | S70: 2014 | T70: 2015 | U70: 2016 | V70: 2017 | W70: 2018 | X70: 2019 | Y70: 2020 | Z70: 2021 | AA70: 2022 | AB70: 2023 | AC70: 2024 | AD70: 2025 | AE70: 2026 | AF70: 2027 | AG70: 2028 | AH70: 2029 | AI70: 2030
C71: Existing | O71: 0 | P71: 36000 | Q71: 0 | R71: 0 | S71: 0 | T71: 0 | U71: 0 | V71: 0 | W71: 0 | X71: 0 | Y71: 0 | Z71: 0 | AA71: 0 | AB71: 0 | AC71: 0 | AD71: 0 | AE71: 0 | AF71: 0 | AG71: 0 | AH71: 0 | AI71: 36000 | AJ71: 72000
C72: Standard | O72: 0 | P72: 36000 | Q72: 0 | R72: 0 | S72: 0 | T72: 0 | U72: 0 | V72: 0 | W72: 0 | X72: 0 | Y72: 0 | Z72: 0 | AA72: 0 | AB72: 0 | AC72: 0 | AD72: 0 | AE72: 0 | AF72: 0 | AG72: 0 | AH72: 0 | AI72: 36000 | AJ72: 72000
C73: Green | O73: 0 | P73: 36000 | Q73: 0 | R73: 0 | S73: 0 | T73: 0 | U73: 0 | V73: 0 | W73: 0 | X73: 0 | Y73: 0 | Z73: 0 | AA73: 0 | AB73: 0 | AC73: 0 | AD73: 0 | AE73: 0 | AF73: 0 | AG73: 0 | AH73: 0 | AI73: 36000 | AJ73: 72000
O78: Sewer Lines/Mains | Z78: Sewer Lines/Mains
O79: Immediate Needs | P79: Year 1 | Q79: Year 2 | R79: Year 3 | S79: Year 4 | T79: Year 5 | U79: Year 6 | V79: Year 7 | W79: Year 8 | X79: Year 9 | Y79: Year 10 | Z79: Year 11 | AA79: Year 12 | AB79: Year 13 | AC79: Year 14 | AD79: Year 15 | AE79: Year 16 | AF79: Year 17 | AG79: Year 18 | AH79: Year 19 | AI79: Year 20 | AJ79: Total Long-Term
P80: 2011 | Q80: 2012 | R80: 2013 | S80: 2014 | T80: 2015 | U80: 2016 | V80: 2017 | W80: 2018 | X80: 2019 | Y80: 2020 | Z80: 2021 | AA80: 2022 | AB80: 2023 | AC80: 2024 | AD80: 2025 | AE80: 2026 | AF80: 2027 | AG80: 2028 | AH80: 2029 | AI80: 2030
C81: Existing | O81: 0 | P81: 0 | Q81: 32000 | R81: 0 | S81: 0 | T81: 0 | U81: 0 | V81: 0 | W81: 0 | X81: 0 | Y81: 0 | Z81: 0 | AA81: 0 | AB81: 0 | AC81: 0 | AD81: 0 | AE81: 0 | AF81: 0 | AG81: 0 | AH81: 0 | AI81: 0 | AJ81: 32000
C82: Standard | O82: 0 | P82: 0 | Q82: 32000 | R82: 0 | S82: 0 | T82: 0 | U82: 0 | V82: 0 | W82: 0 | X82: 0 | Y82: 0 | Z82: 0 | AA82: 0 | AB82: 0 | AC82: 0 | AD82: 0 | AE82: 0 | AF82: 0 | AG82: 0 | AH82: 0 | AI82: 0 | AJ82: 32000
C83: Green | O83: 0 | P83: 0 | Q83: 32000 | R83: 0 | S83: 0 | T83: 0 | U83: 0 | V83: 0 | W83: 0 | X83: 0 | Y83: 0 | Z83: 0 | AA83: 0 | AB83: 0 | AC83: 0 | AD83: 0 | AE83: 0 | AF83: 0 | AG83: 0 | AH83: 0 | AI83: 0 | AJ83: 32000
O92: Irrigation | Z92: Irrigation
O93: Immediate Needs | P93: Year 1 | Q93: Year 2 | R93: Year 3 | S93: Year 4 | T93: Year 5 | U93: Year 6 | V93: Year 7 | W93: Year 8 | X93: Year 9 | Y93: Year 10 | Z93: Year 11 | AA93: Year 12 | AB93: Year 13 | AC93: Year 14 | AD93: Year 15 | AE93: Year 16 | AF93: Year 17 | AG93: Year 18 | AH93: Year 19 | AI93: Year 20 | AJ93: Total Long-Term
P94: 2011 | Q94: 2012 | R94: 2013 | S94: 2014 | T94: 2015 | U94: 2016 | V94: 2017 | W94: 2018 | X94: 2019 | Y94: 2020 | Z94: 2021 | AA94: 2022 | AB94: 2023 | AC94: 2024 | AD94: 2025 | AE94: 2026 | AF94: 2027 | AG94: 2028 | AH94: 2029 | AI94: 2030
C95: Existing 1 | O95: 0 | P95: 0 | Q95: 0 | R95: 0 | S95: 0 | T95: 0 | U95: 0 | V95: 0 | W95: 0 | X95: 0 | Y95: 0 | Z95: 0 | AA95: 0 | AB95: 0 | AC95: 500 | AD95: 0 | AE95: 0 | AF95: 0 | AG95: 0 | AH95: 0 | AI95: 0 | AJ95: 500
C96: Existing 2 | O96: 0 | P96: 0 | Q96: 0 | R96: 0 | S96: 0 | T96: 0 | U96: 0 | V96: 0 | W96: 0 | X96: 0 | Y96: 0 | Z96: 0 | AA96: 500 | AB96: 0 | AC96: 0 | AD96: 0 | AE96: 0 | AF96: 0 | AG96: 0 | AH96: 0 | AI96: 0 | AJ96: 500
C97: Existing 3 | O97: 500 | P97: 0 | Q97: 0 | R97: 0 | S97: 0 | T97: 0 | U97: 0 | V97: 0 | W97: 0 | X97: 0 | Y97: 0 | Z97: 0 | AA97: 0 | AB97: 0 | AC97: 0 | AD97: 0 | AE97: 0 | AF97: 500 | AG97: 0 | AH97: 0 | AI97: 0 | AJ97: 500
C98: Standard | O98: 45000 | P98: 0 | Q98: 0 | R98: 0 | S98: 0 | T98: 0 | U98: 0 | V98: 0 | W98: 0 | X98: 0 | Y98: 0 | Z98: 0 | AA98: 0 | AB98: 0 | AC98: 0 | AD98: 0 | AE98: 0 | AF98: 45000 | AG98: 0 | AH98: 0 | AI98: 0 | AJ98: 45000
C99: Green | O99: 96000 | P99: 0 | Q99: 0 | R99: 0 | S99: 0 | T99: 0 | U99: 0 | V99: 0 | W99: 0 | X99: 0 | Y99: 0 | Z99: 0 | AA99: 0 | AB99: 0 | AC99: 0 | AD99: 0 | AE99: 0 | AF99: 96000 | AG99: 0 | AH99: 0 | AI99: 0 | AJ99: 96000
O108: Lighting | Z108: Lighting
O109: Immediate Needs | P109: Year 1 | Q109: Year 2 | R109: Year 3 | S109: Year 4 | T109: Year 5 | U109: Year 6 | V109: Year 7 | W109: Year 8 | X109: Year 9 | Y109: Year 10 | Z109: Year 11 | AA109: Year 12 | AB109: Year 13 | AC109: Year 14 | AD109: Year 15 | AE109: Year 16 | AF109: Year 17 | AG109: Year 18 | AH109: Year 19 | AI109: Year 20 | AJ109: Total Long-Term
P110: 2011 | Q110: 2012 | R110: 2013 | S110: 2014 | T110: 2015 | U110: 2016 | V110: 2017 | W110: 2018 | X110: 2019 | Y110: 2020 | Z110: 2021 | AA110: 2022 | AB110: 2023 | AC110: 2024 | AD110: 2025 | AE110: 2026 | AF110: 2027 | AG110: 2028 | AH110: 2029 | AI110: 2030
C111: Existing 1 | O111: 0 | P111: 0 | Q111: 0 | R111: 0 | S111: 0 | T111: 0 | U111: 0 | V111: 0 | W111: 0 | X111: 0 | Y111: 0 | Z111: 0 | AA111: 27000 | AB111: 0 | AC111: 0 | AD111: 0 | AE111: 0 | AF111: 0 | AG111: 0 | AH111: 0 | AI111: 0 | AJ111: 27000
C112: Existing 2 | O112: 0 | P112: 0 | Q112: 0 | R112: 0 | S112: 0 | T112: 0 | U112: 0 | V112: 0 | W112: 0 | X112: 0 | Y112: 0 | Z112: 27000 | AA112: 0 | AB112: 0 | AC112: 0 | AD112: 0 | AE112: 0 | AF112: 0 | AG112: 0 | AH112: 0 | AI112: 0 | AJ112: 27000
C113: Existing 3 | O113: 9000 | P113: 0 | Q113: 0 | R113: 0 | S113: 0 | T113: 0 | U113: 0 | V113: 0 | W113: 0 | X113: 0 | Y113: 0 | Z113: 0 | AA113: 0 | AB113: 0 | AC113: 0 | AD113: 27000 | AE113: 0 | AF113: 0 | AG113: 0 | AH113: 0 | AI113: 0 | AJ113: 27000
C114: Standard | O114: 60000 | P114: 0 | Q114: 0 | R114: 0 | S114: 0 | T114: 0 | U114: 0 | V114: 0 | W114: 0 | X114: 0 | Y114: 0 | Z114: 0 | AA114: 0 | AB114: 0 | AC114: 0 | AD114: 60000 | AE114: 0 | AF114: 0 | AG114: 0 | AH114: 0 | AI114: 0 | AJ114: 60000
C115: Green | O115: 102000 | P115: 0 | Q115: 0 | R115: 0 | S115: 0 | T115: 0 | U115: 0 | V115: 0 | W115: 0 | X115: 0 | Y115: 0 | Z115: 0 | AA115: 0 | AB115: 0 | AC115: 0 | AD115: 102000 | AE115: 0 | AF115: 0 | AG115: 0 | AH115: 0 | AI115: 0 | AJ115: 102000
O120: Storm Drainage | Z120: Storm Drainage
O121: Immediate Needs | P121: Year 1 | Q121: Year 2 | R121: Year 3 | S121: Year 4 | T121: Year 5 | U121: Year 6 | V121: Year 7 | W121: Year 8 | X121: Year 9 | Y121: Year 10 | Z121: Year 11 | AA121: Year 12 | AB121: Year 13 | AC121: Year 14 | AD121: Year 15 | AE121: Year 16 | AF121: Year 17 | AG121: Year 18 | AH121: Year 19 | AI121: Year 20 | AJ121: Total Long-Term
P122: 2011 | Q122: 2012 | R122: 2013 | S122: 2014 | T122: 2015 | U122: 2016 | V122: 2017 | W122: 2018 | X122: 2019 | Y122: 2020 | Z122: 2021 | AA122: 2022 | AB122: 2023 | AC122: 2024 | AD122: 2025 | AE122: 2026 | AF122: 2027 | AG122: 2028 | AH122: 2029 | AI122: 2030
C123: Existing | O123: 0 | P123: 0 | Q123: 90000 | R123: 0 | S123: 0 | T123: 0 | U123: 0 | V123: 0 | W123: 0 | X123: 0 | Y123: 0 | Z123: 0 | AA123: 0 | AB123: 0 | AC123: 0 | AD123: 0 | AE123: 0 | AF123: 0 | AG123: 0 | AH123: 0 | AI123: 0 | AJ123: 90000
C124: Standard | O124: 0 | P124: 0 | Q124: 90000 | R124: 0 | S124: 0 | T124: 0 | U124: 0 | V124: 0 | W124: 0 | X124: 0 | Y124: 0 | Z124: 0 | AA124: 0 | AB124: 0 | AC124: 0 | AD124: 0 | AE124: 0 | AF124: 0 | AG124: 0 | AH124: 0 | AI124: 0 | AJ124: 90000
C125: Green | O125: 0 | P125: 0 | Q125: 97500 | R125: 0 | S125: 0 | T125: 0 | U125: 0 | V125: 0 | W125: 0 | X125: 0 | Y125: 0 | Z125: 0 | AA125: 0 | AB125: 0 | AC125: 0 | AD125: 0 | AE125: 0 | AF125: 0 | AG125: 0 | AH125: 0 | AI125: 0 | AJ125: 97500
O130: Landscaping | Z130: Landscaping
O131: Immediate Needs | P131: Year 1 | Q131: Year 2 | R131: Year 3 | S131: Year 4 | T131: Year 5 | U131: Year 6 | V131: Year 7 | W131: Year 8 | X131: Year 9 | Y131: Year 10 | Z131: Year 11 | AA131: Year 12 | AB131: Year 13 | AC131: Year 14 | AD131: Year 15 | AE131: Year 16 | AF131: Year 17 | AG131: Year 18 | AH131: Year 19 | AI131: Year 20 | AJ131: Total Long-Term
P132: 2011 | Q132: 2012 | R132: 2013 | S132: 2014 | T132: 2015 | U132: 2016 | V132: 2017 | W132: 2018 | X132: 2019 | Y132: 2020 | Z132: 2021 | AA132: 2022 | AB132: 2023 | AC132: 2024 | AD132: 2025 | AE132: 2026 | AF132: 2027 | AG132: 2028 | AH132: 2029 | AI132: 2030
C133: Existing | O133: 0 | P133: 0 | Q133: 0 | R133: 35000 | S133: 0 | T133: 0 | U133: 0 | V133: 0 | W133: 0 | X133: 0 | Y133: 0 | Z133: 0 | AA133: 0 | AB133: 0 | AC133: 0 | AD133: 0 | AE133: 0 | AF133: 0 | AG133: 0 | AH133: 0 | AI133: 0 | AJ133: 35000
C134: Standard | O134: 0 | P134: 0 | Q134: 0 | R134: 35000 | S134: 0 | T134: 0 | U134: 0 | V134: 0 | W134: 0 | X134: 0 | Y134: 0 | Z134: 0 | AA134: 0 | AB134: 0 | AC134: 0 | AD134: 0 | AE134: 0 | AF134: 0 | AG134: 0 | AH134: 0 | AI134: 0 | AJ134: 35000
C135: Green | O135: 0 | P135: 0 | Q135: 0 | R135: 36000 | S135: 0 | T135: 0 | U135: 0 | V135: 0 | W135: 0 | X135: 0 | Y135: 0 | Z135: 0 | AA135: 0 | AB135: 0 | AC135: 0 | AD135: 0 | AE135: 0 | AF135: 0 | AG135: 0 | AH135: 0 | AI135: 0 | AJ135: 36000
O140: Fencing | Z140: Fencing
O141: Immediate Needs | P141: Year 1 | Q141: Year 2 | R141: Year 3 | S141: Year 4 | T141: Year 5 | U141: Year 6 | V141: Year 7 | W141: Year 8 | X141: Year 9 | Y141: Year 10 | Z141: Year 11 | AA141: Year 12 | AB141: Year 13 | AC141: Year 14 | AD141: Year 15 | AE141: Year 16 | AF141: Year 17 | AG141: Year 18 | AH141: Year 19 | AI141: Year 20 | AJ141: Total Long-Term
P142: 2011 | Q142: 2012 | R142: 2013 | S142: 2014 | T142: 2015 | U142: 2016 | V142: 2017 | W142: 2018 | X142: 2019 | Y142: 2020 | Z142: 2021 | AA142: 2022 | AB142: 2023 | AC142: 2024 | AD142: 2025 | AE142: 2026 | AF142: 2027 | AG142: 2028 | AH142: 2029 | AI142: 2030
C143: Existing | O143: 4000 | P143: 0 | Q143: 0 | R143: 0 | S143: 0 | T143: 0 | U143: 0 | V143: 0 | W143: 0 | X143: 0 | Y143: 0 | Z143: 0 | AA143: 0 | AB143: 0 | AC143: 0 | AD143: 0 | AE143: 4000 | AF143: 0 | AG143: 0 | AH143: 0 | AI143: 0 | AJ143: 4000
C144: Standard | O144: 4000 | P144: 0 | Q144: 0 | R144: 0 | S144: 0 | T144: 0 | U144: 0 | V144: 0 | W144: 0 | X144: 0 | Y144: 0 | Z144: 0 | AA144: 0 | AB144: 0 | AC144: 0 | AD144: 0 | AE144: 4000 | AF144: 0 | AG144: 0 | AH144: 0 | AI144: 0 | AJ144: 4000
C145: Green | O145: 4000 | P145: 0 | Q145: 0 | R145: 0 | S145: 0 | T145: 0 | U145: 0 | V145: 0 | W145: 0 | X145: 0 | Y145: 0 | Z145: 0 | AA145: 0 | AB145: 0 | AC145: 0 | AD145: 0 | AE145: 4000 | AF145: 0 | AG145: 0 | AH145: 0 | AI145: 0 | AJ145: 4000
O150: Fence Painting | Z150: Fence Painting
O151: Immediate Needs | P151: Year 1 | Q151: Year 2 | R151: Year 3 | S151: Year 4 | T151: Year 5 | U151: Year 6 | V151: Year 7 | W151: Year 8 | X151: Year 9 | Y151: Year 10 | Z151: Year 11 | AA151: Year 12 | AB151: Year 13 | AC151: Year 14 | AD151: Year 15 | AE151: Year 16 | AF151: Year 17 | AG151: Year 18 | AH151: Year 19 | AI151: Year 20 | AJ151: Total Long-Term
P152: 2011 | Q152: 2012 | R152: 2013 | S152: 2014 | T152: 2015 | U152: 2016 | V152: 2017 | W152: 2018 | X152: 2019 | Y152: 2020 | Z152: 2021 | AA152: 2022 | AB152: 2023 | AC152: 2024 | AD152: 2025 | AE152: 2026 | AF152: 2027 | AG152: 2028 | AH152: 2029 | AI152: 2030
C153: Existing | O153: 0 | P153: 4000 | Q153: 0 | R153: 0 | S153: 0 | T153: 0 | U153: 0 | V153: 0 | W153: 0 | X153: 0 | Y153: 0 | Z153: 0 | AA153: 0 | AB153: 0 | AC153: 0 | AD153: 0 | AE153: 0 | AF153: 0 | AG153: 4000 | AH153: 0 | AI153: 0 | AJ153: 8000
C154: Standard | O154: 0 | P154: 4000 | Q154: 0 | R154: 0 | S154: 0 | T154: 0 | U154: 0 | V154: 0 | W154: 0 | X154: 0 | Y154: 0 | Z154: 0 | AA154: 0 | AB154: 0 | AC154: 0 | AD154: 0 | AE154: 0 | AF154: 0 | AG154: 4000 | AH154: 0 | AI154: 0 | AJ154: 8000
C155: Green | O155: 0 | P155: 8000 | Q155: 0 | R155: 0 | S155: 0 | T155: 0 | U155: 0 | V155: 0 | W155: 0 | X155: 0 | Y155: 0 | Z155: 0 | AA155: 0 | AB155: 0 | AC155: 0 | AD155: 0 | AE155: 0 | AF155: 0 | AG155: 8000 | AH155: 0 | AI155: 0 | AJ155: 16000
O160: Dumpsters & Enclosures | Z160: Dumpsters & Enclosures
O161: Immediate Needs | P161: Year 1 | Q161: Year 2 | R161: Year 3 | S161: Year 4 | T161: Year 5 | U161: Year 6 | V161: Year 7 | W161: Year 8 | X161: Year 9 | Y161: Year 10 | Z161: Year 11 | AA161: Year 12 | AB161: Year 13 | AC161: Year 14 | AD161: Year 15 | AE161: Year 16 | AF161: Year 17 | AG161: Year 18 | AH161: Year 19 | AI161: Year 20 | AJ161: Total Long-Term
P162: 2011 | Q162: 2012 | R162: 2013 | S162: 2014 | T162: 2015 | U162: 2016 | V162: 2017 | W162: 2018 | X162: 2019 | Y162: 2020 | Z162: 2021 | AA162: 2022 | AB162: 2023 | AC162: 2024 | AD162: 2025 | AE162: 2026 | AF162: 2027 | AG162: 2028 | AH162: 2029 | AI162: 2030
C163: Existing | O163: 0 | P163: 0 | Q163: 5000 | R163: 0 | S163: 0 | T163: 0 | U163: 0 | V163: 0 | W163: 0 | X163: 0 | Y163: 0 | Z163: 0 | AA163: 0 | AB163: 0 | AC163: 0 | AD163: 0 | AE163: 0 | AF163: 0 | AG163: 0 | AH163: 0 | AI163: 5000 | AJ163: 10000
C164: Standard | O164: 0 | P164: 0 | Q164: 5000 | R164: 0 | S164: 0 | T164: 0 | U164: 0 | V164: 0 | W164: 0 | X164: 0 | Y164: 0 | Z164: 0 | AA164: 0 | AB164: 0 | AC164: 0 | AD164: 0 | AE164: 0 | AF164: 0 | AG164: 0 | AH164: 0 | AI164: 5000 | AJ164: 10000
C165: Green | O165: 0 | P165: 0 | Q165: 5000 | R165: 0 | S165: 0 | T165: 0 | U165: 0 | V165: 0 | W165: 0 | X165: 0 | Y165: 0 | Z165: 0 | AA165: 0 | AB165: 0 | AC165: 0 | AD165: 0 | AE165: 0 | AF165: 0 | AG165: 0 | AH165: 0 | AI165: 5000 | AJ165: 10000
O170: Electrical Distibution | Z170: Electrical Distibution
O171: Immediate Needs | P171: Year 1 | Q171: Year 2 | R171: Year 3 | S171: Year 4 | T171: Year 5 | U171: Year 6 | V171: Year 7 | W171: Year 8 | X171: Year 9 | Y171: Year 10 | Z171: Year 11 | AA171: Year 12 | AB171: Year 13 | AC171: Year 14 | AD171: Year 15 | AE171: Year 16 | AF171: Year 17 | AG171: Year 18 | AH171: Year 19 | AI171: Year 20 | AJ171: Total Long-Term
P172: 2011 | Q172: 2012 | R172: 2013 | S172: 2014 | T172: 2015 | U172: 2016 | V172: 2017 | W172: 2018 | X172: 2019 | Y172: 2020 | Z172: 2021 | AA172: 2022 | AB172: 2023 | AC172: 2024 | AD172: 2025 | AE172: 2026 | AF172: 2027 | AG172: 2028 | AH172: 2029 | AI172: 2030
C173: Existing | O173: 0 | P173: 0 | Q173: 0 | R173: 34000 | S173: 0 | T173: 0 | U173: 0 | V173: 0 | W173: 0 | X173: 0 | Y173: 0 | Z173: 0 | AA173: 0 | AB173: 0 | AC173: 0 | AD173: 0 | AE173: 0 | AF173: 0 | AG173: 0 | AH173: 0 | AI173: 0 | AJ173: 34000
C174: Standard | O174: 0 | P174: 0 | Q174: 0 | R174: 34000 | S174: 0 | T174: 0 | U174: 0 | V174: 0 | W174: 0 | X174: 0 | Y174: 0 | Z174: 0 | AA174: 0 | AB174: 0 | AC174: 0 | AD174: 0 | AE174: 0 | AF174: 0 | AG174: 0 | AH174: 0 | AI174: 0 | AJ174: 34000
C175: Green | O175: 0 | P175: 0 | Q175: 0 | R175: 34000 | S175: 0 | T175: 0 | U175: 0 | V175: 0 | W175: 0 | X175: 0 | Y175: 0 | Z175: 0 | AA175: 0 | AB175: 0 | AC175: 0 | AD175: 0 | AE175: 0 | AF175: 0 | AG175: 0 | AH175: 0 | AI175: 0 | AJ175: 34000
O180: Playground Areas/Equipment | Z180: Playground Areas/Equipment
O181: Immediate Needs | P181: Year 1 | Q181: Year 2 | R181: Year 3 | S181: Year 4 | T181: Year 5 | U181: Year 6 | V181: Year 7 | W181: Year 8 | X181: Year 9 | Y181: Year 10 | Z181: Year 11 | AA181: Year 12 | AB181: Year 13 | AC181: Year 14 | AD181: Year 15 | AE181: Year 16 | AF181: Year 17 | AG181: Year 18 | AH181: Year 19 | AI181: Year 20 | AJ181: Total Long-Term
P182: 2011 | Q182: 2012 | R182: 2013 | S182: 2014 | T182: 2015 | U182: 2016 | V182: 2017 | W182: 2018 | X182: 2019 | Y182: 2020 | Z182: 2021 | AA182: 2022 | AB182: 2023 | AC182: 2024 | AD182: 2025 | AE182: 2026 | AF182: 2027 | AG182: 2028 | AH182: 2029 | AI182: 2030
C183: Existing | O183: 0 | P183: 0 | Q183: 0 | R183: 0 | S183: 5600 | T183: 0 | U183: 0 | V183: 0 | W183: 0 | X183: 0 | Y183: 0 | Z183: 0 | AA183: 0 | AB183: 0 | AC183: 0 | AD183: 0 | AE183: 0 | AF183: 0 | AG183: 0 | AH183: 0 | AI183: 0 | AJ183: 5600
C184: Standard | O184: 0 | P184: 0 | Q184: 0 | R184: 0 | S184: 5600 | T184: 0 | U184: 0 | V184: 0 | W184: 0 | X184: 0 | Y184: 0 | Z184: 0 | AA184: 0 | AB184: 0 | AC184: 0 | AD184: 0 | AE184: 0 | AF184: 0 | AG184: 0 | AH184: 0 | AI184: 0 | AJ184: 5600
C185: Green | O185: 0 | P185: 0 | Q185: 0 | R185: 0 | S185: 6600 | T185: 0 | U185: 0 | V185: 0 | W185: 0 | X185: 0 | Y185: 0 | Z185: 0 | AA185: 0 | AB185: 0 | AC185: 0 | AD185: 0 | AE185: 0 | AF185: 0 | AG185: 0 | AH185: 0 | AI185: 0 | AJ185: 6600
O190: Site-Other 1 (Specify) | Z190: Site-Other 1 (Specify)
O191: Immediate Needs | P191: Year 1 | Q191: Year 2 | R191: Year 3 | S191: Year 4 | T191: Year 5 | U191: Year 6 | V191: Year 7 | W191: Year 8 | X191: Year 9 | Y191: Year 10 | Z191: Year 11 | AA191: Year 12 | AB191: Year 13 | AC191: Year 14 | AD191: Year 15 | AE191: Year 16 | AF191: Year 17 | AG191: Year 18 | AH191: Year 19 | AI191: Year 20 | AJ191: Total Long-Term
P192: 2011 | Q192: 2012 | R192: 2013 | S192: 2014 | T192: 2015 | U192: 2016 | V192: 2017 | W192: 2018 | X192: 2019 | Y192: 2020 | Z192: 2021 | AA192: 2022 | AB192: 2023 | AC192: 2024 | AD192: 2025 | AE192: 2026 | AF192: 2027 | AG192: 2028 | AH192: 2029 | AI192: 2030
C193: Existing | O193: 0 | P193: 0 | Q193: 0 | R193: 0 | S193: 0 | T193: 0 | U193: 0 | V193: 0 | W193: 0 | X193: 0 | Y193: 0 | Z193: 0 | AA193: 0 | AB193: 0 | AC193: 0 | AD193: 0 | AE193: 0 | AF193: 0 | AG193: 0 | AH193: 0 | AI193: 0 | AJ193: 0
C194: Standard | O194: 0 | P194: 0 | Q194: 0 | R194: 0 | S194: 0 | T194: 0 | U194: 0 | V194: 0 | W194: 0 | X194: 0 | Y194: 0 | Z194: 0 | AA194: 0 | AB194: 0 | AC194: 0 | AD194: 0 | AE194: 0 | AF194: 0 | AG194: 0 | AH194: 0 | AI194: 0 | AJ194: 0
C195: Green | O195: 0 | P195: 0 | Q195: 0 | R195: 0 | S195: 0 | T195: 0 | U195: 0 | V195: 0 | W195: 0 | X195: 0 | Y195: 0 | Z195: 0 | AA195: 0 | AB195: 0 | AC195: 0 | AD195: 0 | AE195: 0 | AF195: 0 | AG195: 0 | AH195: 0 | AI195: 0 | AJ195: 0
O200: Site-Other 2 (Specify) | Z200: Site-Other 2 (Specify)
O201: Immediate Needs | P201: Year 1 | Q201: Year 2 | R201: Year 3 | S201: Year 4 | T201: Year 5 | U201: Year 6 | V201: Year 7 | W201: Year 8 | X201: Year 9 | Y201: Year 10 | Z201: Year 11 | AA201: Year 12 | AB201: Year 13 | AC201: Year 14 | AD201: Year 15 | AE201: Year 16 | AF201: Year 17 | AG201: Year 18 | AH201: Year 19 | AI201: Year 20 | AJ201: Total Long-Term
P202: 2011 | Q202: 2012 | R202: 2013 | S202: 2014 | T202: 2015 | U202: 2016 | V202: 2017 | W202: 2018 | X202: 2019 | Y202: 2020 | Z202: 2021 | AA202: 2022 | AB202: 2023 | AC202: 2024 | AD202: 2025 | AE202: 2026 | AF202: 2027 | AG202: 2028 | AH202: 2029 | AI202: 2030
C203: Existing | O203: 0 | P203: 0 | Q203: 0 | R203: 0 | S203: 0 | T203: 0 | U203: 0 | V203: 0 | W203: 0 | X203: 0 | Y203: 0 | Z203: 0 | AA203: 0 | AB203: 0 | AC203: 0 | AD203: 0 | AE203: 0 | AF203: 0 | AG203: 0 | AH203: 0 | AI203: 0 | AJ203: 0
C204: Standard | O204: 0 | P204: 0 | Q204: 0 | R204: 0 | S204: 0 | T204: 0 | U204: 0 | V204: 0 | W204: 0 | X204: 0 | Y204: 0 | Z204: 0 | AA204: 0 | AB204: 0 | AC204: 0 | AD204: 0 | AE204: 0 | AF204: 0 | AG204: 0 | AH204: 0 | AI204: 0 | AJ204: 0
C205: Green | O205: 0 | P205: 0 | Q205: 0 | R205: 0 | S205: 0 | T205: 0 | U205: 0 | V205: 0 | W205: 0 | X205: 0 | Y205: 0 | Z205: 0 | AA205: 0 | AB205: 0 | AC205: 0 | AD205: 0 | AE205: 0 | AF205: 0 | AG205: 0 | AH205: 0 | AI205: 0 | AJ205: 0
O210: Site-Other 3 (Specify) | Z210: Site-Other 3 (Specify)
O211: Immediate Needs | P211: Year 1 | Q211: Year 2 | R211: Year 3 | S211: Year 4 | T211: Year 5 | U211: Year 6 | V211: Year 7 | W211: Year 8 | X211: Year 9 | Y211: Year 10 | Z211: Year 11 | AA211: Year 12 | AB211: Year 13 | AC211: Year 14 | AD211: Year 15 | AE211: Year 16 | AF211: Year 17 | AG211: Year 18 | AH211: Year 19 | AI211: Year 20 | AJ211: Total Long-Term
P212: 2011 | Q212: 2012 | R212: 2013 | S212: 2014 | T212: 2015 | U212: 2016 | V212: 2017 | W212: 2018 | X212: 2019 | Y212: 2020 | Z212: 2021 | AA212: 2022 | AB212: 2023 | AC212: 2024 | AD212: 2025 | AE212: 2026 | AF212: 2027 | AG212: 2028 | AH212: 2029 | AI212: 2030
C213: Existing | O213: 0 | P213: 0 | Q213: 0 | R213: 0 | S213: 0 | T213: 0 | U213: 0 | V213: 0 | W213: 0 | X213: 0 | Y213: 0 | Z213: 0 | AA213: 0 | AB213: 0 | AC213: 0 | AD213: 0 | AE213: 0 | AF213: 0 | AG213: 0 | AH213: 0 | AI213: 0 | AJ213: 0
C214: Standard | O214: 0 | P214: 0 | Q214: 0 | R214: 0 | S214: 0 | T214: 0 | U214: 0 | V214: 0 | W214: 0 | X214: 0 | Y214: 0 | Z214: 0 | AA214: 0 | AB214: 0 | AC214: 0 | AD214: 0 | AE214: 0 | AF214: 0 | AG214: 0 | AH214: 0 | AI214: 0 | AJ214: 0
C215: Green | O215: 0 | P215: 0 | Q215: 0 | R215: 0 | S215: 0 | T215: 0 | U215: 0 | V215: 0 | W215: 0 | X215: 0 | Y215: 0 | Z215: 0 | AA215: 0 | AB215: 0 | AC215: 0 | AD215: 0 | AE215: 0 | AF215: 0 | AG215: 0 | AH215: 0 | AI215: 0 | AJ215: 0
O220: Site-Other 4 (Specify) | Z220: Site-Other 4 (Specify)
O221: Immediate Needs | P221: Year 1 | Q221: Year 2 | R221: Year 3 | S221: Year 4 | T221: Year 5 | U221: Year 6 | V221: Year 7 | W221: Year 8 | X221: Year 9 | Y221: Year 10 | Z221: Year 11 | AA221: Year 12 | AB221: Year 13 | AC221: Year 14 | AD221: Year 15 | AE221: Year 16 | AF221: Year 17 | AG221: Year 18 | AH221: Year 19 | AI221: Year 20 | AJ221: Total Long-Term
P222: 2011 | Q222: 2012 | R222: 2013 | S222: 2014 | T222: 2015 | U222: 2016 | V222: 2017 | W222: 2018 | X222: 2019 | Y222: 2020 | Z222: 2021 | AA222: 2022 | AB222: 2023 | AC222: 2024 | AD222: 2025 | AE222: 2026 | AF222: 2027 | AG222: 2028 | AH222: 2029 | AI222: 2030
C223: Existing | O223: 0 | P223: 0 | Q223: 0 | R223: 0 | S223: 0 | T223: 0 | U223: 0 | V223: 0 | W223: 0 | X223: 0 | Y223: 0 | Z223: 0 | AA223: 0 | AB223: 0 | AC223: 0 | AD223: 0 | AE223: 0 | AF223: 0 | AG223: 0 | AH223: 0 | AI223: 0 | AJ223: 0
C224: Standard | O224: 0 | P224: 0 | Q224: 0 | R224: 0 | S224: 0 | T224: 0 | U224: 0 | V224: 0 | W224: 0 | X224: 0 | Y224: 0 | Z224: 0 | AA224: 0 | AB224: 0 | AC224: 0 | AD224: 0 | AE224: 0 | AF224: 0 | AG224: 0 | AH224: 0 | AI224: 0 | AJ224: 0
C225: Green | O225: 0 | P225: 0 | Q225: 0 | R225: 0 | S225: 0 | T225: 0 | U225: 0 | V225: 0 | W225: 0 | X225: 0 | Y225: 0 | Z225: 0 | AA225: 0 | AB225: 0 | AC225: 0 | AD225: 0 | AE225: 0 | AF225: 0 | AG225: 0 | AH225: 0 | AI225: 0 | AJ225: 0
O230: Site-Other 5 (Specify) | Z230: Site-Other 5 (Specify)
O231: Immediate Needs | P231: Year 1 | Q231: Year 2 | R231: Year 3 | S231: Year 4 | T231: Year 5 | U231: Year 6 | V231: Year 7 | W231: Year 8 | X231: Year 9 | Y231: Year 10 | Z231: Year 11 | AA231: Year 12 | AB231: Year 13 | AC231: Year 14 | AD231: Year 15 | AE231: Year 16 | AF231: Year 17 | AG231: Year 18 | AH231: Year 19 | AI231: Year 20 | AJ231: Total Long-Term
P232: 2011 | Q232: 2012 | R232: 2013 | S232: 2014 | T232: 2015 | U232: 2016 | V232: 2017 | W232: 2018 | X232: 2019 | Y232: 2020 | Z232: 2021 | AA232: 2022 | AB232: 2023 | AC232: 2024 | AD232: 2025 | AE232: 2026 | AF232: 2027 | AG232: 2028 | AH232: 2029 | AI232: 2030
C233: Existing | O233: 0 | P233: 0 | Q233: 0 | R233: 0 | S233: 0 | T233: 0 | U233: 0 | V233: 0 | W233: 0 | X233: 0 | Y233: 0 | Z233: 0 | AA233: 0 | AB233: 0 | AC233: 0 | AD233: 0 | AE233: 0 | AF233: 0 | AG233: 0 | AH233: 0 | AI233: 0 | AJ233: 0
C234: Standard | O234: 0 | P234: 0 | Q234: 0 | R234: 0 | S234: 0 | T234: 0 | U234: 0 | V234: 0 | W234: 0 | X234: 0 | Y234: 0 | Z234: 0 | AA234: 0 | AB234: 0 | AC234: 0 | AD234: 0 | AE234: 0 | AF234: 0 | AG234: 0 | AH234: 0 | AI234: 0 | AJ234: 0
C235: Green | O235: 0 | P235: 0 | Q235: 0 | R235: 0 | S235: 0 | T235: 0 | U235: 0 | V235: 0 | W235: 0 | X235: 0 | Y235: 0 | Z235: 0 | AA235: 0 | AB235: 0 | AC235: 0 | AD235: 0 | AE235: 0 | AF235: 0 | AG235: 0 | AH235: 0 | AI235: 0 | AJ235: 0
O240: Site-Other 6 (Specify) | Z240: Site-Other 6 (Specify)
O241: Immediate Needs | P241: Year 1 | Q241: Year 2 | R241: Year 3 | S241: Year 4 | T241: Year 5 | U241: Year 6 | V241: Year 7 | W241: Year 8 | X241: Year 9 | Y241: Year 10 | Z241: Year 11 | AA241: Year 12 | AB241: Year 13 | AC241: Year 14 | AD241: Year 15 | AE241: Year 16 | AF241: Year 17 | AG241: Year 18 | AH241: Year 19 | AI241: Year 20 | AJ241: Total Long-Term
P242: 2011 | Q242: 2012 | R242: 2013 | S242: 2014 | T242: 2015 | U242: 2016 | V242: 2017 | W242: 2018 | X242: 2019 | Y242: 2020 | Z242: 2021 | AA242: 2022 | AB242: 2023 | AC242: 2024 | AD242: 2025 | AE242: 2026 | AF242: 2027 | AG242: 2028 | AH242: 2029 | AI242: 2030
C243: Existing | O243: 0 | P243: 0 | Q243: 0 | R243: 0 | S243: 0 | T243: 0 | U243: 0 | V243: 0 | W243: 0 | X243: 0 | Y243: 0 | Z243: 0 | AA243: 0 | AB243: 0 | AC243: 0 | AD243: 0 | AE243: 0 | AF243: 0 | AG243: 0 | AH243: 0 | AI243: 0 | AJ243: 0
C244: Standard | O244: 0 | P244: 0 | Q244: 0 | R244: 0 | S244: 0 | T244: 0 | U244: 0 | V244: 0 | W244: 0 | X244: 0 | Y244: 0 | Z244: 0 | AA244: 0 | AB244: 0 | AC244: 0 | AD244: 0 | AE244: 0 | AF244: 0 | AG244: 0 | AH244: 0 | AI244: 0 | AJ244: 0
C245: Green | O245: 0 | P245: 0 | Q245: 0 | R245: 0 | S245: 0 | T245: 0 | U245: 0 | V245: 0 | W245: 0 | X245: 0 | Y245: 0 | Z245: 0 | AA245: 0 | AB245: 0 | AC245: 0 | AD245: 0 | AE245: 0 | AF245: 0 | AG245: 0 | AH245: 0 | AI245: 0 | AJ245: 0
O250: Site-Other 7 (Specify) | Z250: Site-Other 7 (Specify)
O251: Immediate Needs | P251: Year 1 | Q251: Year 2 | R251: Year 3 | S251: Year 4 | T251: Year 5 | U251: Year 6 | V251: Year 7 | W251: Year 8 | X251: Year 9 | Y251: Year 10 | Z251: Year 11 | AA251: Year 12 | AB251: Year 13 | AC251: Year 14 | AD251: Year 15 | AE251: Year 16 | AF251: Year 17 | AG251: Year 18 | AH251: Year 19 | AI251: Year 20 | AJ251: Total Long-Term
P252: 2011 | Q252: 2012 | R252: 2013 | S252: 2014 | T252: 2015 | U252: 2016 | V252: 2017 | W252: 2018 | X252: 2019 | Y252: 2020 | Z252: 2021 | AA252: 2022 | AB252: 2023 | AC252: 2024 | AD252: 2025 | AE252: 2026 | AF252: 2027 | AG252: 2028 | AH252: 2029 | AI252: 2030
C253: Existing | O253: 0 | P253: 0 | Q253: 0 | R253: 0 | S253: 0 | T253: 0 | U253: 0 | V253: 0 | W253: 0 | X253: 0 | Y253: 0 | Z253: 0 | AA253: 0 | AB253: 0 | AC253: 0 | AD253: 0 | AE253: 0 | AF253: 0 | AG253: 0 | AH253: 0 | AI253: 0 | AJ253: 0
C254: Standard | O254: 0 | P254: 0 | Q254: 0 | R254: 0 | S254: 0 | T254: 0 | U254: 0 | V254: 0 | W254: 0 | X254: 0 | Y254: 0 | Z254: 0 | AA254: 0 | AB254: 0 | AC254: 0 | AD254: 0 | AE254: 0 | AF254: 0 | AG254: 0 | AH254: 0 | AI254: 0 | AJ254: 0
C255: Green | O255: 0 | P255: 0 | Q255: 0 | R255: 0 | S255: 0 | T255: 0 | U255: 0 | V255: 0 | W255: 0 | X255: 0 | Y255: 0 | Z255: 0 | AA255: 0 | AB255: 0 | AC255: 0 | AD255: 0 | AE255: 0 | AF255: 0 | AG255: 0 | AH255: 0 | AI255: 0 | AJ255: 0
O260: Site-Other 8 (Specify) | Z260: Site-Other 8 (Specify)
O261: Immediate Needs | P261: Year 1 | Q261: Year 2 | R261: Year 3 | S261: Year 4 | T261: Year 5 | U261: Year 6 | V261: Year 7 | W261: Year 8 | X261: Year 9 | Y261: Year 10 | Z261: Year 11 | AA261: Year 12 | AB261: Year 13 | AC261: Year 14 | AD261: Year 15 | AE261: Year 16 | AF261: Year 17 | AG261: Year 18 | AH261: Year 19 | AI261: Year 20 | AJ261: Total Long-Term
P262: 2011 | Q262: 2012 | R262: 2013 | S262: 2014 | T262: 2015 | U262: 2016 | V262: 2017 | W262: 2018 | X262: 2019 | Y262: 2020 | Z262: 2021 | AA262: 2022 | AB262: 2023 | AC262: 2024 | AD262: 2025 | AE262: 2026 | AF262: 2027 | AG262: 2028 | AH262: 2029 | AI262: 2030
C263: Existing | O263: 0 | P263: 0 | Q263: 0 | R263: 0 | S263: 0 | T263: 0 | U263: 0 | V263: 0 | W263: 0 | X263: 0 | Y263: 0 | Z263: 0 | AA263: 0 | AB263: 0 | AC263: 0 | AD263: 0 | AE263: 0 | AF263: 0 | AG263: 0 | AH263: 0 | AI263: 0 | AJ263: 0
C264: Standard | O264: 0 | P264: 0 | Q264: 0 | R264: 0 | S264: 0 | T264: 0 | U264: 0 | V264: 0 | W264: 0 | X264: 0 | Y264: 0 | Z264: 0 | AA264: 0 | AB264: 0 | AC264: 0 | AD264: 0 | AE264: 0 | AF264: 0 | AG264: 0 | AH264: 0 | AI264: 0 | AJ264: 0
C265: Green | O265: 0 | P265: 0 | Q265: 0 | R265: 0 | S265: 0 | T265: 0 | U265: 0 | V265: 0 | W265: 0 | X265: 0 | Y265: 0 | Z265: 0 | AA265: 0 | AB265: 0 | AC265: 0 | AD265: 0 | AE265: 0 | AF265: 0 | AG265: 0 | AH265: 0 | AI265: 0 | AJ265: 0
O270: Site-Other 9 (Specify) | Z270: Site-Other 9 (Specify)
O271: Immediate Needs | P271: Year 1 | Q271: Year 2 | R271: Year 3 | S271: Year 4 | T271: Year 5 | U271: Year 6 | V271: Year 7 | W271: Year 8 | X271: Year 9 | Y271: Year 10 | Z271: Year 11 | AA271: Year 12 | AB271: Year 13 | AC271: Year 14 | AD271: Year 15 | AE271: Year 16 | AF271: Year 17 | AG271: Year 18 | AH271: Year 19 | AI271: Year 20 | AJ271: Total Long-Term
P272: 2011 | Q272: 2012 | R272: 2013 | S272: 2014 | T272: 2015 | U272: 2016 | V272: 2017 | W272: 2018 | X272: 2019 | Y272: 2020 | Z272: 2021 | AA272: 2022 | AB272: 2023 | AC272: 2024 | AD272: 2025 | AE272: 2026 | AF272: 2027 | AG272: 2028 | AH272: 2029 | AI272: 2030
C273: Existing | O273: 0 | P273: 0 | Q273: 0 | R273: 0 | S273: 0 | T273: 0 | U273: 0 | V273: 0 | W273: 0 | X273: 0 | Y273: 0 | Z273: 0 | AA273: 0 | AB273: 0 | AC273: 0 | AD273: 0 | AE273: 0 | AF273: 0 | AG273: 0 | AH273: 0 | AI273: 0 | AJ273: 0
C274: Standard | O274: 0 | P274: 0 | Q274: 0 | R274: 0 | S274: 0 | T274: 0 | U274: 0 | V274: 0 | W274: 0 | X274: 0 | Y274: 0 | Z274: 0 | AA274: 0 | AB274: 0 | AC274: 0 | AD274: 0 | AE274: 0 | AF274: 0 | AG274: 0 | AH274: 0 | AI274: 0 | AJ274: 0
C275: Green | O275: 0 | P275: 0 | Q275: 0 | R275: 0 | S275: 0 | T275: 0 | U275: 0 | V275: 0 | W275: 0 | X275: 0 | Y275: 0 | Z275: 0 | AA275: 0 | AB275: 0 | AC275: 0 | AD275: 0 | AE275: 0 | AF275: 0 | AG275: 0 | AH275: 0 | AI275: 0 | AJ275: 0
O280: Site-Other 10 (Specify) | Z280: Site-Other 10 (Specify)
O281: Immediate Needs | P281: Year 1 | Q281: Year 2 | R281: Year 3 | S281: Year 4 | T281: Year 5 | U281: Year 6 | V281: Year 7 | W281: Year 8 | X281: Year 9 | Y281: Year 10 | Z281: Year 11 | AA281: Year 12 | AB281: Year 13 | AC281: Year 14 | AD281: Year 15 | AE281: Year 16 | AF281: Year 17 | AG281: Year 18 | AH281: Year 19 | AI281: Year 20 | AJ281: Total Long-Term
P282: 2011 | Q282: 2012 | R282: 2013 | S282: 2014 | T282: 2015 | U282: 2016 | V282: 2017 | W282: 2018 | X282: 2019 | Y282: 2020 | Z282: 2021 | AA282: 2022 | AB282: 2023 | AC282: 2024 | AD282: 2025 | AE282: 2026 | AF282: 2027 | AG282: 2028 | AH282: 2029 | AI282: 2030
C283: Existing | O283: 0 | P283: 0 | Q283: 0 | R283: 0 | S283: 0 | T283: 0 | U283: 0 | V283: 0 | W283: 0 | X283: 0 | Y283: 0 | Z283: 0 | AA283: 0 | AB283: 0 | AC283: 0 | AD283: 0 | AE283: 0 | AF283: 0 | AG283: 0 | AH283: 0 | AI283: 0 | AJ283: 0
C284: Standard | O284: 0 | P284: 0 | Q284: 0 | R284: 0 | S284: 0 | T284: 0 | U284: 0 | V284: 0 | W284: 0 | X284: 0 | Y284: 0 | Z284: 0 | AA284: 0 | AB284: 0 | AC284: 0 | AD284: 0 | AE284: 0 | AF284: 0 | AG284: 0 | AH284: 0 | AI284: 0 | AJ284: 0
C285: Green | O285: 0 | P285: 0 | Q285: 0 | R285: 0 | S285: 0 | T285: 0 | U285: 0 | V285: 0 | W285: 0 | X285: 0 | Y285: 0 | Z285: 0 | AA285: 0 | AB285: 0 | AC285: 0 | AD285: 0 | AE285: 0 | AF285: 0 | AG285: 0 | AH285: 0 | AI285: 0 | AJ285: 0
O300: Administrative Building | Z300: Administrative Building
O301: Immediate Needs | P301: Year 1 | Q301: Year 2 | R301: Year 3 | S301: Year 4 | T301: Year 5 | U301: Year 6 | V301: Year 7 | W301: Year 8 | X301: Year 9 | Y301: Year 10 | Z301: Year 11 | AA301: Year 12 | AB301: Year 13 | AC301: Year 14 | AD301: Year 15 | AE301: Year 16 | AF301: Year 17 | AG301: Year 18 | AH301: Year 19 | AI301: Year 20 | AJ301: Total Long-Term
P302: 2011 | Q302: 2012 | R302: 2013 | S302: 2014 | T302: 2015 | U302: 2016 | V302: 2017 | W302: 2018 | X302: 2019 | Y302: 2020 | Z302: 2021 | AA302: 2022 | AB302: 2023 | AC302: 2024 | AD302: 2025 | AE302: 2026 | AF302: 2027 | AG302: 2028 | AH302: 2029 | AI302: 2030
C303: Existing | O303: 0 | P303: 0 | Q303: 0 | R303: 0 | S303: 12000 | T303: 0 | U303: 0 | V303: 0 | W303: 0 | X303: 0 | Y303: 0 | Z303: 0 | AA303: 0 | AB303: 0 | AC303: 0 | AD303: 0 | AE303: 0 | AF303: 0 | AG303: 0 | AH303: 0 | AI303: 0 | AJ303: 12000
C304: Standard | O304: 0 | P304: 0 | Q304: 0 | R304: 0 | S304: 12000 | T304: 0 | U304: 0 | V304: 0 | W304: 0 | X304: 0 | Y304: 0 | Z304: 0 | AA304: 0 | AB304: 0 | AC304: 0 | AD304: 0 | AE304: 0 | AF304: 0 | AG304: 0 | AH304: 0 | AI304: 0 | AJ304: 12000
C305: Green | O305: 0 | P305: 0 | Q305: 0 | R305: 0 | S305: 12500 | T305: 0 | U305: 0 | V305: 0 | W305: 0 | X305: 0 | Y305: 0 | Z305: 0 | AA305: 0 | AB305: 0 | AC305: 0 | AD305: 0 | AE305: 0 | AF305: 0 | AG305: 0 | AH305: 0 | AI305: 0 | AJ305: 12500
O310: Community Building | Z310: Community Building
O311: Immediate Needs | P311: Year 1 | Q311: Year 2 | R311: Year 3 | S311: Year 4 | T311: Year 5 | U311: Year 6 | V311: Year 7 | W311: Year 8 | X311: Year 9 | Y311: Year 10 | Z311: Year 11 | AA311: Year 12 | AB311: Year 13 | AC311: Year 14 | AD311: Year 15 | AE311: Year 16 | AF311: Year 17 | AG311: Year 18 | AH311: Year 19 | AI311: Year 20 | AJ311: Total Long-Term
P312: 2011 | Q312: 2012 | R312: 2013 | S312: 2014 | T312: 2015 | U312: 2016 | V312: 2017 | W312: 2018 | X312: 2019 | Y312: 2020 | Z312: 2021 | AA312: 2022 | AB312: 2023 | AC312: 2024 | AD312: 2025 | AE312: 2026 | AF312: 2027 | AG312: 2028 | AH312: 2029 | AI312: 2030
C313: Existing | O313: 0 | P313: 0 | Q313: 0 | R313: 0 | S313: 0 | T313: 50000 | U313: 0 | V313: 0 | W313: 0 | X313: 0 | Y313: 0 | Z313: 0 | AA313: 0 | AB313: 0 | AC313: 0 | AD313: 0 | AE313: 0 | AF313: 0 | AG313: 0 | AH313: 0 | AI313: 0 | AJ313: 50000
C314: Standard | O314: 0 | P314: 0 | Q314: 0 | R314: 0 | S314: 0 | T314: 50000 | U314: 0 | V314: 0 | W314: 0 | X314: 0 | Y314: 0 | Z314: 0 | AA314: 0 | AB314: 0 | AC314: 0 | AD314: 0 | AE314: 0 | AF314: 0 | AG314: 0 | AH314: 0 | AI314: 0 | AJ314: 50000
C315: Green | O315: 0 | P315: 0 | Q315: 0 | R315: 0 | S315: 0 | T315: 56000 | U315: 0 | V315: 0 | W315: 0 | X315: 0 | Y315: 0 | Z315: 0 | AA315: 0 | AB315: 0 | AC315: 0 | AD315: 0 | AE315: 0 | AF315: 0 | AG315: 0 | AH315: 0 | AI315: 0 | AJ315: 56000
O320: Shop | Z320: Shop
O321: Immediate Needs | P321: Year 1 | Q321: Year 2 | R321: Year 3 | S321: Year 4 | T321: Year 5 | U321: Year 6 | V321: Year 7 | W321: Year 8 | X321: Year 9 | Y321: Year 10 | Z321: Year 11 | AA321: Year 12 | AB321: Year 13 | AC321: Year 14 | AD321: Year 15 | AE321: Year 16 | AF321: Year 17 | AG321: Year 18 | AH321: Year 19 | AI321: Year 20 | AJ321: Total Long-Term
P322: 2011 | Q322: 2012 | R322: 2013 | S322: 2014 | T322: 2015 | U322: 2016 | V322: 2017 | W322: 2018 | X322: 2019 | Y322: 2020 | Z322: 2021 | AA322: 2022 | AB322: 2023 | AC322: 2024 | AD322: 2025 | AE322: 2026 | AF322: 2027 | AG322: 2028 | AH322: 2029 | AI322: 2030
C323: Existing | O323: 0 | P323: 0 | Q323: 0 | R323: 0 | S323: 0 | T323: 0 | U323: 1600 | V323: 0 | W323: 0 | X323: 0 | Y323: 0 | Z323: 0 | AA323: 0 | AB323: 0 | AC323: 0 | AD323: 0 | AE323: 0 | AF323: 0 | AG323: 0 | AH323: 0 | AI323: 0 | AJ323: 1600
C324: Standard | O324: 0 | P324: 0 | Q324: 0 | R324: 0 | S324: 0 | T324: 0 | U324: 1600 | V324: 0 | W324: 0 | X324: 0 | Y324: 0 | Z324: 0 | AA324: 0 | AB324: 0 | AC324: 0 | AD324: 0 | AE324: 0 | AF324: 0 | AG324: 0 | AH324: 0 | AI324: 0 | AJ324: 1600
C325: Green | O325: 0 | P325: 0 | Q325: 0 | R325: 0 | S325: 0 | T325: 0 | U325: 1600 | V325: 0 | W325: 0 | X325: 0 | Y325: 0 | Z325: 0 | AA325: 0 | AB325: 0 | AC325: 0 | AD325: 0 | AE325: 0 | AF325: 0 | AG325: 0 | AH325: 0 | AI325: 0 | AJ325: 1600
O330: Storage Area | Z330: Storage Area
O331: Immediate Needs | P331: Year 1 | Q331: Year 2 | R331: Year 3 | S331: Year 4 | T331: Year 5 | U331: Year 6 | V331: Year 7 | W331: Year 8 | X331: Year 9 | Y331: Year 10 | Z331: Year 11 | AA331: Year 12 | AB331: Year 13 | AC331: Year 14 | AD331: Year 15 | AE331: Year 16 | AF331: Year 17 | AG331: Year 18 | AH331: Year 19 | AI331: Year 20 | AJ331: Total Long-Term
P332: 2011 | Q332: 2012 | R332: 2013 | S332: 2014 | T332: 2015 | U332: 2016 | V332: 2017 | W332: 2018 | X332: 2019 | Y332: 2020 | Z332: 2021 | AA332: 2022 | AB332: 2023 | AC332: 2024 | AD332: 2025 | AE332: 2026 | AF332: 2027 | AG332: 2028 | AH332: 2029 | AI332: 2030
C333: Existing | O333: 450 | P333: 0 | Q333: 0 | R333: 0 | S333: 0 | T333: 0 | U333: 0 | V333: 0 | W333: 0 | X333: 0 | Y333: 0 | Z333: 0 | AA333: 0 | AB333: 450 | AC333: 0 | AD333: 0 | AE333: 0 | AF333: 0 | AG333: 0 | AH333: 0 | AI333: 0 | AJ333: 450
C334: Standard | O334: 450 | P334: 0 | Q334: 0 | R334: 0 | S334: 0 | T334: 0 | U334: 0 | V334: 0 | W334: 0 | X334: 0 | Y334: 0 | Z334: 0 | AA334: 0 | AB334: 450 | AC334: 0 | AD334: 0 | AE334: 0 | AF334: 0 | AG334: 0 | AH334: 0 | AI334: 0 | AJ334: 450
C335: Green | O335: 450 | P335: 0 | Q335: 0 | R335: 0 | S335: 0 | T335: 0 | U335: 0 | V335: 0 | W335: 0 | X335: 0 | Y335: 0 | Z335: 0 | AA335: 0 | AB335: 450 | AC335: 0 | AD335: 0 | AE335: 0 | AF335: 0 | AG335: 0 | AH335: 0 | AI335: 0 | AJ335: 450
O340: Central Boiler | Z340: Central Boiler
O341: Immediate Needs | P341: Year 1 | Q341: Year 2 | R341: Year 3 | S341: Year 4 | T341: Year 5 | U341: Year 6 | V341: Year 7 | W341: Year 8 | X341: Year 9 | Y341: Year 10 | Z341: Year 11 | AA341: Year 12 | AB341: Year 13 | AC341: Year 14 | AD341: Year 15 | AE341: Year 16 | AF341: Year 17 | AG341: Year 18 | AH341: Year 19 | AI341: Year 20 | AJ341: Total Long-Term
P342: 2011 | Q342: 2012 | R342: 2013 | S342: 2014 | T342: 2015 | U342: 2016 | V342: 2017 | W342: 2018 | X342: 2019 | Y342: 2020 | Z342: 2021 | AA342: 2022 | AB342: 2023 | AC342: 2024 | AD342: 2025 | AE342: 2026 | AF342: 2027 | AG342: 2028 | AH342: 2029 | AI342: 2030
C343: Existing | O343: 0 | P343: 2400 | Q343: 0 | R343: 0 | S343: 0 | T343: 0 | U343: 0 | V343: 0 | W343: 0 | X343: 0 | Y343: 0 | Z343: 0 | AA343: 0 | AB343: 0 | AC343: 0 | AD343: 2400 | AE343: 0 | AF343: 0 | AG343: 0 | AH343: 0 | AI343: 0 | AJ343: 4800
C344: Standard | O344: 0 | P344: 2400 | Q344: 0 | R344: 0 | S344: 0 | T344: 0 | U344: 0 | V344: 0 | W344: 0 | X344: 0 | Y344: 0 | Z344: 0 | AA344: 0 | AB344: 0 | AC344: 0 | AD344: 2400 | AE344: 0 | AF344: 0 | AG344: 0 | AH344: 0 | AI344: 0 | AJ344: 4800
C345: Green | O345: 0 | P345: 3800 | Q345: 0 | R345: 0 | S345: 0 | T345: 0 | U345: 0 | V345: 0 | W345: 0 | X345: 0 | Y345: 0 | Z345: 0 | AA345: 0 | AB345: 0 | AC345: 0 | AD345: 3800 | AE345: 0 | AF345: 0 | AG345: 0 | AH345: 0 | AI345: 0 | AJ345: 7600
O350: Central Chiller | Z350: Central Chiller
O351: Immediate Needs | P351: Year 1 | Q351: Year 2 | R351: Year 3 | S351: Year 4 | T351: Year 5 | U351: Year 6 | V351: Year 7 | W351: Year 8 | X351: Year 9 | Y351: Year 10 | Z351: Year 11 | AA351: Year 12 | AB351: Year 13 | AC351: Year 14 | AD351: Year 15 | AE351: Year 16 | AF351: Year 17 | AG351: Year 18 | AH351: Year 19 | AI351: Year 20 | AJ351: Total Long-Term
P352: 2011 | Q352: 2012 | R352: 2013 | S352: 2014 | T352: 2015 | U352: 2016 | V352: 2017 | W352: 2018 | X352: 2019 | Y352: 2020 | Z352: 2021 | AA352: 2022 | AB352: 2023 | AC352: 2024 | AD352: 2025 | AE352: 2026 | AF352: 2027 | AG352: 2028 | AH352: 2029 | AI352: 2030
C353: Existing | O353: 0 | P353: 0 | Q353: 2500 | R353: 0 | S353: 0 | T353: 0 | U353: 0 | V353: 0 | W353: 0 | X353: 0 | Y353: 0 | Z353: 0 | AA353: 0 | AB353: 0 | AC353: 0 | AD353: 0 | AE353: 0 | AF353: 2500 | AG353: 0 | AH353: 0 | AI353: 0 | AJ353: 5000
... 710 more rows

Sheet Controls
B2: EUL | C2: Benchmark | G2: Yes
B3: 5 | C3: 4 | D3: years | G3: No
B4: =+B3+1 -> 6 | C4: 5 | D4: years
B5: 7 | C5: 5 | D5: years
B6: 8 | C6: 6 | D6: years
B7: 9 | C7: 7 | D7: years
B8: 10 | C8: 7 | D8: years
B9: 11 | C9: 8 | D9: years
B10: 12 | C10: 8 | D10: years
B11: 13 | C11: 9 | D11: years
B12: 14 | C12: 9 | D12: years
B13: 15 | C13: 10 | D13: years
B14: 16 | C14: 10 | D14: years
B15: 17 | C15: 10 | D15: years
B16: 18 | C16: 11 | D16: years
B17: 19 | C17: 11 | D17: years
B18: 20 | C18: 12 | D18: years
B19: =+B18+5 -> 25 | C19: 13 | D19: years
B20: 30 | C20: 14 | D20: years
B21: 35 | C21: 15 | D21: years
B22: 40 | C22: 15 | D22: years
B23: 45 | C23: 16 | D23: years
B24: 50 | C24: 16 | D24: years
B27: ='[1]Program Variables'!D24 -> 1.5 | C27: Program Standard Early Replacement Threshold
B28: ='[1]Program Variables'!D25 -> 0.15 | C28: Program Standard % of EUL for Early Replacement
B32: Pass | C32: Fail
B33: Yes | C33: No
B34: Green #1 | C34: Green #2 | D34: N/A
B36: Now | C36: End of Cycle
B37: Green | C37: Traditional

Sheet Summary
A1: Energy Executive Summary | I1: Capital Needs Summary
A2: Site | B2: Utility Saver (Y/N) | C2: Incremental Cost | D2: Annual Utility / Water Savings | E2: Annual Savings | F2: Simple Payback
A3: =CNI!A5 -> Asphalt/Concrete | B3: =IF(CNI!K11="Non-Utility Saver","no","yes") -> no | C3: =CNI!AK13 -> 1200 | D3: =IF(B3="No","n/a","value") -> n/a | E3: =IF(B3="no","n/a","value") -> n/a | F3: =IF(B3="no","n/a","value") -> n/a | K3: =StartInput!$F$25+1 -> 2011 | L3: =StartInput!$F$25+2 -> 2012 | M3: =StartInput!$F$25+3 -> 2013 | N3: =StartInput!$F$25+4 -> 2014 | O3: =StartInput!$F$25+5 -> 2015 | P3: =StartInput!$F$25+6 -> 2016 | Q3: =StartInput!$F$25+7 -> 2017 | R3: =StartInput!$F$25+8 -> 2018 | S3: =StartInput!$F$25+9 -> 2019 | T3: =StartInput!$F$25+10 -> 2020 | U3: =StartInput!$F$25+11 -> 2021 | V3: =StartInput!$F$25+12 -> 2022 | W3: =StartInput!$F$25+13 -> 2023 | X3: =StartInput!$F$25+14 -> 2024 | Y3: =StartInput!$F$25+15 -> 2025 | Z3: =StartInput!$F$25+16 -> 2026 | AA3: =StartInput!$F$25+17 -> 2027 | AB3: =StartInput!$F$25+18 -> 2028 | AC3: =StartInput!$F$25+19 -> 2029 | AD3: =StartInput!$F$25+20 -> 2030
A4: =CNI!A15 -> Seal Coat | B4: =IF(CNI!K21="Non-Utility Saver","no","yes") -> no | C4: =CNI!AK23 -> 1500 | D4: =IF(B4="No","n/a","value") -> n/a | E4: n/a | F4: n/a | I4: Site | K4: ='PNA Summary'!L138 -> 54516 | L4: ='PNA Summary'!M138 -> 127000 | M4: ='PNA Summary'!N138 -> 69000 | N4: ='PNA Summary'!O138 -> 5600 | O4: ='PNA Summary'!P138 -> 0 | P4: ='PNA Summary'!Q138 -> 7640 | Q4: ='PNA Summary'!R138 -> 0 | R4: ='PNA Summary'!S138 -> 0 | S4: ='PNA Summary'!T138 -> 6850 | T4: ='PNA Summary'!U138 -> 0 | U4: ='PNA Summary'!V138 -> 0 | V4: ='PNA Summary'!W138 -> 7640 | W4: ='PNA Summary'!X138 -> 0 | X4: ='PNA Summary'!Y138 -> 0 | Y4: ='PNA Summary'!Z138 -> 60000 | Z4: ='PNA Summary'!AA138 -> 4000 | AA4: ='PNA Summary'!AB138 -> 45000 | AB4: ='PNA Summary'!AC138 -> 21990 | AC4: ='PNA Summary'!AD138 -> 20800 | AD4: ='PNA Summary'!AE138 -> 56000
A5: =CNI!A25 -> Striping | B5: =IF(CNI!K31="Non-Utility Saver","no","yes") -> no | C5: =CNI!AK33 -> 0 | D5: n/a | E5: n/a | F5: n/a | I5: Common Areas | K5: ='PNA Summary'!L168 -> 3100 | L5: ='PNA Summary'!M168 -> 6000 | M5: ='PNA Summary'!N168 -> 650 | N5: ='PNA Summary'!O168 -> 13750 | O5: ='PNA Summary'!P168 -> 54680 | P5: ='PNA Summary'!Q168 -> 8600 | Q5: ='PNA Summary'!R168 -> 10000 | R5: ='PNA Summary'!S168 -> 0 | S5: ='PNA Summary'!T168 -> 0 | T5: ='PNA Summary'!U168 -> 0 | U5: ='PNA Summary'!V168 -> 0 | V5: ='PNA Summary'!W168 -> 5400 | W5: ='PNA Summary'!X168 -> 450 | X5: ='PNA Summary'!Y168 -> 700 | Y5: ='PNA Summary'!Z168 -> 2400 | Z5: ='PNA Summary'!AA168 -> 3500 | AA5: ='PNA Summary'!AB168 -> 2500 | AB5: ='PNA Summary'!AC168 -> 0 | AC5: ='PNA Summary'!AD168 -> 650 | AD5: ='PNA Summary'!AE168 -> 0
A6: =CNI!A35 -> Curb and Gutter | B6: =IF(CNI!K41="Non-Utility Saver","no","yes") -> no | C6: =CNI!AK43 -> 0 | D6: n/a | E6: n/a | F6: n/a | I6: Unit Exteriors | K6: ='PNA Summary'!L210 -> 3560 | L6: ='PNA Summary'!M210 -> 0 | M6: ='PNA Summary'!N210 -> 37600 | N6: ='PNA Summary'!O210 -> 10000 | O6: ='PNA Summary'!P210 -> 5000 | P6: ='PNA Summary'!Q210 -> 1445 | Q6: ='PNA Summary'!R210 -> 12000 | R6: ='PNA Summary'!S210 -> 0 | S6: ='PNA Summary'!T210 -> 1265 | T6: ='PNA Summary'!U210 -> 12500 | U6: ='PNA Summary'!V210 -> 3560 | V6: ='PNA Summary'!W210 -> 0 | W6: ='PNA Summary'!X210 -> 0 | X6: ='PNA Summary'!Y210 -> 0 | Y6: ='PNA Summary'!Z210 -> 351200 | Z6: ='PNA Summary'!AA210 -> 23600 | AA6: ='PNA Summary'!AB210 -> 3500 | AB6: ='PNA Summary'!AC210 -> 2765 | AC6: ='PNA Summary'!AD210 -> 7500 | AD6: ='PNA Summary'!AE210 -> 15000
A7: =CNI!A45 -> Pedestrian Paving | B7: =IF(CNI!K51="Non-Utility Saver","no","yes") -> no | C7: =CNI!AK53 -> 2584 | D7: n/a | E7: n/a | F7: n/a | I7: Unit Interiors | K7: ='PNA Summary'!L250 -> 120000 | L7: ='PNA Summary'!M250 -> 60000 | M7: ='PNA Summary'!N250 -> 5800 | N7: ='PNA Summary'!O250 -> 46000 | O7: ='PNA Summary'!P250 -> 18700 | P7: ='PNA Summary'!Q250 -> 90000 | Q7: ='PNA Summary'!R250 -> 34100 | R7: ='PNA Summary'!S250 -> 124500 | S7: ='PNA Summary'!T250 -> 6800 | T7: ='PNA Summary'!U250 -> 72000 | U7: ='PNA Summary'!V250 -> 120000 | V7: ='PNA Summary'!W250 -> 90000 | W7: ='PNA Summary'!X250 -> 5800 | X7: ='PNA Summary'!Y250 -> 13400 | Y7: ='PNA Summary'!Z250 -> 421000 | Z7: ='PNA Summary'!AA250 -> 0 | AA7: ='PNA Summary'!AB250 -> 18700 | AB7: ='PNA Summary'!AC250 -> 0 | AC7: ='PNA Summary'!AD250 -> 90000 | AD7: ='PNA Summary'!AE250 -> 60000
A8: =CNI!A55 -> Signage | B8: =IF(CNI!K61="Non-Utility Saver","no","yes") -> no | C8: =CNI!AK63 -> 200 | D8: n/a | E8: n/a | F8: n/a | I8: Mechanical | K8: ='PNA Summary'!L282 -> 4580 | L8: ='PNA Summary'!M282 -> 18600 | M8: ='PNA Summary'!N282 -> 0 | N8: ='PNA Summary'!O282 -> 0 | O8: ='PNA Summary'!P282 -> 112000 | P8: ='PNA Summary'!Q282 -> 0 | Q8: ='PNA Summary'!R282 -> 4580 | R8: ='PNA Summary'!S282 -> 0 | S8: ='PNA Summary'!T282 -> 18600 | T8: ='PNA Summary'!U282 -> 112000 | U8: ='PNA Summary'!V282 -> 0 | V8: ='PNA Summary'!W282 -> 0 | W8: ='PNA Summary'!X282 -> 4580 | X8: ='PNA Summary'!Y282 -> 4500 | Y8: ='PNA Summary'!Z282 -> 112000 | Z8: ='PNA Summary'!AA282 -> 18600 | AA8: ='PNA Summary'!AB282 -> 0 | AB8: ='PNA Summary'!AC282 -> 0 | AC8: ='PNA Summary'!AD282 -> 4580 | AD8: ='PNA Summary'!AE282 -> 112000
A9: =CNI!A65 -> Water Lines/Mains | B9: =IF(CNI!K71="Non-Utility Saver","no","yes") -> no | C9: =CNI!AK73 -> 0 | D9: n/a | E9: n/a | F9: n/a
A10: =CNI!A75 -> Sewer Lines/Mains | B10: =IF(CNI!K81="Non-Utility Saver","no","yes") -> no | C10: =CNI!AK83 -> 0 | D10: n/a | E10: n/a | F10: n/a | K10: =StartInput!$F$25+1 -> 2011 | L10: =StartInput!$F$25+2 -> 2012 | M10: =StartInput!$F$25+3 -> 2013 | N10: =StartInput!$F$25+4 -> 2014 | O10: =StartInput!$F$25+5 -> 2015 | P10: =StartInput!$F$25+6 -> 2016 | Q10: =StartInput!$F$25+7 -> 2017 | R10: =StartInput!$F$25+8 -> 2018 | S10: =StartInput!$F$25+9 -> 2019 | T10: =StartInput!$F$25+10 -> 2020 | U10: =StartInput!$F$25+11 -> 2021 | V10: =StartInput!$F$25+12 -> 2022 | W10: =StartInput!$F$25+13 -> 2023 | X10: =StartInput!$F$25+14 -> 2024 | Y10: =StartInput!$F$25+15 -> 2025 | Z10: =StartInput!$F$25+16 -> 2026 | AA10: =StartInput!$F$25+17 -> 2027 | AB10: =StartInput!$F$25+18 -> 2028 | AC10: =StartInput!$F$25+19 -> 2029 | AD10: =StartInput!$F$25+20 -> 2030
A11: =CNI!A85 -> Irrigation | B11: =IF(CNI!K95="Non-Utility Saver","no","yes") -> yes | C11: =CNI!AK99 -> 51000 | D11: =IF(B11="No","n/a",CNI!K95-CNI!K99&" "&CNI!L95) -> 5000000 Gallons | E11: =CNI!AL99 -> 22500 | F11: =IF(B11="no","n/a",CNI!AM99) -> 2.266666667 | I11: Site | K11: ='PNA Summary'!L386 -> 61100 | L11: ='PNA Summary'!M386 -> 134500 | M11: ='PNA Summary'!N386 -> 70000 | N11: ='PNA Summary'!O386 -> 6600 | O11: ='PNA Summary'!P386 -> 0 | P11: ='PNA Summary'!Q386 -> 8040 | Q11: ='PNA Summary'!R386 -> 0 | R11: ='PNA Summary'!S386 -> 0 | S11: ='PNA Summary'!T386 -> 7600 | T11: ='PNA Summary'!U386 -> 0 | U11: ='PNA Summary'!V386 -> 0 | V11: ='PNA Summary'!W386 -> 8040 | W11: ='PNA Summary'!X386 -> 0 | X11: ='PNA Summary'!Y386 -> 0 | Y11: ='PNA Summary'!Z386 -> 102000 | Z11: ='PNA Summary'!AA386 -> 4000 | AA11: ='PNA Summary'!AB386 -> 96000 | AB11: ='PNA Summary'!AC386 -> 27340 | AC11: ='PNA Summary'!AD386 -> 20800 | AD11: ='PNA Summary'!AE386 -> 56000
A12: =CNI!A101 -> Lighting | B12: =IF(CNI!K111="Non-Utility Saver","no","yes") -> yes | C12: =CNI!AK115 -> 42000 | D12: =IF(B12="No","n/a",CNI!K111-CNI!K115&" "&CNI!L111) -> 17480 KWH | E12: =CNI!AL115 -> 7227 | F12: =CNI!AM115 -> 5.811540058 | I12: Common Areas | K12: ='PNA Summary'!L416 -> 4700 | L12: ='PNA Summary'!M416 -> 9300 | M12: ='PNA Summary'!N416 -> 650 | N12: ='PNA Summary'!O416 -> 14900 | O12: ='PNA Summary'!P416 -> 61780 | P12: ='PNA Summary'!Q416 -> 9300 | Q12: ='PNA Summary'!R416 -> 10800 | R12: ='PNA Summary'!S416 -> 0 | S12: ='PNA Summary'!T416 -> 0 | T12: ='PNA Summary'!U416 -> 0 | U12: ='PNA Summary'!V416 -> 0 | V12: ='PNA Summary'!W416 -> 5700 | W12: ='PNA Summary'!X416 -> 450 | X12: ='PNA Summary'!Y416 -> 900 | Y12: ='PNA Summary'!Z416 -> 3800 | Z12: ='PNA Summary'!AA416 -> 3700 | AA12: ='PNA Summary'!AB416 -> 5600 | AB12: ='PNA Summary'!AC416 -> 0 | AC12: ='PNA Summary'!AD416 -> 650 | AD12: ='PNA Summary'!AE416 -> 0
A13: =CNI!A117 -> Storm Drainage | B13: =IF(CNI!K123="Non-Utility Saver","no","yes") -> no | C13: =CNI!AK125 -> 7500 | D13: n/a | E13: =IF(B13="no","n/a","value") -> n/a | F13: =IF(B13="no","n/a","value") -> n/a | I13: Unit Exteriors | K13: ='PNA Summary'!L457 -> 4670 | L13: ='PNA Summary'!M457 -> 0 | M13: ='PNA Summary'!N457 -> 51000 | N13: ='PNA Summary'!O457 -> 19670 | O13: ='PNA Summary'!P457 -> 6600 | P13: ='PNA Summary'!Q457 -> 1556 | Q13: ='PNA Summary'!R457 -> 10000 | R13: ='PNA Summary'!S457 -> 0 | S13: ='PNA Summary'!T457 -> 1765 | T13: ='PNA Summary'!U457 -> 18900 | U13: ='PNA Summary'!V457 -> 4670 | V13: ='PNA Summary'!W457 -> 0 | W13: ='PNA Summary'!X457 -> 0 | X13: ='PNA Summary'!Y457 -> 0 | Y13: ='PNA Summary'!Z457 -> 442450 | Z13: ='PNA Summary'!AA457 -> 35000 | AA13: ='PNA Summary'!AB457 -> 12500 | AB13: ='PNA Summary'!AC457 -> 3335 | AC13: ='PNA Summary'!AD457 -> 8400 | AD13: ='PNA Summary'!AE457 -> 22700
A14: =CNI!A127 -> Landscaping | B14: =IF(CNI!K133="Non-Utility Saver","no","yes") -> no | C14: =CNI!AK135 -> 1000 | D14: n/a | E14: n/a | F14: n/a | I14: Unit Interiors | K14: ='PNA Summary'!L497 -> 120000 | L14: ='PNA Summary'!M497 -> 64800 | M14: ='PNA Summary'!N497 -> 7700 | N14: ='PNA Summary'!O497 -> 52000 | O14: ='PNA Summary'!P497 -> 19900 | P14: ='PNA Summary'!Q497 -> 90000 | Q14: ='PNA Summary'!R497 -> 36800 | R14: ='PNA Summary'!S497 -> 124600 | S14: ='PNA Summary'!T497 -> 9060 | T14: ='PNA Summary'!U497 -> 96000 | U14: ='PNA Summary'!V497 -> 124800 | V14: ='PNA Summary'!W497 -> 90000 | W14: ='PNA Summary'!X497 -> 7700 | X14: ='PNA Summary'!Y497 -> 15600 | Y14: ='PNA Summary'!Z497 -> 541600 | Z14: ='PNA Summary'!AA497 -> 0 | AA14: ='PNA Summary'!AB497 -> 19900 | AB14: ='PNA Summary'!AC497 -> 0 | AC14: ='PNA Summary'!AD497 -> 90000 | AD14: ='PNA Summary'!AE497 -> 64800
A15: =CNI!A137 -> Fencing | B15: =IF(CNI!K143="Non-Utility Saver","no","yes") -> no | C15: =CNI!AK145 -> 0 | D15: n/a | E15: n/a | F15: n/a | I15: Mechanical | K15: ='PNA Summary'!L529 -> 6890 | L15: ='PNA Summary'!M529 -> 25000 | M15: ='PNA Summary'!N529 -> 0 | N15: ='PNA Summary'!O529 -> 0 | O15: ='PNA Summary'!P529 -> 156000 | P15: ='PNA Summary'!Q529 -> 0 | Q15: ='PNA Summary'!R529 -> 6890 | R15: ='PNA Summary'!S529 -> 0 | S15: ='PNA Summary'!T529 -> 25000 | T15: ='PNA Summary'!U529 -> 156000 | U15: ='PNA Summary'!V529 -> 0 | V15: ='PNA Summary'!W529 -> 0 | W15: ='PNA Summary'!X529 -> 6890 | X15: ='PNA Summary'!Y529 -> 4500 | Y15: ='PNA Summary'!Z529 -> 156000 | Z15: ='PNA Summary'!AA529 -> 25000 | AA15: ='PNA Summary'!AB529 -> 0 | AB15: ='PNA Summary'!AC529 -> 0 | AC15: ='PNA Summary'!AD529 -> 6890 | AD15: ='PNA Summary'!AE529 -> 156000
A16: =CNI!A147 -> Fence Painting | B16: =IF(CNI!K153="Non-Utility Saver","no","yes") -> no | C16: =CNI!AK155 -> 8000 | D16: n/a | E16: n/a | F16: n/a
A17: =CNI!A157 -> Dumpsters & Enclosures | B17: =IF(CNI!K163="Non-Utility Saver","no","yes") -> no | C17: =CNI!AK165 -> 0 | D17: n/a | E17: n/a | F17: n/a
A18: =CNI!A167 -> Electrical Distibution | B18: =IF(CNI!K173="Non-Utility Saver","no","yes") -> no | C18: =CNI!AK175 -> 0 | D18: n/a | E18: n/a | F18: n/a
A19: =CNI!A177 -> Playground Areas/Equipment | B19: =IF(CNI!K183="Non-Utility Saver","no","yes") -> no | C19: =CNI!AK185 -> 1000 | D19: n/a | E19: n/a | F19: n/a
A20: =CNI!A187 -> Site-Other 1 (Specify) | B20: =IF(CNI!K193="Non-Utility Saver","no","yes") -> no | C20: =CNI!AK195 -> 0 | D20: n/a | E20: n/a | F20: n/a
A21: =CNI!A197 -> Site-Other 2 (Specify) | B21: =IF(CNI!K203="Non-Utility Saver","no","yes") -> no | C21: =CNI!AK205 -> 0 | D21: n/a | E21: n/a | F21: n/a
A22: =CNI!A207 -> Site-Other 3 (Specify) | B22: =IF(CNI!K213="Non-Utility Saver","no","yes") -> no | C22: =CNI!AK215 -> 0 | D22: n/a | E22: n/a | F22: n/a
A23: =CNI!A217 -> Site-Other 4 (Specify) | B23: =IF(CNI!K223="Non-Utility Saver","no","yes") -> no | C23: =CNI!AK225 -> 0 | D23: n/a | E23: n/a | F23: n/a
A24: =CNI!A227 -> Site-Other 5 (Specify) | B24: =IF(CNI!K233="Non-Utility Saver","no","yes") -> no | C24: =CNI!AK235 -> 0 | D24: n/a | E24: n/a | F24: n/a
A25: =CNI!A237 -> Site-Other 6 (Specify) | B25: =IF(CNI!K243="Non-Utility Saver","no","yes") -> no | C25: =CNI!AK245 -> 0 | D25: n/a | E25: n/a | F25: n/a
A26: =CNI!A247 -> Site-Other 7 (Specify) | B26: =IF(CNI!K253="Non-Utility Saver","no","yes") -> no | C26: =CNI!AK255 -> 0 | D26: n/a | E26: n/a | F26: n/a
A27: =CNI!A257 -> Site-Other 8 (Specify) | B27: =IF(CNI!K263="Non-Utility Saver","no","yes") -> no | C27: =CNI!AK265 -> 0 | D27: n/a | E27: n/a | F27: n/a
A28: =CNI!A267 -> Site-Other 9 (Specify) | B28: =IF(CNI!K273="Non-Utility Saver","no","yes") -> no | C28: =CNI!AK275 -> 0 | D28: n/a | E28: n/a | F28: n/a
A29: =CNI!A277 -> Site-Other 10 (Specify) | B29: =IF(CNI!K283="Non-Utility Saver","no","yes") -> no | C29: =CNI!AK285 -> 0 | D29: n/a | E29: n/a | F29: n/a
A31: Common Areas | B31: Utility Saver (Y/N) | C31: Incremental Cost | D31: Annual Utility / Water Savings | E31: Annual Savings | F31: Simple Payback
A32: =CNI!A297 -> Administrative Building | B32: =IF(CNI!K303="Non-Utility Saver","no","yes") -> no | C32: =CNI!AK305 -> 500 | D32: =IF(B32="No","n/a","value") -> n/a | E32: =IF(B32="no","n/a","value") -> n/a | F32: =IF(B32="no","n/a","value") -> n/a
A33: =CNI!A307 -> Community Building | B33: =IF(CNI!K313="Non-Utility Saver","no","yes") -> no | C33: =CNI!AK315 -> 6000 | D33: =IF(B33="No","n/a","value") -> n/a | E33: =IF(B33="no","n/a","value") -> n/a | F33: n/a
A34: =CNI!A317 -> Shop | B34: =IF(CNI!K323="Non-Utility Saver","no","yes") -> no | C34: =CNI!AK325 -> 0 | D34: n/a | E34: n/a | F34: n/a
A35: =CNI!A327 -> Storage Area | B35: =IF(CNI!K333="Non-Utility Saver","no","yes") -> no | C35: =CNI!AK335 -> 0 | D35: n/a | E35: n/a | F35: n/a
A36: =CNI!A337 -> Central Boiler | B36: =IF(CNI!K343="Non-Utility Saver","no","yes") -> no | C36: =CNI!AK345 -> 2800 | D36: n/a | E36: n/a | F36: n/a
A37: =CNI!A347 -> Central Chiller | B37: =IF(CNI!K353="Non-Utility Saver","no","yes") -> no | C37: =CNI!AK355 -> 6200 | D37: n/a | E37: n/a | F37: n/a
A38: =CNI!A357 -> Family Investment Center | B38: =IF(CNI!K363="Non-Utility Saver","no","yes") -> no | C38: =CNI!AK365 -> 0 | D38: n/a | E38: n/a | F38: n/a
A39: =CNI!A367 -> Day Care Center | B39: =IF(CNI!K373="Non-Utility Saver","no","yes") -> no | C39: =CNI!AK375 -> 650 | D39: n/a | E39: n/a | F39: n/a
A40: =CNI!A377 -> Laundry Areas | B40: =IF(CNI!K383="Non-Utility Saver","no","yes") -> no | C40: =CNI!AK385 -> 1100 | D40: n/a | E40: n/a | F40: n/a
A41: =CNI!A387 -> Common Area Washers | B41: =IF(CNI!K393="Non-Utility Saver","no","yes") -> no | C41: =CNI!AK395 -> 700 | D41: n/a | E41: n/a | F41: n/a
A42: =CNI!A397 -> Common Area Dryers | B42: =IF(CNI!K403="Non-Utility Saver","no","yes") -> no | C42: =CNI!AK405 -> 800 | D42: n/a | E42: n/a | F42: n/a
A43: =CNI!A407 -> Common Facilities Kitchen | B43: =IF(CNI!K413="Non-Utility Saver","no","yes") -> no | C43: =CNI!AK415 -> 300 | D43: n/a | E43: n/a | F43: n/a
A44: =CNI!A417 -> Common Facilities Appliances | B44: =IF(CNI!K423="Non-Utility Saver","no","yes") -> no | C44: =CNI!AK425 -> 400 | D44: n/a | E44: n/a | F44: n/a
A45: =CNI!A427 -> Common Area Finishes | B45: =IF(CNI!K433="Non-Utility Saver","no","yes") -> no | C45: =CNI!AK435 -> 400 | D45: n/a | E45: n/a | F45: n/a
A46: =CNI!A437 -> Common-Other 1 (Specify) | B46: =IF(CNI!K443="Non-Utility Saver","no","yes") -> no | C46: =CNI!AK445 -> 0 | D46: n/a | E46: n/a | F46: n/a
A47: =CNI!A447 -> Common-Other 2 (Specify) | B47: =IF(CNI!K453="Non-Utility Saver","no","yes") -> no | C47: =CNI!AK455 -> 0 | D47: n/a | E47: n/a | F47: n/a
A48: =CNI!A457 -> Common-Other 3 (Specify) | B48: =IF(CNI!K463="Non-Utility Saver","no","yes") -> no | C48: =CNI!AK465 -> 0 | D48: n/a | E48: n/a | F48: n/a
A49: =CNI!A467 -> Common-Other 4 (Specify) | B49: =IF(CNI!K473="Non-Utility Saver","no","yes") -> no | C49: =CNI!AK475 -> 0 | D49: n/a | E49: n/a | F49: n/a
A50: =CNI!A477 -> Common-Other 5 (Specify) | B50: =IF(CNI!K483="Non-Utility Saver","no","yes") -> no | C50: =CNI!AK485 -> 0 | D50: n/a | E50: n/a | F50: n/a
A51: =CNI!A487 -> Common-Other 6 (Specify) | B51: =IF(CNI!K493="Non-Utility Saver","no","yes") -> no | C51: =CNI!AK495 -> 0 | D51: n/a | E51: n/a | F51: n/a
A52: =CNI!A497 -> Common-Other 7 (Specify) | B52: =IF(CNI!K503="Non-Utility Saver","no","yes") -> no | C52: =CNI!AK505 -> 0 | D52: n/a | E52: n/a | F52: n/a
A53: =CNI!A507 -> Common-Other 8 (Specify) | B53: =IF(CNI!K513="Non-Utility Saver","no","yes") -> no | C53: =CNI!AK515 -> 0 | D53: n/a | E53: n/a | F53: n/a
A54: =CNI!A517 -> Common-Other 9 (Specify) | B54: =IF(CNI!K523="Non-Utility Saver","no","yes") -> no | C54: =CNI!AK525 -> 0 | D54: n/a | E54: n/a | F54: n/a
A55: =CNI!A527 -> Common-Other 10 (Specify) | B55: =IF(CNI!K533="Non-Utility Saver","no","yes") -> no | C55: =CNI!AK535 -> 0 | D55: n/a | E55: n/a | F55: n/a
A57: Unit Exteriors | B57: Utility Saver (Y/N) | C57: Incremental Cost | D57: Annual Utility / Water Savings | E57: Annual Savings | F57: Simple Payback
A58: =CNI!A547 -> Carports/Surface Garage | B58: =IF(CNI!K553="Non-Utility Saver","no","yes") -> no | C58: =CNI!AK555 -> 1200 | D58: =IF(B58="No","n/a","value") -> n/a | E58: =IF(B58="no","n/a","value") -> n/a | F58: =IF(B58="no","n/a","value") -> n/a
A59: =CNI!A557 -> Foundation | B59: =IF(CNI!K563="Non-Utility Saver","no","yes") -> no | C59: =CNI!AK565 -> 0 | D59: n/a | E59: n/a | F59: n/a
A60: =CNI!A567 -> Foundation Waterproofing | B60: =IF(CNI!K573="Non-Utility Saver","no","yes") -> no | C60: =CNI!AK575 -> 0 | D60: n/a | E60: n/a | F60: n/a
A61: =CNI!A577 -> Building Slab | B61: =IF(CNI!K583="Non-Utility Saver","no","yes") -> no | C61: =CNI!AK585 -> 0 | D61: n/a | E61: n/a | F61: n/a
A62: =CNI!A587 -> Roofs | B62: =IF(CNI!K597="Non-Utility Saver","no","yes") -> yes | C62: =CNI!AK601 -> 21300 | D62: =#REF!&" "&CNI!AN601 ->  | E62: =CNI!AL601 -> 22050 | F62: =CNI!AM601 -> 0.9659863946
A63: =CNI!A603 -> Exterior Walls - Structural | B63: =IF(CNI!K613="Non-Utility Saver","no","yes") -> yes | C63: =CNI!AK617 -> 11550 | D63: =#REF!&" "&CNI!AN617 ->  | E63: =CNI!AL617 -> 1350 | F63: =CNI!AM617 -> 8.555555556
A64: =CNI!A619 -> Exterior Walls - Finishes | B64: =IF(CNI!K625="Non-Utility Saver","no","yes") -> no | C64: =CNI!AK627 -> 12800 | D64: n/a | E64: n/a | F64: n/a
A65: =CNI!A629 -> Canopies | B65: =IF(CNI!K635="Non-Utility Saver","no","yes") -> no | C65: =CNI!AK637 -> 0 | D65: n/a | E65: n/a | F65: n/a
A66: =CNI!A639 -> Tuck-Pointing | B66: =IF(CNI!K645="Non-Utility Saver","no","yes") -> no | C66: =CNI!AK647 -> 0 | D66: n/a | E66: n/a | F66: n/a
A67: =CNI!A649 -> Exterior Paint & Caulking | B67: =IF(CNI!K655="Non-Utility Saver","no","yes") -> no | C67: =CNI!AK657 -> 22800 | D67: n/a | E67: n/a | F67: n/a
A68: =CNI!A659 -> Soffits | B68: =IF(CNI!K665="Non-Utility Saver","no","yes") -> no | C68: =CNI!AK667 -> 140 | D68: n/a | E68: n/a | F68: n/a
A69: =CNI!A669 -> Siding | B69: =IF(CNI!K675="Non-Utility Saver","no","yes") -> no | C69: =CNI!AK677 -> 2600 | D69: n/a | E69: n/a | F69: n/a
A70: =CNI!A679 -> Exterior Stairwells/Fire Escapes | B70: =IF(CNI!K685="Non-Utility Saver","no","yes") -> no | C70: =CNI!AK687 -> 0 | D70: n/a | E70: n/a | F70: n/a
A71: =CNI!A689 -> Landings & Railings | B71: =IF(CNI!K695="Non-Utility Saver","no","yes") -> no | C71: =CNI!AK697 -> 0 | D71: n/a | E71: n/a | F71: n/a
A72: =CNI!A699 -> Balconies & Railings | B72: =IF(CNI!K705="Non-Utility Saver","no","yes") -> no | C72: =CNI!AK707 -> 0 | D72: n/a | E72: n/a | F72: n/a
A73: =CNI!A709 -> Mail Facilities | B73: =IF(CNI!K715="Non-Utility Saver","no","yes") -> no | C73: =CNI!AK717 -> 0 | D73: n/a | E73: n/a | F73: n/a
A74: =CNI!A719 -> Exterior Doors | B74: =IF(CNI!K729="Non-Utility Saver","no","yes") -> yes | C74: =CNI!AK733 -> 3300 | D74: =#REF!&" "&CNI!AN733 ->  | E74: =CNI!AL733 -> 9000 | F74: =CNI!AM733 -> 0.3666666667
A75: =CNI!A735 -> Exterior Door Frames | B75: =IF(CNI!K741="Non-Utility Saver","no","yes") -> no | C75: =CNI!AK743 -> 1000 | D75: n/a | E75: n/a | F75: n/a
A76: =CNI!A745 -> Patio Doors | B76: =IF(CNI!K751="Non-Utility Saver","no","yes") -> no | C76: =CNI!AK753 -> 2220 | D76: n/a | E76: n/a | F76: n/a
A77: =CNI!A755 -> Windows | B77: =IF(CNI!K765="Non-Utility Saver","no","yes") -> yes | C77: =CNI!AK769 -> 23100 | D77: =#REF!&" "&CNI!AN769 ->  | E77: =CNI!AL769 -> 31500 | F77: =CNI!AM769 -> 0.7333333333
A78: =CNI!A771 -> Window Frames | B78: =IF(CNI!K777="Non-Utility Saver","no","yes") -> no | C78: =CNI!AK779 -> 4000 | D78: n/a | E78: n/a | F78: n/a
A79: =CNI!A781 -> Gutters/Downspouts | B79: =IF(CNI!K787="Non-Utility Saver","no","yes") -> no | C79: =CNI!AK789 -> 18000 | D79: n/a | E79: n/a | F79: n/a
A80: =CNI!A791 -> Columns & Porches | B80: =IF(CNI!K797="Non-Utility Saver","no","yes") -> no | C80: =CNI!AK799 -> 600 | D80: n/a | E80: n/a | F80: n/a
A81: =CNI!A801 -> Decks & Patios | B81: =IF(CNI!K807="Non-Utility Saver","no","yes") -> no | C81: =CNI!AK809 -> 111 | D81: n/a | E81: n/a | F81: n/a
A82: =CNI!A811 -> Patio/Unit Fencing | B82: =IF(CNI!K817="Non-Utility Saver","no","yes") -> no | C82: =CNI!AK819 -> 0 | D82: n/a | E82: n/a | F82: n/a
A83: =CNI!A821 -> Exterior Lighting | B83: =IF(CNI!K831="Non-Utility Saver","no","yes") -> yes | C83: =CNI!AK835 -> 30000 | D83: =CNI!K831-CNI!K835&" "&CNI!L831 -> -23000 KWH | E83: =CNI!AL835 -> 19050 | F83: =CNI!AM835 -> 1.57480315
A84: =CNI!A837 -> Exterior-Other 1 (Specify) | B84: =IF(CNI!K843="Non-Utility Saver","no","yes") -> no | C84: =CNI!AK845 -> 0 | D84: n/a | E84: n/a | F84: n/a
A85: =CNI!A847 -> Exterior-Other 2 (Specify) | B85: =IF(CNI!K853="Non-Utility Saver","no","yes") -> no | C85: =CNI!AK855 -> 0 | D85: n/a | E85: n/a | F85: n/a
A86: =CNI!A857 -> Exterior-Other 3 (Specify) | B86: =IF(CNI!K863="Non-Utility Saver","no","yes") -> no | C86: =CNI!AK865 -> 0 | D86: n/a | E86: n/a | F86: n/a
A87: =CNI!A867 -> Exterior-Other 4 (Specify) | B87: =IF(CNI!K873="Non-Utility Saver","no","yes") -> no | C87: =CNI!AK875 -> 0 | D87: n/a | E87: n/a | F87: n/a
A88: =CNI!A877 -> Exterior-Other 5 (Specify) | B88: =IF(CNI!K883="Non-Utility Saver","no","yes") -> no | C88: =CNI!AK885 -> 0 | D88: n/a | E88: n/a | F88: n/a
A89: =CNI!A887 -> Exterior-Other 6 (Specify) | B89: =IF(CNI!K893="Non-Utility Saver","no","yes") -> no | C89: =CNI!AK895 -> 0 | D89: n/a | E89: n/a | F89: n/a
A90: =CNI!A897 -> Exterior-Other 7 (Specify) | B90: =IF(CNI!K903="Non-Utility Saver","no","yes") -> no | C90: =CNI!AK905 -> 0 | D90: n/a | E90: n/a | F90: n/a
A91: =CNI!A907 -> Exterior-Other 8 (Specify) | B91: =IF(CNI!K913="Non-Utility Saver","no","yes") -> no | C91: =CNI!AK915 -> 0 | D91: n/a | E91: n/a | F91: n/a
A92: =CNI!A917 -> Exterior-Other 9 (Specify) | B92: =IF(CNI!K923="Non-Utility Saver","no","yes") -> no | C92: =CNI!AK925 -> 0 | D92: n/a | E92: n/a | F92: n/a
A93: =CNI!A927 -> Exterior-Other 10 (Specify) | B93: =IF(CNI!K933="Non-Utility Saver","no","yes") -> no | C93: =CNI!AK935 -> 0 | D93: n/a | E93: n/a | F93: n/a
A95: Unit Interiors | B95: Utility Saver (Y/N) | C95: Incremental Cost | D95: Annual Utility / Water Savings | E95: Annual Savings | F95: Simple Payback
A96: =CNI!A947 -> Interior Painting (non-routine) | B96: =IF(CNI!K953="Non-Utility Saver","no","yes") -> no | C96: =CNI!AK955 -> 500 | D96: =IF(B96="No","n/a","value") -> n/a | E96: =IF(B96="no","n/a","value") -> n/a | F96: =IF(B96="no","n/a","value") -> n/a
A97: =CNI!A957 -> Interior Doors | B97: =IF(CNI!K963="Non-Utility Saver","no","yes") -> no | C97: =CNI!AK965 -> 100 | D97: n/a | E97: =IF(B97="no","n/a","value") -> n/a | F97: =IF(B97="no","n/a","value") -> n/a
A98: =CNI!A967 -> Interior Door Frames | B98: =IF(CNI!K973="Non-Utility Saver","no","yes") -> no | C98: =CNI!AK975 -> 60 | D98: n/a | E98: n/a | F98: n/a
A99: =CNI!A977 -> Flooring (non-routine) | B99: =IF(CNI!K983="Non-Utility Saver","no","yes") -> no | C99: =CNI!AK985 -> 24000 | D99: n/a | E99: n/a | F99: n/a
A100: =CNI!A987 -> Shower/Tub Surrounds | B100: =IF(CNI!K997="Non-Utility Saver","no","yes") -> yes | C100: =CNI!AK1001 -> 400 | D100: =CNI!K997-CNI!K1001&" "&CNI!L997 -> -85000 Gallons | E100: =CNI!AL1001 -> 307.5 | F100: =CNI!AM1001 -> 1.300813008
A101: =CNI!A1003 -> Toilets | B101: =IF(CNI!K1013="Non-Utility Saver","no","yes") -> yes | C101: =CNI!AK1017 -> 8800 | D101: =CNI!K1013-CNI!K1017&" "&CNI!L1013 -> 751600 Gallons | E101: =CNI!AL1017 -> 6449.4 | F101: =CNI!AM1017 -> 1.364468013
A102: =CNI!A1019 -> Vanities | B102: =IF(CNI!K1025="Non-Utility Saver","no","yes") -> no | C102: =CNI!AK1027 -> 4400 | D102: n/a | E102: n/a | F102: n/a
A103: =CNI!A1029 -> Faucets | B103: =IF(CNI!K1039="Non-Utility Saver","no","yes") -> yes | C103: =CNI!AK1043 -> 400 | D103: =CNI!K1043&" "&CNI!L1039 -> 2248400 Gallons | E103: =CNI!AL1043 -> 1127.4 | F103: =CNI!AM1043 -> 0.3547986518
A104: =CNI!A1045 -> Bathroom Flooring (non-cyclical) | B104: =IF(CNI!K1051="Non-Utility Saver","no","yes") -> no | C104: =CNI!AK1053 -> 14400 | D104: n/a | E104: n/a | F104: n/a
A105: =CNI!A1055 -> Bathroom Cabinets | B105: =IF(CNI!K1061="Non-Utility Saver","no","yes") -> no | C105: =CNI!AK1063 -> 3800 | D105: n/a | E105: n/a | F105: n/a
A106: =CNI!A1065 -> Bathroom Exhaust Fans | B106: =IF(CNI!K1071="Non-Utility Saver","no","yes") -> no | C106: =CNI!AK1073 -> 12000 | D106: n/a | E106: n/a | F106: n/a
A107: =CNI!A1075 -> Kitchen Cabinets | B107: =IF(CNI!K1081="Non-Utility Saver","no","yes") -> no | C107: =CNI!AK1083 -> 2400 | D107: n/a | E107: n/a | F107: n/a
A108: =CNI!A1085 -> Ranges | B108: =IF(CNI!K1091="Non-Utility Saver","no","yes") -> no | C108: =CNI!AK1093 -> 0 | D108: n/a | E108: n/a | F108: n/a
A109: =CNI!A1095 -> Range Hoods | B109: =IF(CNI!K1101="Non-Utility Saver","no","yes") -> no | C109: =CNI!AK1103 -> 0 | D109: n/a | E109: n/a | F109: n/a
A110: =CNI!A1105 -> Refrigerators | B110: =IF(CNI!K1115="Non-Utility Saver","no","yes") -> yes | C110: =CNI!AK1119 -> 38000 | D110: =CNI!K1115-CNI!K1119&" "&CNI!L1115 -> -280000 KWH | E110: =CNI!AL1119 -> 3000 | F110: =CNI!AM1119 -> 12.66666667
A111: =CNI!A1121 -> Counters and Sinks | B111: =IF(CNI!K1127="Non-Utility Saver","no","yes") -> no | C111: =CNI!AK1129 -> 2200 | D111: n/a | E111: n/a | F111: n/a
A112: =CNI!A1131 -> Dishwasher | B112: =IF(CNI!K1141="Non-Utility Saver","no","yes") -> yes | C112: =CNI!AK1145 -> 11000 | D112: =CNI!K1141-CNI!K1145&" "&CNI!L1141 -> -280000 KWH | E112: =CNI!AL1145 -> 6000 | F112: =CNI!AM1145 -> 1.833333333
A113: =CNI!A1147 -> Garbage Disposal | B113: =IF(CNI!K1153="Non-Utility Saver","no","yes") -> no | C113: =CNI!AK1155 -> 0 | D113: n/a | E113: n/a | F113: n/a
A114: =CNI!A1157 -> Microwave | B114: =IF(CNI!K1163="Non-Utility Saver","no","yes") -> no | C114: =CNI!AK1165 -> 0 | D114: n/a | E114: n/a | F114: n/a
A115: =CNI!A1167 -> Lighting | B115: =IF(CNI!K1177="Non-Utility Saver","no","yes") -> yes | C115: =CNI!AK1181 -> 36000 | D115: =CNI!K1177-CNI!K1181&" "&CNI!L1177 -> -225000 KWH | E115: =CNI!AL1181 -> 14250 | F115: =CNI!AM1181 -> 2.526315789
A116: =CNI!A1183 -> Washing Machines | B116: =IF(CNI!K1193="Non-Utility Saver","no","yes") -> yes | C116: =CNI!AK1197 -> 20000 | D116: =CNI!K1193-CNI!K1197&" "&CNI!L1193 -> -10000 KWH | E116: =CNI!AL1197 -> 11000.15 | F116: =CNI!AM1197 -> 1.818157025
A117: =CNI!A1199 -> Dryers | B117: =IF(CNI!K1205="Non-Utility Saver","no","yes") -> no | C117: =CNI!AK1207 -> 0 | D117: n/a | E117: n/a | F117: n/a
A118: =CNI!A1209 -> Call-For-Aid Systems | B118: =IF(CNI!K1215="Non-Utility Saver","no","yes") -> no | C118: =CNI!AK1217 -> 0 | D118: n/a | E118: n/a | F118: n/a
A119: =CNI!A1219 -> Stairs and Handrails | B119: =IF(CNI!K1225="Non-Utility Saver","no","yes") -> no | C119: =CNI!AK1227 -> 0 | D119: n/a | E119: n/a | F119: n/a
A120: =CNI!A1229 -> Interior-Other 1 (Specify) | B120: =IF(CNI!K1235="Non-Utility Saver","no","yes") -> no | C120: =CNI!AK1237 -> 0 | D120: n/a | E120: n/a | F120: n/a
A121: =CNI!A1239 -> Interior-Other 2 (Specify) | B121: =IF(CNI!K1245="Non-Utility Saver","no","yes") -> no | C121: =CNI!AK1247 -> 0 | D121: n/a | E121: n/a | F121: n/a
A122: =CNI!A1249 -> Interior-Other 3 (Specify) | B122: =IF(CNI!K1255="Non-Utility Saver","no","yes") -> no | C122: =CNI!AK1257 -> 0 | D122: n/a | E122: n/a | F122: n/a
A123: =CNI!A1259 -> Interior-Other 4 (Specify) | B123: =IF(CNI!K1265="Non-Utility Saver","no","yes") -> no | C123: =CNI!AK1267 -> 0 | D123: n/a | E123: n/a | F123: n/a
A124: =CNI!A1269 -> Interior-Other 5 (Specify) | B124: =IF(CNI!K1275="Non-Utility Saver","no","yes") -> no | C124: =CNI!AK1277 -> 0 | D124: n/a | E124: n/a | F124: n/a
A125: =CNI!A1279 -> Interior-Other 6 (Specify) | B125: =IF(CNI!K1285="Non-Utility Saver","no","yes") -> no | C125: =CNI!AK1287 -> 0 | D125: n/a | E125: n/a | F125: n/a
A126: =CNI!A1289 -> Interior-Other 7 (Specify) | B126: =IF(CNI!K1295="Non-Utility Saver","no","yes") -> no | C126: =CNI!AK1297 -> 0 | D126: n/a | E126: n/a | F126: n/a
A127: =CNI!A1299 -> Interior-Other 8 (Specify) | B127: =IF(CNI!K1305="Non-Utility Saver","no","yes") -> no | C127: =CNI!AK1307 -> 0 | D127: n/a | E127: n/a | F127: n/a
A128: =CNI!A1309 -> Interior-Other 9 (Specify) | B128: =IF(CNI!K1315="Non-Utility Saver","no","yes") -> no | C128: =CNI!AK1317 -> 0 | D128: n/a | E128: n/a | F128: n/a
A129: =CNI!A1319 -> Interior-Other 10 (Specify) | B129: =IF(CNI!K1325="Non-Utility Saver","no","yes") -> no | C129: =CNI!AK1327 -> 0 | D129: n/a | E129: n/a | F129: n/a
A131: Mechanical | B131: Utility Saver (Y/N) | C131: Incremental Cost | D131: Annual Utility / Water Savings | E131: Annual Savings | F131: Simple Payback
A132: =CNI!A1339 -> Water Distribution | B132: =IF(CNI!K1345="Non-Utility Saver","no","yes") -> no | C132: =CNI!AK1347 -> 0 | D132: =IF(B132="No","n/a","value") -> n/a | E132: =IF(B132="no","n/a","value") -> n/a | F132: =IF(B132="no","n/a","value") -> n/a
A133: =CNI!A1349 -> Heating Equipment/System | B133: =IF(CNI!K1355="Non-Utility Saver","no","yes") -> no | C133: =CNI!AK1357 -> 176000 | D133: =IF(B133="No","n/a","value") -> n/a | E133: =IF(B133="no","n/a","value") -> n/a | F133: =IF(B133="no","n/a","value") -> n/a
A134: =CNI!A1359 -> Electric Distribution | B134: =IF(CNI!K1365="Non-Utility Saver","no","yes") -> no | C134: =CNI!AK1367 -> 9240 | D134: n/a | E134: n/a | F134: n/a
A135: =CNI!A1369 -> Water Heaters | B135: =IF(CNI!K1375="Non-Utility Saver","no","yes") -> no | C135: =CNI!AK1377 -> 19200 | D135: n/a | E135: n/a | F135: n/a
A136: =CNI!A1379 -> Domestic Water - Boilers | B136: =IF(CNI!K1385="Non-Utility Saver","no","yes") -> no | C136: =CNI!AK1387 -> 0 | D136: n/a | E136: n/a | F136: n/a
A137: =CNI!A1389 -> Domestic Water-Pumps | B137: =IF(CNI!K1395="Non-Utility Saver","no","yes") -> no | C137: =CNI!AK1397 -> 0 | D137: n/a | E137: n/a | F137: n/a
A138: =CNI!A1399 -> Unit Sub-Panels | B138: =IF(CNI!K1405="Non-Utility Saver","no","yes") -> no | C138: =CNI!AK1407 -> 0 | D138: n/a | E138: n/a | F138: n/a
A139: =CNI!A1409 -> Trash Compactor | B139: =IF(CNI!K1415="Non-Utility Saver","no","yes") -> no | C139: =CNI!AK1417 -> 0 | D139: n/a | E139: n/a | F139: n/a
A140: =CNI!A1419 -> Cooling Equipment/Systems | B140: =IF(CNI!K1425="Non-Utility Saver","no","yes") -> no | C140: =CNI!AK1427 -> 0 | D140: n/a | E140: n/a | F140: n/a
A141: =CNI!A1429 -> Smoke/Fire Detection | B141: =IF(CNI!K1435="Non-Utility Saver","no","yes") -> no | C141: =CNI!AK1437 -> 0 | D141: n/a | E141: n/a | F141: n/a
A142: =CNI!A1439 -> Unit Reconfiguration | B142: =IF(CNI!K1445="Non-Utility Saver","no","yes") -> no | C142: =CNI!AK1447 -> 0 | D142: n/a | E142: n/a | F142: n/a
A143: =CNI!A1449 -> Security/Fire Alarm | B143: =IF(CNI!K1455="Non-Utility Saver","no","yes") -> no | C143: =CNI!AK1457 -> 0 | D143: n/a | E143: n/a | F143: n/a
A144: =CNI!A1459 -> Fire Supression System | B144: =IF(CNI!K1465="Non-Utility Saver","no","yes") -> no | C144: =CNI!AK1467 -> 0 | D144: n/a | E144: n/a | F144: n/a
A145: =CNI!A1469 -> Generator | B145: =IF(CNI!K1475="Non-Utility Saver","no","yes") -> no | C145: =CNI!AK1477 -> 0 | D145: n/a | E145: n/a | F145: n/a
A146: =CNI!A1479 -> Emergency Lighting | B146: =IF(CNI!K1485="Non-Utility Saver","no","yes") -> no | C146: =CNI!AK1487 -> 0 | D146: n/a | E146: n/a | F146: n/a
A147: =CNI!A1489 -> Elevator | B147: =IF(CNI!K1495="Non-Utility Saver","no","yes") -> no | C147: =CNI!AK1497 -> 0 | D147: n/a | E147: n/a | F147: n/a
A148: =CNI!A1499 -> Mechanical-Other 1 (Specify) | B148: =IF(CNI!K1505="Non-Utility Saver","no","yes") -> no | C148: =CNI!AK1507 -> 0 | D148: n/a | E148: n/a | F148: n/a
A149: =CNI!A1509 -> Mechanical-Other 2 (Specify) | B149: =IF(CNI!K1515="Non-Utility Saver","no","yes") -> no | C149: =CNI!AK1517 -> 0 | D149: n/a | E149: n/a | F149: n/a
A150: =CNI!A1519 -> Mechanical-Other 3 (Specify) | B150: =IF(CNI!K1525="Non-Utility Saver","no","yes") -> no | C150: =CNI!AK1527 -> 0 | D150: n/a | E150: n/a | F150: n/a
A151: =CNI!A1529 -> Mechanical-Other 4(Specify) | B151: =IF(CNI!K1535="Non-Utility Saver","no","yes") -> no | C151: =CNI!AK1537 -> 0 | D151: n/a | E151: n/a | F151: n/a
A152: =CNI!A1539 -> Mechanical-Other 5 (Specify) | B152: =IF(CNI!K1545="Non-Utility Saver","no","yes") -> no | C152: =CNI!AK1547 -> 0 | D152: n/a | E152: n/a | F152: n/a
A153: =CNI!A1549 -> Mechanical-Other 6 (Specify) | B153: =IF(CNI!K1555="Non-Utility Saver","no","yes") -> no | C153: =CNI!AK1557 -> 0 | D153: n/a | E153: n/a | F153: n/a
A154: =CNI!A1559 -> Mechanical-Other 7 (Specify) | B154: =IF(CNI!K1565="Non-Utility Saver","no","yes") -> no | C154: =CNI!AK1567 -> 0 | D154: n/a | E154: n/a | F154: n/a
A155: =CNI!A1569 -> Mechanical-Other 8 (Specify) | B155: =IF(CNI!K1575="Non-Utility Saver","no","yes") -> no | C155: =CNI!AK1577 -> 0 | D155: n/a | E155: n/a | F155: n/a
A156: =CNI!A1579 -> Mechanical-Other 9 (Specify) | B156: =IF(CNI!K1585="Non-Utility Saver","no","yes") -> no | C156: =CNI!AK1587 -> 0 | D156: n/a | E156: n/a | F156: n/a
A157: =CNI!A1589 -> Mechanical-Other 10 (Specify) | B157: =IF(CNI!K1595="Non-Utility Saver","no","yes") -> no | C157: =CNI!AK1597 -> 0 | D157: n/a | E157: n/a | F157: n/a
A160: Capital Needs Summary - Standard
A189: Capital Needs Summary - Green
